Workbook

Sheet Introduction
O30: Spreadsheet Last Updated: | P30: 2024-01-01

Sheet Toll Calculator
C2: Points to Point Service (FT-P) Price Determination:
C4: Select Group 2 Delivery Location Using Pull-Down Menu:
C5: Station Number | D5: Delivery Station Name - [select below] - | E5: Latitude | F5: Longitude | H5: Legal Location | I5: FT-D2 Price
I6: ='Closest Receipt Stations'!H5 -> ($/e³m³/mo)
C7: =IFERROR(INDEX(Table_DeliveryPoint[Group 2 Delivery Point Number],MATCH(D7,Table_DeliveryPoint[Group 2 Delivery Point Name],0),),"") -> 31001 | D7: ADM AGRI INDUSTRIES SALES APN | E7: =IFERROR(INDEX(Table_DeliveryPoint[Latitude],MATCH('Toll Calculator'!D7,Table_DeliveryPoint[Group 2 Delivery Point Name],0),),"") -> 53.283498 | F7: =IFERROR(INDEX(Table_DeliveryPoint[Longitude],MATCH('Toll Calculator'!D7,Table_DeliveryPoint[Group 2 Delivery Point Name],0),),"") -> -110.039171 | H7: =IFERROR(INDEX(Table_DeliveryPoint[Legal Location Name],MATCH('Toll Calculator'!D7,Table_DeliveryPoint[Group 2 Delivery Point Name],0),),"") -> SE-02-050-01-W4 | I7: =IFERROR((INDEX(Table_Attach2[FT-D Demand Rate Price Point "Z" ($/GJ/mo)],MATCH($C$7,Table_Attach2[Group 2 Delivery Point Number],0),)*0.95*37.8)*INDEX(Conversions!$C$7:$C$8,MATCH('Toll Calculator'!$O$8,Conversions!$B$7:$B$8,0)),"") -> 327.14 | N7: Select Measurement System for Displaying Rates:
N8: Please Select → | O8: Metric
C9: Select Receipt Station(s) Using Pull-Down Menu and Input In Volume(s): | I9: =I6 -> ($/e³m³/mo) | J9: ="("&P10&")" -> (10³m³/d)
C10: Station Number | D10: Receipt Station Name - [select below] - | E10: Latitude | F10: Longitude | G10: Distance to Delivery (km) | H10: Legal Location | I10: FT-R Price | J10: FT-P Service Volume | N10: Total Volume: | O10: =SUM(Table_TollCalc[FT-P Service Volume ]) -> 140 | P10: ="10"&CHAR(179)&"m"&CHAR(179)&"/d" -> 10³m³/d
C11: =IFERROR(INDEX(Table_ReceiptPoint[Receipt Point Number],MATCH(Table_TollCalc[[#This Row],[Receipt Station Name - '[select below'] -]],Table_ReceiptPoint[Receipt Point Name],0),),"") -> 1337 | D11: ABEE* | E11: =IFERROR(INDEX(Table_ReceiptPoint[Latitude],MATCH(Table_TollCalc[[#This Row],[Station Number]],Table_ReceiptPoint[Receipt Point Number],0),),"") -> 54.315068 | F11: =IFERROR(INDEX(Table_ReceiptPoint[Longitude],MATCH(Table_TollCalc[[#This Row],[Station Number]],Table_ReceiptPoint[Receipt Point Number],0),),"") -> -113.251195 | G11: =IFERROR(ROUND(INDEX(Table_ReceiptPoint[Distance From Delivery Station],MATCH(Table_TollCalc[[#This Row],[Station Number]],Table_ReceiptPoint[Receipt Point Number],0),),2),"") -> 240.08 | H11: =IFERROR(INDEX(Table_ReceiptPoint[Legal Location Name],MATCH(Table_TollCalc[[#This Row],[Station Number]],Table_ReceiptPoint[Receipt Point Number],0),),"") -> SE-32-061-22-W4 | I11: =IFERROR(INDEX(Table_Attach1[FT-R Demand Rate Price Point "B" ($/103m3/mo)],MATCH(Table_TollCalc[[#This Row],[Station Number]],Table_Attach1[Receipt Point Number],0),)*INDEX(Conversions!$C$7:$C$8,MATCH('Toll Calculator'!$O$8,Conversions!$B$7:$B$8,0))," ") -> 369.7 | J11: 140 | N11: Distance Used for Price: | O11: =ROUND(MAX(Table_TollCalc[Distance to Delivery (km)]),2) -> 240.08 | P11: km
C12: =IFERROR(INDEX(Table_ReceiptPoint[Receipt Point Number],MATCH(Table_TollCalc[[#This Row],[Receipt Station Name - '[select below'] -]],Table_ReceiptPoint[Receipt Point Name],0),),"") ->  | E12: =IFERROR(INDEX(Table_ReceiptPoint[Latitude],MATCH(Table_TollCalc[[#This Row],[Station Number]],Table_ReceiptPoint[Receipt Point Number],0),),"") ->  | F12: =IFERROR(INDEX(Table_ReceiptPoint[Longitude],MATCH(Table_TollCalc[[#This Row],[Station Number]],Table_ReceiptPoint[Receipt Point Number],0),),"") ->  | G12: =IFERROR(ROUND(INDEX(Table_ReceiptPoint[Distance From Delivery Station],MATCH(Table_TollCalc[[#This Row],[Station Number]],Table_ReceiptPoint[Receipt Point Number],0),),2),"") ->  | H12: =IFERROR(INDEX(Table_ReceiptPoint[Legal Location Name],MATCH(Table_TollCalc[[#This Row],[Station Number]],Table_ReceiptPoint[Receipt Point Number],0),),"") ->  | I12: =IFERROR(INDEX(Table_Attach1[FT-R Demand Rate Price Point "B" ($/103m3/mo)],MATCH(Table_TollCalc[[#This Row],[Station Number]],Table_Attach1[Receipt Point Number],0),)*INDEX(Conversions!$C$7:$C$8,MATCH('Toll Calculator'!$O$8,Conversions!$B$7:$B$8,0))," ") ->  | N12: FT-P Price (3-Year Term): | O12: =INDEX(Table_Attach3[FT-P Demand Rate Price Point "B"],MATCH(1,Table_Attach3[Lookup],0),1)*INDEX(Conversions!$C$7:$C$8,MATCH($O$8,Conversions!$B$7:$B$8,0)) -> 571.72 | P12: ='Closest Receipt Stations'!$I$5 -> ($/e³m³/mo)
C13: =IFERROR(INDEX(Table_ReceiptPoint[Receipt Point Number],MATCH(Table_TollCalc[[#This Row],[Receipt Station Name - '[select below'] -]],Table_ReceiptPoint[Receipt Point Name],0),),"") ->  | E13: =IFERROR(INDEX(Table_ReceiptPoint[Latitude],MATCH(Table_TollCalc[[#This Row],[Station Number]],Table_ReceiptPoint[Receipt Point Number],0),),"") ->  | F13: =IFERROR(INDEX(Table_ReceiptPoint[Longitude],MATCH(Table_TollCalc[[#This Row],[Station Number]],Table_ReceiptPoint[Receipt Point Number],0),),"") ->  | G13: =IFERROR(ROUND(INDEX(Table_ReceiptPoint[Distance From Delivery Station],MATCH(Table_TollCalc[[#This Row],[Station Number]],Table_ReceiptPoint[Receipt Point Number],0),),2),"") ->  | H13: =IFERROR(INDEX(Table_ReceiptPoint[Legal Location Name],MATCH(Table_TollCalc[[#This Row],[Station Number]],Table_ReceiptPoint[Receipt Point Number],0),),"") ->  | I13: =IFERROR(INDEX(Table_Attach1[FT-R Demand Rate Price Point "B" ($/103m3/mo)],MATCH(Table_TollCalc[[#This Row],[Station Number]],Table_Attach1[Receipt Point Number],0),)*INDEX(Conversions!$C$7:$C$8,MATCH('Toll Calculator'!$O$8,Conversions!$B$7:$B$8,0))," ") -> 
C14: =IFERROR(INDEX(Table_ReceiptPoint[Receipt Point Number],MATCH(Table_TollCalc[[#This Row],[Receipt Station Name - '[select below'] -]],Table_ReceiptPoint[Receipt Point Name],0),),"") ->  | E14: =IFERROR(INDEX(Table_ReceiptPoint[Latitude],MATCH(Table_TollCalc[[#This Row],[Station Number]],Table_ReceiptPoint[Receipt Point Number],0),),"") ->  | F14: =IFERROR(INDEX(Table_ReceiptPoint[Longitude],MATCH(Table_TollCalc[[#This Row],[Station Number]],Table_ReceiptPoint[Receipt Point Number],0),),"") ->  | G14: =IFERROR(ROUND(INDEX(Table_ReceiptPoint[Distance From Delivery Station],MATCH(Table_TollCalc[[#This Row],[Station Number]],Table_ReceiptPoint[Receipt Point Number],0),),2),"") ->  | H14: =IFERROR(INDEX(Table_ReceiptPoint[Legal Location Name],MATCH(Table_TollCalc[[#This Row],[Station Number]],Table_ReceiptPoint[Receipt Point Number],0),),"") ->  | I14: =IFERROR(INDEX(Table_Attach1[FT-R Demand Rate Price Point "B" ($/103m3/mo)],MATCH(Table_TollCalc[[#This Row],[Station Number]],Table_Attach1[Receipt Point Number],0),)*INDEX(Conversions!$C$7:$C$8,MATCH('Toll Calculator'!$O$8,Conversions!$B$7:$B$8,0))," ") ->  | N14: Volume must be at least 140.0 103m3/d (5 mmcf/d) to be eligible for service
C15: =IFERROR(INDEX(Table_ReceiptPoint[Receipt Point Number],MATCH(Table_TollCalc[[#This Row],[Receipt Station Name - '[select below'] -]],Table_ReceiptPoint[Receipt Point Name],0),),"") ->  | E15: =IFERROR(INDEX(Table_ReceiptPoint[Latitude],MATCH(Table_TollCalc[[#This Row],[Station Number]],Table_ReceiptPoint[Receipt Point Number],0),),"") ->  | F15: =IFERROR(INDEX(Table_ReceiptPoint[Longitude],MATCH(Table_TollCalc[[#This Row],[Station Number]],Table_ReceiptPoint[Receipt Point Number],0),),"") ->  | G15: =IFERROR(ROUND(INDEX(Table_ReceiptPoint[Distance From Delivery Station],MATCH(Table_TollCalc[[#This Row],[Station Number]],Table_ReceiptPoint[Receipt Point Number],0),),2),"") ->  | H15: =IFERROR(INDEX(Table_ReceiptPoint[Legal Location Name],MATCH(Table_TollCalc[[#This Row],[Station Number]],Table_ReceiptPoint[Receipt Point Number],0),),"") ->  | I15: =IFERROR(INDEX(Table_Attach1[FT-R Demand Rate Price Point "B" ($/103m3/mo)],MATCH(Table_TollCalc[[#This Row],[Station Number]],Table_Attach1[Receipt Point Number],0),)*INDEX(Conversions!$C$7:$C$8,MATCH('Toll Calculator'!$O$8,Conversions!$B$7:$B$8,0))," ") -> 
C16: =IFERROR(INDEX(Table_ReceiptPoint[Receipt Point Number],MATCH(Table_TollCalc[[#This Row],[Receipt Station Name - '[select below'] -]],Table_ReceiptPoint[Receipt Point Name],0),),"") ->  | E16: =IFERROR(INDEX(Table_ReceiptPoint[Latitude],MATCH(Table_TollCalc[[#This Row],[Station Number]],Table_ReceiptPoint[Receipt Point Number],0),),"") ->  | F16: =IFERROR(INDEX(Table_ReceiptPoint[Longitude],MATCH(Table_TollCalc[[#This Row],[Station Number]],Table_ReceiptPoint[Receipt Point Number],0),),"") ->  | G16: =IFERROR(ROUND(INDEX(Table_ReceiptPoint[Distance From Delivery Station],MATCH(Table_TollCalc[[#This Row],[Station Number]],Table_ReceiptPoint[Receipt Point Number],0),),2),"") ->  | H16: =IFERROR(INDEX(Table_ReceiptPoint[Legal Location Name],MATCH(Table_TollCalc[[#This Row],[Station Number]],Table_ReceiptPoint[Receipt Point Number],0),),"") ->  | I16: =IFERROR(INDEX(Table_Attach1[FT-R Demand Rate Price Point "B" ($/103m3/mo)],MATCH(Table_TollCalc[[#This Row],[Station Number]],Table_Attach1[Receipt Point Number],0),)*INDEX(Conversions!$C$7:$C$8,MATCH('Toll Calculator'!$O$8,Conversions!$B$7:$B$8,0))," ") -> 
C17: =IFERROR(INDEX(Table_ReceiptPoint[Receipt Point Number],MATCH(Table_TollCalc[[#This Row],[Receipt Station Name - '[select below'] -]],Table_ReceiptPoint[Receipt Point Name],0),),"") ->  | E17: =IFERROR(INDEX(Table_ReceiptPoint[Latitude],MATCH(Table_TollCalc[[#This Row],[Station Number]],Table_ReceiptPoint[Receipt Point Number],0),),"") ->  | F17: =IFERROR(INDEX(Table_ReceiptPoint[Longitude],MATCH(Table_TollCalc[[#This Row],[Station Number]],Table_ReceiptPoint[Receipt Point Number],0),),"") ->  | G17: =IFERROR(ROUND(INDEX(Table_ReceiptPoint[Distance From Delivery Station],MATCH(Table_TollCalc[[#This Row],[Station Number]],Table_ReceiptPoint[Receipt Point Number],0),),2),"") ->  | H17: =IFERROR(INDEX(Table_ReceiptPoint[Legal Location Name],MATCH(Table_TollCalc[[#This Row],[Station Number]],Table_ReceiptPoint[Receipt Point Number],0),),"") ->  | I17: =IFERROR(INDEX(Table_Attach1[FT-R Demand Rate Price Point "B" ($/103m3/mo)],MATCH(Table_TollCalc[[#This Row],[Station Number]],Table_Attach1[Receipt Point Number],0),)*INDEX(Conversions!$C$7:$C$8,MATCH('Toll Calculator'!$O$8,Conversions!$B$7:$B$8,0))," ") -> 
C18: =IFERROR(INDEX(Table_ReceiptPoint[Receipt Point Number],MATCH(Table_TollCalc[[#This Row],[Receipt Station Name - '[select below'] -]],Table_ReceiptPoint[Receipt Point Name],0),),"") ->  | E18: =IFERROR(INDEX(Table_ReceiptPoint[Latitude],MATCH(Table_TollCalc[[#This Row],[Station Number]],Table_ReceiptPoint[Receipt Point Number],0),),"") ->  | F18: =IFERROR(INDEX(Table_ReceiptPoint[Longitude],MATCH(Table_TollCalc[[#This Row],[Station Number]],Table_ReceiptPoint[Receipt Point Number],0),),"") ->  | G18: =IFERROR(ROUND(INDEX(Table_ReceiptPoint[Distance From Delivery Station],MATCH(Table_TollCalc[[#This Row],[Station Number]],Table_ReceiptPoint[Receipt Point Number],0),),2),"") ->  | H18: =IFERROR(INDEX(Table_ReceiptPoint[Legal Location Name],MATCH(Table_TollCalc[[#This Row],[Station Number]],Table_ReceiptPoint[Receipt Point Number],0),),"") ->  | I18: =IFERROR(INDEX(Table_Attach1[FT-R Demand Rate Price Point "B" ($/103m3/mo)],MATCH(Table_TollCalc[[#This Row],[Station Number]],Table_Attach1[Receipt Point Number],0),)*INDEX(Conversions!$C$7:$C$8,MATCH('Toll Calculator'!$O$8,Conversions!$B$7:$B$8,0))," ") -> 
C19: =IFERROR(INDEX(Table_ReceiptPoint[Receipt Point Number],MATCH(Table_TollCalc[[#This Row],[Receipt Station Name - '[select below'] -]],Table_ReceiptPoint[Receipt Point Name],0),),"") ->  | E19: =IFERROR(INDEX(Table_ReceiptPoint[Latitude],MATCH(Table_TollCalc[[#This Row],[Station Number]],Table_ReceiptPoint[Receipt Point Number],0),),"") ->  | F19: =IFERROR(INDEX(Table_ReceiptPoint[Longitude],MATCH(Table_TollCalc[[#This Row],[Station Number]],Table_ReceiptPoint[Receipt Point Number],0),),"") ->  | G19: =IFERROR(ROUND(INDEX(Table_ReceiptPoint[Distance From Delivery Station],MATCH(Table_TollCalc[[#This Row],[Station Number]],Table_ReceiptPoint[Receipt Point Number],0),),2),"") ->  | H19: =IFERROR(INDEX(Table_ReceiptPoint[Legal Location Name],MATCH(Table_TollCalc[[#This Row],[Station Number]],Table_ReceiptPoint[Receipt Point Number],0),),"") ->  | I19: =IFERROR(INDEX(Table_Attach1[FT-R Demand Rate Price Point "B" ($/103m3/mo)],MATCH(Table_TollCalc[[#This Row],[Station Number]],Table_Attach1[Receipt Point Number],0),)*INDEX(Conversions!$C$7:$C$8,MATCH('Toll Calculator'!$O$8,Conversions!$B$7:$B$8,0))," ") -> 
C20: =IFERROR(INDEX(Table_ReceiptPoint[Receipt Point Number],MATCH(Table_TollCalc[[#This Row],[Receipt Station Name - '[select below'] -]],Table_ReceiptPoint[Receipt Point Name],0),),"") ->  | E20: =IFERROR(INDEX(Table_ReceiptPoint[Latitude],MATCH(Table_TollCalc[[#This Row],[Station Number]],Table_ReceiptPoint[Receipt Point Number],0),),"") ->  | F20: =IFERROR(INDEX(Table_ReceiptPoint[Longitude],MATCH(Table_TollCalc[[#This Row],[Station Number]],Table_ReceiptPoint[Receipt Point Number],0),),"") ->  | G20: =IFERROR(ROUND(INDEX(Table_ReceiptPoint[Distance From Delivery Station],MATCH(Table_TollCalc[[#This Row],[Station Number]],Table_ReceiptPoint[Receipt Point Number],0),),2),"") ->  | H20: =IFERROR(INDEX(Table_ReceiptPoint[Legal Location Name],MATCH(Table_TollCalc[[#This Row],[Station Number]],Table_ReceiptPoint[Receipt Point Number],0),),"") ->  | I20: =IFERROR(INDEX(Table_Attach1[FT-R Demand Rate Price Point "B" ($/103m3/mo)],MATCH(Table_TollCalc[[#This Row],[Station Number]],Table_Attach1[Receipt Point Number],0),)*INDEX(Conversions!$C$7:$C$8,MATCH('Toll Calculator'!$O$8,Conversions!$B$7:$B$8,0))," ") -> 
C21: =IFERROR(INDEX(Table_ReceiptPoint[Receipt Point Number],MATCH(Table_TollCalc[[#This Row],[Receipt Station Name - '[select below'] -]],Table_ReceiptPoint[Receipt Point Name],0),),"") ->  | E21: =IFERROR(INDEX(Table_ReceiptPoint[Latitude],MATCH(Table_TollCalc[[#This Row],[Station Number]],Table_ReceiptPoint[Receipt Point Number],0),),"") ->  | F21: =IFERROR(INDEX(Table_ReceiptPoint[Longitude],MATCH(Table_TollCalc[[#This Row],[Station Number]],Table_ReceiptPoint[Receipt Point Number],0),),"") ->  | G21: =IFERROR(ROUND(INDEX(Table_ReceiptPoint[Distance From Delivery Station],MATCH(Table_TollCalc[[#This Row],[Station Number]],Table_ReceiptPoint[Receipt Point Number],0),),2),"") ->  | H21: =IFERROR(INDEX(Table_ReceiptPoint[Legal Location Name],MATCH(Table_TollCalc[[#This Row],[Station Number]],Table_ReceiptPoint[Receipt Point Number],0),),"") ->  | I21: =IFERROR(INDEX(Table_Attach1[FT-R Demand Rate Price Point "B" ($/103m3/mo)],MATCH(Table_TollCalc[[#This Row],[Station Number]],Table_Attach1[Receipt Point Number],0),)*INDEX(Conversions!$C$7:$C$8,MATCH('Toll Calculator'!$O$8,Conversions!$B$7:$B$8,0))," ") -> 
C22: =IFERROR(INDEX(Table_ReceiptPoint[Receipt Point Number],MATCH(Table_TollCalc[[#This Row],[Receipt Station Name - '[select below'] -]],Table_ReceiptPoint[Receipt Point Name],0),),"") ->  | E22: =IFERROR(INDEX(Table_ReceiptPoint[Latitude],MATCH(Table_TollCalc[[#This Row],[Station Number]],Table_ReceiptPoint[Receipt Point Number],0),),"") ->  | F22: =IFERROR(INDEX(Table_ReceiptPoint[Longitude],MATCH(Table_TollCalc[[#This Row],[Station Number]],Table_ReceiptPoint[Receipt Point Number],0),),"") ->  | G22: =IFERROR(ROUND(INDEX(Table_ReceiptPoint[Distance From Delivery Station],MATCH(Table_TollCalc[[#This Row],[Station Number]],Table_ReceiptPoint[Receipt Point Number],0),),2),"") ->  | H22: =IFERROR(INDEX(Table_ReceiptPoint[Legal Location Name],MATCH(Table_TollCalc[[#This Row],[Station Number]],Table_ReceiptPoint[Receipt Point Number],0),),"") ->  | I22: =IFERROR(INDEX(Table_Attach1[FT-R Demand Rate Price Point "B" ($/103m3/mo)],MATCH(Table_TollCalc[[#This Row],[Station Number]],Table_Attach1[Receipt Point Number],0),)*INDEX(Conversions!$C$7:$C$8,MATCH('Toll Calculator'!$O$8,Conversions!$B$7:$B$8,0))," ") -> 
C23: =IFERROR(INDEX(Table_ReceiptPoint[Receipt Point Number],MATCH(Table_TollCalc[[#This Row],[Receipt Station Name - '[select below'] -]],Table_ReceiptPoint[Receipt Point Name],0),),"") ->  | E23: =IFERROR(INDEX(Table_ReceiptPoint[Latitude],MATCH(Table_TollCalc[[#This Row],[Station Number]],Table_ReceiptPoint[Receipt Point Number],0),),"") ->  | F23: =IFERROR(INDEX(Table_ReceiptPoint[Longitude],MATCH(Table_TollCalc[[#This Row],[Station Number]],Table_ReceiptPoint[Receipt Point Number],0),),"") ->  | G23: =IFERROR(ROUND(INDEX(Table_ReceiptPoint[Distance From Delivery Station],MATCH(Table_TollCalc[[#This Row],[Station Number]],Table_ReceiptPoint[Receipt Point Number],0),),2),"") ->  | H23: =IFERROR(INDEX(Table_ReceiptPoint[Legal Location Name],MATCH(Table_TollCalc[[#This Row],[Station Number]],Table_ReceiptPoint[Receipt Point Number],0),),"") ->  | I23: =IFERROR(INDEX(Table_Attach1[FT-R Demand Rate Price Point "B" ($/103m3/mo)],MATCH(Table_TollCalc[[#This Row],[Station Number]],Table_Attach1[Receipt Point Number],0),)*INDEX(Conversions!$C$7:$C$8,MATCH('Toll Calculator'!$O$8,Conversions!$B$7:$B$8,0))," ") -> 
C24: =IFERROR(INDEX(Table_ReceiptPoint[Receipt Point Number],MATCH(Table_TollCalc[[#This Row],[Receipt Station Name - '[select below'] -]],Table_ReceiptPoint[Receipt Point Name],0),),"") ->  | E24: =IFERROR(INDEX(Table_ReceiptPoint[Latitude],MATCH(Table_TollCalc[[#This Row],[Station Number]],Table_ReceiptPoint[Receipt Point Number],0),),"") ->  | F24: =IFERROR(INDEX(Table_ReceiptPoint[Longitude],MATCH(Table_TollCalc[[#This Row],[Station Number]],Table_ReceiptPoint[Receipt Point Number],0),),"") ->  | G24: =IFERROR(ROUND(INDEX(Table_ReceiptPoint[Distance From Delivery Station],MATCH(Table_TollCalc[[#This Row],[Station Number]],Table_ReceiptPoint[Receipt Point Number],0),),2),"") ->  | H24: =IFERROR(INDEX(Table_ReceiptPoint[Legal Location Name],MATCH(Table_TollCalc[[#This Row],[Station Number]],Table_ReceiptPoint[Receipt Point Number],0),),"") ->  | I24: =IFERROR(INDEX(Table_Attach1[FT-R Demand Rate Price Point "B" ($/103m3/mo)],MATCH(Table_TollCalc[[#This Row],[Station Number]],Table_Attach1[Receipt Point Number],0),)*INDEX(Conversions!$C$7:$C$8,MATCH('Toll Calculator'!$O$8,Conversions!$B$7:$B$8,0))," ") -> 
C25: =IFERROR(INDEX(Table_ReceiptPoint[Receipt Point Number],MATCH(Table_TollCalc[[#This Row],[Receipt Station Name - '[select below'] -]],Table_ReceiptPoint[Receipt Point Name],0),),"") ->  | E25: =IFERROR(INDEX(Table_ReceiptPoint[Latitude],MATCH(Table_TollCalc[[#This Row],[Station Number]],Table_ReceiptPoint[Receipt Point Number],0),),"") ->  | F25: =IFERROR(INDEX(Table_ReceiptPoint[Longitude],MATCH(Table_TollCalc[[#This Row],[Station Number]],Table_ReceiptPoint[Receipt Point Number],0),),"") ->  | G25: =IFERROR(ROUND(INDEX(Table_ReceiptPoint[Distance From Delivery Station],MATCH(Table_TollCalc[[#This Row],[Station Number]],Table_ReceiptPoint[Receipt Point Number],0),),2),"") ->  | H25: =IFERROR(INDEX(Table_ReceiptPoint[Legal Location Name],MATCH(Table_TollCalc[[#This Row],[Station Number]],Table_ReceiptPoint[Receipt Point Number],0),),"") ->  | I25: =IFERROR(INDEX(Table_Attach1[FT-R Demand Rate Price Point "B" ($/103m3/mo)],MATCH(Table_TollCalc[[#This Row],[Station Number]],Table_Attach1[Receipt Point Number],0),)*INDEX(Conversions!$C$7:$C$8,MATCH('Toll Calculator'!$O$8,Conversions!$B$7:$B$8,0))," ") -> 
C26: =IFERROR(INDEX(Table_ReceiptPoint[Receipt Point Number],MATCH(Table_TollCalc[[#This Row],[Receipt Station Name - '[select below'] -]],Table_ReceiptPoint[Receipt Point Name],0),),"") ->  | E26: =IFERROR(INDEX(Table_ReceiptPoint[Latitude],MATCH(Table_TollCalc[[#This Row],[Station Number]],Table_ReceiptPoint[Receipt Point Number],0),),"") ->  | F26: =IFERROR(INDEX(Table_ReceiptPoint[Longitude],MATCH(Table_TollCalc[[#This Row],[Station Number]],Table_ReceiptPoint[Receipt Point Number],0),),"") ->  | G26: =IFERROR(ROUND(INDEX(Table_ReceiptPoint[Distance From Delivery Station],MATCH(Table_TollCalc[[#This Row],[Station Number]],Table_ReceiptPoint[Receipt Point Number],0),),2),"") ->  | H26: =IFERROR(INDEX(Table_ReceiptPoint[Legal Location Name],MATCH(Table_TollCalc[[#This Row],[Station Number]],Table_ReceiptPoint[Receipt Point Number],0),),"") ->  | I26: =IFERROR(INDEX(Table_Attach1[FT-R Demand Rate Price Point "B" ($/103m3/mo)],MATCH(Table_TollCalc[[#This Row],[Station Number]],Table_Attach1[Receipt Point Number],0),)*INDEX(Conversions!$C$7:$C$8,MATCH('Toll Calculator'!$O$8,Conversions!$B$7:$B$8,0))," ") -> 
C27: =IFERROR(INDEX(Table_ReceiptPoint[Receipt Point Number],MATCH(Table_TollCalc[[#This Row],[Receipt Station Name - '[select below'] -]],Table_ReceiptPoint[Receipt Point Name],0),),"") ->  | E27: =IFERROR(INDEX(Table_ReceiptPoint[Latitude],MATCH(Table_TollCalc[[#This Row],[Station Number]],Table_ReceiptPoint[Receipt Point Number],0),),"") ->  | F27: =IFERROR(INDEX(Table_ReceiptPoint[Longitude],MATCH(Table_TollCalc[[#This Row],[Station Number]],Table_ReceiptPoint[Receipt Point Number],0),),"") ->  | G27: =IFERROR(ROUND(INDEX(Table_ReceiptPoint[Distance From Delivery Station],MATCH(Table_TollCalc[[#This Row],[Station Number]],Table_ReceiptPoint[Receipt Point Number],0),),2),"") ->  | H27: =IFERROR(INDEX(Table_ReceiptPoint[Legal Location Name],MATCH(Table_TollCalc[[#This Row],[Station Number]],Table_ReceiptPoint[Receipt Point Number],0),),"") ->  | I27: =IFERROR(INDEX(Table_Attach1[FT-R Demand Rate Price Point "B" ($/103m3/mo)],MATCH(Table_TollCalc[[#This Row],[Station Number]],Table_Attach1[Receipt Point Number],0),)*INDEX(Conversions!$C$7:$C$8,MATCH('Toll Calculator'!$O$8,Conversions!$B$7:$B$8,0))," ") -> 
C28: =IFERROR(INDEX(Table_ReceiptPoint[Receipt Point Number],MATCH(Table_TollCalc[[#This Row],[Receipt Station Name - '[select below'] -]],Table_ReceiptPoint[Receipt Point Name],0),),"") ->  | E28: =IFERROR(INDEX(Table_ReceiptPoint[Latitude],MATCH(Table_TollCalc[[#This Row],[Station Number]],Table_ReceiptPoint[Receipt Point Number],0),),"") ->  | F28: =IFERROR(INDEX(Table_ReceiptPoint[Longitude],MATCH(Table_TollCalc[[#This Row],[Station Number]],Table_ReceiptPoint[Receipt Point Number],0),),"") ->  | G28: =IFERROR(ROUND(INDEX(Table_ReceiptPoint[Distance From Delivery Station],MATCH(Table_TollCalc[[#This Row],[Station Number]],Table_ReceiptPoint[Receipt Point Number],0),),2),"") ->  | H28: =IFERROR(INDEX(Table_ReceiptPoint[Legal Location Name],MATCH(Table_TollCalc[[#This Row],[Station Number]],Table_ReceiptPoint[Receipt Point Number],0),),"") ->  | I28: =IFERROR(INDEX(Table_Attach1[FT-R Demand Rate Price Point "B" ($/103m3/mo)],MATCH(Table_TollCalc[[#This Row],[Station Number]],Table_Attach1[Receipt Point Number],0),)*INDEX(Conversions!$C$7:$C$8,MATCH('Toll Calculator'!$O$8,Conversions!$B$7:$B$8,0))," ") -> 
C29: =IFERROR(INDEX(Table_ReceiptPoint[Receipt Point Number],MATCH(Table_TollCalc[[#This Row],[Receipt Station Name - '[select below'] -]],Table_ReceiptPoint[Receipt Point Name],0),),"") ->  | E29: =IFERROR(INDEX(Table_ReceiptPoint[Latitude],MATCH(Table_TollCalc[[#This Row],[Station Number]],Table_ReceiptPoint[Receipt Point Number],0),),"") ->  | F29: =IFERROR(INDEX(Table_ReceiptPoint[Longitude],MATCH(Table_TollCalc[[#This Row],[Station Number]],Table_ReceiptPoint[Receipt Point Number],0),),"") ->  | G29: =IFERROR(ROUND(INDEX(Table_ReceiptPoint[Distance From Delivery Station],MATCH(Table_TollCalc[[#This Row],[Station Number]],Table_ReceiptPoint[Receipt Point Number],0),),2),"") ->  | H29: =IFERROR(INDEX(Table_ReceiptPoint[Legal Location Name],MATCH(Table_TollCalc[[#This Row],[Station Number]],Table_ReceiptPoint[Receipt Point Number],0),),"") ->  | I29: =IFERROR(INDEX(Table_Attach1[FT-R Demand Rate Price Point "B" ($/103m3/mo)],MATCH(Table_TollCalc[[#This Row],[Station Number]],Table_Attach1[Receipt Point Number],0),)*INDEX(Conversions!$C$7:$C$8,MATCH('Toll Calculator'!$O$8,Conversions!$B$7:$B$8,0))," ") -> 
C30: =IFERROR(INDEX(Table_ReceiptPoint[Receipt Point Number],MATCH(Table_TollCalc[[#This Row],[Receipt Station Name - '[select below'] -]],Table_ReceiptPoint[Receipt Point Name],0),),"") ->  | E30: =IFERROR(INDEX(Table_ReceiptPoint[Latitude],MATCH(Table_TollCalc[[#This Row],[Station Number]],Table_ReceiptPoint[Receipt Point Number],0),),"") ->  | F30: =IFERROR(INDEX(Table_ReceiptPoint[Longitude],MATCH(Table_TollCalc[[#This Row],[Station Number]],Table_ReceiptPoint[Receipt Point Number],0),),"") ->  | G30: =IFERROR(ROUND(INDEX(Table_ReceiptPoint[Distance From Delivery Station],MATCH(Table_TollCalc[[#This Row],[Station Number]],Table_ReceiptPoint[Receipt Point Number],0),),2),"") ->  | H30: =IFERROR(INDEX(Table_ReceiptPoint[Legal Location Name],MATCH(Table_TollCalc[[#This Row],[Station Number]],Table_ReceiptPoint[Receipt Point Number],0),),"") ->  | I30: =IFERROR(INDEX(Table_Attach1[FT-R Demand Rate Price Point "B" ($/103m3/mo)],MATCH(Table_TollCalc[[#This Row],[Station Number]],Table_Attach1[Receipt Point Number],0),)*INDEX(Conversions!$C$7:$C$8,MATCH('Toll Calculator'!$O$8,Conversions!$B$7:$B$8,0))," ") -> 
C31: =IFERROR(INDEX(Table_ReceiptPoint[Receipt Point Number],MATCH(Table_TollCalc[[#This Row],[Receipt Station Name - '[select below'] -]],Table_ReceiptPoint[Receipt Point Name],0),),"") ->  | E31: =IFERROR(INDEX(Table_ReceiptPoint[Latitude],MATCH(Table_TollCalc[[#This Row],[Station Number]],Table_ReceiptPoint[Receipt Point Number],0),),"") ->  | F31: =IFERROR(INDEX(Table_ReceiptPoint[Longitude],MATCH(Table_TollCalc[[#This Row],[Station Number]],Table_ReceiptPoint[Receipt Point Number],0),),"") ->  | G31: =IFERROR(ROUND(INDEX(Table_ReceiptPoint[Distance From Delivery Station],MATCH(Table_TollCalc[[#This Row],[Station Number]],Table_ReceiptPoint[Receipt Point Number],0),),2),"") ->  | H31: =IFERROR(INDEX(Table_ReceiptPoint[Legal Location Name],MATCH(Table_TollCalc[[#This Row],[Station Number]],Table_ReceiptPoint[Receipt Point Number],0),),"") ->  | I31: =IFERROR(INDEX(Table_Attach1[FT-R Demand Rate Price Point "B" ($/103m3/mo)],MATCH(Table_TollCalc[[#This Row],[Station Number]],Table_Attach1[Receipt Point Number],0),)*INDEX(Conversions!$C$7:$C$8,MATCH('Toll Calculator'!$O$8,Conversions!$B$7:$B$8,0))," ") -> 
C32: =IFERROR(INDEX(Table_ReceiptPoint[Receipt Point Number],MATCH(Table_TollCalc[[#This Row],[Receipt Station Name - '[select below'] -]],Table_ReceiptPoint[Receipt Point Name],0),),"") ->  | E32: =IFERROR(INDEX(Table_ReceiptPoint[Latitude],MATCH(Table_TollCalc[[#This Row],[Station Number]],Table_ReceiptPoint[Receipt Point Number],0),),"") ->  | F32: =IFERROR(INDEX(Table_ReceiptPoint[Longitude],MATCH(Table_TollCalc[[#This Row],[Station Number]],Table_ReceiptPoint[Receipt Point Number],0),),"") ->  | G32: =IFERROR(ROUND(INDEX(Table_ReceiptPoint[Distance From Delivery Station],MATCH(Table_TollCalc[[#This Row],[Station Number]],Table_ReceiptPoint[Receipt Point Number],0),),2),"") ->  | H32: =IFERROR(INDEX(Table_ReceiptPoint[Legal Location Name],MATCH(Table_TollCalc[[#This Row],[Station Number]],Table_ReceiptPoint[Receipt Point Number],0),),"") ->  | I32: =IFERROR(INDEX(Table_Attach1[FT-R Demand Rate Price Point "B" ($/103m3/mo)],MATCH(Table_TollCalc[[#This Row],[Station Number]],Table_Attach1[Receipt Point Number],0),)*INDEX(Conversions!$C$7:$C$8,MATCH('Toll Calculator'!$O$8,Conversions!$B$7:$B$8,0))," ") -> 
C33: =IFERROR(INDEX(Table_ReceiptPoint[Receipt Point Number],MATCH(Table_TollCalc[[#This Row],[Receipt Station Name - '[select below'] -]],Table_ReceiptPoint[Receipt Point Name],0),),"") ->  | E33: =IFERROR(INDEX(Table_ReceiptPoint[Latitude],MATCH(Table_TollCalc[[#This Row],[Station Number]],Table_ReceiptPoint[Receipt Point Number],0),),"") ->  | F33: =IFERROR(INDEX(Table_ReceiptPoint[Longitude],MATCH(Table_TollCalc[[#This Row],[Station Number]],Table_ReceiptPoint[Receipt Point Number],0),),"") ->  | G33: =IFERROR(ROUND(INDEX(Table_ReceiptPoint[Distance From Delivery Station],MATCH(Table_TollCalc[[#This Row],[Station Number]],Table_ReceiptPoint[Receipt Point Number],0),),2),"") ->  | H33: =IFERROR(INDEX(Table_ReceiptPoint[Legal Location Name],MATCH(Table_TollCalc[[#This Row],[Station Number]],Table_ReceiptPoint[Receipt Point Number],0),),"") ->  | I33: =IFERROR(INDEX(Table_Attach1[FT-R Demand Rate Price Point "B" ($/103m3/mo)],MATCH(Table_TollCalc[[#This Row],[Station Number]],Table_Attach1[Receipt Point Number],0),)*INDEX(Conversions!$C$7:$C$8,MATCH('Toll Calculator'!$O$8,Conversions!$B$7:$B$8,0))," ") -> 
C34: =IFERROR(INDEX(Table_ReceiptPoint[Receipt Point Number],MATCH(Table_TollCalc[[#This Row],[Receipt Station Name - '[select below'] -]],Table_ReceiptPoint[Receipt Point Name],0),),"") ->  | E34: =IFERROR(INDEX(Table_ReceiptPoint[Latitude],MATCH(Table_TollCalc[[#This Row],[Station Number]],Table_ReceiptPoint[Receipt Point Number],0),),"") ->  | F34: =IFERROR(INDEX(Table_ReceiptPoint[Longitude],MATCH(Table_TollCalc[[#This Row],[Station Number]],Table_ReceiptPoint[Receipt Point Number],0),),"") ->  | G34: =IFERROR(ROUND(INDEX(Table_ReceiptPoint[Distance From Delivery Station],MATCH(Table_TollCalc[[#This Row],[Station Number]],Table_ReceiptPoint[Receipt Point Number],0),),2),"") ->  | H34: =IFERROR(INDEX(Table_ReceiptPoint[Legal Location Name],MATCH(Table_TollCalc[[#This Row],[Station Number]],Table_ReceiptPoint[Receipt Point Number],0),),"") ->  | I34: =IFERROR(INDEX(Table_Attach1[FT-R Demand Rate Price Point "B" ($/103m3/mo)],MATCH(Table_TollCalc[[#This Row],[Station Number]],Table_Attach1[Receipt Point Number],0),)*INDEX(Conversions!$C$7:$C$8,MATCH('Toll Calculator'!$O$8,Conversions!$B$7:$B$8,0))," ") -> 
C35: =IFERROR(INDEX(Table_ReceiptPoint[Receipt Point Number],MATCH(Table_TollCalc[[#This Row],[Receipt Station Name - '[select below'] -]],Table_ReceiptPoint[Receipt Point Name],0),),"") ->  | E35: =IFERROR(INDEX(Table_ReceiptPoint[Latitude],MATCH(Table_TollCalc[[#This Row],[Station Number]],Table_ReceiptPoint[Receipt Point Number],0),),"") ->  | F35: =IFERROR(INDEX(Table_ReceiptPoint[Longitude],MATCH(Table_TollCalc[[#This Row],[Station Number]],Table_ReceiptPoint[Receipt Point Number],0),),"") ->  | G35: =IFERROR(ROUND(INDEX(Table_ReceiptPoint[Distance From Delivery Station],MATCH(Table_TollCalc[[#This Row],[Station Number]],Table_ReceiptPoint[Receipt Point Number],0),),2),"") ->  | H35: =IFERROR(INDEX(Table_ReceiptPoint[Legal Location Name],MATCH(Table_TollCalc[[#This Row],[Station Number]],Table_ReceiptPoint[Receipt Point Number],0),),"") ->  | I35: =IFERROR(INDEX(Table_Attach1[FT-R Demand Rate Price Point "B" ($/103m3/mo)],MATCH(Table_TollCalc[[#This Row],[Station Number]],Table_Attach1[Receipt Point Number],0),)*INDEX(Conversions!$C$7:$C$8,MATCH('Toll Calculator'!$O$8,Conversions!$B$7:$B$8,0))," ") -> 
C36: =IFERROR(INDEX(Table_ReceiptPoint[Receipt Point Number],MATCH(Table_TollCalc[[#This Row],[Receipt Station Name - '[select below'] -]],Table_ReceiptPoint[Receipt Point Name],0),),"") ->  | E36: =IFERROR(INDEX(Table_ReceiptPoint[Latitude],MATCH(Table_TollCalc[[#This Row],[Station Number]],Table_ReceiptPoint[Receipt Point Number],0),),"") ->  | F36: =IFERROR(INDEX(Table_ReceiptPoint[Longitude],MATCH(Table_TollCalc[[#This Row],[Station Number]],Table_ReceiptPoint[Receipt Point Number],0),),"") ->  | G36: =IFERROR(ROUND(INDEX(Table_ReceiptPoint[Distance From Delivery Station],MATCH(Table_TollCalc[[#This Row],[Station Number]],Table_ReceiptPoint[Receipt Point Number],0),),2),"") ->  | H36: =IFERROR(INDEX(Table_ReceiptPoint[Legal Location Name],MATCH(Table_TollCalc[[#This Row],[Station Number]],Table_ReceiptPoint[Receipt Point Number],0),),"") ->  | I36: =IFERROR(INDEX(Table_Attach1[FT-R Demand Rate Price Point "B" ($/103m3/mo)],MATCH(Table_TollCalc[[#This Row],[Station Number]],Table_Attach1[Receipt Point Number],0),)*INDEX(Conversions!$C$7:$C$8,MATCH('Toll Calculator'!$O$8,Conversions!$B$7:$B$8,0))," ") -> 
C37: =IFERROR(INDEX(Table_ReceiptPoint[Receipt Point Number],MATCH(Table_TollCalc[[#This Row],[Receipt Station Name - '[select below'] -]],Table_ReceiptPoint[Receipt Point Name],0),),"") ->  | E37: =IFERROR(INDEX(Table_ReceiptPoint[Latitude],MATCH(Table_TollCalc[[#This Row],[Station Number]],Table_ReceiptPoint[Receipt Point Number],0),),"") ->  | F37: =IFERROR(INDEX(Table_ReceiptPoint[Longitude],MATCH(Table_TollCalc[[#This Row],[Station Number]],Table_ReceiptPoint[Receipt Point Number],0),),"") ->  | G37: =IFERROR(ROUND(INDEX(Table_ReceiptPoint[Distance From Delivery Station],MATCH(Table_TollCalc[[#This Row],[Station Number]],Table_ReceiptPoint[Receipt Point Number],0),),2),"") ->  | H37: =IFERROR(INDEX(Table_ReceiptPoint[Legal Location Name],MATCH(Table_TollCalc[[#This Row],[Station Number]],Table_ReceiptPoint[Receipt Point Number],0),),"") ->  | I37: =IFERROR(INDEX(Table_Attach1[FT-R Demand Rate Price Point "B" ($/103m3/mo)],MATCH(Table_TollCalc[[#This Row],[Station Number]],Table_Attach1[Receipt Point Number],0),)*INDEX(Conversions!$C$7:$C$8,MATCH('Toll Calculator'!$O$8,Conversions!$B$7:$B$8,0))," ") -> 
C38: =IFERROR(INDEX(Table_ReceiptPoint[Receipt Point Number],MATCH(Table_TollCalc[[#This Row],[Receipt Station Name - '[select below'] -]],Table_ReceiptPoint[Receipt Point Name],0),),"") ->  | E38: =IFERROR(INDEX(Table_ReceiptPoint[Latitude],MATCH(Table_TollCalc[[#This Row],[Station Number]],Table_ReceiptPoint[Receipt Point Number],0),),"") ->  | F38: =IFERROR(INDEX(Table_ReceiptPoint[Longitude],MATCH(Table_TollCalc[[#This Row],[Station Number]],Table_ReceiptPoint[Receipt Point Number],0),),"") ->  | G38: =IFERROR(ROUND(INDEX(Table_ReceiptPoint[Distance From Delivery Station],MATCH(Table_TollCalc[[#This Row],[Station Number]],Table_ReceiptPoint[Receipt Point Number],0),),2),"") ->  | H38: =IFERROR(INDEX(Table_ReceiptPoint[Legal Location Name],MATCH(Table_TollCalc[[#This Row],[Station Number]],Table_ReceiptPoint[Receipt Point Number],0),),"") ->  | I38: =IFERROR(INDEX(Table_Attach1[FT-R Demand Rate Price Point "B" ($/103m3/mo)],MATCH(Table_TollCalc[[#This Row],[Station Number]],Table_Attach1[Receipt Point Number],0),)*INDEX(Conversions!$C$7:$C$8,MATCH('Toll Calculator'!$O$8,Conversions!$B$7:$B$8,0))," ") -> 
C39: =IFERROR(INDEX(Table_ReceiptPoint[Receipt Point Number],MATCH(Table_TollCalc[[#This Row],[Receipt Station Name - '[select below'] -]],Table_ReceiptPoint[Receipt Point Name],0),),"") ->  | E39: =IFERROR(INDEX(Table_ReceiptPoint[Latitude],MATCH(Table_TollCalc[[#This Row],[Station Number]],Table_ReceiptPoint[Receipt Point Number],0),),"") ->  | F39: =IFERROR(INDEX(Table_ReceiptPoint[Longitude],MATCH(Table_TollCalc[[#This Row],[Station Number]],Table_ReceiptPoint[Receipt Point Number],0),),"") ->  | G39: =IFERROR(ROUND(INDEX(Table_ReceiptPoint[Distance From Delivery Station],MATCH(Table_TollCalc[[#This Row],[Station Number]],Table_ReceiptPoint[Receipt Point Number],0),),2),"") ->  | H39: =IFERROR(INDEX(Table_ReceiptPoint[Legal Location Name],MATCH(Table_TollCalc[[#This Row],[Station Number]],Table_ReceiptPoint[Receipt Point Number],0),),"") ->  | I39: =IFERROR(INDEX(Table_Attach1[FT-R Demand Rate Price Point "B" ($/103m3/mo)],MATCH(Table_TollCalc[[#This Row],[Station Number]],Table_Attach1[Receipt Point Number],0),)*INDEX(Conversions!$C$7:$C$8,MATCH('Toll Calculator'!$O$8,Conversions!$B$7:$B$8,0))," ") -> 
C40: =IFERROR(INDEX(Table_ReceiptPoint[Receipt Point Number],MATCH(Table_TollCalc[[#This Row],[Receipt Station Name - '[select below'] -]],Table_ReceiptPoint[Receipt Point Name],0),),"") ->  | E40: =IFERROR(INDEX(Table_ReceiptPoint[Latitude],MATCH(Table_TollCalc[[#This Row],[Station Number]],Table_ReceiptPoint[Receipt Point Number],0),),"") ->  | F40: =IFERROR(INDEX(Table_ReceiptPoint[Longitude],MATCH(Table_TollCalc[[#This Row],[Station Number]],Table_ReceiptPoint[Receipt Point Number],0),),"") ->  | G40: =IFERROR(ROUND(INDEX(Table_ReceiptPoint[Distance From Delivery Station],MATCH(Table_TollCalc[[#This Row],[Station Number]],Table_ReceiptPoint[Receipt Point Number],0),),2),"") ->  | H40: =IFERROR(INDEX(Table_ReceiptPoint[Legal Location Name],MATCH(Table_TollCalc[[#This Row],[Station Number]],Table_ReceiptPoint[Receipt Point Number],0),),"") ->  | I40: =IFERROR(INDEX(Table_Attach1[FT-R Demand Rate Price Point "B" ($/103m3/mo)],MATCH(Table_TollCalc[[#This Row],[Station Number]],Table_Attach1[Receipt Point Number],0),)*INDEX(Conversions!$C$7:$C$8,MATCH('Toll Calculator'!$O$8,Conversions!$B$7:$B$8,0))," ") -> 
C41: =IFERROR(INDEX(Table_ReceiptPoint[Receipt Point Number],MATCH(Table_TollCalc[[#This Row],[Receipt Station Name - '[select below'] -]],Table_ReceiptPoint[Receipt Point Name],0),),"") ->  | E41: =IFERROR(INDEX(Table_ReceiptPoint[Latitude],MATCH(Table_TollCalc[[#This Row],[Station Number]],Table_ReceiptPoint[Receipt Point Number],0),),"") ->  | F41: =IFERROR(INDEX(Table_ReceiptPoint[Longitude],MATCH(Table_TollCalc[[#This Row],[Station Number]],Table_ReceiptPoint[Receipt Point Number],0),),"") ->  | G41: =IFERROR(ROUND(INDEX(Table_ReceiptPoint[Distance From Delivery Station],MATCH(Table_TollCalc[[#This Row],[Station Number]],Table_ReceiptPoint[Receipt Point Number],0),),2),"") ->  | H41: =IFERROR(INDEX(Table_ReceiptPoint[Legal Location Name],MATCH(Table_TollCalc[[#This Row],[Station Number]],Table_ReceiptPoint[Receipt Point Number],0),),"") ->  | I41: =IFERROR(INDEX(Table_Attach1[FT-R Demand Rate Price Point "B" ($/103m3/mo)],MATCH(Table_TollCalc[[#This Row],[Station Number]],Table_Attach1[Receipt Point Number],0),)*INDEX(Conversions!$C$7:$C$8,MATCH('Toll Calculator'!$O$8,Conversions!$B$7:$B$8,0))," ") -> 
C42: =IFERROR(INDEX(Table_ReceiptPoint[Receipt Point Number],MATCH(Table_TollCalc[[#This Row],[Receipt Station Name - '[select below'] -]],Table_ReceiptPoint[Receipt Point Name],0),),"") ->  | E42: =IFERROR(INDEX(Table_ReceiptPoint[Latitude],MATCH(Table_TollCalc[[#This Row],[Station Number]],Table_ReceiptPoint[Receipt Point Number],0),),"") ->  | F42: =IFERROR(INDEX(Table_ReceiptPoint[Longitude],MATCH(Table_TollCalc[[#This Row],[Station Number]],Table_ReceiptPoint[Receipt Point Number],0),),"") ->  | G42: =IFERROR(ROUND(INDEX(Table_ReceiptPoint[Distance From Delivery Station],MATCH(Table_TollCalc[[#This Row],[Station Number]],Table_ReceiptPoint[Receipt Point Number],0),),2),"") ->  | H42: =IFERROR(INDEX(Table_ReceiptPoint[Legal Location Name],MATCH(Table_TollCalc[[#This Row],[Station Number]],Table_ReceiptPoint[Receipt Point Number],0),),"") ->  | I42: =IFERROR(INDEX(Table_Attach1[FT-R Demand Rate Price Point "B" ($/103m3/mo)],MATCH(Table_TollCalc[[#This Row],[Station Number]],Table_Attach1[Receipt Point Number],0),)*INDEX(Conversions!$C$7:$C$8,MATCH('Toll Calculator'!$O$8,Conversions!$B$7:$B$8,0))," ") -> 
C43: =IFERROR(INDEX(Table_ReceiptPoint[Receipt Point Number],MATCH(Table_TollCalc[[#This Row],[Receipt Station Name - '[select below'] -]],Table_ReceiptPoint[Receipt Point Name],0),),"") ->  | E43: =IFERROR(INDEX(Table_ReceiptPoint[Latitude],MATCH(Table_TollCalc[[#This Row],[Station Number]],Table_ReceiptPoint[Receipt Point Number],0),),"") ->  | F43: =IFERROR(INDEX(Table_ReceiptPoint[Longitude],MATCH(Table_TollCalc[[#This Row],[Station Number]],Table_ReceiptPoint[Receipt Point Number],0),),"") ->  | G43: =IFERROR(ROUND(INDEX(Table_ReceiptPoint[Distance From Delivery Station],MATCH(Table_TollCalc[[#This Row],[Station Number]],Table_ReceiptPoint[Receipt Point Number],0),),2),"") ->  | H43: =IFERROR(INDEX(Table_ReceiptPoint[Legal Location Name],MATCH(Table_TollCalc[[#This Row],[Station Number]],Table_ReceiptPoint[Receipt Point Number],0),),"") ->  | I43: =IFERROR(INDEX(Table_Attach1[FT-R Demand Rate Price Point "B" ($/103m3/mo)],MATCH(Table_TollCalc[[#This Row],[Station Number]],Table_Attach1[Receipt Point Number],0),)*INDEX(Conversions!$C$7:$C$8,MATCH('Toll Calculator'!$O$8,Conversions!$B$7:$B$8,0))," ") -> 
C44: =IFERROR(INDEX(Table_ReceiptPoint[Receipt Point Number],MATCH(Table_TollCalc[[#This Row],[Receipt Station Name - '[select below'] -]],Table_ReceiptPoint[Receipt Point Name],0),),"") ->  | E44: =IFERROR(INDEX(Table_ReceiptPoint[Latitude],MATCH(Table_TollCalc[[#This Row],[Station Number]],Table_ReceiptPoint[Receipt Point Number],0),),"") ->  | F44: =IFERROR(INDEX(Table_ReceiptPoint[Longitude],MATCH(Table_TollCalc[[#This Row],[Station Number]],Table_ReceiptPoint[Receipt Point Number],0),),"") ->  | G44: =IFERROR(ROUND(INDEX(Table_ReceiptPoint[Distance From Delivery Station],MATCH(Table_TollCalc[[#This Row],[Station Number]],Table_ReceiptPoint[Receipt Point Number],0),),2),"") ->  | H44: =IFERROR(INDEX(Table_ReceiptPoint[Legal Location Name],MATCH(Table_TollCalc[[#This Row],[Station Number]],Table_ReceiptPoint[Receipt Point Number],0),),"") ->  | I44: =IFERROR(INDEX(Table_Attach1[FT-R Demand Rate Price Point "B" ($/103m3/mo)],MATCH(Table_TollCalc[[#This Row],[Station Number]],Table_Attach1[Receipt Point Number],0),)*INDEX(Conversions!$C$7:$C$8,MATCH('Toll Calculator'!$O$8,Conversions!$B$7:$B$8,0))," ") -> 
C45: =IFERROR(INDEX(Table_ReceiptPoint[Receipt Point Number],MATCH(Table_TollCalc[[#This Row],[Receipt Station Name - '[select below'] -]],Table_ReceiptPoint[Receipt Point Name],0),),"") ->  | E45: =IFERROR(INDEX(Table_ReceiptPoint[Latitude],MATCH(Table_TollCalc[[#This Row],[Station Number]],Table_ReceiptPoint[Receipt Point Number],0),),"") ->  | F45: =IFERROR(INDEX(Table_ReceiptPoint[Longitude],MATCH(Table_TollCalc[[#This Row],[Station Number]],Table_ReceiptPoint[Receipt Point Number],0),),"") ->  | G45: =IFERROR(ROUND(INDEX(Table_ReceiptPoint[Distance From Delivery Station],MATCH(Table_TollCalc[[#This Row],[Station Number]],Table_ReceiptPoint[Receipt Point Number],0),),2),"") ->  | H45: =IFERROR(INDEX(Table_ReceiptPoint[Legal Location Name],MATCH(Table_TollCalc[[#This Row],[Station Number]],Table_ReceiptPoint[Receipt Point Number],0),),"") ->  | I45: =IFERROR(INDEX(Table_Attach1[FT-R Demand Rate Price Point "B" ($/103m3/mo)],MATCH(Table_TollCalc[[#This Row],[Station Number]],Table_Attach1[Receipt Point Number],0),)*INDEX(Conversions!$C$7:$C$8,MATCH('Toll Calculator'!$O$8,Conversions!$B$7:$B$8,0))," ") -> 
C46: =IFERROR(INDEX(Table_ReceiptPoint[Receipt Point Number],MATCH(Table_TollCalc[[#This Row],[Receipt Station Name - '[select below'] -]],Table_ReceiptPoint[Receipt Point Name],0),),"") ->  | E46: =IFERROR(INDEX(Table_ReceiptPoint[Latitude],MATCH(Table_TollCalc[[#This Row],[Station Number]],Table_ReceiptPoint[Receipt Point Number],0),),"") ->  | F46: =IFERROR(INDEX(Table_ReceiptPoint[Longitude],MATCH(Table_TollCalc[[#This Row],[Station Number]],Table_ReceiptPoint[Receipt Point Number],0),),"") ->  | G46: =IFERROR(ROUND(INDEX(Table_ReceiptPoint[Distance From Delivery Station],MATCH(Table_TollCalc[[#This Row],[Station Number]],Table_ReceiptPoint[Receipt Point Number],0),),2),"") ->  | H46: =IFERROR(INDEX(Table_ReceiptPoint[Legal Location Name],MATCH(Table_TollCalc[[#This Row],[Station Number]],Table_ReceiptPoint[Receipt Point Number],0),),"") ->  | I46: =IFERROR(INDEX(Table_Attach1[FT-R Demand Rate Price Point "B" ($/103m3/mo)],MATCH(Table_TollCalc[[#This Row],[Station Number]],Table_Attach1[Receipt Point Number],0),)*INDEX(Conversions!$C$7:$C$8,MATCH('Toll Calculator'!$O$8,Conversions!$B$7:$B$8,0))," ") -> 
C47: =IFERROR(INDEX(Table_ReceiptPoint[Receipt Point Number],MATCH(Table_TollCalc[[#This Row],[Receipt Station Name - '[select below'] -]],Table_ReceiptPoint[Receipt Point Name],0),),"") ->  | E47: =IFERROR(INDEX(Table_ReceiptPoint[Latitude],MATCH(Table_TollCalc[[#This Row],[Station Number]],Table_ReceiptPoint[Receipt Point Number],0),),"") ->  | F47: =IFERROR(INDEX(Table_ReceiptPoint[Longitude],MATCH(Table_TollCalc[[#This Row],[Station Number]],Table_ReceiptPoint[Receipt Point Number],0),),"") ->  | G47: =IFERROR(ROUND(INDEX(Table_ReceiptPoint[Distance From Delivery Station],MATCH(Table_TollCalc[[#This Row],[Station Number]],Table_ReceiptPoint[Receipt Point Number],0),),2),"") ->  | H47: =IFERROR(INDEX(Table_ReceiptPoint[Legal Location Name],MATCH(Table_TollCalc[[#This Row],[Station Number]],Table_ReceiptPoint[Receipt Point Number],0),),"") ->  | I47: =IFERROR(INDEX(Table_Attach1[FT-R Demand Rate Price Point "B" ($/103m3/mo)],MATCH(Table_TollCalc[[#This Row],[Station Number]],Table_Attach1[Receipt Point Number],0),)*INDEX(Conversions!$C$7:$C$8,MATCH('Toll Calculator'!$O$8,Conversions!$B$7:$B$8,0))," ") -> 
C48: =IFERROR(INDEX(Table_ReceiptPoint[Receipt Point Number],MATCH(Table_TollCalc[[#This Row],[Receipt Station Name - '[select below'] -]],Table_ReceiptPoint[Receipt Point Name],0),),"") ->  | E48: =IFERROR(INDEX(Table_ReceiptPoint[Latitude],MATCH(Table_TollCalc[[#This Row],[Station Number]],Table_ReceiptPoint[Receipt Point Number],0),),"") ->  | F48: =IFERROR(INDEX(Table_ReceiptPoint[Longitude],MATCH(Table_TollCalc[[#This Row],[Station Number]],Table_ReceiptPoint[Receipt Point Number],0),),"") ->  | G48: =IFERROR(ROUND(INDEX(Table_ReceiptPoint[Distance From Delivery Station],MATCH(Table_TollCalc[[#This Row],[Station Number]],Table_ReceiptPoint[Receipt Point Number],0),),2),"") ->  | H48: =IFERROR(INDEX(Table_ReceiptPoint[Legal Location Name],MATCH(Table_TollCalc[[#This Row],[Station Number]],Table_ReceiptPoint[Receipt Point Number],0),),"") ->  | I48: =IFERROR(INDEX(Table_Attach1[FT-R Demand Rate Price Point "B" ($/103m3/mo)],MATCH(Table_TollCalc[[#This Row],[Station Number]],Table_Attach1[Receipt Point Number],0),)*INDEX(Conversions!$C$7:$C$8,MATCH('Toll Calculator'!$O$8,Conversions!$B$7:$B$8,0))," ") -> 
C49: =IFERROR(INDEX(Table_ReceiptPoint[Receipt Point Number],MATCH(Table_TollCalc[[#This Row],[Receipt Station Name - '[select below'] -]],Table_ReceiptPoint[Receipt Point Name],0),),"") ->  | E49: =IFERROR(INDEX(Table_ReceiptPoint[Latitude],MATCH(Table_TollCalc[[#This Row],[Station Number]],Table_ReceiptPoint[Receipt Point Number],0),),"") ->  | F49: =IFERROR(INDEX(Table_ReceiptPoint[Longitude],MATCH(Table_TollCalc[[#This Row],[Station Number]],Table_ReceiptPoint[Receipt Point Number],0),),"") ->  | G49: =IFERROR(ROUND(INDEX(Table_ReceiptPoint[Distance From Delivery Station],MATCH(Table_TollCalc[[#This Row],[Station Number]],Table_ReceiptPoint[Receipt Point Number],0),),2),"") ->  | H49: =IFERROR(INDEX(Table_ReceiptPoint[Legal Location Name],MATCH(Table_TollCalc[[#This Row],[Station Number]],Table_ReceiptPoint[Receipt Point Number],0),),"") ->  | I49: =IFERROR(INDEX(Table_Attach1[FT-R Demand Rate Price Point "B" ($/103m3/mo)],MATCH(Table_TollCalc[[#This Row],[Station Number]],Table_Attach1[Receipt Point Number],0),)*INDEX(Conversions!$C$7:$C$8,MATCH('Toll Calculator'!$O$8,Conversions!$B$7:$B$8,0))," ") -> 
C50: =IFERROR(INDEX(Table_ReceiptPoint[Receipt Point Number],MATCH(Table_TollCalc[[#This Row],[Receipt Station Name - '[select below'] -]],Table_ReceiptPoint[Receipt Point Name],0),),"") ->  | E50: =IFERROR(INDEX(Table_ReceiptPoint[Latitude],MATCH(Table_TollCalc[[#This Row],[Station Number]],Table_ReceiptPoint[Receipt Point Number],0),),"") ->  | F50: =IFERROR(INDEX(Table_ReceiptPoint[Longitude],MATCH(Table_TollCalc[[#This Row],[Station Number]],Table_ReceiptPoint[Receipt Point Number],0),),"") ->  | G50: =IFERROR(ROUND(INDEX(Table_ReceiptPoint[Distance From Delivery Station],MATCH(Table_TollCalc[[#This Row],[Station Number]],Table_ReceiptPoint[Receipt Point Number],0),),2),"") ->  | H50: =IFERROR(INDEX(Table_ReceiptPoint[Legal Location Name],MATCH(Table_TollCalc[[#This Row],[Station Number]],Table_ReceiptPoint[Receipt Point Number],0),),"") ->  | I50: =IFERROR(INDEX(Table_Attach1[FT-R Demand Rate Price Point "B" ($/103m3/mo)],MATCH(Table_TollCalc[[#This Row],[Station Number]],Table_Attach1[Receipt Point Number],0),)*INDEX(Conversions!$C$7:$C$8,MATCH('Toll Calculator'!$O$8,Conversions!$B$7:$B$8,0))," ") -> 
C51: =IFERROR(INDEX(Table_ReceiptPoint[Receipt Point Number],MATCH(Table_TollCalc[[#This Row],[Receipt Station Name - '[select below'] -]],Table_ReceiptPoint[Receipt Point Name],0),),"") ->  | E51: =IFERROR(INDEX(Table_ReceiptPoint[Latitude],MATCH(Table_TollCalc[[#This Row],[Station Number]],Table_ReceiptPoint[Receipt Point Number],0),),"") ->  | F51: =IFERROR(INDEX(Table_ReceiptPoint[Longitude],MATCH(Table_TollCalc[[#This Row],[Station Number]],Table_ReceiptPoint[Receipt Point Number],0),),"") ->  | G51: =IFERROR(ROUND(INDEX(Table_ReceiptPoint[Distance From Delivery Station],MATCH(Table_TollCalc[[#This Row],[Station Number]],Table_ReceiptPoint[Receipt Point Number],0),),2),"") ->  | H51: =IFERROR(INDEX(Table_ReceiptPoint[Legal Location Name],MATCH(Table_TollCalc[[#This Row],[Station Number]],Table_ReceiptPoint[Receipt Point Number],0),),"") ->  | I51: =IFERROR(INDEX(Table_Attach1[FT-R Demand Rate Price Point "B" ($/103m3/mo)],MATCH(Table_TollCalc[[#This Row],[Station Number]],Table_Attach1[Receipt Point Number],0),)*INDEX(Conversions!$C$7:$C$8,MATCH('Toll Calculator'!$O$8,Conversions!$B$7:$B$8,0))," ") -> 
C52: =IFERROR(INDEX(Table_ReceiptPoint[Receipt Point Number],MATCH(Table_TollCalc[[#This Row],[Receipt Station Name - '[select below'] -]],Table_ReceiptPoint[Receipt Point Name],0),),"") ->  | E52: =IFERROR(INDEX(Table_ReceiptPoint[Latitude],MATCH(Table_TollCalc[[#This Row],[Station Number]],Table_ReceiptPoint[Receipt Point Number],0),),"") ->  | F52: =IFERROR(INDEX(Table_ReceiptPoint[Longitude],MATCH(Table_TollCalc[[#This Row],[Station Number]],Table_ReceiptPoint[Receipt Point Number],0),),"") ->  | G52: =IFERROR(ROUND(INDEX(Table_ReceiptPoint[Distance From Delivery Station],MATCH(Table_TollCalc[[#This Row],[Station Number]],Table_ReceiptPoint[Receipt Point Number],0),),2),"") ->  | H52: =IFERROR(INDEX(Table_ReceiptPoint[Legal Location Name],MATCH(Table_TollCalc[[#This Row],[Station Number]],Table_ReceiptPoint[Receipt Point Number],0),),"") ->  | I52: =IFERROR(INDEX(Table_Attach1[FT-R Demand Rate Price Point "B" ($/103m3/mo)],MATCH(Table_TollCalc[[#This Row],[Station Number]],Table_Attach1[Receipt Point Number],0),)*INDEX(Conversions!$C$7:$C$8,MATCH('Toll Calculator'!$O$8,Conversions!$B$7:$B$8,0))," ") -> 
C53: =IFERROR(INDEX(Table_ReceiptPoint[Receipt Point Number],MATCH(Table_TollCalc[[#This Row],[Receipt Station Name - '[select below'] -]],Table_ReceiptPoint[Receipt Point Name],0),),"") ->  | E53: =IFERROR(INDEX(Table_ReceiptPoint[Latitude],MATCH(Table_TollCalc[[#This Row],[Station Number]],Table_ReceiptPoint[Receipt Point Number],0),),"") ->  | F53: =IFERROR(INDEX(Table_ReceiptPoint[Longitude],MATCH(Table_TollCalc[[#This Row],[Station Number]],Table_ReceiptPoint[Receipt Point Number],0),),"") ->  | G53: =IFERROR(ROUND(INDEX(Table_ReceiptPoint[Distance From Delivery Station],MATCH(Table_TollCalc[[#This Row],[Station Number]],Table_ReceiptPoint[Receipt Point Number],0),),2),"") ->  | H53: =IFERROR(INDEX(Table_ReceiptPoint[Legal Location Name],MATCH(Table_TollCalc[[#This Row],[Station Number]],Table_ReceiptPoint[Receipt Point Number],0),),"") ->  | I53: =IFERROR(INDEX(Table_Attach1[FT-R Demand Rate Price Point "B" ($/103m3/mo)],MATCH(Table_TollCalc[[#This Row],[Station Number]],Table_Attach1[Receipt Point Number],0),)*INDEX(Conversions!$C$7:$C$8,MATCH('Toll Calculator'!$O$8,Conversions!$B$7:$B$8,0))," ") -> 
C54: =IFERROR(INDEX(Table_ReceiptPoint[Receipt Point Number],MATCH(Table_TollCalc[[#This Row],[Receipt Station Name - '[select below'] -]],Table_ReceiptPoint[Receipt Point Name],0),),"") ->  | E54: =IFERROR(INDEX(Table_ReceiptPoint[Latitude],MATCH(Table_TollCalc[[#This Row],[Station Number]],Table_ReceiptPoint[Receipt Point Number],0),),"") ->  | F54: =IFERROR(INDEX(Table_ReceiptPoint[Longitude],MATCH(Table_TollCalc[[#This Row],[Station Number]],Table_ReceiptPoint[Receipt Point Number],0),),"") ->  | G54: =IFERROR(ROUND(INDEX(Table_ReceiptPoint[Distance From Delivery Station],MATCH(Table_TollCalc[[#This Row],[Station Number]],Table_ReceiptPoint[Receipt Point Number],0),),2),"") ->  | H54: =IFERROR(INDEX(Table_ReceiptPoint[Legal Location Name],MATCH(Table_TollCalc[[#This Row],[Station Number]],Table_ReceiptPoint[Receipt Point Number],0),),"") ->  | I54: =IFERROR(INDEX(Table_Attach1[FT-R Demand Rate Price Point "B" ($/103m3/mo)],MATCH(Table_TollCalc[[#This Row],[Station Number]],Table_Attach1[Receipt Point Number],0),)*INDEX(Conversions!$C$7:$C$8,MATCH('Toll Calculator'!$O$8,Conversions!$B$7:$B$8,0))," ") -> 
C55: =IFERROR(INDEX(Table_ReceiptPoint[Receipt Point Number],MATCH(Table_TollCalc[[#This Row],[Receipt Station Name - '[select below'] -]],Table_ReceiptPoint[Receipt Point Name],0),),"") ->  | E55: =IFERROR(INDEX(Table_ReceiptPoint[Latitude],MATCH(Table_TollCalc[[#This Row],[Station Number]],Table_ReceiptPoint[Receipt Point Number],0),),"") ->  | F55: =IFERROR(INDEX(Table_ReceiptPoint[Longitude],MATCH(Table_TollCalc[[#This Row],[Station Number]],Table_ReceiptPoint[Receipt Point Number],0),),"") ->  | G55: =IFERROR(ROUND(INDEX(Table_ReceiptPoint[Distance From Delivery Station],MATCH(Table_TollCalc[[#This Row],[Station Number]],Table_ReceiptPoint[Receipt Point Number],0),),2),"") ->  | H55: =IFERROR(INDEX(Table_ReceiptPoint[Legal Location Name],MATCH(Table_TollCalc[[#This Row],[Station Number]],Table_ReceiptPoint[Receipt Point Number],0),),"") ->  | I55: =IFERROR(INDEX(Table_Attach1[FT-R Demand Rate Price Point "B" ($/103m3/mo)],MATCH(Table_TollCalc[[#This Row],[Station Number]],Table_Attach1[Receipt Point Number],0),)*INDEX(Conversions!$C$7:$C$8,MATCH('Toll Calculator'!$O$8,Conversions!$B$7:$B$8,0))," ") -> 
C56: =IFERROR(INDEX(Table_ReceiptPoint[Receipt Point Number],MATCH(Table_TollCalc[[#This Row],[Receipt Station Name - '[select below'] -]],Table_ReceiptPoint[Receipt Point Name],0),),"") ->  | E56: =IFERROR(INDEX(Table_ReceiptPoint[Latitude],MATCH(Table_TollCalc[[#This Row],[Station Number]],Table_ReceiptPoint[Receipt Point Number],0),),"") ->  | F56: =IFERROR(INDEX(Table_ReceiptPoint[Longitude],MATCH(Table_TollCalc[[#This Row],[Station Number]],Table_ReceiptPoint[Receipt Point Number],0),),"") ->  | G56: =IFERROR(ROUND(INDEX(Table_ReceiptPoint[Distance From Delivery Station],MATCH(Table_TollCalc[[#This Row],[Station Number]],Table_ReceiptPoint[Receipt Point Number],0),),2),"") ->  | H56: =IFERROR(INDEX(Table_ReceiptPoint[Legal Location Name],MATCH(Table_TollCalc[[#This Row],[Station Number]],Table_ReceiptPoint[Receipt Point Number],0),),"") ->  | I56: =IFERROR(INDEX(Table_Attach1[FT-R Demand Rate Price Point "B" ($/103m3/mo)],MATCH(Table_TollCalc[[#This Row],[Station Number]],Table_Attach1[Receipt Point Number],0),)*INDEX(Conversions!$C$7:$C$8,MATCH('Toll Calculator'!$O$8,Conversions!$B$7:$B$8,0))," ") -> 
C57: =IFERROR(INDEX(Table_ReceiptPoint[Receipt Point Number],MATCH(Table_TollCalc[[#This Row],[Receipt Station Name - '[select below'] -]],Table_ReceiptPoint[Receipt Point Name],0),),"") ->  | E57: =IFERROR(INDEX(Table_ReceiptPoint[Latitude],MATCH(Table_TollCalc[[#This Row],[Station Number]],Table_ReceiptPoint[Receipt Point Number],0),),"") ->  | F57: =IFERROR(INDEX(Table_ReceiptPoint[Longitude],MATCH(Table_TollCalc[[#This Row],[Station Number]],Table_ReceiptPoint[Receipt Point Number],0),),"") ->  | G57: =IFERROR(ROUND(INDEX(Table_ReceiptPoint[Distance From Delivery Station],MATCH(Table_TollCalc[[#This Row],[Station Number]],Table_ReceiptPoint[Receipt Point Number],0),),2),"") ->  | H57: =IFERROR(INDEX(Table_ReceiptPoint[Legal Location Name],MATCH(Table_TollCalc[[#This Row],[Station Number]],Table_ReceiptPoint[Receipt Point Number],0),),"") ->  | I57: =IFERROR(INDEX(Table_Attach1[FT-R Demand Rate Price Point "B" ($/103m3/mo)],MATCH(Table_TollCalc[[#This Row],[Station Number]],Table_Attach1[Receipt Point Number],0),)*INDEX(Conversions!$C$7:$C$8,MATCH('Toll Calculator'!$O$8,Conversions!$B$7:$B$8,0))," ") -> 
C58: =IFERROR(INDEX(Table_ReceiptPoint[Receipt Point Number],MATCH(Table_TollCalc[[#This Row],[Receipt Station Name - '[select below'] -]],Table_ReceiptPoint[Receipt Point Name],0),),"") ->  | E58: =IFERROR(INDEX(Table_ReceiptPoint[Latitude],MATCH(Table_TollCalc[[#This Row],[Station Number]],Table_ReceiptPoint[Receipt Point Number],0),),"") ->  | F58: =IFERROR(INDEX(Table_ReceiptPoint[Longitude],MATCH(Table_TollCalc[[#This Row],[Station Number]],Table_ReceiptPoint[Receipt Point Number],0),),"") ->  | G58: =IFERROR(ROUND(INDEX(Table_ReceiptPoint[Distance From Delivery Station],MATCH(Table_TollCalc[[#This Row],[Station Number]],Table_ReceiptPoint[Receipt Point Number],0),),2),"") ->  | H58: =IFERROR(INDEX(Table_ReceiptPoint[Legal Location Name],MATCH(Table_TollCalc[[#This Row],[Station Number]],Table_ReceiptPoint[Receipt Point Number],0),),"") ->  | I58: =IFERROR(INDEX(Table_Attach1[FT-R Demand Rate Price Point "B" ($/103m3/mo)],MATCH(Table_TollCalc[[#This Row],[Station Number]],Table_Attach1[Receipt Point Number],0),)*INDEX(Conversions!$C$7:$C$8,MATCH('Toll Calculator'!$O$8,Conversions!$B$7:$B$8,0))," ") -> 
C59: =IFERROR(INDEX(Table_ReceiptPoint[Receipt Point Number],MATCH(Table_TollCalc[[#This Row],[Receipt Station Name - '[select below'] -]],Table_ReceiptPoint[Receipt Point Name],0),),"") ->  | E59: =IFERROR(INDEX(Table_ReceiptPoint[Latitude],MATCH(Table_TollCalc[[#This Row],[Station Number]],Table_ReceiptPoint[Receipt Point Number],0),),"") ->  | F59: =IFERROR(INDEX(Table_ReceiptPoint[Longitude],MATCH(Table_TollCalc[[#This Row],[Station Number]],Table_ReceiptPoint[Receipt Point Number],0),),"") ->  | G59: =IFERROR(ROUND(INDEX(Table_ReceiptPoint[Distance From Delivery Station],MATCH(Table_TollCalc[[#This Row],[Station Number]],Table_ReceiptPoint[Receipt Point Number],0),),2),"") ->  | H59: =IFERROR(INDEX(Table_ReceiptPoint[Legal Location Name],MATCH(Table_TollCalc[[#This Row],[Station Number]],Table_ReceiptPoint[Receipt Point Number],0),),"") ->  | I59: =IFERROR(INDEX(Table_Attach1[FT-R Demand Rate Price Point "B" ($/103m3/mo)],MATCH(Table_TollCalc[[#This Row],[Station Number]],Table_Attach1[Receipt Point Number],0),)*INDEX(Conversions!$C$7:$C$8,MATCH('Toll Calculator'!$O$8,Conversions!$B$7:$B$8,0))," ") -> 
C60: =IFERROR(INDEX(Table_ReceiptPoint[Receipt Point Number],MATCH(Table_TollCalc[[#This Row],[Receipt Station Name - '[select below'] -]],Table_ReceiptPoint[Receipt Point Name],0),),"") ->  | E60: =IFERROR(INDEX(Table_ReceiptPoint[Latitude],MATCH(Table_TollCalc[[#This Row],[Station Number]],Table_ReceiptPoint[Receipt Point Number],0),),"") ->  | F60: =IFERROR(INDEX(Table_ReceiptPoint[Longitude],MATCH(Table_TollCalc[[#This Row],[Station Number]],Table_ReceiptPoint[Receipt Point Number],0),),"") ->  | G60: =IFERROR(ROUND(INDEX(Table_ReceiptPoint[Distance From Delivery Station],MATCH(Table_TollCalc[[#This Row],[Station Number]],Table_ReceiptPoint[Receipt Point Number],0),),2),"") ->  | H60: =IFERROR(INDEX(Table_ReceiptPoint[Legal Location Name],MATCH(Table_TollCalc[[#This Row],[Station Number]],Table_ReceiptPoint[Receipt Point Number],0),),"") ->  | I60: =IFERROR(INDEX(Table_Attach1[FT-R Demand Rate Price Point "B" ($/103m3/mo)],MATCH(Table_TollCalc[[#This Row],[Station Number]],Table_Attach1[Receipt Point Number],0),)*INDEX(Conversions!$C$7:$C$8,MATCH('Toll Calculator'!$O$8,Conversions!$B$7:$B$8,0))," ") -> 

Sheet Customer Savings
B2: Points to Point Service (FT-P) - Annual Savings
B4: Report Date | D4: =TODAY() -> 45443
B5: Delivery Location | D5: ='Toll Calculator'!D7 -> ADM AGRI INDUSTRIES SALES APN
B6: FT-P Contract Demand | D6: =IF('Toll Calculator'!$O$8="Imperial",'Toll Calculator'!$O$10*Conversions!$C$11,SUM(Table_TollCalc[FT-P Service Volume ])) -> 140 | E6: =INDEX(Conversions!$C$7:$G$8,MATCH('Toll Calculator'!$O$8,Conversions!$B$7:$B$8,0),5) -> ($/e³m³/d)
B7: Distance Used for Price | D7: ='Toll Calculator'!$O$11 -> 240.08 | E7: ='Toll Calculator'!$P$11 -> km | N7: Price ($/GJ) -[select below]- | P7: ="Heat Content (MJ/m"&CHAR(179)&") -[select below]-" -> Heat Content (MJ/m³) -[select below]-
B8: FT-P Price | D8: =M15 -> 571.72 | E8: ='Toll Calculator'!$P$12 -> ($/e³m³/mo)
B9: Gas Price | D9: =N10 -> 3.2 | E9: ($/GJ)
B10: Heat Content | D10: =P10 -> 37.8 | E10: ="(MJ/m"&CHAR(179)&")" -> (MJ/m³) | N10: 3.2 | P10: 37.8
B11: Annual Savings | D11: =R17 -> 261566.17
M13: ='Toll Calculator'!O8 &" "&'Closest Receipt Stations'!I5 -> Metric ($/e³m³/mo) | P13: Estimated Annual Cost
M14: Toll | N14: Fuel | O14: Total | P14: Toll | Q14: Fuel | R14: Total
L15: FT-P* | M15: ='Toll Calculator'!$O$12 -> 571.72 | N15: =IF('Toll Calculator'!$O$8="Imperial",($Q15/($D$6*365))*100,$Q15/12/$D$6) -> 30.61 | O15: =M15+N15 -> 602.33 | P15: =IF('Toll Calculator'!$O$8="Imperial",'Customer Savings'!$D$6*(365/12)/100*'Customer Savings'!$M15*12,'Customer Savings'!$D$6*'Customer Savings'!$M15*12) -> 960489.6 | Q15: =IF('Toll Calculator'!O8="Imperial",$D$6*(1/Conversions!$C$11)*($P$10*365)*(Conversions!$C$20*$N$10),$D$6*($P$10*365)*(Conversions!$C$20*$N$10)) -> 51426.39 | R15: =P15+Q15 -> 1011915.99
L16: FT-R & FT-D2* | M16: =SUMPRODUCT('Toll Calculator'!I11:I60,'Toll Calculator'!J11:J60)/SUM('Toll Calculator'!J11:J60)+'Toll Calculator'!I7 -> 696.84 | N16: =IF('Toll Calculator'!$O$8="Imperial",($Q16/($D$6*365))*100,$Q16/12/$D$6) -> 61.19 | O16: =M16+N16 -> 758.03 | P16: =IF('Toll Calculator'!$O$8="Imperial",'Customer Savings'!$D$6*(365/12)/100*'Customer Savings'!$M16*12,'Customer Savings'!$D$6*'Customer Savings'!$M16*12) -> 1170691.2 | Q16: =IF('Toll Calculator'!O8="Imperial",$D$6*(1/Conversions!$C$11)*($P$10*365)*(Conversions!$C$19*$N$10),($D$6*$P$10*365)*(Conversions!$C$19*$N$10)) -> 102790.96 | R16: =P16+Q16 -> 1273482.16
L17: Savings | M17: =M16-M15 -> 125.12 | N17: 30.58 | O17: 155.7 | P17: 210201.6 | Q17: 51364.57 | R17: 261566.17
L18: *Based on a 3-year term

Sheet Closest Receipt Stations
D2: Station Number | E2: Delivery Station Name
D3: ='Toll Calculator'!C7 -> 31001 | E3: ='Toll Calculator'!D7 -> ADM AGRI INDUSTRIES SALES APN
D5: List of Receipt Stations Available for FT-P Service | H5: =_xlfn.SWITCH('Toll Calculator'!$O$8,"Metric",Conversions!D7,"Imperial",Conversions!D8) -> ($/e³m³/mo) | I5: =_xlfn.SWITCH('Toll Calculator'!$O$8,"Metric",Conversions!E7,"Imperial",Conversions!E8) -> ($/e³m³/mo) | J5: =_xlfn.SWITCH('Toll Calculator'!$O$8,"Metric",Conversions!F7,"Imperial",Conversions!F8) -> ($/e³m³/d)
C6: Rank | D6: Station Number | E6: Receipt Station Name | F6: Distance (km) | G6: Legal Location | H6: FT-R Price (3-year term) | I6: FT-P Price (3-year term) | J6: IT-R Price
C7: =Table_ReceiptPointAlphabetical[[#This Row],[Alphabetical Order Rank]] -> 1 | D7: =INDEX(Table_ReceiptPoint[Receipt Point Number],MATCH(Table_CloseReceipt[[#This Row],[Rank]],Table_ReceiptPoint[Distance Rank to Delivery Location],0),) -> 30303 | E7: =INDEX(Table_ReceiptPoint[Receipt Point Name2],MATCH(Table_CloseReceipt[[#This Row],[Rank]],Table_ReceiptPoint[Distance Rank to Delivery Location],0),) -> LLOYDMINSTER A APN* | F7: =INDEX(Table_ReceiptPoint[Distance From Delivery Station],MATCH(Table_CloseReceipt[[#This Row],[Rank]],Table_ReceiptPoint[Distance Rank to Delivery Location],0),) -> 11.4176 | G7: =INDEX(Table_ReceiptPoint[Legal Location Name],MATCH(Table_CloseReceipt[[#This Row],[Rank]],Table_ReceiptPoint[Distance Rank to Delivery Location],0),) -> 07-11-051-01-W4 | H7: =INDEX(Table_Attach1[FT-R Demand Rate Price Point "B" ($/103m3/mo)],MATCH(Table_CloseReceipt[[#This Row],[Station Number]],Table_Attach1[Receipt Point Number],0),)*INDEX(Conversions!$C$7:$C$8,MATCH('Toll Calculator'!$O$8,Conversions!$B$7:$B$8,0)) -> 501.97 | I7: =INDEX(Table_Attach3[FT-P Demand Rate Price Point "B"],MATCH(IF(CEILING(Table_CloseReceipt[[#This Row],[Distance (km)]],25)>500,999999,CEILING(Table_CloseReceipt[[#This Row],[Distance (km)]],25)),Table_Attach3[Maximum Distance Between Receipt Point and Delivery Point (km)],0),)*INDEX(Conversions!$C$7:$C$8,MATCH('Toll Calculator'!$O$8,Conversions!$B$7:$B$8,0)) -> 361.24 | J7: =INDEX(Table_Attach1[IT-R Rate ($/103m3/d)],MATCH(Table_CloseReceipt[[#This Row],[Station Number]],Table_Attach1[Receipt Point Number],0),)*INDEX(Conversions!$C$7:$C$8,MATCH('Toll Calculator'!$O$8,Conversions!$B$7:$B$8,0))*(365/12) -> 575.79
C8: =Table_ReceiptPointAlphabetical[[#This Row],[Alphabetical Order Rank]] -> 2 | D8: =INDEX(Table_ReceiptPoint[Receipt Point Number],MATCH(Table_CloseReceipt[[#This Row],[Rank]],Table_ReceiptPoint[Distance Rank to Delivery Location],0),) -> 30248 | E8: =INDEX(Table_ReceiptPoint[Receipt Point Name2],MATCH(Table_CloseReceipt[[#This Row],[Rank]],Table_ReceiptPoint[Distance Rank to Delivery Location],0),) -> EARLIE LAKE APN | F8: =INDEX(Table_ReceiptPoint[Distance From Delivery Station],MATCH(Table_CloseReceipt[[#This Row],[Rank]],Table_ReceiptPoint[Distance Rank to Delivery Location],0),) -> 13.6117 | G8: =INDEX(Table_ReceiptPoint[Legal Location Name],MATCH(Table_CloseReceipt[[#This Row],[Rank]],Table_ReceiptPoint[Distance Rank to Delivery Location],0),) -> 08-10-049-02-W4 | H8: =INDEX(Table_Attach1[FT-R Demand Rate Price Point "B" ($/103m3/mo)],MATCH(Table_CloseReceipt[[#This Row],[Station Number]],Table_Attach1[Receipt Point Number],0),)*INDEX(Conversions!$C$7:$C$8,MATCH('Toll Calculator'!$O$8,Conversions!$B$7:$B$8,0)) -> 501.97 | I8: =INDEX(Table_Attach3[FT-P Demand Rate Price Point "B"],MATCH(IF(CEILING(Table_CloseReceipt[[#This Row],[Distance (km)]],25)>500,999999,CEILING(Table_CloseReceipt[[#This Row],[Distance (km)]],25)),Table_Attach3[Maximum Distance Between Receipt Point and Delivery Point (km)],0),)*INDEX(Conversions!$C$7:$C$8,MATCH('Toll Calculator'!$O$8,Conversions!$B$7:$B$8,0)) -> 361.24 | J8: =INDEX(Table_Attach1[IT-R Rate ($/103m3/d)],MATCH(Table_CloseReceipt[[#This Row],[Station Number]],Table_Attach1[Receipt Point Number],0),)*INDEX(Conversions!$C$7:$C$8,MATCH('Toll Calculator'!$O$8,Conversions!$B$7:$B$8,0))*(365/12) -> 575.79
C9: =Table_ReceiptPointAlphabetical[[#This Row],[Alphabetical Order Rank]] -> 3 | D9: =INDEX(Table_ReceiptPoint[Receipt Point Number],MATCH(Table_CloseReceipt[[#This Row],[Rank]],Table_ReceiptPoint[Distance Rank to Delivery Location],0),) -> 30297 | E9: =INDEX(Table_ReceiptPoint[Receipt Point Name2],MATCH(Table_CloseReceipt[[#This Row],[Rank]],Table_ReceiptPoint[Distance Rank to Delivery Location],0),) -> KITSCOTY APN* | F9: =INDEX(Table_ReceiptPoint[Distance From Delivery Station],MATCH(Table_CloseReceipt[[#This Row],[Rank]],Table_ReceiptPoint[Distance Rank to Delivery Location],0),) -> 16.1114 | G9: =INDEX(Table_ReceiptPoint[Legal Location Name],MATCH(Table_CloseReceipt[[#This Row],[Rank]],Table_ReceiptPoint[Distance Rank to Delivery Location],0),) -> 08-18-050-02-W4 | H9: =INDEX(Table_Attach1[FT-R Demand Rate Price Point "B" ($/103m3/mo)],MATCH(Table_CloseReceipt[[#This Row],[Station Number]],Table_Attach1[Receipt Point Number],0),)*INDEX(Conversions!$C$7:$C$8,MATCH('Toll Calculator'!$O$8,Conversions!$B$7:$B$8,0)) -> 501.97 | I9: =INDEX(Table_Attach3[FT-P Demand Rate Price Point "B"],MATCH(IF(CEILING(Table_CloseReceipt[[#This Row],[Distance (km)]],25)>500,999999,CEILING(Table_CloseReceipt[[#This Row],[Distance (km)]],25)),Table_Attach3[Maximum Distance Between Receipt Point and Delivery Point (km)],0),)*INDEX(Conversions!$C$7:$C$8,MATCH('Toll Calculator'!$O$8,Conversions!$B$7:$B$8,0)) -> 361.24 | J9: =INDEX(Table_Attach1[IT-R Rate ($/103m3/d)],MATCH(Table_CloseReceipt[[#This Row],[Station Number]],Table_Attach1[Receipt Point Number],0),)*INDEX(Conversions!$C$7:$C$8,MATCH('Toll Calculator'!$O$8,Conversions!$B$7:$B$8,0))*(365/12) -> 575.79
C10: =Table_ReceiptPointAlphabetical[[#This Row],[Alphabetical Order Rank]] -> 4 | D10: =INDEX(Table_ReceiptPoint[Receipt Point Number],MATCH(Table_CloseReceipt[[#This Row],[Rank]],Table_ReceiptPoint[Distance Rank to Delivery Location],0),) -> 30218 | E10: =INDEX(Table_ReceiptPoint[Receipt Point Name2],MATCH(Table_CloseReceipt[[#This Row],[Rank]],Table_ReceiptPoint[Distance Rank to Delivery Location],0),) -> BLACKFOOT CREEK APN | F10: =INDEX(Table_ReceiptPoint[Distance From Delivery Station],MATCH(Table_CloseReceipt[[#This Row],[Rank]],Table_ReceiptPoint[Distance Rank to Delivery Location],0),) -> 18.0934 | G10: =INDEX(Table_ReceiptPoint[Legal Location Name],MATCH(Table_CloseReceipt[[#This Row],[Rank]],Table_ReceiptPoint[Distance Rank to Delivery Location],0),) -> SE-13-050-03-W4 | H10: =INDEX(Table_Attach1[FT-R Demand Rate Price Point "B" ($/103m3/mo)],MATCH(Table_CloseReceipt[[#This Row],[Station Number]],Table_Attach1[Receipt Point Number],0),)*INDEX(Conversions!$C$7:$C$8,MATCH('Toll Calculator'!$O$8,Conversions!$B$7:$B$8,0)) -> 501.97 | I10: =INDEX(Table_Attach3[FT-P Demand Rate Price Point "B"],MATCH(IF(CEILING(Table_CloseReceipt[[#This Row],[Distance (km)]],25)>500,999999,CEILING(Table_CloseReceipt[[#This Row],[Distance (km)]],25)),Table_Attach3[Maximum Distance Between Receipt Point and Delivery Point (km)],0),)*INDEX(Conversions!$C$7:$C$8,MATCH('Toll Calculator'!$O$8,Conversions!$B$7:$B$8,0)) -> 361.24 | J10: =INDEX(Table_Attach1[IT-R Rate ($/103m3/d)],MATCH(Table_CloseReceipt[[#This Row],[Station Number]],Table_Attach1[Receipt Point Number],0),)*INDEX(Conversions!$C$7:$C$8,MATCH('Toll Calculator'!$O$8,Conversions!$B$7:$B$8,0))*(365/12) -> 575.79
C11: =Table_ReceiptPointAlphabetical[[#This Row],[Alphabetical Order Rank]] -> 5 | D11: =INDEX(Table_ReceiptPoint[Receipt Point Number],MATCH(Table_CloseReceipt[[#This Row],[Rank]],Table_ReceiptPoint[Distance Rank to Delivery Location],0),) -> 30304 | E11: =INDEX(Table_ReceiptPoint[Receipt Point Name2],MATCH(Table_CloseReceipt[[#This Row],[Rank]],Table_ReceiptPoint[Distance Rank to Delivery Location],0),) -> LLOYDMINSTER B APN* | F11: =INDEX(Table_ReceiptPoint[Distance From Delivery Station],MATCH(Table_CloseReceipt[[#This Row],[Rank]],Table_ReceiptPoint[Distance Rank to Delivery Location],0),) -> 27.9462 | G11: =INDEX(Table_ReceiptPoint[Legal Location Name],MATCH(Table_CloseReceipt[[#This Row],[Rank]],Table_ReceiptPoint[Distance Rank to Delivery Location],0),) -> 10-17-051-03-W4 | H11: =INDEX(Table_Attach1[FT-R Demand Rate Price Point "B" ($/103m3/mo)],MATCH(Table_CloseReceipt[[#This Row],[Station Number]],Table_Attach1[Receipt Point Number],0),)*INDEX(Conversions!$C$7:$C$8,MATCH('Toll Calculator'!$O$8,Conversions!$B$7:$B$8,0)) -> 501.97 | I11: =INDEX(Table_Attach3[FT-P Demand Rate Price Point "B"],MATCH(IF(CEILING(Table_CloseReceipt[[#This Row],[Distance (km)]],25)>500,999999,CEILING(Table_CloseReceipt[[#This Row],[Distance (km)]],25)),Table_Attach3[Maximum Distance Between Receipt Point and Delivery Point (km)],0),)*INDEX(Conversions!$C$7:$C$8,MATCH('Toll Calculator'!$O$8,Conversions!$B$7:$B$8,0)) -> 384.62 | J11: =INDEX(Table_Attach1[IT-R Rate ($/103m3/d)],MATCH(Table_CloseReceipt[[#This Row],[Station Number]],Table_Attach1[Receipt Point Number],0),)*INDEX(Conversions!$C$7:$C$8,MATCH('Toll Calculator'!$O$8,Conversions!$B$7:$B$8,0))*(365/12) -> 575.79
C12: =Table_ReceiptPointAlphabetical[[#This Row],[Alphabetical Order Rank]] -> 6 | D12: =INDEX(Table_ReceiptPoint[Receipt Point Number],MATCH(Table_CloseReceipt[[#This Row],[Rank]],Table_ReceiptPoint[Distance Rank to Delivery Location],0),) -> 30294 | E12: =INDEX(Table_ReceiptPoint[Receipt Point Name2],MATCH(Table_CloseReceipt[[#This Row],[Rank]],Table_ReceiptPoint[Distance Rank to Delivery Location],0),) -> KENILWORTH APN | F12: =INDEX(Table_ReceiptPoint[Distance From Delivery Station],MATCH(Table_CloseReceipt[[#This Row],[Rank]],Table_ReceiptPoint[Distance Rank to Delivery Location],0),) -> 29.1524 | G12: =INDEX(Table_ReceiptPoint[Legal Location Name],MATCH(Table_CloseReceipt[[#This Row],[Rank]],Table_ReceiptPoint[Distance Rank to Delivery Location],0),) -> 02-02-050-04-W4 | H12: =INDEX(Table_Attach1[FT-R Demand Rate Price Point "B" ($/103m3/mo)],MATCH(Table_CloseReceipt[[#This Row],[Station Number]],Table_Attach1[Receipt Point Number],0),)*INDEX(Conversions!$C$7:$C$8,MATCH('Toll Calculator'!$O$8,Conversions!$B$7:$B$8,0)) -> 501.97 | I12: =INDEX(Table_Attach3[FT-P Demand Rate Price Point "B"],MATCH(IF(CEILING(Table_CloseReceipt[[#This Row],[Distance (km)]],25)>500,999999,CEILING(Table_CloseReceipt[[#This Row],[Distance (km)]],25)),Table_Attach3[Maximum Distance Between Receipt Point and Delivery Point (km)],0),)*INDEX(Conversions!$C$7:$C$8,MATCH('Toll Calculator'!$O$8,Conversions!$B$7:$B$8,0)) -> 384.62 | J12: =INDEX(Table_Attach1[IT-R Rate ($/103m3/d)],MATCH(Table_CloseReceipt[[#This Row],[Station Number]],Table_Attach1[Receipt Point Number],0),)*INDEX(Conversions!$C$7:$C$8,MATCH('Toll Calculator'!$O$8,Conversions!$B$7:$B$8,0))*(365/12) -> 575.79
C13: =Table_ReceiptPointAlphabetical[[#This Row],[Alphabetical Order Rank]] -> 7 | D13: =INDEX(Table_ReceiptPoint[Receipt Point Number],MATCH(Table_CloseReceipt[[#This Row],[Rank]],Table_ReceiptPoint[Distance Rank to Delivery Location],0),) -> 1510 | E13: =INDEX(Table_ReceiptPoint[Receipt Point Name2],MATCH(Table_CloseReceipt[[#This Row],[Rank]],Table_ReceiptPoint[Distance Rank to Delivery Location],0),) -> RIVERCOURSE | F13: =INDEX(Table_ReceiptPoint[Distance From Delivery Station],MATCH(Table_CloseReceipt[[#This Row],[Rank]],Table_ReceiptPoint[Distance Rank to Delivery Location],0),) -> 30.753 | G13: =INDEX(Table_ReceiptPoint[Legal Location Name],MATCH(Table_CloseReceipt[[#This Row],[Rank]],Table_ReceiptPoint[Distance Rank to Delivery Location],0),) -> 15-36-046-02-W4 | H13: =INDEX(Table_Attach1[FT-R Demand Rate Price Point "B" ($/103m3/mo)],MATCH(Table_CloseReceipt[[#This Row],[Station Number]],Table_Attach1[Receipt Point Number],0),)*INDEX(Conversions!$C$7:$C$8,MATCH('Toll Calculator'!$O$8,Conversions!$B$7:$B$8,0)) -> 501.97 | I13: =INDEX(Table_Attach3[FT-P Demand Rate Price Point "B"],MATCH(IF(CEILING(Table_CloseReceipt[[#This Row],[Distance (km)]],25)>500,999999,CEILING(Table_CloseReceipt[[#This Row],[Distance (km)]],25)),Table_Attach3[Maximum Distance Between Receipt Point and Delivery Point (km)],0),)*INDEX(Conversions!$C$7:$C$8,MATCH('Toll Calculator'!$O$8,Conversions!$B$7:$B$8,0)) -> 384.62 | J13: =INDEX(Table_Attach1[IT-R Rate ($/103m3/d)],MATCH(Table_CloseReceipt[[#This Row],[Station Number]],Table_Attach1[Receipt Point Number],0),)*INDEX(Conversions!$C$7:$C$8,MATCH('Toll Calculator'!$O$8,Conversions!$B$7:$B$8,0))*(365/12) -> 575.79
C14: =Table_ReceiptPointAlphabetical[[#This Row],[Alphabetical Order Rank]] -> 8 | D14: =INDEX(Table_ReceiptPoint[Receipt Point Number],MATCH(Table_CloseReceipt[[#This Row],[Rank]],Table_ReceiptPoint[Distance Rank to Delivery Location],0),) -> 1728 | E14: =INDEX(Table_ReceiptPoint[Receipt Point Name2],MATCH(Table_CloseReceipt[[#This Row],[Rank]],Table_ReceiptPoint[Distance Rank to Delivery Location],0),) -> PARADISE VALLEY* | F14: =INDEX(Table_ReceiptPoint[Distance From Delivery Station],MATCH(Table_CloseReceipt[[#This Row],[Rank]],Table_ReceiptPoint[Distance Rank to Delivery Location],0),) -> 35.1728 | G14: =INDEX(Table_ReceiptPoint[Legal Location Name],MATCH(Table_CloseReceipt[[#This Row],[Rank]],Table_ReceiptPoint[Distance Rank to Delivery Location],0),) -> 02-28-046-02-W4 | H14: =INDEX(Table_Attach1[FT-R Demand Rate Price Point "B" ($/103m3/mo)],MATCH(Table_CloseReceipt[[#This Row],[Station Number]],Table_Attach1[Receipt Point Number],0),)*INDEX(Conversions!$C$7:$C$8,MATCH('Toll Calculator'!$O$8,Conversions!$B$7:$B$8,0)) -> 501.97 | I14: =INDEX(Table_Attach3[FT-P Demand Rate Price Point "B"],MATCH(IF(CEILING(Table_CloseReceipt[[#This Row],[Distance (km)]],25)>500,999999,CEILING(Table_CloseReceipt[[#This Row],[Distance (km)]],25)),Table_Attach3[Maximum Distance Between Receipt Point and Delivery Point (km)],0),)*INDEX(Conversions!$C$7:$C$8,MATCH('Toll Calculator'!$O$8,Conversions!$B$7:$B$8,0)) -> 384.62 | J14: =INDEX(Table_Attach1[IT-R Rate ($/103m3/d)],MATCH(Table_CloseReceipt[[#This Row],[Station Number]],Table_Attach1[Receipt Point Number],0),)*INDEX(Conversions!$C$7:$C$8,MATCH('Toll Calculator'!$O$8,Conversions!$B$7:$B$8,0))*(365/12) -> 575.79
C15: =Table_ReceiptPointAlphabetical[[#This Row],[Alphabetical Order Rank]] -> 9 | D15: =INDEX(Table_ReceiptPoint[Receipt Point Number],MATCH(Table_CloseReceipt[[#This Row],[Rank]],Table_ReceiptPoint[Distance Rank to Delivery Location],0),) -> 30372 | E15: =INDEX(Table_ReceiptPoint[Receipt Point Name2],MATCH(Table_CloseReceipt[[#This Row],[Rank]],Table_ReceiptPoint[Distance Rank to Delivery Location],0),) -> VERMILION APN* | F15: =INDEX(Table_ReceiptPoint[Distance From Delivery Station],MATCH(Table_CloseReceipt[[#This Row],[Rank]],Table_ReceiptPoint[Distance Rank to Delivery Location],0),) -> 42.7193 | G15: =INDEX(Table_ReceiptPoint[Legal Location Name],MATCH(Table_CloseReceipt[[#This Row],[Rank]],Table_ReceiptPoint[Distance Rank to Delivery Location],0),) -> 03-21-050-05-W4 | H15: =INDEX(Table_Attach1[FT-R Demand Rate Price Point "B" ($/103m3/mo)],MATCH(Table_CloseReceipt[[#This Row],[Station Number]],Table_Attach1[Receipt Point Number],0),)*INDEX(Conversions!$C$7:$C$8,MATCH('Toll Calculator'!$O$8,Conversions!$B$7:$B$8,0)) -> 501.97 | I15: =INDEX(Table_Attach3[FT-P Demand Rate Price Point "B"],MATCH(IF(CEILING(Table_CloseReceipt[[#This Row],[Distance (km)]],25)>500,999999,CEILING(Table_CloseReceipt[[#This Row],[Distance (km)]],25)),Table_Attach3[Maximum Distance Between Receipt Point and Delivery Point (km)],0),)*INDEX(Conversions!$C$7:$C$8,MATCH('Toll Calculator'!$O$8,Conversions!$B$7:$B$8,0)) -> 384.62 | J15: =INDEX(Table_Attach1[IT-R Rate ($/103m3/d)],MATCH(Table_CloseReceipt[[#This Row],[Station Number]],Table_Attach1[Receipt Point Number],0),)*INDEX(Conversions!$C$7:$C$8,MATCH('Toll Calculator'!$O$8,Conversions!$B$7:$B$8,0))*(365/12) -> 575.79
C16: =Table_ReceiptPointAlphabetical[[#This Row],[Alphabetical Order Rank]] -> 10 | D16: =INDEX(Table_ReceiptPoint[Receipt Point Number],MATCH(Table_CloseReceipt[[#This Row],[Rank]],Table_ReceiptPoint[Distance Rank to Delivery Location],0),) -> 1334 | E16: =INDEX(Table_ReceiptPoint[Receipt Point Name2],MATCH(Table_CloseReceipt[[#This Row],[Rank]],Table_ReceiptPoint[Distance Rank to Delivery Location],0),) -> BAXTER LAKE B | F16: =INDEX(Table_ReceiptPoint[Distance From Delivery Station],MATCH(Table_CloseReceipt[[#This Row],[Rank]],Table_ReceiptPoint[Distance Rank to Delivery Location],0),) -> 53.3253 | G16: =INDEX(Table_ReceiptPoint[Legal Location Name],MATCH(Table_CloseReceipt[[#This Row],[Rank]],Table_ReceiptPoint[Distance Rank to Delivery Location],0),) -> NW-28-046-05-W4 | H16: =INDEX(Table_Attach1[FT-R Demand Rate Price Point "B" ($/103m3/mo)],MATCH(Table_CloseReceipt[[#This Row],[Station Number]],Table_Attach1[Receipt Point Number],0),)*INDEX(Conversions!$C$7:$C$8,MATCH('Toll Calculator'!$O$8,Conversions!$B$7:$B$8,0)) -> 454.54 | I16: =INDEX(Table_Attach3[FT-P Demand Rate Price Point "B"],MATCH(IF(CEILING(Table_CloseReceipt[[#This Row],[Distance (km)]],25)>500,999999,CEILING(Table_CloseReceipt[[#This Row],[Distance (km)]],25)),Table_Attach3[Maximum Distance Between Receipt Point and Delivery Point (km)],0),)*INDEX(Conversions!$C$7:$C$8,MATCH('Toll Calculator'!$O$8,Conversions!$B$7:$B$8,0)) -> 408.01 | J16: =INDEX(Table_Attach1[IT-R Rate ($/103m3/d)],MATCH(Table_CloseReceipt[[#This Row],[Station Number]],Table_Attach1[Receipt Point Number],0),)*INDEX(Conversions!$C$7:$C$8,MATCH('Toll Calculator'!$O$8,Conversions!$B$7:$B$8,0))*(365/12) -> 521.34
C17: =Table_ReceiptPointAlphabetical[[#This Row],[Alphabetical Order Rank]] -> 11 | D17: =INDEX(Table_ReceiptPoint[Receipt Point Number],MATCH(Table_CloseReceipt[[#This Row],[Rank]],Table_ReceiptPoint[Distance Rank to Delivery Location],0),) -> 1197 | E17: =INDEX(Table_ReceiptPoint[Receipt Point Name2],MATCH(Table_CloseReceipt[[#This Row],[Rank]],Table_ReceiptPoint[Distance Rank to Delivery Location],0),) -> BAXTER LAKE | F17: =INDEX(Table_ReceiptPoint[Distance From Delivery Station],MATCH(Table_CloseReceipt[[#This Row],[Rank]],Table_ReceiptPoint[Distance Rank to Delivery Location],0),) -> 53.3999 | G17: =INDEX(Table_ReceiptPoint[Legal Location Name],MATCH(Table_CloseReceipt[[#This Row],[Rank]],Table_ReceiptPoint[Distance Rank to Delivery Location],0),) -> SW-28-046-05-W4 | H17: =INDEX(Table_Attach1[FT-R Demand Rate Price Point "B" ($/103m3/mo)],MATCH(Table_CloseReceipt[[#This Row],[Station Number]],Table_Attach1[Receipt Point Number],0),)*INDEX(Conversions!$C$7:$C$8,MATCH('Toll Calculator'!$O$8,Conversions!$B$7:$B$8,0)) -> 454.55 | I17: =INDEX(Table_Attach3[FT-P Demand Rate Price Point "B"],MATCH(IF(CEILING(Table_CloseReceipt[[#This Row],[Distance (km)]],25)>500,999999,CEILING(Table_CloseReceipt[[#This Row],[Distance (km)]],25)),Table_Attach3[Maximum Distance Between Receipt Point and Delivery Point (km)],0),)*INDEX(Conversions!$C$7:$C$8,MATCH('Toll Calculator'!$O$8,Conversions!$B$7:$B$8,0)) -> 408.01 | J17: =INDEX(Table_Attach1[IT-R Rate ($/103m3/d)],MATCH(Table_CloseReceipt[[#This Row],[Station Number]],Table_Attach1[Receipt Point Number],0),)*INDEX(Conversions!$C$7:$C$8,MATCH('Toll Calculator'!$O$8,Conversions!$B$7:$B$8,0))*(365/12) -> 521.34
C18: =Table_ReceiptPointAlphabetical[[#This Row],[Alphabetical Order Rank]] -> 12 | D18: =INDEX(Table_ReceiptPoint[Receipt Point Number],MATCH(Table_CloseReceipt[[#This Row],[Rank]],Table_ReceiptPoint[Distance Rank to Delivery Location],0),) -> 30272 | E18: =INDEX(Table_ReceiptPoint[Receipt Point Name2],MATCH(Table_CloseReceipt[[#This Row],[Rank]],Table_ReceiptPoint[Distance Rank to Delivery Location],0),) -> GRIZZLY BEAR CREEK APN | F18: =INDEX(Table_ReceiptPoint[Distance From Delivery Station],MATCH(Table_CloseReceipt[[#This Row],[Rank]],Table_ReceiptPoint[Distance Rank to Delivery Location],0),) -> 54.4561 | G18: =INDEX(Table_ReceiptPoint[Legal Location Name],MATCH(Table_CloseReceipt[[#This Row],[Rank]],Table_ReceiptPoint[Distance Rank to Delivery Location],0),) -> 02-05-049-06-W4 | H18: =INDEX(Table_Attach1[FT-R Demand Rate Price Point "B" ($/103m3/mo)],MATCH(Table_CloseReceipt[[#This Row],[Station Number]],Table_Attach1[Receipt Point Number],0),)*INDEX(Conversions!$C$7:$C$8,MATCH('Toll Calculator'!$O$8,Conversions!$B$7:$B$8,0)) -> 501.97 | I18: =INDEX(Table_Attach3[FT-P Demand Rate Price Point "B"],MATCH(IF(CEILING(Table_CloseReceipt[[#This Row],[Distance (km)]],25)>500,999999,CEILING(Table_CloseReceipt[[#This Row],[Distance (km)]],25)),Table_Attach3[Maximum Distance Between Receipt Point and Delivery Point (km)],0),)*INDEX(Conversions!$C$7:$C$8,MATCH('Toll Calculator'!$O$8,Conversions!$B$7:$B$8,0)) -> 408.01 | J18: =INDEX(Table_Attach1[IT-R Rate ($/103m3/d)],MATCH(Table_CloseReceipt[[#This Row],[Station Number]],Table_Attach1[Receipt Point Number],0),)*INDEX(Conversions!$C$7:$C$8,MATCH('Toll Calculator'!$O$8,Conversions!$B$7:$B$8,0))*(365/12) -> 575.79
C19: =Table_ReceiptPointAlphabetical[[#This Row],[Alphabetical Order Rank]] -> 13 | D19: =INDEX(Table_ReceiptPoint[Receipt Point Number],MATCH(Table_CloseReceipt[[#This Row],[Rank]],Table_ReceiptPoint[Distance Rank to Delivery Location],0),) -> 30382 | E19: =INDEX(Table_ReceiptPoint[Receipt Point Name2],MATCH(Table_CloseReceipt[[#This Row],[Rank]],Table_ReceiptPoint[Distance Rank to Delivery Location],0),) -> WILDMERE NORTH APN* | F19: =INDEX(Table_ReceiptPoint[Distance From Delivery Station],MATCH(Table_CloseReceipt[[#This Row],[Rank]],Table_ReceiptPoint[Distance Rank to Delivery Location],0),) -> 55.7646 | G19: =INDEX(Table_ReceiptPoint[Legal Location Name],MATCH(Table_CloseReceipt[[#This Row],[Rank]],Table_ReceiptPoint[Distance Rank to Delivery Location],0),) -> NW-20-048-06-W4 | H19: =INDEX(Table_Attach1[FT-R Demand Rate Price Point "B" ($/103m3/mo)],MATCH(Table_CloseReceipt[[#This Row],[Station Number]],Table_Attach1[Receipt Point Number],0),)*INDEX(Conversions!$C$7:$C$8,MATCH('Toll Calculator'!$O$8,Conversions!$B$7:$B$8,0)) -> 501.97 | I19: =INDEX(Table_Attach3[FT-P Demand Rate Price Point "B"],MATCH(IF(CEILING(Table_CloseReceipt[[#This Row],[Distance (km)]],25)>500,999999,CEILING(Table_CloseReceipt[[#This Row],[Distance (km)]],25)),Table_Attach3[Maximum Distance Between Receipt Point and Delivery Point (km)],0),)*INDEX(Conversions!$C$7:$C$8,MATCH('Toll Calculator'!$O$8,Conversions!$B$7:$B$8,0)) -> 408.01 | J19: =INDEX(Table_Attach1[IT-R Rate ($/103m3/d)],MATCH(Table_CloseReceipt[[#This Row],[Station Number]],Table_Attach1[Receipt Point Number],0),)*INDEX(Conversions!$C$7:$C$8,MATCH('Toll Calculator'!$O$8,Conversions!$B$7:$B$8,0))*(365/12) -> 575.79
C20: =Table_ReceiptPointAlphabetical[[#This Row],[Alphabetical Order Rank]] -> 14 | D20: =INDEX(Table_ReceiptPoint[Receipt Point Number],MATCH(Table_CloseReceipt[[#This Row],[Rank]],Table_ReceiptPoint[Distance Rank to Delivery Location],0),) -> 30373 | E20: =INDEX(Table_ReceiptPoint[Receipt Point Name2],MATCH(Table_CloseReceipt[[#This Row],[Rank]],Table_ReceiptPoint[Distance Rank to Delivery Location],0),) -> VERMILION RIVER APN | F20: =INDEX(Table_ReceiptPoint[Distance From Delivery Station],MATCH(Table_CloseReceipt[[#This Row],[Rank]],Table_ReceiptPoint[Distance Rank to Delivery Location],0),) -> 56.2326 | G20: =INDEX(Table_ReceiptPoint[Legal Location Name],MATCH(Table_CloseReceipt[[#This Row],[Rank]],Table_ReceiptPoint[Distance Rank to Delivery Location],0),) -> 06-20-051-06-W4 | H20: =INDEX(Table_Attach1[FT-R Demand Rate Price Point "B" ($/103m3/mo)],MATCH(Table_CloseReceipt[[#This Row],[Station Number]],Table_Attach1[Receipt Point Number],0),)*INDEX(Conversions!$C$7:$C$8,MATCH('Toll Calculator'!$O$8,Conversions!$B$7:$B$8,0)) -> 501.97 | I20: =INDEX(Table_Attach3[FT-P Demand Rate Price Point "B"],MATCH(IF(CEILING(Table_CloseReceipt[[#This Row],[Distance (km)]],25)>500,999999,CEILING(Table_CloseReceipt[[#This Row],[Distance (km)]],25)),Table_Attach3[Maximum Distance Between Receipt Point and Delivery Point (km)],0),)*INDEX(Conversions!$C$7:$C$8,MATCH('Toll Calculator'!$O$8,Conversions!$B$7:$B$8,0)) -> 408.01 | J20: =INDEX(Table_Attach1[IT-R Rate ($/103m3/d)],MATCH(Table_CloseReceipt[[#This Row],[Station Number]],Table_Attach1[Receipt Point Number],0),)*INDEX(Conversions!$C$7:$C$8,MATCH('Toll Calculator'!$O$8,Conversions!$B$7:$B$8,0))*(365/12) -> 575.79
C21: =Table_ReceiptPointAlphabetical[[#This Row],[Alphabetical Order Rank]] -> 15 | D21: =INDEX(Table_ReceiptPoint[Receipt Point Number],MATCH(Table_CloseReceipt[[#This Row],[Rank]],Table_ReceiptPoint[Distance Rank to Delivery Location],0),) -> 1535 | E21: =INDEX(Table_ReceiptPoint[Receipt Point Name2],MATCH(Table_CloseReceipt[[#This Row],[Rank]],Table_ReceiptPoint[Distance Rank to Delivery Location],0),) -> CLANDONALD | F21: =INDEX(Table_ReceiptPoint[Distance From Delivery Station],MATCH(Table_CloseReceipt[[#This Row],[Rank]],Table_ReceiptPoint[Distance Rank to Delivery Location],0),) -> 57.1747 | G21: =INDEX(Table_ReceiptPoint[Legal Location Name],MATCH(Table_CloseReceipt[[#This Row],[Rank]],Table_ReceiptPoint[Distance Rank to Delivery Location],0),) -> 08-34-052-06-W4 | H21: =INDEX(Table_Attach1[FT-R Demand Rate Price Point "B" ($/103m3/mo)],MATCH(Table_CloseReceipt[[#This Row],[Station Number]],Table_Attach1[Receipt Point Number],0),)*INDEX(Conversions!$C$7:$C$8,MATCH('Toll Calculator'!$O$8,Conversions!$B$7:$B$8,0)) -> 501.97 | I21: =INDEX(Table_Attach3[FT-P Demand Rate Price Point "B"],MATCH(IF(CEILING(Table_CloseReceipt[[#This Row],[Distance (km)]],25)>500,999999,CEILING(Table_CloseReceipt[[#This Row],[Distance (km)]],25)),Table_Attach3[Maximum Distance Between Receipt Point and Delivery Point (km)],0),)*INDEX(Conversions!$C$7:$C$8,MATCH('Toll Calculator'!$O$8,Conversions!$B$7:$B$8,0)) -> 408.01 | J21: =INDEX(Table_Attach1[IT-R Rate ($/103m3/d)],MATCH(Table_CloseReceipt[[#This Row],[Station Number]],Table_Attach1[Receipt Point Number],0),)*INDEX(Conversions!$C$7:$C$8,MATCH('Toll Calculator'!$O$8,Conversions!$B$7:$B$8,0))*(365/12) -> 575.79
C22: =Table_ReceiptPointAlphabetical[[#This Row],[Alphabetical Order Rank]] -> 16 | D22: =INDEX(Table_ReceiptPoint[Receipt Point Number],MATCH(Table_CloseReceipt[[#This Row],[Rank]],Table_ReceiptPoint[Distance Rank to Delivery Location],0),) -> 30383 | E22: =INDEX(Table_ReceiptPoint[Receipt Point Name2],MATCH(Table_CloseReceipt[[#This Row],[Rank]],Table_ReceiptPoint[Distance Rank to Delivery Location],0),) -> WILDMERE SOUTH APN* | F22: =INDEX(Table_ReceiptPoint[Distance From Delivery Station],MATCH(Table_CloseReceipt[[#This Row],[Rank]],Table_ReceiptPoint[Distance Rank to Delivery Location],0),) -> 57.4597 | G22: =INDEX(Table_ReceiptPoint[Legal Location Name],MATCH(Table_CloseReceipt[[#This Row],[Rank]],Table_ReceiptPoint[Distance Rank to Delivery Location],0),) -> 13-05-048-06-W4 | H22: =INDEX(Table_Attach1[FT-R Demand Rate Price Point "B" ($/103m3/mo)],MATCH(Table_CloseReceipt[[#This Row],[Station Number]],Table_Attach1[Receipt Point Number],0),)*INDEX(Conversions!$C$7:$C$8,MATCH('Toll Calculator'!$O$8,Conversions!$B$7:$B$8,0)) -> 501.97 | I22: =INDEX(Table_Attach3[FT-P Demand Rate Price Point "B"],MATCH(IF(CEILING(Table_CloseReceipt[[#This Row],[Distance (km)]],25)>500,999999,CEILING(Table_CloseReceipt[[#This Row],[Distance (km)]],25)),Table_Attach3[Maximum Distance Between Receipt Point and Delivery Point (km)],0),)*INDEX(Conversions!$C$7:$C$8,MATCH('Toll Calculator'!$O$8,Conversions!$B$7:$B$8,0)) -> 408.01 | J22: =INDEX(Table_Attach1[IT-R Rate ($/103m3/d)],MATCH(Table_CloseReceipt[[#This Row],[Station Number]],Table_Attach1[Receipt Point Number],0),)*INDEX(Conversions!$C$7:$C$8,MATCH('Toll Calculator'!$O$8,Conversions!$B$7:$B$8,0))*(365/12) -> 575.79
C23: =Table_ReceiptPointAlphabetical[[#This Row],[Alphabetical Order Rank]] -> 17 | D23: =INDEX(Table_ReceiptPoint[Receipt Point Number],MATCH(Table_CloseReceipt[[#This Row],[Rank]],Table_ReceiptPoint[Distance Rank to Delivery Location],0),) -> 1198 | E23: =INDEX(Table_ReceiptPoint[Receipt Point Name2],MATCH(Table_CloseReceipt[[#This Row],[Rank]],Table_ReceiptPoint[Distance Rank to Delivery Location],0),) -> BAXTER LAKE WEST* | F23: =INDEX(Table_ReceiptPoint[Distance From Delivery Station],MATCH(Table_CloseReceipt[[#This Row],[Rank]],Table_ReceiptPoint[Distance Rank to Delivery Location],0),) -> 58.8107 | G23: =INDEX(Table_ReceiptPoint[Legal Location Name],MATCH(Table_CloseReceipt[[#This Row],[Rank]],Table_ReceiptPoint[Distance Rank to Delivery Location],0),) -> NW-28-045-05-W4 | H23: =INDEX(Table_Attach1[FT-R Demand Rate Price Point "B" ($/103m3/mo)],MATCH(Table_CloseReceipt[[#This Row],[Station Number]],Table_Attach1[Receipt Point Number],0),)*INDEX(Conversions!$C$7:$C$8,MATCH('Toll Calculator'!$O$8,Conversions!$B$7:$B$8,0)) -> 437.69 | I23: =INDEX(Table_Attach3[FT-P Demand Rate Price Point "B"],MATCH(IF(CEILING(Table_CloseReceipt[[#This Row],[Distance (km)]],25)>500,999999,CEILING(Table_CloseReceipt[[#This Row],[Distance (km)]],25)),Table_Attach3[Maximum Distance Between Receipt Point and Delivery Point (km)],0),)*INDEX(Conversions!$C$7:$C$8,MATCH('Toll Calculator'!$O$8,Conversions!$B$7:$B$8,0)) -> 408.01 | J23: =INDEX(Table_Attach1[IT-R Rate ($/103m3/d)],MATCH(Table_CloseReceipt[[#This Row],[Station Number]],Table_Attach1[Receipt Point Number],0),)*INDEX(Conversions!$C$7:$C$8,MATCH('Toll Calculator'!$O$8,Conversions!$B$7:$B$8,0))*(365/12) -> 501.88
C24: =Table_ReceiptPointAlphabetical[[#This Row],[Alphabetical Order Rank]] -> 18 | D24: =INDEX(Table_ReceiptPoint[Receipt Point Number],MATCH(Table_CloseReceipt[[#This Row],[Rank]],Table_ReceiptPoint[Distance Rank to Delivery Location],0),) -> 30287 | E24: =INDEX(Table_ReceiptPoint[Receipt Point Name2],MATCH(Table_CloseReceipt[[#This Row],[Rank]],Table_ReceiptPoint[Distance Rank to Delivery Location],0),) -> IRMA NORTH APN* | F24: =INDEX(Table_ReceiptPoint[Distance From Delivery Station],MATCH(Table_CloseReceipt[[#This Row],[Rank]],Table_ReceiptPoint[Distance Rank to Delivery Location],0),) -> 59.7902 | G24: =INDEX(Table_ReceiptPoint[Legal Location Name],MATCH(Table_CloseReceipt[[#This Row],[Rank]],Table_ReceiptPoint[Distance Rank to Delivery Location],0),) -> 11-12-048-07-W4 | H24: =INDEX(Table_Attach1[FT-R Demand Rate Price Point "B" ($/103m3/mo)],MATCH(Table_CloseReceipt[[#This Row],[Station Number]],Table_Attach1[Receipt Point Number],0),)*INDEX(Conversions!$C$7:$C$8,MATCH('Toll Calculator'!$O$8,Conversions!$B$7:$B$8,0)) -> 501.97 | I24: =INDEX(Table_Attach3[FT-P Demand Rate Price Point "B"],MATCH(IF(CEILING(Table_CloseReceipt[[#This Row],[Distance (km)]],25)>500,999999,CEILING(Table_CloseReceipt[[#This Row],[Distance (km)]],25)),Table_Attach3[Maximum Distance Between Receipt Point and Delivery Point (km)],0),)*INDEX(Conversions!$C$7:$C$8,MATCH('Toll Calculator'!$O$8,Conversions!$B$7:$B$8,0)) -> 408.01 | J24: =INDEX(Table_Attach1[IT-R Rate ($/103m3/d)],MATCH(Table_CloseReceipt[[#This Row],[Station Number]],Table_Attach1[Receipt Point Number],0),)*INDEX(Conversions!$C$7:$C$8,MATCH('Toll Calculator'!$O$8,Conversions!$B$7:$B$8,0))*(365/12) -> 575.79
C25: =Table_ReceiptPointAlphabetical[[#This Row],[Alphabetical Order Rank]] -> 19 | D25: =INDEX(Table_ReceiptPoint[Receipt Point Number],MATCH(Table_CloseReceipt[[#This Row],[Rank]],Table_ReceiptPoint[Distance Rank to Delivery Location],0),) -> 1382 | E25: =INDEX(Table_ReceiptPoint[Receipt Point Name2],MATCH(Table_CloseReceipt[[#This Row],[Rank]],Table_ReceiptPoint[Distance Rank to Delivery Location],0),) -> BAXTER LAKE NORTHWEST | F25: =INDEX(Table_ReceiptPoint[Distance From Delivery Station],MATCH(Table_CloseReceipt[[#This Row],[Rank]],Table_ReceiptPoint[Distance Rank to Delivery Location],0),) -> 60.0556 | G25: =INDEX(Table_ReceiptPoint[Legal Location Name],MATCH(Table_CloseReceipt[[#This Row],[Rank]],Table_ReceiptPoint[Distance Rank to Delivery Location],0),) -> NW-14-046-06-W4 | H25: =INDEX(Table_Attach1[FT-R Demand Rate Price Point "B" ($/103m3/mo)],MATCH(Table_CloseReceipt[[#This Row],[Station Number]],Table_Attach1[Receipt Point Number],0),)*INDEX(Conversions!$C$7:$C$8,MATCH('Toll Calculator'!$O$8,Conversions!$B$7:$B$8,0)) -> 500.61 | I25: =INDEX(Table_Attach3[FT-P Demand Rate Price Point "B"],MATCH(IF(CEILING(Table_CloseReceipt[[#This Row],[Distance (km)]],25)>500,999999,CEILING(Table_CloseReceipt[[#This Row],[Distance (km)]],25)),Table_Attach3[Maximum Distance Between Receipt Point and Delivery Point (km)],0),)*INDEX(Conversions!$C$7:$C$8,MATCH('Toll Calculator'!$O$8,Conversions!$B$7:$B$8,0)) -> 408.01 | J25: =INDEX(Table_Attach1[IT-R Rate ($/103m3/d)],MATCH(Table_CloseReceipt[[#This Row],[Station Number]],Table_Attach1[Receipt Point Number],0),)*INDEX(Conversions!$C$7:$C$8,MATCH('Toll Calculator'!$O$8,Conversions!$B$7:$B$8,0))*(365/12) -> 574.27
C26: =Table_ReceiptPointAlphabetical[[#This Row],[Alphabetical Order Rank]] -> 20 | D26: =INDEX(Table_ReceiptPoint[Receipt Point Number],MATCH(Table_CloseReceipt[[#This Row],[Rank]],Table_ReceiptPoint[Distance Rank to Delivery Location],0),) -> 1746 | E26: =INDEX(Table_ReceiptPoint[Receipt Point Name2],MATCH(Table_CloseReceipt[[#This Row],[Rank]],Table_ReceiptPoint[Distance Rank to Delivery Location],0),) -> ESTRIDGE LAKE | F26: =INDEX(Table_ReceiptPoint[Distance From Delivery Station],MATCH(Table_CloseReceipt[[#This Row],[Rank]],Table_ReceiptPoint[Distance Rank to Delivery Location],0),) -> 61.0843 | G26: =INDEX(Table_ReceiptPoint[Legal Location Name],MATCH(Table_CloseReceipt[[#This Row],[Rank]],Table_ReceiptPoint[Distance Rank to Delivery Location],0),) -> 13-31-043-02-W4 | H26: =INDEX(Table_Attach1[FT-R Demand Rate Price Point "B" ($/103m3/mo)],MATCH(Table_CloseReceipt[[#This Row],[Station Number]],Table_Attach1[Receipt Point Number],0),)*INDEX(Conversions!$C$7:$C$8,MATCH('Toll Calculator'!$O$8,Conversions!$B$7:$B$8,0)) -> 501.97 | I26: =INDEX(Table_Attach3[FT-P Demand Rate Price Point "B"],MATCH(IF(CEILING(Table_CloseReceipt[[#This Row],[Distance (km)]],25)>500,999999,CEILING(Table_CloseReceipt[[#This Row],[Distance (km)]],25)),Table_Attach3[Maximum Distance Between Receipt Point and Delivery Point (km)],0),)*INDEX(Conversions!$C$7:$C$8,MATCH('Toll Calculator'!$O$8,Conversions!$B$7:$B$8,0)) -> 408.01 | J26: =INDEX(Table_Attach1[IT-R Rate ($/103m3/d)],MATCH(Table_CloseReceipt[[#This Row],[Station Number]],Table_Attach1[Receipt Point Number],0),)*INDEX(Conversions!$C$7:$C$8,MATCH('Toll Calculator'!$O$8,Conversions!$B$7:$B$8,0))*(365/12) -> 575.79
C27: =Table_ReceiptPointAlphabetical[[#This Row],[Alphabetical Order Rank]] -> 21 | D27: =INDEX(Table_ReceiptPoint[Receipt Point Number],MATCH(Table_CloseReceipt[[#This Row],[Rank]],Table_ReceiptPoint[Distance Rank to Delivery Location],0),) -> 1266 | E27: =INDEX(Table_ReceiptPoint[Receipt Point Name2],MATCH(Table_CloseReceipt[[#This Row],[Rank]],Table_ReceiptPoint[Distance Rank to Delivery Location],0),) -> EDGERTON WEST | F27: =INDEX(Table_ReceiptPoint[Distance From Delivery Station],MATCH(Table_CloseReceipt[[#This Row],[Rank]],Table_ReceiptPoint[Distance Rank to Delivery Location],0),) -> 62.3259 | G27: =INDEX(Table_ReceiptPoint[Legal Location Name],MATCH(Table_CloseReceipt[[#This Row],[Rank]],Table_ReceiptPoint[Distance Rank to Delivery Location],0),) -> NW-36-044-05-W4 | H27: =INDEX(Table_Attach1[FT-R Demand Rate Price Point "B" ($/103m3/mo)],MATCH(Table_CloseReceipt[[#This Row],[Station Number]],Table_Attach1[Receipt Point Number],0),)*INDEX(Conversions!$C$7:$C$8,MATCH('Toll Calculator'!$O$8,Conversions!$B$7:$B$8,0)) -> 424.09 | I27: =INDEX(Table_Attach3[FT-P Demand Rate Price Point "B"],MATCH(IF(CEILING(Table_CloseReceipt[[#This Row],[Distance (km)]],25)>500,999999,CEILING(Table_CloseReceipt[[#This Row],[Distance (km)]],25)),Table_Attach3[Maximum Distance Between Receipt Point and Delivery Point (km)],0),)*INDEX(Conversions!$C$7:$C$8,MATCH('Toll Calculator'!$O$8,Conversions!$B$7:$B$8,0)) -> 408.01 | J27: =INDEX(Table_Attach1[IT-R Rate ($/103m3/d)],MATCH(Table_CloseReceipt[[#This Row],[Station Number]],Table_Attach1[Receipt Point Number],0),)*INDEX(Conversions!$C$7:$C$8,MATCH('Toll Calculator'!$O$8,Conversions!$B$7:$B$8,0))*(365/12) -> 486.36
C28: =Table_ReceiptPointAlphabetical[[#This Row],[Alphabetical Order Rank]] -> 22 | D28: =INDEX(Table_ReceiptPoint[Receipt Point Number],MATCH(Table_CloseReceipt[[#This Row],[Rank]],Table_ReceiptPoint[Distance Rank to Delivery Location],0),) -> 1665 | E28: =INDEX(Table_ReceiptPoint[Receipt Point Name2],MATCH(Table_CloseReceipt[[#This Row],[Rank]],Table_ReceiptPoint[Distance Rank to Delivery Location],0),) -> PARSONS LAKE* | F28: =INDEX(Table_ReceiptPoint[Distance From Delivery Station],MATCH(Table_CloseReceipt[[#This Row],[Rank]],Table_ReceiptPoint[Distance Rank to Delivery Location],0),) -> 66.9151 | G28: =INDEX(Table_ReceiptPoint[Legal Location Name],MATCH(Table_CloseReceipt[[#This Row],[Rank]],Table_ReceiptPoint[Distance Rank to Delivery Location],0),) -> 12-07-044-04-W4 | H28: =INDEX(Table_Attach1[FT-R Demand Rate Price Point "B" ($/103m3/mo)],MATCH(Table_CloseReceipt[[#This Row],[Station Number]],Table_Attach1[Receipt Point Number],0),)*INDEX(Conversions!$C$7:$C$8,MATCH('Toll Calculator'!$O$8,Conversions!$B$7:$B$8,0)) -> 439.08 | I28: =INDEX(Table_Attach3[FT-P Demand Rate Price Point "B"],MATCH(IF(CEILING(Table_CloseReceipt[[#This Row],[Distance (km)]],25)>500,999999,CEILING(Table_CloseReceipt[[#This Row],[Distance (km)]],25)),Table_Attach3[Maximum Distance Between Receipt Point and Delivery Point (km)],0),)*INDEX(Conversions!$C$7:$C$8,MATCH('Toll Calculator'!$O$8,Conversions!$B$7:$B$8,0)) -> 408.01 | J28: =INDEX(Table_Attach1[IT-R Rate ($/103m3/d)],MATCH(Table_CloseReceipt[[#This Row],[Station Number]],Table_Attach1[Receipt Point Number],0),)*INDEX(Conversions!$C$7:$C$8,MATCH('Toll Calculator'!$O$8,Conversions!$B$7:$B$8,0))*(365/12) -> 503.7
C29: =Table_ReceiptPointAlphabetical[[#This Row],[Alphabetical Order Rank]] -> 23 | D29: =INDEX(Table_ReceiptPoint[Receipt Point Number],MATCH(Table_CloseReceipt[[#This Row],[Rank]],Table_ReceiptPoint[Distance Rank to Delivery Location],0),) -> 1441 | E29: =INDEX(Table_ReceiptPoint[Receipt Point Name2],MATCH(Table_CloseReceipt[[#This Row],[Rank]],Table_ReceiptPoint[Distance Rank to Delivery Location],0),) -> IRISH | F29: =INDEX(Table_ReceiptPoint[Distance From Delivery Station],MATCH(Table_CloseReceipt[[#This Row],[Rank]],Table_ReceiptPoint[Distance Rank to Delivery Location],0),) -> 67.0842 | G29: =INDEX(Table_ReceiptPoint[Legal Location Name],MATCH(Table_CloseReceipt[[#This Row],[Rank]],Table_ReceiptPoint[Distance Rank to Delivery Location],0),) -> NE-36-054-06-W4 | H29: =INDEX(Table_Attach1[FT-R Demand Rate Price Point "B" ($/103m3/mo)],MATCH(Table_CloseReceipt[[#This Row],[Station Number]],Table_Attach1[Receipt Point Number],0),)*INDEX(Conversions!$C$7:$C$8,MATCH('Toll Calculator'!$O$8,Conversions!$B$7:$B$8,0)) -> 334.99 | I29: =INDEX(Table_Attach3[FT-P Demand Rate Price Point "B"],MATCH(IF(CEILING(Table_CloseReceipt[[#This Row],[Distance (km)]],25)>500,999999,CEILING(Table_CloseReceipt[[#This Row],[Distance (km)]],25)),Table_Attach3[Maximum Distance Between Receipt Point and Delivery Point (km)],0),)*INDEX(Conversions!$C$7:$C$8,MATCH('Toll Calculator'!$O$8,Conversions!$B$7:$B$8,0)) -> 408.01 | J29: =INDEX(Table_Attach1[IT-R Rate ($/103m3/d)],MATCH(Table_CloseReceipt[[#This Row],[Station Number]],Table_Attach1[Receipt Point Number],0),)*INDEX(Conversions!$C$7:$C$8,MATCH('Toll Calculator'!$O$8,Conversions!$B$7:$B$8,0))*(365/12) -> 384.16
C30: =Table_ReceiptPointAlphabetical[[#This Row],[Alphabetical Order Rank]] -> 24 | D30: =INDEX(Table_ReceiptPoint[Receipt Point Number],MATCH(Table_CloseReceipt[[#This Row],[Rank]],Table_ReceiptPoint[Distance Rank to Delivery Location],0),) -> 30208 | E30: =INDEX(Table_ReceiptPoint[Receipt Point Name2],MATCH(Table_CloseReceipt[[#This Row],[Rank]],Table_ReceiptPoint[Distance Rank to Delivery Location],0),) -> BAUER LAKE RECEIPT APN | F30: =INDEX(Table_ReceiptPoint[Distance From Delivery Station],MATCH(Table_CloseReceipt[[#This Row],[Rank]],Table_ReceiptPoint[Distance Rank to Delivery Location],0),) -> 68.1101 | G30: =INDEX(Table_ReceiptPoint[Legal Location Name],MATCH(Table_CloseReceipt[[#This Row],[Rank]],Table_ReceiptPoint[Distance Rank to Delivery Location],0),) -> NE-26-049-08-W4 | H30: =INDEX(Table_Attach1[FT-R Demand Rate Price Point "B" ($/103m3/mo)],MATCH(Table_CloseReceipt[[#This Row],[Station Number]],Table_Attach1[Receipt Point Number],0),)*INDEX(Conversions!$C$7:$C$8,MATCH('Toll Calculator'!$O$8,Conversions!$B$7:$B$8,0)) -> 501.97 | I30: =INDEX(Table_Attach3[FT-P Demand Rate Price Point "B"],MATCH(IF(CEILING(Table_CloseReceipt[[#This Row],[Distance (km)]],25)>500,999999,CEILING(Table_CloseReceipt[[#This Row],[Distance (km)]],25)),Table_Attach3[Maximum Distance Between Receipt Point and Delivery Point (km)],0),)*INDEX(Conversions!$C$7:$C$8,MATCH('Toll Calculator'!$O$8,Conversions!$B$7:$B$8,0)) -> 408.01 | J30: =INDEX(Table_Attach1[IT-R Rate ($/103m3/d)],MATCH(Table_CloseReceipt[[#This Row],[Station Number]],Table_Attach1[Receipt Point Number],0),)*INDEX(Conversions!$C$7:$C$8,MATCH('Toll Calculator'!$O$8,Conversions!$B$7:$B$8,0))*(365/12) -> 575.79
C31: =Table_ReceiptPointAlphabetical[[#This Row],[Alphabetical Order Rank]] -> 25 | D31: =INDEX(Table_ReceiptPoint[Receipt Point Number],MATCH(Table_CloseReceipt[[#This Row],[Rank]],Table_ReceiptPoint[Distance Rank to Delivery Location],0),) -> 30344 | E31: =INDEX(Table_ReceiptPoint[Receipt Point Name2],MATCH(Table_CloseReceipt[[#This Row],[Rank]],Table_ReceiptPoint[Distance Rank to Delivery Location],0),) -> QUEENIE CREEK APN* | F31: =INDEX(Table_ReceiptPoint[Distance From Delivery Station],MATCH(Table_CloseReceipt[[#This Row],[Rank]],Table_ReceiptPoint[Distance Rank to Delivery Location],0),) -> 68.3434 | G31: =INDEX(Table_ReceiptPoint[Legal Location Name],MATCH(Table_CloseReceipt[[#This Row],[Rank]],Table_ReceiptPoint[Distance Rank to Delivery Location],0),) -> 09-07-052-07-W4 | H31: =INDEX(Table_Attach1[FT-R Demand Rate Price Point "B" ($/103m3/mo)],MATCH(Table_CloseReceipt[[#This Row],[Station Number]],Table_Attach1[Receipt Point Number],0),)*INDEX(Conversions!$C$7:$C$8,MATCH('Toll Calculator'!$O$8,Conversions!$B$7:$B$8,0)) -> 431.04 | I31: =INDEX(Table_Attach3[FT-P Demand Rate Price Point "B"],MATCH(IF(CEILING(Table_CloseReceipt[[#This Row],[Distance (km)]],25)>500,999999,CEILING(Table_CloseReceipt[[#This Row],[Distance (km)]],25)),Table_Attach3[Maximum Distance Between Receipt Point and Delivery Point (km)],0),)*INDEX(Conversions!$C$7:$C$8,MATCH('Toll Calculator'!$O$8,Conversions!$B$7:$B$8,0)) -> 408.01 | J31: =INDEX(Table_Attach1[IT-R Rate ($/103m3/d)],MATCH(Table_CloseReceipt[[#This Row],[Station Number]],Table_Attach1[Receipt Point Number],0),)*INDEX(Conversions!$C$7:$C$8,MATCH('Toll Calculator'!$O$8,Conversions!$B$7:$B$8,0))*(365/12) -> 494.27
C32: =Table_ReceiptPointAlphabetical[[#This Row],[Alphabetical Order Rank]] -> 26 | D32: =INDEX(Table_ReceiptPoint[Receipt Point Number],MATCH(Table_CloseReceipt[[#This Row],[Rank]],Table_ReceiptPoint[Distance Rank to Delivery Location],0),) -> 1514 | E32: =INDEX(Table_ReceiptPoint[Receipt Point Name2],MATCH(Table_CloseReceipt[[#This Row],[Rank]],Table_ReceiptPoint[Distance Rank to Delivery Location],0),) -> MAUGHAN | F32: =INDEX(Table_ReceiptPoint[Distance From Delivery Station],MATCH(Table_CloseReceipt[[#This Row],[Rank]],Table_ReceiptPoint[Distance Rank to Delivery Location],0),) -> 69.7398 | G32: =INDEX(Table_ReceiptPoint[Legal Location Name],MATCH(Table_CloseReceipt[[#This Row],[Rank]],Table_ReceiptPoint[Distance Rank to Delivery Location],0),) -> 11-32-052-07-W4 | H32: =INDEX(Table_Attach1[FT-R Demand Rate Price Point "B" ($/103m3/mo)],MATCH(Table_CloseReceipt[[#This Row],[Station Number]],Table_Attach1[Receipt Point Number],0),)*INDEX(Conversions!$C$7:$C$8,MATCH('Toll Calculator'!$O$8,Conversions!$B$7:$B$8,0)) -> 419.45 | I32: =INDEX(Table_Attach3[FT-P Demand Rate Price Point "B"],MATCH(IF(CEILING(Table_CloseReceipt[[#This Row],[Distance (km)]],25)>500,999999,CEILING(Table_CloseReceipt[[#This Row],[Distance (km)]],25)),Table_Attach3[Maximum Distance Between Receipt Point and Delivery Point (km)],0),)*INDEX(Conversions!$C$7:$C$8,MATCH('Toll Calculator'!$O$8,Conversions!$B$7:$B$8,0)) -> 408.01 | J32: =INDEX(Table_Attach1[IT-R Rate ($/103m3/d)],MATCH(Table_CloseReceipt[[#This Row],[Station Number]],Table_Attach1[Receipt Point Number],0),)*INDEX(Conversions!$C$7:$C$8,MATCH('Toll Calculator'!$O$8,Conversions!$B$7:$B$8,0))*(365/12) -> 481.19
C33: =Table_ReceiptPointAlphabetical[[#This Row],[Alphabetical Order Rank]] -> 27 | D33: =INDEX(Table_ReceiptPoint[Receipt Point Number],MATCH(Table_CloseReceipt[[#This Row],[Rank]],Table_ReceiptPoint[Distance Rank to Delivery Location],0),) -> 30256 | E33: =INDEX(Table_ReceiptPoint[Receipt Point Name2],MATCH(Table_CloseReceipt[[#This Row],[Rank]],Table_ReceiptPoint[Distance Rank to Delivery Location],0),) -> FASHENDALE APN* | F33: =INDEX(Table_ReceiptPoint[Distance From Delivery Station],MATCH(Table_CloseReceipt[[#This Row],[Rank]],Table_ReceiptPoint[Distance Rank to Delivery Location],0),) -> 69.8112 | G33: =INDEX(Table_ReceiptPoint[Legal Location Name],MATCH(Table_CloseReceipt[[#This Row],[Rank]],Table_ReceiptPoint[Distance Rank to Delivery Location],0),) -> SE-32-046-07-W4 | H33: =INDEX(Table_Attach1[FT-R Demand Rate Price Point "B" ($/103m3/mo)],MATCH(Table_CloseReceipt[[#This Row],[Station Number]],Table_Attach1[Receipt Point Number],0),)*INDEX(Conversions!$C$7:$C$8,MATCH('Toll Calculator'!$O$8,Conversions!$B$7:$B$8,0)) -> 501.97 | I33: =INDEX(Table_Attach3[FT-P Demand Rate Price Point "B"],MATCH(IF(CEILING(Table_CloseReceipt[[#This Row],[Distance (km)]],25)>500,999999,CEILING(Table_CloseReceipt[[#This Row],[Distance (km)]],25)),Table_Attach3[Maximum Distance Between Receipt Point and Delivery Point (km)],0),)*INDEX(Conversions!$C$7:$C$8,MATCH('Toll Calculator'!$O$8,Conversions!$B$7:$B$8,0)) -> 408.01 | J33: =INDEX(Table_Attach1[IT-R Rate ($/103m3/d)],MATCH(Table_CloseReceipt[[#This Row],[Station Number]],Table_Attach1[Receipt Point Number],0),)*INDEX(Conversions!$C$7:$C$8,MATCH('Toll Calculator'!$O$8,Conversions!$B$7:$B$8,0))*(365/12) -> 575.79
C34: =Table_ReceiptPointAlphabetical[[#This Row],[Alphabetical Order Rank]] -> 28 | D34: =INDEX(Table_ReceiptPoint[Receipt Point Number],MATCH(Table_CloseReceipt[[#This Row],[Rank]],Table_ReceiptPoint[Distance Rank to Delivery Location],0),) -> 30205 | E34: =INDEX(Table_ReceiptPoint[Receipt Point Name2],MATCH(Table_CloseReceipt[[#This Row],[Rank]],Table_ReceiptPoint[Distance Rank to Delivery Location],0),) -> AUBURNDALE APN* | F34: =INDEX(Table_ReceiptPoint[Distance From Delivery Station],MATCH(Table_CloseReceipt[[#This Row],[Rank]],Table_ReceiptPoint[Distance Rank to Delivery Location],0),) -> 69.8112 | G34: =INDEX(Table_ReceiptPoint[Legal Location Name],MATCH(Table_CloseReceipt[[#This Row],[Rank]],Table_ReceiptPoint[Distance Rank to Delivery Location],0),) -> SE-32-046-07-W4 | H34: =INDEX(Table_Attach1[FT-R Demand Rate Price Point "B" ($/103m3/mo)],MATCH(Table_CloseReceipt[[#This Row],[Station Number]],Table_Attach1[Receipt Point Number],0),)*INDEX(Conversions!$C$7:$C$8,MATCH('Toll Calculator'!$O$8,Conversions!$B$7:$B$8,0)) -> 501.97 | I34: =INDEX(Table_Attach3[FT-P Demand Rate Price Point "B"],MATCH(IF(CEILING(Table_CloseReceipt[[#This Row],[Distance (km)]],25)>500,999999,CEILING(Table_CloseReceipt[[#This Row],[Distance (km)]],25)),Table_Attach3[Maximum Distance Between Receipt Point and Delivery Point (km)],0),)*INDEX(Conversions!$C$7:$C$8,MATCH('Toll Calculator'!$O$8,Conversions!$B$7:$B$8,0)) -> 408.01 | J34: =INDEX(Table_Attach1[IT-R Rate ($/103m3/d)],MATCH(Table_CloseReceipt[[#This Row],[Station Number]],Table_Attach1[Receipt Point Number],0),)*INDEX(Conversions!$C$7:$C$8,MATCH('Toll Calculator'!$O$8,Conversions!$B$7:$B$8,0))*(365/12) -> 575.79
C35: =Table_ReceiptPointAlphabetical[[#This Row],[Alphabetical Order Rank]] -> 29 | D35: =INDEX(Table_ReceiptPoint[Receipt Point Number],MATCH(Table_CloseReceipt[[#This Row],[Rank]],Table_ReceiptPoint[Distance Rank to Delivery Location],0),) -> 1196 | E35: =INDEX(Table_ReceiptPoint[Receipt Point Name2],MATCH(Table_CloseReceipt[[#This Row],[Rank]],Table_ReceiptPoint[Distance Rank to Delivery Location],0),) -> CHAUVIN | F35: =INDEX(Table_ReceiptPoint[Distance From Delivery Station],MATCH(Table_CloseReceipt[[#This Row],[Rank]],Table_ReceiptPoint[Distance Rank to Delivery Location],0),) -> 70.5929 | G35: =INDEX(Table_ReceiptPoint[Legal Location Name],MATCH(Table_CloseReceipt[[#This Row],[Rank]],Table_ReceiptPoint[Distance Rank to Delivery Location],0),) -> 04-36-042-02-W4 | H35: =INDEX(Table_Attach1[FT-R Demand Rate Price Point "B" ($/103m3/mo)],MATCH(Table_CloseReceipt[[#This Row],[Station Number]],Table_Attach1[Receipt Point Number],0),)*INDEX(Conversions!$C$7:$C$8,MATCH('Toll Calculator'!$O$8,Conversions!$B$7:$B$8,0)) -> 501.97 | I35: =INDEX(Table_Attach3[FT-P Demand Rate Price Point "B"],MATCH(IF(CEILING(Table_CloseReceipt[[#This Row],[Distance (km)]],25)>500,999999,CEILING(Table_CloseReceipt[[#This Row],[Distance (km)]],25)),Table_Attach3[Maximum Distance Between Receipt Point and Delivery Point (km)],0),)*INDEX(Conversions!$C$7:$C$8,MATCH('Toll Calculator'!$O$8,Conversions!$B$7:$B$8,0)) -> 408.01 | J35: =INDEX(Table_Attach1[IT-R Rate ($/103m3/d)],MATCH(Table_CloseReceipt[[#This Row],[Station Number]],Table_Attach1[Receipt Point Number],0),)*INDEX(Conversions!$C$7:$C$8,MATCH('Toll Calculator'!$O$8,Conversions!$B$7:$B$8,0))*(365/12) -> 575.79
C36: =Table_ReceiptPointAlphabetical[[#This Row],[Alphabetical Order Rank]] -> 30 | D36: =INDEX(Table_ReceiptPoint[Receipt Point Number],MATCH(Table_CloseReceipt[[#This Row],[Rank]],Table_ReceiptPoint[Distance Rank to Delivery Location],0),) -> 1383 | E36: =INDEX(Table_ReceiptPoint[Receipt Point Name2],MATCH(Table_CloseReceipt[[#This Row],[Rank]],Table_ReceiptPoint[Distance Rank to Delivery Location],0),) -> WAINWRIGHT EAST | F36: =INDEX(Table_ReceiptPoint[Distance From Delivery Station],MATCH(Table_CloseReceipt[[#This Row],[Rank]],Table_ReceiptPoint[Distance Rank to Delivery Location],0),) -> 73.9127 | G36: =INDEX(Table_ReceiptPoint[Legal Location Name],MATCH(Table_CloseReceipt[[#This Row],[Rank]],Table_ReceiptPoint[Distance Rank to Delivery Location],0),) -> NE-04-043-04-W4 | H36: =INDEX(Table_Attach1[FT-R Demand Rate Price Point "B" ($/103m3/mo)],MATCH(Table_CloseReceipt[[#This Row],[Station Number]],Table_Attach1[Receipt Point Number],0),)*INDEX(Conversions!$C$7:$C$8,MATCH('Toll Calculator'!$O$8,Conversions!$B$7:$B$8,0)) -> 471.54 | I36: =INDEX(Table_Attach3[FT-P Demand Rate Price Point "B"],MATCH(IF(CEILING(Table_CloseReceipt[[#This Row],[Distance (km)]],25)>500,999999,CEILING(Table_CloseReceipt[[#This Row],[Distance (km)]],25)),Table_Attach3[Maximum Distance Between Receipt Point and Delivery Point (km)],0),)*INDEX(Conversions!$C$7:$C$8,MATCH('Toll Calculator'!$O$8,Conversions!$B$7:$B$8,0)) -> 408.01 | J36: =INDEX(Table_Attach1[IT-R Rate ($/103m3/d)],MATCH(Table_CloseReceipt[[#This Row],[Station Number]],Table_Attach1[Receipt Point Number],0),)*INDEX(Conversions!$C$7:$C$8,MATCH('Toll Calculator'!$O$8,Conversions!$B$7:$B$8,0))*(365/12) -> 540.81
C37: =Table_ReceiptPointAlphabetical[[#This Row],[Alphabetical Order Rank]] -> 31 | D37: =INDEX(Table_ReceiptPoint[Receipt Point Number],MATCH(Table_CloseReceipt[[#This Row],[Rank]],Table_ReceiptPoint[Distance Rank to Delivery Location],0),) -> 1199 | E37: =INDEX(Table_ReceiptPoint[Receipt Point Name2],MATCH(Table_CloseReceipt[[#This Row],[Rank]],Table_ReceiptPoint[Distance Rank to Delivery Location],0),) -> WAINWRIGHT SOUTH* | F37: =INDEX(Table_ReceiptPoint[Distance From Delivery Station],MATCH(Table_CloseReceipt[[#This Row],[Rank]],Table_ReceiptPoint[Distance Rank to Delivery Location],0),) -> 75.5546 | G37: =INDEX(Table_ReceiptPoint[Legal Location Name],MATCH(Table_CloseReceipt[[#This Row],[Rank]],Table_ReceiptPoint[Distance Rank to Delivery Location],0),) -> 13-36-043-06-W4 | H37: =INDEX(Table_Attach1[FT-R Demand Rate Price Point "B" ($/103m3/mo)],MATCH(Table_CloseReceipt[[#This Row],[Station Number]],Table_Attach1[Receipt Point Number],0),)*INDEX(Conversions!$C$7:$C$8,MATCH('Toll Calculator'!$O$8,Conversions!$B$7:$B$8,0)) -> 400.99 | I37: =INDEX(Table_Attach3[FT-P Demand Rate Price Point "B"],MATCH(IF(CEILING(Table_CloseReceipt[[#This Row],[Distance (km)]],25)>500,999999,CEILING(Table_CloseReceipt[[#This Row],[Distance (km)]],25)),Table_Attach3[Maximum Distance Between Receipt Point and Delivery Point (km)],0),)*INDEX(Conversions!$C$7:$C$8,MATCH('Toll Calculator'!$O$8,Conversions!$B$7:$B$8,0)) -> 431.4 | J37: =INDEX(Table_Attach1[IT-R Rate ($/103m3/d)],MATCH(Table_CloseReceipt[[#This Row],[Station Number]],Table_Attach1[Receipt Point Number],0),)*INDEX(Conversions!$C$7:$C$8,MATCH('Toll Calculator'!$O$8,Conversions!$B$7:$B$8,0))*(365/12) -> 459.9
C38: =Table_ReceiptPointAlphabetical[[#This Row],[Alphabetical Order Rank]] -> 32 | D38: =INDEX(Table_ReceiptPoint[Receipt Point Number],MATCH(Table_CloseReceipt[[#This Row],[Rank]],Table_ReceiptPoint[Distance Rank to Delivery Location],0),) -> 30378 | E38: =INDEX(Table_ReceiptPoint[Receipt Point Name2],MATCH(Table_CloseReceipt[[#This Row],[Rank]],Table_ReceiptPoint[Distance Rank to Delivery Location],0),) -> WAINWRIGHT APN* | F38: =INDEX(Table_ReceiptPoint[Distance From Delivery Station],MATCH(Table_CloseReceipt[[#This Row],[Rank]],Table_ReceiptPoint[Distance Rank to Delivery Location],0),) -> 76.208 | G38: =INDEX(Table_ReceiptPoint[Legal Location Name],MATCH(Table_CloseReceipt[[#This Row],[Rank]],Table_ReceiptPoint[Distance Rank to Delivery Location],0),) -> 14-25-044-07-W4 | H38: =INDEX(Table_Attach1[FT-R Demand Rate Price Point "B" ($/103m3/mo)],MATCH(Table_CloseReceipt[[#This Row],[Station Number]],Table_Attach1[Receipt Point Number],0),)*INDEX(Conversions!$C$7:$C$8,MATCH('Toll Calculator'!$O$8,Conversions!$B$7:$B$8,0)) -> 501.97 | I38: =INDEX(Table_Attach3[FT-P Demand Rate Price Point "B"],MATCH(IF(CEILING(Table_CloseReceipt[[#This Row],[Distance (km)]],25)>500,999999,CEILING(Table_CloseReceipt[[#This Row],[Distance (km)]],25)),Table_Attach3[Maximum Distance Between Receipt Point and Delivery Point (km)],0),)*INDEX(Conversions!$C$7:$C$8,MATCH('Toll Calculator'!$O$8,Conversions!$B$7:$B$8,0)) -> 431.4 | J38: =INDEX(Table_Attach1[IT-R Rate ($/103m3/d)],MATCH(Table_CloseReceipt[[#This Row],[Station Number]],Table_Attach1[Receipt Point Number],0),)*INDEX(Conversions!$C$7:$C$8,MATCH('Toll Calculator'!$O$8,Conversions!$B$7:$B$8,0))*(365/12) -> 575.79
C39: =Table_ReceiptPointAlphabetical[[#This Row],[Alphabetical Order Rank]] -> 33 | D39: =INDEX(Table_ReceiptPoint[Receipt Point Number],MATCH(Table_CloseReceipt[[#This Row],[Rank]],Table_ReceiptPoint[Distance Rank to Delivery Location],0),) -> 30230 | E39: =INDEX(Table_ReceiptPoint[Receipt Point Name2],MATCH(Table_CloseReceipt[[#This Row],[Rank]],Table_ReceiptPoint[Distance Rank to Delivery Location],0),) -> BUFFALO CREEK A APN* | F39: =INDEX(Table_ReceiptPoint[Distance From Delivery Station],MATCH(Table_CloseReceipt[[#This Row],[Rank]],Table_ReceiptPoint[Distance Rank to Delivery Location],0),) -> 78.681 | G39: =INDEX(Table_ReceiptPoint[Legal Location Name],MATCH(Table_CloseReceipt[[#This Row],[Rank]],Table_ReceiptPoint[Distance Rank to Delivery Location],0),) -> 16-23-048-09-W4 | H39: =INDEX(Table_Attach1[FT-R Demand Rate Price Point "B" ($/103m3/mo)],MATCH(Table_CloseReceipt[[#This Row],[Station Number]],Table_Attach1[Receipt Point Number],0),)*INDEX(Conversions!$C$7:$C$8,MATCH('Toll Calculator'!$O$8,Conversions!$B$7:$B$8,0)) -> 501.97 | I39: =INDEX(Table_Attach3[FT-P Demand Rate Price Point "B"],MATCH(IF(CEILING(Table_CloseReceipt[[#This Row],[Distance (km)]],25)>500,999999,CEILING(Table_CloseReceipt[[#This Row],[Distance (km)]],25)),Table_Attach3[Maximum Distance Between Receipt Point and Delivery Point (km)],0),)*INDEX(Conversions!$C$7:$C$8,MATCH('Toll Calculator'!$O$8,Conversions!$B$7:$B$8,0)) -> 431.4 | J39: =INDEX(Table_Attach1[IT-R Rate ($/103m3/d)],MATCH(Table_CloseReceipt[[#This Row],[Station Number]],Table_Attach1[Receipt Point Number],0),)*INDEX(Conversions!$C$7:$C$8,MATCH('Toll Calculator'!$O$8,Conversions!$B$7:$B$8,0))*(365/12) -> 575.79
C40: =Table_ReceiptPointAlphabetical[[#This Row],[Alphabetical Order Rank]] -> 34 | D40: =INDEX(Table_ReceiptPoint[Receipt Point Number],MATCH(Table_CloseReceipt[[#This Row],[Rank]],Table_ReceiptPoint[Distance Rank to Delivery Location],0),) -> 30255 | E40: =INDEX(Table_ReceiptPoint[Receipt Point Name2],MATCH(Table_CloseReceipt[[#This Row],[Rank]],Table_ReceiptPoint[Distance Rank to Delivery Location],0),) -> FABYAN APN | F40: =INDEX(Table_ReceiptPoint[Distance From Delivery Station],MATCH(Table_CloseReceipt[[#This Row],[Rank]],Table_ReceiptPoint[Distance Rank to Delivery Location],0),) -> 78.9807 | G40: =INDEX(Table_ReceiptPoint[Legal Location Name],MATCH(Table_CloseReceipt[[#This Row],[Rank]],Table_ReceiptPoint[Distance Rank to Delivery Location],0),) -> 05-08-045-07-W4 | H40: =INDEX(Table_Attach1[FT-R Demand Rate Price Point "B" ($/103m3/mo)],MATCH(Table_CloseReceipt[[#This Row],[Station Number]],Table_Attach1[Receipt Point Number],0),)*INDEX(Conversions!$C$7:$C$8,MATCH('Toll Calculator'!$O$8,Conversions!$B$7:$B$8,0)) -> 501.97 | I40: =INDEX(Table_Attach3[FT-P Demand Rate Price Point "B"],MATCH(IF(CEILING(Table_CloseReceipt[[#This Row],[Distance (km)]],25)>500,999999,CEILING(Table_CloseReceipt[[#This Row],[Distance (km)]],25)),Table_Attach3[Maximum Distance Between Receipt Point and Delivery Point (km)],0),)*INDEX(Conversions!$C$7:$C$8,MATCH('Toll Calculator'!$O$8,Conversions!$B$7:$B$8,0)) -> 431.4 | J40: =INDEX(Table_Attach1[IT-R Rate ($/103m3/d)],MATCH(Table_CloseReceipt[[#This Row],[Station Number]],Table_Attach1[Receipt Point Number],0),)*INDEX(Conversions!$C$7:$C$8,MATCH('Toll Calculator'!$O$8,Conversions!$B$7:$B$8,0))*(365/12) -> 575.79
C41: =Table_ReceiptPointAlphabetical[[#This Row],[Alphabetical Order Rank]] -> 35 | D41: =INDEX(Table_ReceiptPoint[Receipt Point Number],MATCH(Table_CloseReceipt[[#This Row],[Rank]],Table_ReceiptPoint[Distance Rank to Delivery Location],0),) -> 30207 | E41: =INDEX(Table_ReceiptPoint[Receipt Point Name2],MATCH(Table_CloseReceipt[[#This Row],[Rank]],Table_ReceiptPoint[Distance Rank to Delivery Location],0),) -> BATTLE RIVER APN* | F41: =INDEX(Table_ReceiptPoint[Distance From Delivery Station],MATCH(Table_CloseReceipt[[#This Row],[Rank]],Table_ReceiptPoint[Distance Rank to Delivery Location],0),) -> 79.2329 | G41: =INDEX(Table_ReceiptPoint[Legal Location Name],MATCH(Table_CloseReceipt[[#This Row],[Rank]],Table_ReceiptPoint[Distance Rank to Delivery Location],0),) -> 16-13-045-08-W4 | H41: =INDEX(Table_Attach1[FT-R Demand Rate Price Point "B" ($/103m3/mo)],MATCH(Table_CloseReceipt[[#This Row],[Station Number]],Table_Attach1[Receipt Point Number],0),)*INDEX(Conversions!$C$7:$C$8,MATCH('Toll Calculator'!$O$8,Conversions!$B$7:$B$8,0)) -> 501.97 | I41: =INDEX(Table_Attach3[FT-P Demand Rate Price Point "B"],MATCH(IF(CEILING(Table_CloseReceipt[[#This Row],[Distance (km)]],25)>500,999999,CEILING(Table_CloseReceipt[[#This Row],[Distance (km)]],25)),Table_Attach3[Maximum Distance Between Receipt Point and Delivery Point (km)],0),)*INDEX(Conversions!$C$7:$C$8,MATCH('Toll Calculator'!$O$8,Conversions!$B$7:$B$8,0)) -> 431.4 | J41: =INDEX(Table_Attach1[IT-R Rate ($/103m3/d)],MATCH(Table_CloseReceipt[[#This Row],[Station Number]],Table_Attach1[Receipt Point Number],0),)*INDEX(Conversions!$C$7:$C$8,MATCH('Toll Calculator'!$O$8,Conversions!$B$7:$B$8,0))*(365/12) -> 575.79
C42: =Table_ReceiptPointAlphabetical[[#This Row],[Alphabetical Order Rank]] -> 36 | D42: =INDEX(Table_ReceiptPoint[Receipt Point Number],MATCH(Table_CloseReceipt[[#This Row],[Rank]],Table_ReceiptPoint[Distance Rank to Delivery Location],0),) -> 30311 | E42: =INDEX(Table_ReceiptPoint[Receipt Point Name2],MATCH(Table_CloseReceipt[[#This Row],[Rank]],Table_ReceiptPoint[Distance Rank to Delivery Location],0),) -> MANNVILLE APN | F42: =INDEX(Table_ReceiptPoint[Distance From Delivery Station],MATCH(Table_CloseReceipt[[#This Row],[Rank]],Table_ReceiptPoint[Distance Rank to Delivery Location],0),) -> 79.9468 | G42: =INDEX(Table_ReceiptPoint[Legal Location Name],MATCH(Table_CloseReceipt[[#This Row],[Rank]],Table_ReceiptPoint[Distance Rank to Delivery Location],0),) -> 03-27-050-09-W4 | H42: =INDEX(Table_Attach1[FT-R Demand Rate Price Point "B" ($/103m3/mo)],MATCH(Table_CloseReceipt[[#This Row],[Station Number]],Table_Attach1[Receipt Point Number],0),)*INDEX(Conversions!$C$7:$C$8,MATCH('Toll Calculator'!$O$8,Conversions!$B$7:$B$8,0)) -> 471.22 | I42: =INDEX(Table_Attach3[FT-P Demand Rate Price Point "B"],MATCH(IF(CEILING(Table_CloseReceipt[[#This Row],[Distance (km)]],25)>500,999999,CEILING(Table_CloseReceipt[[#This Row],[Distance (km)]],25)),Table_Attach3[Maximum Distance Between Receipt Point and Delivery Point (km)],0),)*INDEX(Conversions!$C$7:$C$8,MATCH('Toll Calculator'!$O$8,Conversions!$B$7:$B$8,0)) -> 431.4 | J42: =INDEX(Table_Attach1[IT-R Rate ($/103m3/d)],MATCH(Table_CloseReceipt[[#This Row],[Station Number]],Table_Attach1[Receipt Point Number],0),)*INDEX(Conversions!$C$7:$C$8,MATCH('Toll Calculator'!$O$8,Conversions!$B$7:$B$8,0))*(365/12) -> 540.5
C43: =Table_ReceiptPointAlphabetical[[#This Row],[Alphabetical Order Rank]] -> 37 | D43: =INDEX(Table_ReceiptPoint[Receipt Point Number],MATCH(Table_CloseReceipt[[#This Row],[Rank]],Table_ReceiptPoint[Distance Rank to Delivery Location],0),) -> 1164 | E43: =INDEX(Table_ReceiptPoint[Receipt Point Name2],MATCH(Table_CloseReceipt[[#This Row],[Rank]],Table_ReceiptPoint[Distance Rank to Delivery Location],0),) -> RANFURLY* | F43: =INDEX(Table_ReceiptPoint[Distance From Delivery Station],MATCH(Table_CloseReceipt[[#This Row],[Rank]],Table_ReceiptPoint[Distance Rank to Delivery Location],0),) -> 80.613 | G43: =INDEX(Table_ReceiptPoint[Legal Location Name],MATCH(Table_CloseReceipt[[#This Row],[Rank]],Table_ReceiptPoint[Distance Rank to Delivery Location],0),) -> 01-28-050-09-W4 | H43: =INDEX(Table_Attach1[FT-R Demand Rate Price Point "B" ($/103m3/mo)],MATCH(Table_CloseReceipt[[#This Row],[Station Number]],Table_Attach1[Receipt Point Number],0),)*INDEX(Conversions!$C$7:$C$8,MATCH('Toll Calculator'!$O$8,Conversions!$B$7:$B$8,0)) -> 471.22 | I43: =INDEX(Table_Attach3[FT-P Demand Rate Price Point "B"],MATCH(IF(CEILING(Table_CloseReceipt[[#This Row],[Distance (km)]],25)>500,999999,CEILING(Table_CloseReceipt[[#This Row],[Distance (km)]],25)),Table_Attach3[Maximum Distance Between Receipt Point and Delivery Point (km)],0),)*INDEX(Conversions!$C$7:$C$8,MATCH('Toll Calculator'!$O$8,Conversions!$B$7:$B$8,0)) -> 431.4 | J43: =INDEX(Table_Attach1[IT-R Rate ($/103m3/d)],MATCH(Table_CloseReceipt[[#This Row],[Station Number]],Table_Attach1[Receipt Point Number],0),)*INDEX(Conversions!$C$7:$C$8,MATCH('Toll Calculator'!$O$8,Conversions!$B$7:$B$8,0))*(365/12) -> 540.5
C44: =Table_ReceiptPointAlphabetical[[#This Row],[Alphabetical Order Rank]] -> 38 | D44: =INDEX(Table_ReceiptPoint[Receipt Point Number],MATCH(Table_CloseReceipt[[#This Row],[Rank]],Table_ReceiptPoint[Distance Rank to Delivery Location],0),) -> 30270 | E44: =INDEX(Table_ReceiptPoint[Receipt Point Name2],MATCH(Table_CloseReceipt[[#This Row],[Rank]],Table_ReceiptPoint[Distance Rank to Delivery Location],0),) -> GRATTON CREEK APN* | F44: =INDEX(Table_ReceiptPoint[Distance From Delivery Station],MATCH(Table_CloseReceipt[[#This Row],[Rank]],Table_ReceiptPoint[Distance Rank to Delivery Location],0),) -> 82.0823 | G44: =INDEX(Table_ReceiptPoint[Legal Location Name],MATCH(Table_CloseReceipt[[#This Row],[Rank]],Table_ReceiptPoint[Distance Rank to Delivery Location],0),) -> 13-22-045-08-W4 | H44: =INDEX(Table_Attach1[FT-R Demand Rate Price Point "B" ($/103m3/mo)],MATCH(Table_CloseReceipt[[#This Row],[Station Number]],Table_Attach1[Receipt Point Number],0),)*INDEX(Conversions!$C$7:$C$8,MATCH('Toll Calculator'!$O$8,Conversions!$B$7:$B$8,0)) -> 501.97 | I44: =INDEX(Table_Attach3[FT-P Demand Rate Price Point "B"],MATCH(IF(CEILING(Table_CloseReceipt[[#This Row],[Distance (km)]],25)>500,999999,CEILING(Table_CloseReceipt[[#This Row],[Distance (km)]],25)),Table_Attach3[Maximum Distance Between Receipt Point and Delivery Point (km)],0),)*INDEX(Conversions!$C$7:$C$8,MATCH('Toll Calculator'!$O$8,Conversions!$B$7:$B$8,0)) -> 431.4 | J44: =INDEX(Table_Attach1[IT-R Rate ($/103m3/d)],MATCH(Table_CloseReceipt[[#This Row],[Station Number]],Table_Attach1[Receipt Point Number],0),)*INDEX(Conversions!$C$7:$C$8,MATCH('Toll Calculator'!$O$8,Conversions!$B$7:$B$8,0))*(365/12) -> 575.79
C45: =Table_ReceiptPointAlphabetical[[#This Row],[Alphabetical Order Rank]] -> 39 | D45: =INDEX(Table_ReceiptPoint[Receipt Point Number],MATCH(Table_CloseReceipt[[#This Row],[Rank]],Table_ReceiptPoint[Distance Rank to Delivery Location],0),) -> 30321 | E45: =INDEX(Table_ReceiptPoint[Receipt Point Name2],MATCH(Table_CloseReceipt[[#This Row],[Rank]],Table_ReceiptPoint[Distance Rank to Delivery Location],0),) -> MYRNAM APN* | F45: =INDEX(Table_ReceiptPoint[Distance From Delivery Station],MATCH(Table_CloseReceipt[[#This Row],[Rank]],Table_ReceiptPoint[Distance Rank to Delivery Location],0),) -> 84.9901 | G45: =INDEX(Table_ReceiptPoint[Legal Location Name],MATCH(Table_CloseReceipt[[#This Row],[Rank]],Table_ReceiptPoint[Distance Rank to Delivery Location],0),) -> 08-10-053-09-W4 | H45: =INDEX(Table_Attach1[FT-R Demand Rate Price Point "B" ($/103m3/mo)],MATCH(Table_CloseReceipt[[#This Row],[Station Number]],Table_Attach1[Receipt Point Number],0),)*INDEX(Conversions!$C$7:$C$8,MATCH('Toll Calculator'!$O$8,Conversions!$B$7:$B$8,0)) -> 501.97 | I45: =INDEX(Table_Attach3[FT-P Demand Rate Price Point "B"],MATCH(IF(CEILING(Table_CloseReceipt[[#This Row],[Distance (km)]],25)>500,999999,CEILING(Table_CloseReceipt[[#This Row],[Distance (km)]],25)),Table_Attach3[Maximum Distance Between Receipt Point and Delivery Point (km)],0),)*INDEX(Conversions!$C$7:$C$8,MATCH('Toll Calculator'!$O$8,Conversions!$B$7:$B$8,0)) -> 431.4 | J45: =INDEX(Table_Attach1[IT-R Rate ($/103m3/d)],MATCH(Table_CloseReceipt[[#This Row],[Station Number]],Table_Attach1[Receipt Point Number],0),)*INDEX(Conversions!$C$7:$C$8,MATCH('Toll Calculator'!$O$8,Conversions!$B$7:$B$8,0))*(365/12) -> 575.79
C46: =Table_ReceiptPointAlphabetical[[#This Row],[Alphabetical Order Rank]] -> 40 | D46: =INDEX(Table_ReceiptPoint[Receipt Point Number],MATCH(Table_CloseReceipt[[#This Row],[Rank]],Table_ReceiptPoint[Distance Rank to Delivery Location],0),) -> 1396 | E46: =INDEX(Table_ReceiptPoint[Receipt Point Name2],MATCH(Table_CloseReceipt[[#This Row],[Rank]],Table_ReceiptPoint[Distance Rank to Delivery Location],0),) -> MINBURN* | F46: =INDEX(Table_ReceiptPoint[Distance From Delivery Station],MATCH(Table_CloseReceipt[[#This Row],[Rank]],Table_ReceiptPoint[Distance Rank to Delivery Location],0),) -> 86.9833 | G46: =INDEX(Table_ReceiptPoint[Legal Location Name],MATCH(Table_CloseReceipt[[#This Row],[Rank]],Table_ReceiptPoint[Distance Rank to Delivery Location],0),) -> SE-24-051-10-W4 | H46: =INDEX(Table_Attach1[FT-R Demand Rate Price Point "B" ($/103m3/mo)],MATCH(Table_CloseReceipt[[#This Row],[Station Number]],Table_Attach1[Receipt Point Number],0),)*INDEX(Conversions!$C$7:$C$8,MATCH('Toll Calculator'!$O$8,Conversions!$B$7:$B$8,0)) -> 501.97 | I46: =INDEX(Table_Attach3[FT-P Demand Rate Price Point "B"],MATCH(IF(CEILING(Table_CloseReceipt[[#This Row],[Distance (km)]],25)>500,999999,CEILING(Table_CloseReceipt[[#This Row],[Distance (km)]],25)),Table_Attach3[Maximum Distance Between Receipt Point and Delivery Point (km)],0),)*INDEX(Conversions!$C$7:$C$8,MATCH('Toll Calculator'!$O$8,Conversions!$B$7:$B$8,0)) -> 431.4 | J46: =INDEX(Table_Attach1[IT-R Rate ($/103m3/d)],MATCH(Table_CloseReceipt[[#This Row],[Station Number]],Table_Attach1[Receipt Point Number],0),)*INDEX(Conversions!$C$7:$C$8,MATCH('Toll Calculator'!$O$8,Conversions!$B$7:$B$8,0))*(365/12) -> 575.79
C47: =Table_ReceiptPointAlphabetical[[#This Row],[Alphabetical Order Rank]] -> 41 | D47: =INDEX(Table_ReceiptPoint[Receipt Point Number],MATCH(Table_CloseReceipt[[#This Row],[Rank]],Table_ReceiptPoint[Distance Rank to Delivery Location],0),) -> 30348 | E47: =INDEX(Table_ReceiptPoint[Receipt Point Name2],MATCH(Table_CloseReceipt[[#This Row],[Rank]],Table_ReceiptPoint[Distance Rank to Delivery Location],0),) -> RODINO APN | F47: =INDEX(Table_ReceiptPoint[Distance From Delivery Station],MATCH(Table_CloseReceipt[[#This Row],[Rank]],Table_ReceiptPoint[Distance Rank to Delivery Location],0),) -> 87.1461 | G47: =INDEX(Table_ReceiptPoint[Legal Location Name],MATCH(Table_CloseReceipt[[#This Row],[Rank]],Table_ReceiptPoint[Distance Rank to Delivery Location],0),) -> 01-30-047-09-W4 | H47: =INDEX(Table_Attach1[FT-R Demand Rate Price Point "B" ($/103m3/mo)],MATCH(Table_CloseReceipt[[#This Row],[Station Number]],Table_Attach1[Receipt Point Number],0),)*INDEX(Conversions!$C$7:$C$8,MATCH('Toll Calculator'!$O$8,Conversions!$B$7:$B$8,0)) -> 501.97 | I47: =INDEX(Table_Attach3[FT-P Demand Rate Price Point "B"],MATCH(IF(CEILING(Table_CloseReceipt[[#This Row],[Distance (km)]],25)>500,999999,CEILING(Table_CloseReceipt[[#This Row],[Distance (km)]],25)),Table_Attach3[Maximum Distance Between Receipt Point and Delivery Point (km)],0),)*INDEX(Conversions!$C$7:$C$8,MATCH('Toll Calculator'!$O$8,Conversions!$B$7:$B$8,0)) -> 431.4 | J47: =INDEX(Table_Attach1[IT-R Rate ($/103m3/d)],MATCH(Table_CloseReceipt[[#This Row],[Station Number]],Table_Attach1[Receipt Point Number],0),)*INDEX(Conversions!$C$7:$C$8,MATCH('Toll Calculator'!$O$8,Conversions!$B$7:$B$8,0))*(365/12) -> 575.79
C48: =Table_ReceiptPointAlphabetical[[#This Row],[Alphabetical Order Rank]] -> 42 | D48: =INDEX(Table_ReceiptPoint[Receipt Point Number],MATCH(Table_CloseReceipt[[#This Row],[Rank]],Table_ReceiptPoint[Distance Rank to Delivery Location],0),) -> 30286 | E48: =INDEX(Table_ReceiptPoint[Receipt Point Name2],MATCH(Table_CloseReceipt[[#This Row],[Rank]],Table_ReceiptPoint[Distance Rank to Delivery Location],0),) -> IRMA B APN | F48: =INDEX(Table_ReceiptPoint[Distance From Delivery Station],MATCH(Table_CloseReceipt[[#This Row],[Rank]],Table_ReceiptPoint[Distance Rank to Delivery Location],0),) -> 88.3541 | G48: =INDEX(Table_ReceiptPoint[Legal Location Name],MATCH(Table_CloseReceipt[[#This Row],[Rank]],Table_ReceiptPoint[Distance Rank to Delivery Location],0),) -> 06-16-046-09-W4 | H48: =INDEX(Table_Attach1[FT-R Demand Rate Price Point "B" ($/103m3/mo)],MATCH(Table_CloseReceipt[[#This Row],[Station Number]],Table_Attach1[Receipt Point Number],0),)*INDEX(Conversions!$C$7:$C$8,MATCH('Toll Calculator'!$O$8,Conversions!$B$7:$B$8,0)) -> 501.97 | I48: =INDEX(Table_Attach3[FT-P Demand Rate Price Point "B"],MATCH(IF(CEILING(Table_CloseReceipt[[#This Row],[Distance (km)]],25)>500,999999,CEILING(Table_CloseReceipt[[#This Row],[Distance (km)]],25)),Table_Attach3[Maximum Distance Between Receipt Point and Delivery Point (km)],0),)*INDEX(Conversions!$C$7:$C$8,MATCH('Toll Calculator'!$O$8,Conversions!$B$7:$B$8,0)) -> 431.4 | J48: =INDEX(Table_Attach1[IT-R Rate ($/103m3/d)],MATCH(Table_CloseReceipt[[#This Row],[Station Number]],Table_Attach1[Receipt Point Number],0),)*INDEX(Conversions!$C$7:$C$8,MATCH('Toll Calculator'!$O$8,Conversions!$B$7:$B$8,0))*(365/12) -> 575.79
C49: =Table_ReceiptPointAlphabetical[[#This Row],[Alphabetical Order Rank]] -> 43 | D49: =INDEX(Table_ReceiptPoint[Receipt Point Number],MATCH(Table_CloseReceipt[[#This Row],[Rank]],Table_ReceiptPoint[Distance Rank to Delivery Location],0),) -> 30340 | E49: =INDEX(Table_ReceiptPoint[Receipt Point Name2],MATCH(Table_CloseReceipt[[#This Row],[Rank]],Table_ReceiptPoint[Distance Rank to Delivery Location],0),) -> PERCY LAKE APN* | F49: =INDEX(Table_ReceiptPoint[Distance From Delivery Station],MATCH(Table_CloseReceipt[[#This Row],[Rank]],Table_ReceiptPoint[Distance Rank to Delivery Location],0),) -> 92.6089 | G49: =INDEX(Table_ReceiptPoint[Legal Location Name],MATCH(Table_CloseReceipt[[#This Row],[Rank]],Table_ReceiptPoint[Distance Rank to Delivery Location],0),) -> 04-28-048-10-W4 | H49: =INDEX(Table_Attach1[FT-R Demand Rate Price Point "B" ($/103m3/mo)],MATCH(Table_CloseReceipt[[#This Row],[Station Number]],Table_Attach1[Receipt Point Number],0),)*INDEX(Conversions!$C$7:$C$8,MATCH('Toll Calculator'!$O$8,Conversions!$B$7:$B$8,0)) -> 501.97 | I49: =INDEX(Table_Attach3[FT-P Demand Rate Price Point "B"],MATCH(IF(CEILING(Table_CloseReceipt[[#This Row],[Distance (km)]],25)>500,999999,CEILING(Table_CloseReceipt[[#This Row],[Distance (km)]],25)),Table_Attach3[Maximum Distance Between Receipt Point and Delivery Point (km)],0),)*INDEX(Conversions!$C$7:$C$8,MATCH('Toll Calculator'!$O$8,Conversions!$B$7:$B$8,0)) -> 431.4 | J49: =INDEX(Table_Attach1[IT-R Rate ($/103m3/d)],MATCH(Table_CloseReceipt[[#This Row],[Station Number]],Table_Attach1[Receipt Point Number],0),)*INDEX(Conversions!$C$7:$C$8,MATCH('Toll Calculator'!$O$8,Conversions!$B$7:$B$8,0))*(365/12) -> 575.79
C50: =Table_ReceiptPointAlphabetical[[#This Row],[Alphabetical Order Rank]] -> 44 | D50: =INDEX(Table_ReceiptPoint[Receipt Point Number],MATCH(Table_CloseReceipt[[#This Row],[Rank]],Table_ReceiptPoint[Distance Rank to Delivery Location],0),) -> 30374 | E50: =INDEX(Table_ReceiptPoint[Receipt Point Name2],MATCH(Table_CloseReceipt[[#This Row],[Rank]],Table_ReceiptPoint[Distance Rank to Delivery Location],0),) -> VERNON LAKE APN* | F50: =INDEX(Table_ReceiptPoint[Distance From Delivery Station],MATCH(Table_CloseReceipt[[#This Row],[Rank]],Table_ReceiptPoint[Distance Rank to Delivery Location],0),) -> 95.0505 | G50: =INDEX(Table_ReceiptPoint[Legal Location Name],MATCH(Table_CloseReceipt[[#This Row],[Rank]],Table_ReceiptPoint[Distance Rank to Delivery Location],0),) -> 07-09-047-10-W4 | H50: =INDEX(Table_Attach1[FT-R Demand Rate Price Point "B" ($/103m3/mo)],MATCH(Table_CloseReceipt[[#This Row],[Station Number]],Table_Attach1[Receipt Point Number],0),)*INDEX(Conversions!$C$7:$C$8,MATCH('Toll Calculator'!$O$8,Conversions!$B$7:$B$8,0)) -> 501.97 | I50: =INDEX(Table_Attach3[FT-P Demand Rate Price Point "B"],MATCH(IF(CEILING(Table_CloseReceipt[[#This Row],[Distance (km)]],25)>500,999999,CEILING(Table_CloseReceipt[[#This Row],[Distance (km)]],25)),Table_Attach3[Maximum Distance Between Receipt Point and Delivery Point (km)],0),)*INDEX(Conversions!$C$7:$C$8,MATCH('Toll Calculator'!$O$8,Conversions!$B$7:$B$8,0)) -> 431.4 | J50: =INDEX(Table_Attach1[IT-R Rate ($/103m3/d)],MATCH(Table_CloseReceipt[[#This Row],[Station Number]],Table_Attach1[Receipt Point Number],0),)*INDEX(Conversions!$C$7:$C$8,MATCH('Toll Calculator'!$O$8,Conversions!$B$7:$B$8,0))*(365/12) -> 575.79
C51: =Table_ReceiptPointAlphabetical[[#This Row],[Alphabetical Order Rank]] -> 45 | D51: =INDEX(Table_ReceiptPoint[Receipt Point Number],MATCH(Table_CloseReceipt[[#This Row],[Rank]],Table_ReceiptPoint[Distance Rank to Delivery Location],0),) -> 1725 | E51: =INDEX(Table_ReceiptPoint[Receipt Point Name2],MATCH(Table_CloseReceipt[[#This Row],[Rank]],Table_ReceiptPoint[Distance Rank to Delivery Location],0),) -> CADOGAN | F51: =INDEX(Table_ReceiptPoint[Distance From Delivery Station],MATCH(Table_CloseReceipt[[#This Row],[Rank]],Table_ReceiptPoint[Distance Rank to Delivery Location],0),) -> 95.6088 | G51: =INDEX(Table_ReceiptPoint[Legal Location Name],MATCH(Table_CloseReceipt[[#This Row],[Rank]],Table_ReceiptPoint[Distance Rank to Delivery Location],0),) -> 08-14-040-03-W4 | H51: =INDEX(Table_Attach1[FT-R Demand Rate Price Point "B" ($/103m3/mo)],MATCH(Table_CloseReceipt[[#This Row],[Station Number]],Table_Attach1[Receipt Point Number],0),)*INDEX(Conversions!$C$7:$C$8,MATCH('Toll Calculator'!$O$8,Conversions!$B$7:$B$8,0)) -> 501.97 | I51: =INDEX(Table_Attach3[FT-P Demand Rate Price Point "B"],MATCH(IF(CEILING(Table_CloseReceipt[[#This Row],[Distance (km)]],25)>500,999999,CEILING(Table_CloseReceipt[[#This Row],[Distance (km)]],25)),Table_Attach3[Maximum Distance Between Receipt Point and Delivery Point (km)],0),)*INDEX(Conversions!$C$7:$C$8,MATCH('Toll Calculator'!$O$8,Conversions!$B$7:$B$8,0)) -> 431.4 | J51: =INDEX(Table_Attach1[IT-R Rate ($/103m3/d)],MATCH(Table_CloseReceipt[[#This Row],[Station Number]],Table_Attach1[Receipt Point Number],0),)*INDEX(Conversions!$C$7:$C$8,MATCH('Toll Calculator'!$O$8,Conversions!$B$7:$B$8,0))*(365/12) -> 575.79
C52: =Table_ReceiptPointAlphabetical[[#This Row],[Alphabetical Order Rank]] -> 46 | D52: =INDEX(Table_ReceiptPoint[Receipt Point Number],MATCH(Table_CloseReceipt[[#This Row],[Rank]],Table_ReceiptPoint[Distance Rank to Delivery Location],0),) -> 1460 | E52: =INDEX(Table_ReceiptPoint[Receipt Point Name2],MATCH(Table_CloseReceipt[[#This Row],[Rank]],Table_ReceiptPoint[Distance Rank to Delivery Location],0),) -> MORECAMBE | F52: =INDEX(Table_ReceiptPoint[Distance From Delivery Station],MATCH(Table_CloseReceipt[[#This Row],[Rank]],Table_ReceiptPoint[Distance Rank to Delivery Location],0),) -> 100.3671 | G52: =INDEX(Table_ReceiptPoint[Legal Location Name],MATCH(Table_CloseReceipt[[#This Row],[Rank]],Table_ReceiptPoint[Distance Rank to Delivery Location],0),) -> SW-09-054-10-W4 | H52: =INDEX(Table_Attach1[FT-R Demand Rate Price Point "B" ($/103m3/mo)],MATCH(Table_CloseReceipt[[#This Row],[Station Number]],Table_Attach1[Receipt Point Number],0),)*INDEX(Conversions!$C$7:$C$8,MATCH('Toll Calculator'!$O$8,Conversions!$B$7:$B$8,0)) -> 293.98 | I52: =INDEX(Table_Attach3[FT-P Demand Rate Price Point "B"],MATCH(IF(CEILING(Table_CloseReceipt[[#This Row],[Distance (km)]],25)>500,999999,CEILING(Table_CloseReceipt[[#This Row],[Distance (km)]],25)),Table_Attach3[Maximum Distance Between Receipt Point and Delivery Point (km)],0),)*INDEX(Conversions!$C$7:$C$8,MATCH('Toll Calculator'!$O$8,Conversions!$B$7:$B$8,0)) -> 454.79 | J52: =INDEX(Table_Attach1[IT-R Rate ($/103m3/d)],MATCH(Table_CloseReceipt[[#This Row],[Station Number]],Table_Attach1[Receipt Point Number],0),)*INDEX(Conversions!$C$7:$C$8,MATCH('Toll Calculator'!$O$8,Conversions!$B$7:$B$8,0))*(365/12) -> 337.02
C53: =Table_ReceiptPointAlphabetical[[#This Row],[Alphabetical Order Rank]] -> 47 | D53: =INDEX(Table_ReceiptPoint[Receipt Point Number],MATCH(Table_CloseReceipt[[#This Row],[Rank]],Table_ReceiptPoint[Distance Rank to Delivery Location],0),) -> 1444 | E53: =INDEX(Table_ReceiptPoint[Receipt Point Name2],MATCH(Table_CloseReceipt[[#This Row],[Rank]],Table_ReceiptPoint[Distance Rank to Delivery Location],0),) -> HARDISTY* | F53: =INDEX(Table_ReceiptPoint[Distance From Delivery Station],MATCH(Table_CloseReceipt[[#This Row],[Rank]],Table_ReceiptPoint[Distance Rank to Delivery Location],0),) -> 101.027 | G53: =INDEX(Table_ReceiptPoint[Legal Location Name],MATCH(Table_CloseReceipt[[#This Row],[Rank]],Table_ReceiptPoint[Distance Rank to Delivery Location],0),) -> 16-11-043-09-W4 | H53: =INDEX(Table_Attach1[FT-R Demand Rate Price Point "B" ($/103m3/mo)],MATCH(Table_CloseReceipt[[#This Row],[Station Number]],Table_Attach1[Receipt Point Number],0),)*INDEX(Conversions!$C$7:$C$8,MATCH('Toll Calculator'!$O$8,Conversions!$B$7:$B$8,0)) -> 350 | I53: =INDEX(Table_Attach3[FT-P Demand Rate Price Point "B"],MATCH(IF(CEILING(Table_CloseReceipt[[#This Row],[Distance (km)]],25)>500,999999,CEILING(Table_CloseReceipt[[#This Row],[Distance (km)]],25)),Table_Attach3[Maximum Distance Between Receipt Point and Delivery Point (km)],0),)*INDEX(Conversions!$C$7:$C$8,MATCH('Toll Calculator'!$O$8,Conversions!$B$7:$B$8,0)) -> 454.79 | J53: =INDEX(Table_Attach1[IT-R Rate ($/103m3/d)],MATCH(Table_CloseReceipt[[#This Row],[Station Number]],Table_Attach1[Receipt Point Number],0),)*INDEX(Conversions!$C$7:$C$8,MATCH('Toll Calculator'!$O$8,Conversions!$B$7:$B$8,0))*(365/12) -> 401.5
C54: =Table_ReceiptPointAlphabetical[[#This Row],[Alphabetical Order Rank]] -> 48 | D54: =INDEX(Table_ReceiptPoint[Receipt Point Number],MATCH(Table_CloseReceipt[[#This Row],[Rank]],Table_ReceiptPoint[Distance Rank to Delivery Location],0),) -> 1159 | E54: =INDEX(Table_ReceiptPoint[Receipt Point Name2],MATCH(Table_CloseReceipt[[#This Row],[Rank]],Table_ReceiptPoint[Distance Rank to Delivery Location],0),) -> JARROW SOUTH | F54: =INDEX(Table_ReceiptPoint[Distance From Delivery Station],MATCH(Table_CloseReceipt[[#This Row],[Rank]],Table_ReceiptPoint[Distance Rank to Delivery Location],0),) -> 101.7421 | G54: =INDEX(Table_ReceiptPoint[Legal Location Name],MATCH(Table_CloseReceipt[[#This Row],[Rank]],Table_ReceiptPoint[Distance Rank to Delivery Location],0),) -> 04-05-044-09-W4 | H54: =INDEX(Table_Attach1[FT-R Demand Rate Price Point "B" ($/103m3/mo)],MATCH(Table_CloseReceipt[[#This Row],[Station Number]],Table_Attach1[Receipt Point Number],0),)*INDEX(Conversions!$C$7:$C$8,MATCH('Toll Calculator'!$O$8,Conversions!$B$7:$B$8,0)) -> 339.07 | I54: =INDEX(Table_Attach3[FT-P Demand Rate Price Point "B"],MATCH(IF(CEILING(Table_CloseReceipt[[#This Row],[Distance (km)]],25)>500,999999,CEILING(Table_CloseReceipt[[#This Row],[Distance (km)]],25)),Table_Attach3[Maximum Distance Between Receipt Point and Delivery Point (km)],0),)*INDEX(Conversions!$C$7:$C$8,MATCH('Toll Calculator'!$O$8,Conversions!$B$7:$B$8,0)) -> 454.79 | J54: =INDEX(Table_Attach1[IT-R Rate ($/103m3/d)],MATCH(Table_CloseReceipt[[#This Row],[Station Number]],Table_Attach1[Receipt Point Number],0),)*INDEX(Conversions!$C$7:$C$8,MATCH('Toll Calculator'!$O$8,Conversions!$B$7:$B$8,0))*(365/12) -> 388.73
C55: =Table_ReceiptPointAlphabetical[[#This Row],[Alphabetical Order Rank]] -> 49 | D55: =INDEX(Table_ReceiptPoint[Receipt Point Number],MATCH(Table_CloseReceipt[[#This Row],[Rank]],Table_ReceiptPoint[Distance Rank to Delivery Location],0),) -> 1165 | E55: =INDEX(Table_ReceiptPoint[Receipt Point Name2],MATCH(Table_CloseReceipt[[#This Row],[Rank]],Table_ReceiptPoint[Distance Rank to Delivery Location],0),) -> RANFURLY WEST* | F55: =INDEX(Table_ReceiptPoint[Distance From Delivery Station],MATCH(Table_CloseReceipt[[#This Row],[Rank]],Table_ReceiptPoint[Distance Rank to Delivery Location],0),) -> 103.0101 | G55: =INDEX(Table_ReceiptPoint[Legal Location Name],MATCH(Table_CloseReceipt[[#This Row],[Rank]],Table_ReceiptPoint[Distance Rank to Delivery Location],0),) -> 13-32-049-11-W4 | H55: =INDEX(Table_Attach1[FT-R Demand Rate Price Point "B" ($/103m3/mo)],MATCH(Table_CloseReceipt[[#This Row],[Station Number]],Table_Attach1[Receipt Point Number],0),)*INDEX(Conversions!$C$7:$C$8,MATCH('Toll Calculator'!$O$8,Conversions!$B$7:$B$8,0)) -> 497.97 | I55: =INDEX(Table_Attach3[FT-P Demand Rate Price Point "B"],MATCH(IF(CEILING(Table_CloseReceipt[[#This Row],[Distance (km)]],25)>500,999999,CEILING(Table_CloseReceipt[[#This Row],[Distance (km)]],25)),Table_Attach3[Maximum Distance Between Receipt Point and Delivery Point (km)],0),)*INDEX(Conversions!$C$7:$C$8,MATCH('Toll Calculator'!$O$8,Conversions!$B$7:$B$8,0)) -> 454.79 | J55: =INDEX(Table_Attach1[IT-R Rate ($/103m3/d)],MATCH(Table_CloseReceipt[[#This Row],[Station Number]],Table_Attach1[Receipt Point Number],0),)*INDEX(Conversions!$C$7:$C$8,MATCH('Toll Calculator'!$O$8,Conversions!$B$7:$B$8,0))*(365/12) -> 571.23
C56: =Table_ReceiptPointAlphabetical[[#This Row],[Alphabetical Order Rank]] -> 50 | D56: =INDEX(Table_ReceiptPoint[Receipt Point Number],MATCH(Table_CloseReceipt[[#This Row],[Rank]],Table_ReceiptPoint[Distance Rank to Delivery Location],0),) -> 1403 | E56: =INDEX(Table_ReceiptPoint[Receipt Point Name2],MATCH(Table_CloseReceipt[[#This Row],[Rank]],Table_ReceiptPoint[Distance Rank to Delivery Location],0),) -> SEDGEWICK NORTH* | F56: =INDEX(Table_ReceiptPoint[Distance From Delivery Station],MATCH(Table_CloseReceipt[[#This Row],[Rank]],Table_ReceiptPoint[Distance Rank to Delivery Location],0),) -> 103.6185 | G56: =INDEX(Table_ReceiptPoint[Legal Location Name],MATCH(Table_CloseReceipt[[#This Row],[Rank]],Table_ReceiptPoint[Distance Rank to Delivery Location],0),) -> NW-22-044-10-W4 | H56: =INDEX(Table_Attach1[FT-R Demand Rate Price Point "B" ($/103m3/mo)],MATCH(Table_CloseReceipt[[#This Row],[Station Number]],Table_Attach1[Receipt Point Number],0),)*INDEX(Conversions!$C$7:$C$8,MATCH('Toll Calculator'!$O$8,Conversions!$B$7:$B$8,0)) -> 328.98 | I56: =INDEX(Table_Attach3[FT-P Demand Rate Price Point "B"],MATCH(IF(CEILING(Table_CloseReceipt[[#This Row],[Distance (km)]],25)>500,999999,CEILING(Table_CloseReceipt[[#This Row],[Distance (km)]],25)),Table_Attach3[Maximum Distance Between Receipt Point and Delivery Point (km)],0),)*INDEX(Conversions!$C$7:$C$8,MATCH('Toll Calculator'!$O$8,Conversions!$B$7:$B$8,0)) -> 454.79 | J56: =INDEX(Table_Attach1[IT-R Rate ($/103m3/d)],MATCH(Table_CloseReceipt[[#This Row],[Station Number]],Table_Attach1[Receipt Point Number],0),)*INDEX(Conversions!$C$7:$C$8,MATCH('Toll Calculator'!$O$8,Conversions!$B$7:$B$8,0))*(365/12) -> 377.17
C57: =Table_ReceiptPointAlphabetical[[#This Row],[Alphabetical Order Rank]] -> 51 | D57: =INDEX(Table_ReceiptPoint[Receipt Point Number],MATCH(Table_CloseReceipt[[#This Row],[Rank]],Table_ReceiptPoint[Distance Rank to Delivery Location],0),) -> 1163 | E57: =INDEX(Table_ReceiptPoint[Receipt Point Name2],MATCH(Table_CloseReceipt[[#This Row],[Rank]],Table_ReceiptPoint[Distance Rank to Delivery Location],0),) -> JARROW | F57: =INDEX(Table_ReceiptPoint[Distance From Delivery Station],MATCH(Table_CloseReceipt[[#This Row],[Rank]],Table_ReceiptPoint[Distance Rank to Delivery Location],0),) -> 104.8412 | G57: =INDEX(Table_ReceiptPoint[Legal Location Name],MATCH(Table_CloseReceipt[[#This Row],[Rank]],Table_ReceiptPoint[Distance Rank to Delivery Location],0),) -> SW-05-045-10-W4 | H57: =INDEX(Table_Attach1[FT-R Demand Rate Price Point "B" ($/103m3/mo)],MATCH(Table_CloseReceipt[[#This Row],[Station Number]],Table_Attach1[Receipt Point Number],0),)*INDEX(Conversions!$C$7:$C$8,MATCH('Toll Calculator'!$O$8,Conversions!$B$7:$B$8,0)) -> 323.24 | I57: =INDEX(Table_Attach3[FT-P Demand Rate Price Point "B"],MATCH(IF(CEILING(Table_CloseReceipt[[#This Row],[Distance (km)]],25)>500,999999,CEILING(Table_CloseReceipt[[#This Row],[Distance (km)]],25)),Table_Attach3[Maximum Distance Between Receipt Point and Delivery Point (km)],0),)*INDEX(Conversions!$C$7:$C$8,MATCH('Toll Calculator'!$O$8,Conversions!$B$7:$B$8,0)) -> 454.79 | J57: =INDEX(Table_Attach1[IT-R Rate ($/103m3/d)],MATCH(Table_CloseReceipt[[#This Row],[Station Number]],Table_Attach1[Receipt Point Number],0),)*INDEX(Conversions!$C$7:$C$8,MATCH('Toll Calculator'!$O$8,Conversions!$B$7:$B$8,0))*(365/12) -> 370.78
C58: =Table_ReceiptPointAlphabetical[[#This Row],[Alphabetical Order Rank]] -> 52 | D58: =INDEX(Table_ReceiptPoint[Receipt Point Number],MATCH(Table_CloseReceipt[[#This Row],[Rank]],Table_ReceiptPoint[Distance Rank to Delivery Location],0),) -> 1354 | E58: =INDEX(Table_ReceiptPoint[Receipt Point Name2],MATCH(Table_CloseReceipt[[#This Row],[Rank]],Table_ReceiptPoint[Distance Rank to Delivery Location],0),) -> SLAWA NORTH* | F58: =INDEX(Table_ReceiptPoint[Distance From Delivery Station],MATCH(Table_CloseReceipt[[#This Row],[Rank]],Table_ReceiptPoint[Distance Rank to Delivery Location],0),) -> 105.5143 | G58: =INDEX(Table_ReceiptPoint[Legal Location Name],MATCH(Table_CloseReceipt[[#This Row],[Rank]],Table_ReceiptPoint[Distance Rank to Delivery Location],0),) -> 04-18-056-09-W4 | H58: =INDEX(Table_Attach1[FT-R Demand Rate Price Point "B" ($/103m3/mo)],MATCH(Table_CloseReceipt[[#This Row],[Station Number]],Table_Attach1[Receipt Point Number],0),)*INDEX(Conversions!$C$7:$C$8,MATCH('Toll Calculator'!$O$8,Conversions!$B$7:$B$8,0)) -> 231.72 | I58: =INDEX(Table_Attach3[FT-P Demand Rate Price Point "B"],MATCH(IF(CEILING(Table_CloseReceipt[[#This Row],[Distance (km)]],25)>500,999999,CEILING(Table_CloseReceipt[[#This Row],[Distance (km)]],25)),Table_Attach3[Maximum Distance Between Receipt Point and Delivery Point (km)],0),)*INDEX(Conversions!$C$7:$C$8,MATCH('Toll Calculator'!$O$8,Conversions!$B$7:$B$8,0)) -> 454.79 | J58: =INDEX(Table_Attach1[IT-R Rate ($/103m3/d)],MATCH(Table_CloseReceipt[[#This Row],[Station Number]],Table_Attach1[Receipt Point Number],0),)*INDEX(Conversions!$C$7:$C$8,MATCH('Toll Calculator'!$O$8,Conversions!$B$7:$B$8,0))*(365/12) -> 265.84
C59: =Table_ReceiptPointAlphabetical[[#This Row],[Alphabetical Order Rank]] -> 53 | D59: =INDEX(Table_ReceiptPoint[Receipt Point Number],MATCH(Table_CloseReceipt[[#This Row],[Rank]],Table_ReceiptPoint[Distance Rank to Delivery Location],0),) -> 1281 | E59: =INDEX(Table_ReceiptPoint[Receipt Point Name2],MATCH(Table_CloseReceipt[[#This Row],[Rank]],Table_ReceiptPoint[Distance Rank to Delivery Location],0),) -> JARROW WEST* | F59: =INDEX(Table_ReceiptPoint[Distance From Delivery Station],MATCH(Table_CloseReceipt[[#This Row],[Rank]],Table_ReceiptPoint[Distance Rank to Delivery Location],0),) -> 106.2732 | G59: =INDEX(Table_ReceiptPoint[Legal Location Name],MATCH(Table_CloseReceipt[[#This Row],[Rank]],Table_ReceiptPoint[Distance Rank to Delivery Location],0),) -> SE-14-045-11-W4 | H59: =INDEX(Table_Attach1[FT-R Demand Rate Price Point "B" ($/103m3/mo)],MATCH(Table_CloseReceipt[[#This Row],[Station Number]],Table_Attach1[Receipt Point Number],0),)*INDEX(Conversions!$C$7:$C$8,MATCH('Toll Calculator'!$O$8,Conversions!$B$7:$B$8,0)) -> 317.53 | I59: =INDEX(Table_Attach3[FT-P Demand Rate Price Point "B"],MATCH(IF(CEILING(Table_CloseReceipt[[#This Row],[Distance (km)]],25)>500,999999,CEILING(Table_CloseReceipt[[#This Row],[Distance (km)]],25)),Table_Attach3[Maximum Distance Between Receipt Point and Delivery Point (km)],0),)*INDEX(Conversions!$C$7:$C$8,MATCH('Toll Calculator'!$O$8,Conversions!$B$7:$B$8,0)) -> 454.79 | J59: =INDEX(Table_Attach1[IT-R Rate ($/103m3/d)],MATCH(Table_CloseReceipt[[#This Row],[Station Number]],Table_Attach1[Receipt Point Number],0),)*INDEX(Conversions!$C$7:$C$8,MATCH('Toll Calculator'!$O$8,Conversions!$B$7:$B$8,0))*(365/12) -> 364.09
C60: =Table_ReceiptPointAlphabetical[[#This Row],[Alphabetical Order Rank]] -> 54 | D60: =INDEX(Table_ReceiptPoint[Receipt Point Number],MATCH(Table_CloseReceipt[[#This Row],[Rank]],Table_ReceiptPoint[Distance Rank to Delivery Location],0),) -> 1645 | E60: =INDEX(Table_ReceiptPoint[Receipt Point Name2],MATCH(Table_CloseReceipt[[#This Row],[Rank]],Table_ReceiptPoint[Distance Rank to Delivery Location],0),) -> METISKOW NORTH* | F60: =INDEX(Table_ReceiptPoint[Distance From Delivery Station],MATCH(Table_CloseReceipt[[#This Row],[Rank]],Table_ReceiptPoint[Distance Rank to Delivery Location],0),) -> 108.5284 | G60: =INDEX(Table_ReceiptPoint[Legal Location Name],MATCH(Table_CloseReceipt[[#This Row],[Rank]],Table_ReceiptPoint[Distance Rank to Delivery Location],0),) -> 01-09-040-06-W4 | H60: =INDEX(Table_Attach1[FT-R Demand Rate Price Point "B" ($/103m3/mo)],MATCH(Table_CloseReceipt[[#This Row],[Station Number]],Table_Attach1[Receipt Point Number],0),)*INDEX(Conversions!$C$7:$C$8,MATCH('Toll Calculator'!$O$8,Conversions!$B$7:$B$8,0)) -> 397.98 | I60: =INDEX(Table_Attach3[FT-P Demand Rate Price Point "B"],MATCH(IF(CEILING(Table_CloseReceipt[[#This Row],[Distance (km)]],25)>500,999999,CEILING(Table_CloseReceipt[[#This Row],[Distance (km)]],25)),Table_Attach3[Maximum Distance Between Receipt Point and Delivery Point (km)],0),)*INDEX(Conversions!$C$7:$C$8,MATCH('Toll Calculator'!$O$8,Conversions!$B$7:$B$8,0)) -> 454.79 | J60: =INDEX(Table_Attach1[IT-R Rate ($/103m3/d)],MATCH(Table_CloseReceipt[[#This Row],[Station Number]],Table_Attach1[Receipt Point Number],0),)*INDEX(Conversions!$C$7:$C$8,MATCH('Toll Calculator'!$O$8,Conversions!$B$7:$B$8,0))*(365/12) -> 456.55
C61: =Table_ReceiptPointAlphabetical[[#This Row],[Alphabetical Order Rank]] -> 55 | D61: =INDEX(Table_ReceiptPoint[Receipt Point Number],MATCH(Table_CloseReceipt[[#This Row],[Rank]],Table_ReceiptPoint[Distance Rank to Delivery Location],0),) -> 1517 | E61: =INDEX(Table_ReceiptPoint[Receipt Point Name2],MATCH(Table_CloseReceipt[[#This Row],[Rank]],Table_ReceiptPoint[Distance Rank to Delivery Location],0),) -> KEHIWIN* | F61: =INDEX(Table_ReceiptPoint[Distance From Delivery Station],MATCH(Table_CloseReceipt[[#This Row],[Rank]],Table_ReceiptPoint[Distance Rank to Delivery Location],0),) -> 110.0952 | G61: =INDEX(Table_ReceiptPoint[Legal Location Name],MATCH(Table_CloseReceipt[[#This Row],[Rank]],Table_ReceiptPoint[Distance Rank to Delivery Location],0),) -> 08-25-059-07-W4 | H61: =INDEX(Table_Attach1[FT-R Demand Rate Price Point "B" ($/103m3/mo)],MATCH(Table_CloseReceipt[[#This Row],[Station Number]],Table_Attach1[Receipt Point Number],0),)*INDEX(Conversions!$C$7:$C$8,MATCH('Toll Calculator'!$O$8,Conversions!$B$7:$B$8,0)) -> 249.61 | I61: =INDEX(Table_Attach3[FT-P Demand Rate Price Point "B"],MATCH(IF(CEILING(Table_CloseReceipt[[#This Row],[Distance (km)]],25)>500,999999,CEILING(Table_CloseReceipt[[#This Row],[Distance (km)]],25)),Table_Attach3[Maximum Distance Between Receipt Point and Delivery Point (km)],0),)*INDEX(Conversions!$C$7:$C$8,MATCH('Toll Calculator'!$O$8,Conversions!$B$7:$B$8,0)) -> 454.79 | J61: =INDEX(Table_Attach1[IT-R Rate ($/103m3/d)],MATCH(Table_CloseReceipt[[#This Row],[Station Number]],Table_Attach1[Receipt Point Number],0),)*INDEX(Conversions!$C$7:$C$8,MATCH('Toll Calculator'!$O$8,Conversions!$B$7:$B$8,0))*(365/12) -> 286.22
C62: =Table_ReceiptPointAlphabetical[[#This Row],[Alphabetical Order Rank]] -> 56 | D62: =INDEX(Table_ReceiptPoint[Receipt Point Number],MATCH(Table_CloseReceipt[[#This Row],[Rank]],Table_ReceiptPoint[Distance Rank to Delivery Location],0),) -> 1418 | E62: =INDEX(Table_ReceiptPoint[Receipt Point Name2],MATCH(Table_CloseReceipt[[#This Row],[Rank]],Table_ReceiptPoint[Distance Rank to Delivery Location],0),) -> HATTIE LAKE NORTH* | F62: =INDEX(Table_ReceiptPoint[Distance From Delivery Station],MATCH(Table_CloseReceipt[[#This Row],[Rank]],Table_ReceiptPoint[Distance Rank to Delivery Location],0),) -> 112.4995 | G62: =INDEX(Table_ReceiptPoint[Legal Location Name],MATCH(Table_CloseReceipt[[#This Row],[Rank]],Table_ReceiptPoint[Distance Rank to Delivery Location],0),) -> 14-10-047-12-W4 | H62: =INDEX(Table_Attach1[FT-R Demand Rate Price Point "B" ($/103m3/mo)],MATCH(Table_CloseReceipt[[#This Row],[Station Number]],Table_Attach1[Receipt Point Number],0),)*INDEX(Conversions!$C$7:$C$8,MATCH('Toll Calculator'!$O$8,Conversions!$B$7:$B$8,0)) -> 291.24 | I62: =INDEX(Table_Attach3[FT-P Demand Rate Price Point "B"],MATCH(IF(CEILING(Table_CloseReceipt[[#This Row],[Distance (km)]],25)>500,999999,CEILING(Table_CloseReceipt[[#This Row],[Distance (km)]],25)),Table_Attach3[Maximum Distance Between Receipt Point and Delivery Point (km)],0),)*INDEX(Conversions!$C$7:$C$8,MATCH('Toll Calculator'!$O$8,Conversions!$B$7:$B$8,0)) -> 454.79 | J62: =INDEX(Table_Attach1[IT-R Rate ($/103m3/d)],MATCH(Table_CloseReceipt[[#This Row],[Station Number]],Table_Attach1[Receipt Point Number],0),)*INDEX(Conversions!$C$7:$C$8,MATCH('Toll Calculator'!$O$8,Conversions!$B$7:$B$8,0))*(365/12) -> 333.98
C63: =Table_ReceiptPointAlphabetical[[#This Row],[Alphabetical Order Rank]] -> 57 | D63: =INDEX(Table_ReceiptPoint[Receipt Point Number],MATCH(Table_CloseReceipt[[#This Row],[Rank]],Table_ReceiptPoint[Distance Rank to Delivery Location],0),) -> 1250 | E63: =INDEX(Table_ReceiptPoint[Receipt Point Name2],MATCH(Table_CloseReceipt[[#This Row],[Rank]],Table_ReceiptPoint[Distance Rank to Delivery Location],0),) -> UNITY BORDER | F63: =INDEX(Table_ReceiptPoint[Distance From Delivery Station],MATCH(Table_CloseReceipt[[#This Row],[Rank]],Table_ReceiptPoint[Distance Rank to Delivery Location],0),) -> 114.2716 | G63: =INDEX(Table_ReceiptPoint[Legal Location Name],MATCH(Table_CloseReceipt[[#This Row],[Rank]],Table_ReceiptPoint[Distance Rank to Delivery Location],0),) -> 09-11-038-01-W4 | H63: =INDEX(Table_Attach1[FT-R Demand Rate Price Point "B" ($/103m3/mo)],MATCH(Table_CloseReceipt[[#This Row],[Station Number]],Table_Attach1[Receipt Point Number],0),)*INDEX(Conversions!$C$7:$C$8,MATCH('Toll Calculator'!$O$8,Conversions!$B$7:$B$8,0)) -> 461.32 | I63: =INDEX(Table_Attach3[FT-P Demand Rate Price Point "B"],MATCH(IF(CEILING(Table_CloseReceipt[[#This Row],[Distance (km)]],25)>500,999999,CEILING(Table_CloseReceipt[[#This Row],[Distance (km)]],25)),Table_Attach3[Maximum Distance Between Receipt Point and Delivery Point (km)],0),)*INDEX(Conversions!$C$7:$C$8,MATCH('Toll Calculator'!$O$8,Conversions!$B$7:$B$8,0)) -> 454.79 | J63: =INDEX(Table_Attach1[IT-R Rate ($/103m3/d)],MATCH(Table_CloseReceipt[[#This Row],[Station Number]],Table_Attach1[Receipt Point Number],0),)*INDEX(Conversions!$C$7:$C$8,MATCH('Toll Calculator'!$O$8,Conversions!$B$7:$B$8,0))*(365/12) -> 528.95
C64: =Table_ReceiptPointAlphabetical[[#This Row],[Alphabetical Order Rank]] -> 58 | D64: =INDEX(Table_ReceiptPoint[Receipt Point Number],MATCH(Table_CloseReceipt[[#This Row],[Rank]],Table_ReceiptPoint[Distance Rank to Delivery Location],0),) -> 1841 | E64: =INDEX(Table_ReceiptPoint[Receipt Point Name2],MATCH(Table_CloseReceipt[[#This Row],[Rank]],Table_ReceiptPoint[Distance Rank to Delivery Location],0),) -> TORLEA EAST* | F64: =INDEX(Table_ReceiptPoint[Distance From Delivery Station],MATCH(Table_CloseReceipt[[#This Row],[Rank]],Table_ReceiptPoint[Distance Rank to Delivery Location],0),) -> 114.8759 | G64: =INDEX(Table_ReceiptPoint[Legal Location Name],MATCH(Table_CloseReceipt[[#This Row],[Rank]],Table_ReceiptPoint[Distance Rank to Delivery Location],0),) -> SW-06-049-12-W4 | H64: =INDEX(Table_Attach1[FT-R Demand Rate Price Point "B" ($/103m3/mo)],MATCH(Table_CloseReceipt[[#This Row],[Station Number]],Table_Attach1[Receipt Point Number],0),)*INDEX(Conversions!$C$7:$C$8,MATCH('Toll Calculator'!$O$8,Conversions!$B$7:$B$8,0)) -> 175.78 | I64: =INDEX(Table_Attach3[FT-P Demand Rate Price Point "B"],MATCH(IF(CEILING(Table_CloseReceipt[[#This Row],[Distance (km)]],25)>500,999999,CEILING(Table_CloseReceipt[[#This Row],[Distance (km)]],25)),Table_Attach3[Maximum Distance Between Receipt Point and Delivery Point (km)],0),)*INDEX(Conversions!$C$7:$C$8,MATCH('Toll Calculator'!$O$8,Conversions!$B$7:$B$8,0)) -> 454.79 | J64: =INDEX(Table_Attach1[IT-R Rate ($/103m3/d)],MATCH(Table_CloseReceipt[[#This Row],[Station Number]],Table_Attach1[Receipt Point Number],0),)*INDEX(Conversions!$C$7:$C$8,MATCH('Toll Calculator'!$O$8,Conversions!$B$7:$B$8,0))*(365/12) -> 201.66
C65: =Table_ReceiptPointAlphabetical[[#This Row],[Alphabetical Order Rank]] -> 59 | D65: =INDEX(Table_ReceiptPoint[Receipt Point Number],MATCH(Table_CloseReceipt[[#This Row],[Rank]],Table_ReceiptPoint[Distance Rank to Delivery Location],0),) -> 30375 | E65: =INDEX(Table_ReceiptPoint[Receipt Point Name2],MATCH(Table_CloseReceipt[[#This Row],[Rank]],Table_ReceiptPoint[Distance Rank to Delivery Location],0),) -> VIKING FIELD APN | F65: =INDEX(Table_ReceiptPoint[Distance From Delivery Station],MATCH(Table_CloseReceipt[[#This Row],[Rank]],Table_ReceiptPoint[Distance Rank to Delivery Location],0),) -> 115.2268 | G65: =INDEX(Table_ReceiptPoint[Legal Location Name],MATCH(Table_CloseReceipt[[#This Row],[Rank]],Table_ReceiptPoint[Distance Rank to Delivery Location],0),) -> 16-36-048-13-W4 | H65: =INDEX(Table_Attach1[FT-R Demand Rate Price Point "B" ($/103m3/mo)],MATCH(Table_CloseReceipt[[#This Row],[Station Number]],Table_Attach1[Receipt Point Number],0),)*INDEX(Conversions!$C$7:$C$8,MATCH('Toll Calculator'!$O$8,Conversions!$B$7:$B$8,0)) -> 175.78 | I65: =INDEX(Table_Attach3[FT-P Demand Rate Price Point "B"],MATCH(IF(CEILING(Table_CloseReceipt[[#This Row],[Distance (km)]],25)>500,999999,CEILING(Table_CloseReceipt[[#This Row],[Distance (km)]],25)),Table_Attach3[Maximum Distance Between Receipt Point and Delivery Point (km)],0),)*INDEX(Conversions!$C$7:$C$8,MATCH('Toll Calculator'!$O$8,Conversions!$B$7:$B$8,0)) -> 454.79 | J65: =INDEX(Table_Attach1[IT-R Rate ($/103m3/d)],MATCH(Table_CloseReceipt[[#This Row],[Station Number]],Table_Attach1[Receipt Point Number],0),)*INDEX(Conversions!$C$7:$C$8,MATCH('Toll Calculator'!$O$8,Conversions!$B$7:$B$8,0))*(365/12) -> 201.66
C66: =Table_ReceiptPointAlphabetical[[#This Row],[Alphabetical Order Rank]] -> 60 | D66: =INDEX(Table_ReceiptPoint[Receipt Point Number],MATCH(Table_CloseReceipt[[#This Row],[Rank]],Table_ReceiptPoint[Distance Rank to Delivery Location],0),) -> 1395 | E66: =INDEX(Table_ReceiptPoint[Receipt Point Name2],MATCH(Table_CloseReceipt[[#This Row],[Rank]],Table_ReceiptPoint[Distance Rank to Delivery Location],0),) -> SEDGEWICK EAST* | F66: =INDEX(Table_ReceiptPoint[Distance From Delivery Station],MATCH(Table_CloseReceipt[[#This Row],[Rank]],Table_ReceiptPoint[Distance Rank to Delivery Location],0),) -> 116.194 | G66: =INDEX(Table_ReceiptPoint[Legal Location Name],MATCH(Table_CloseReceipt[[#This Row],[Rank]],Table_ReceiptPoint[Distance Rank to Delivery Location],0),) -> NW-23-043-11-W4 | H66: =INDEX(Table_Attach1[FT-R Demand Rate Price Point "B" ($/103m3/mo)],MATCH(Table_CloseReceipt[[#This Row],[Station Number]],Table_Attach1[Receipt Point Number],0),)*INDEX(Conversions!$C$7:$C$8,MATCH('Toll Calculator'!$O$8,Conversions!$B$7:$B$8,0)) -> 369.88 | I66: =INDEX(Table_Attach3[FT-P Demand Rate Price Point "B"],MATCH(IF(CEILING(Table_CloseReceipt[[#This Row],[Distance (km)]],25)>500,999999,CEILING(Table_CloseReceipt[[#This Row],[Distance (km)]],25)),Table_Attach3[Maximum Distance Between Receipt Point and Delivery Point (km)],0),)*INDEX(Conversions!$C$7:$C$8,MATCH('Toll Calculator'!$O$8,Conversions!$B$7:$B$8,0)) -> 454.79 | J66: =INDEX(Table_Attach1[IT-R Rate ($/103m3/d)],MATCH(Table_CloseReceipt[[#This Row],[Station Number]],Table_Attach1[Receipt Point Number],0),)*INDEX(Conversions!$C$7:$C$8,MATCH('Toll Calculator'!$O$8,Conversions!$B$7:$B$8,0))*(365/12) -> 424.31
C67: =Table_ReceiptPointAlphabetical[[#This Row],[Alphabetical Order Rank]] -> 61 | D67: =INDEX(Table_ReceiptPoint[Receipt Point Number],MATCH(Table_CloseReceipt[[#This Row],[Rank]],Table_ReceiptPoint[Distance Rank to Delivery Location],0),) -> 30376 | E67: =INDEX(Table_ReceiptPoint[Receipt Point Name2],MATCH(Table_CloseReceipt[[#This Row],[Rank]],Table_ReceiptPoint[Distance Rank to Delivery Location],0),) -> VIKING SOUTH APN* | F67: =INDEX(Table_ReceiptPoint[Distance From Delivery Station],MATCH(Table_CloseReceipt[[#This Row],[Rank]],Table_ReceiptPoint[Distance Rank to Delivery Location],0),) -> 116.342 | G67: =INDEX(Table_ReceiptPoint[Legal Location Name],MATCH(Table_CloseReceipt[[#This Row],[Rank]],Table_ReceiptPoint[Distance Rank to Delivery Location],0),) -> 16-01-048-13-W4 | H67: =INDEX(Table_Attach1[FT-R Demand Rate Price Point "B" ($/103m3/mo)],MATCH(Table_CloseReceipt[[#This Row],[Station Number]],Table_Attach1[Receipt Point Number],0),)*INDEX(Conversions!$C$7:$C$8,MATCH('Toll Calculator'!$O$8,Conversions!$B$7:$B$8,0)) -> 443.02 | I67: =INDEX(Table_Attach3[FT-P Demand Rate Price Point "B"],MATCH(IF(CEILING(Table_CloseReceipt[[#This Row],[Distance (km)]],25)>500,999999,CEILING(Table_CloseReceipt[[#This Row],[Distance (km)]],25)),Table_Attach3[Maximum Distance Between Receipt Point and Delivery Point (km)],0),)*INDEX(Conversions!$C$7:$C$8,MATCH('Toll Calculator'!$O$8,Conversions!$B$7:$B$8,0)) -> 454.79 | J67: =INDEX(Table_Attach1[IT-R Rate ($/103m3/d)],MATCH(Table_CloseReceipt[[#This Row],[Station Number]],Table_Attach1[Receipt Point Number],0),)*INDEX(Conversions!$C$7:$C$8,MATCH('Toll Calculator'!$O$8,Conversions!$B$7:$B$8,0))*(365/12) -> 507.96
C68: =Table_ReceiptPointAlphabetical[[#This Row],[Alphabetical Order Rank]] -> 62 | D68: =INDEX(Table_ReceiptPoint[Receipt Point Number],MATCH(Table_CloseReceipt[[#This Row],[Rank]],Table_ReceiptPoint[Distance Rank to Delivery Location],0),) -> 1417 | E68: =INDEX(Table_ReceiptPoint[Receipt Point Name2],MATCH(Table_CloseReceipt[[#This Row],[Rank]],Table_ReceiptPoint[Distance Rank to Delivery Location],0),) -> COLD LAKE BORDER | F68: =INDEX(Table_ReceiptPoint[Distance From Delivery Station],MATCH(Table_CloseReceipt[[#This Row],[Rank]],Table_ReceiptPoint[Distance Rank to Delivery Location],0),) -> 118.1821 | G68: =INDEX(Table_ReceiptPoint[Legal Location Name],MATCH(Table_CloseReceipt[[#This Row],[Rank]],Table_ReceiptPoint[Distance Rank to Delivery Location],0),) -> SW-12-062-01-W4 | H68: =INDEX(Table_Attach1[FT-R Demand Rate Price Point "B" ($/103m3/mo)],MATCH(Table_CloseReceipt[[#This Row],[Station Number]],Table_Attach1[Receipt Point Number],0),)*INDEX(Conversions!$C$7:$C$8,MATCH('Toll Calculator'!$O$8,Conversions!$B$7:$B$8,0)) -> 148.18 | I68: =INDEX(Table_Attach3[FT-P Demand Rate Price Point "B"],MATCH(IF(CEILING(Table_CloseReceipt[[#This Row],[Distance (km)]],25)>500,999999,CEILING(Table_CloseReceipt[[#This Row],[Distance (km)]],25)),Table_Attach3[Maximum Distance Between Receipt Point and Delivery Point (km)],0),)*INDEX(Conversions!$C$7:$C$8,MATCH('Toll Calculator'!$O$8,Conversions!$B$7:$B$8,0)) -> 454.79 | J68: =INDEX(Table_Attach1[IT-R Rate ($/103m3/d)],MATCH(Table_CloseReceipt[[#This Row],[Station Number]],Table_Attach1[Receipt Point Number],0),)*INDEX(Conversions!$C$7:$C$8,MATCH('Toll Calculator'!$O$8,Conversions!$B$7:$B$8,0))*(365/12) -> 170.03
C69: =Table_ReceiptPointAlphabetical[[#This Row],[Alphabetical Order Rank]] -> 63 | D69: =INDEX(Table_ReceiptPoint[Receipt Point Number],MATCH(Table_CloseReceipt[[#This Row],[Rank]],Table_ReceiptPoint[Distance Rank to Delivery Location],0),) -> 1680 | E69: =INDEX(Table_ReceiptPoint[Receipt Point Name2],MATCH(Table_CloseReceipt[[#This Row],[Rank]],Table_ReceiptPoint[Distance Rank to Delivery Location],0),) -> CHERRY GROVE EAST* | F69: =INDEX(Table_ReceiptPoint[Distance From Delivery Station],MATCH(Table_CloseReceipt[[#This Row],[Rank]],Table_ReceiptPoint[Distance Rank to Delivery Location],0),) -> 118.2024 | G69: =INDEX(Table_ReceiptPoint[Legal Location Name],MATCH(Table_CloseReceipt[[#This Row],[Rank]],Table_ReceiptPoint[Distance Rank to Delivery Location],0),) -> SW-12-062-01-W4 | H69: =INDEX(Table_Attach1[FT-R Demand Rate Price Point "B" ($/103m3/mo)],MATCH(Table_CloseReceipt[[#This Row],[Station Number]],Table_Attach1[Receipt Point Number],0),)*INDEX(Conversions!$C$7:$C$8,MATCH('Toll Calculator'!$O$8,Conversions!$B$7:$B$8,0)) -> 146.11 | I69: =INDEX(Table_Attach3[FT-P Demand Rate Price Point "B"],MATCH(IF(CEILING(Table_CloseReceipt[[#This Row],[Distance (km)]],25)>500,999999,CEILING(Table_CloseReceipt[[#This Row],[Distance (km)]],25)),Table_Attach3[Maximum Distance Between Receipt Point and Delivery Point (km)],0),)*INDEX(Conversions!$C$7:$C$8,MATCH('Toll Calculator'!$O$8,Conversions!$B$7:$B$8,0)) -> 454.79 | J69: =INDEX(Table_Attach1[IT-R Rate ($/103m3/d)],MATCH(Table_CloseReceipt[[#This Row],[Station Number]],Table_Attach1[Receipt Point Number],0),)*INDEX(Conversions!$C$7:$C$8,MATCH('Toll Calculator'!$O$8,Conversions!$B$7:$B$8,0))*(365/12) -> 167.6
C70: =Table_ReceiptPointAlphabetical[[#This Row],[Alphabetical Order Rank]] -> 64 | D70: =INDEX(Table_ReceiptPoint[Receipt Point Number],MATCH(Table_CloseReceipt[[#This Row],[Rank]],Table_ReceiptPoint[Distance Rank to Delivery Location],0),) -> 1242 | E70: =INDEX(Table_ReceiptPoint[Receipt Point Name2],MATCH(Table_CloseReceipt[[#This Row],[Rank]],Table_ReceiptPoint[Distance Rank to Delivery Location],0),) -> BODO WEST | F70: =INDEX(Table_ReceiptPoint[Distance From Delivery Station],MATCH(Table_CloseReceipt[[#This Row],[Rank]],Table_ReceiptPoint[Distance Rank to Delivery Location],0),) -> 118.2538 | G70: =INDEX(Table_ReceiptPoint[Legal Location Name],MATCH(Table_CloseReceipt[[#This Row],[Rank]],Table_ReceiptPoint[Distance Rank to Delivery Location],0),) -> NE-31-037-02-W4 | H70: =INDEX(Table_Attach1[FT-R Demand Rate Price Point "B" ($/103m3/mo)],MATCH(Table_CloseReceipt[[#This Row],[Station Number]],Table_Attach1[Receipt Point Number],0),)*INDEX(Conversions!$C$7:$C$8,MATCH('Toll Calculator'!$O$8,Conversions!$B$7:$B$8,0)) -> 452.42 | I70: =INDEX(Table_Attach3[FT-P Demand Rate Price Point "B"],MATCH(IF(CEILING(Table_CloseReceipt[[#This Row],[Distance (km)]],25)>500,999999,CEILING(Table_CloseReceipt[[#This Row],[Distance (km)]],25)),Table_Attach3[Maximum Distance Between Receipt Point and Delivery Point (km)],0),)*INDEX(Conversions!$C$7:$C$8,MATCH('Toll Calculator'!$O$8,Conversions!$B$7:$B$8,0)) -> 454.79 | J70: =INDEX(Table_Attach1[IT-R Rate ($/103m3/d)],MATCH(Table_CloseReceipt[[#This Row],[Station Number]],Table_Attach1[Receipt Point Number],0),)*INDEX(Conversions!$C$7:$C$8,MATCH('Toll Calculator'!$O$8,Conversions!$B$7:$B$8,0))*(365/12) -> 518.91
C71: =Table_ReceiptPointAlphabetical[[#This Row],[Alphabetical Order Rank]] -> 65 | D71: =INDEX(Table_ReceiptPoint[Receipt Point Number],MATCH(Table_CloseReceipt[[#This Row],[Rank]],Table_ReceiptPoint[Distance Rank to Delivery Location],0),) -> 1110 | E71: =INDEX(Table_ReceiptPoint[Receipt Point Name2],MATCH(Table_CloseReceipt[[#This Row],[Rank]],Table_ReceiptPoint[Distance Rank to Delivery Location],0),) -> PLAIN LAKE | F71: =INDEX(Table_ReceiptPoint[Distance From Delivery Station],MATCH(Table_CloseReceipt[[#This Row],[Rank]],Table_ReceiptPoint[Distance Rank to Delivery Location],0),) -> 119.0904 | G71: =INDEX(Table_ReceiptPoint[Legal Location Name],MATCH(Table_CloseReceipt[[#This Row],[Rank]],Table_ReceiptPoint[Distance Rank to Delivery Location],0),) -> NE-36-052-13-W4 | H71: =INDEX(Table_Attach1[FT-R Demand Rate Price Point "B" ($/103m3/mo)],MATCH(Table_CloseReceipt[[#This Row],[Station Number]],Table_Attach1[Receipt Point Number],0),)*INDEX(Conversions!$C$7:$C$8,MATCH('Toll Calculator'!$O$8,Conversions!$B$7:$B$8,0)) -> 299.58 | I71: =INDEX(Table_Attach3[FT-P Demand Rate Price Point "B"],MATCH(IF(CEILING(Table_CloseReceipt[[#This Row],[Distance (km)]],25)>500,999999,CEILING(Table_CloseReceipt[[#This Row],[Distance (km)]],25)),Table_Attach3[Maximum Distance Between Receipt Point and Delivery Point (km)],0),)*INDEX(Conversions!$C$7:$C$8,MATCH('Toll Calculator'!$O$8,Conversions!$B$7:$B$8,0)) -> 454.79 | J71: =INDEX(Table_Attach1[IT-R Rate ($/103m3/d)],MATCH(Table_CloseReceipt[[#This Row],[Station Number]],Table_Attach1[Receipt Point Number],0),)*INDEX(Conversions!$C$7:$C$8,MATCH('Toll Calculator'!$O$8,Conversions!$B$7:$B$8,0))*(365/12) -> 343.71
C72: =Table_ReceiptPointAlphabetical[[#This Row],[Alphabetical Order Rank]] -> 66 | D72: =INDEX(Table_ReceiptPoint[Receipt Point Number],MATCH(Table_CloseReceipt[[#This Row],[Rank]],Table_ReceiptPoint[Distance Rank to Delivery Location],0),) -> 1162 | E72: =INDEX(Table_ReceiptPoint[Receipt Point Name2],MATCH(Table_CloseReceipt[[#This Row],[Rank]],Table_ReceiptPoint[Distance Rank to Delivery Location],0),) -> KILLAM | F72: =INDEX(Table_ReceiptPoint[Distance From Delivery Station],MATCH(Table_CloseReceipt[[#This Row],[Rank]],Table_ReceiptPoint[Distance Rank to Delivery Location],0),) -> 120.8279 | G72: =INDEX(Table_ReceiptPoint[Legal Location Name],MATCH(Table_CloseReceipt[[#This Row],[Rank]],Table_ReceiptPoint[Distance Rank to Delivery Location],0),) -> 09-05-045-12-W4 | H72: =INDEX(Table_Attach1[FT-R Demand Rate Price Point "B" ($/103m3/mo)],MATCH(Table_CloseReceipt[[#This Row],[Station Number]],Table_Attach1[Receipt Point Number],0),)*INDEX(Conversions!$C$7:$C$8,MATCH('Toll Calculator'!$O$8,Conversions!$B$7:$B$8,0)) -> 378.78 | I72: =INDEX(Table_Attach3[FT-P Demand Rate Price Point "B"],MATCH(IF(CEILING(Table_CloseReceipt[[#This Row],[Distance (km)]],25)>500,999999,CEILING(Table_CloseReceipt[[#This Row],[Distance (km)]],25)),Table_Attach3[Maximum Distance Between Receipt Point and Delivery Point (km)],0),)*INDEX(Conversions!$C$7:$C$8,MATCH('Toll Calculator'!$O$8,Conversions!$B$7:$B$8,0)) -> 454.79 | J72: =INDEX(Table_Attach1[IT-R Rate ($/103m3/d)],MATCH(Table_CloseReceipt[[#This Row],[Station Number]],Table_Attach1[Receipt Point Number],0),)*INDEX(Conversions!$C$7:$C$8,MATCH('Toll Calculator'!$O$8,Conversions!$B$7:$B$8,0))*(365/12) -> 434.35
C73: =Table_ReceiptPointAlphabetical[[#This Row],[Alphabetical Order Rank]] -> 67 | D73: =INDEX(Table_ReceiptPoint[Receipt Point Number],MATCH(Table_CloseReceipt[[#This Row],[Rank]],Table_ReceiptPoint[Distance Rank to Delivery Location],0),) -> 1877 | E73: =INDEX(Table_ReceiptPoint[Receipt Point Name2],MATCH(Table_CloseReceipt[[#This Row],[Rank]],Table_ReceiptPoint[Distance Rank to Delivery Location],0),) -> DUVERNAY* | F73: =INDEX(Table_ReceiptPoint[Distance From Delivery Station],MATCH(Table_CloseReceipt[[#This Row],[Rank]],Table_ReceiptPoint[Distance Rank to Delivery Location],0),) -> 121.0635 | G73: =INDEX(Table_ReceiptPoint[Legal Location Name],MATCH(Table_CloseReceipt[[#This Row],[Rank]],Table_ReceiptPoint[Distance Rank to Delivery Location],0),) -> 04-23-055-12-W4 | H73: =INDEX(Table_Attach1[FT-R Demand Rate Price Point "B" ($/103m3/mo)],MATCH(Table_CloseReceipt[[#This Row],[Station Number]],Table_Attach1[Receipt Point Number],0),)*INDEX(Conversions!$C$7:$C$8,MATCH('Toll Calculator'!$O$8,Conversions!$B$7:$B$8,0)) -> 199.86 | I73: =INDEX(Table_Attach3[FT-P Demand Rate Price Point "B"],MATCH(IF(CEILING(Table_CloseReceipt[[#This Row],[Distance (km)]],25)>500,999999,CEILING(Table_CloseReceipt[[#This Row],[Distance (km)]],25)),Table_Attach3[Maximum Distance Between Receipt Point and Delivery Point (km)],0),)*INDEX(Conversions!$C$7:$C$8,MATCH('Toll Calculator'!$O$8,Conversions!$B$7:$B$8,0)) -> 454.79 | J73: =INDEX(Table_Attach1[IT-R Rate ($/103m3/d)],MATCH(Table_CloseReceipt[[#This Row],[Station Number]],Table_Attach1[Receipt Point Number],0),)*INDEX(Conversions!$C$7:$C$8,MATCH('Toll Calculator'!$O$8,Conversions!$B$7:$B$8,0))*(365/12) -> 229.34
C74: =Table_ReceiptPointAlphabetical[[#This Row],[Alphabetical Order Rank]] -> 68 | D74: =INDEX(Table_ReceiptPoint[Receipt Point Number],MATCH(Table_CloseReceipt[[#This Row],[Rank]],Table_ReceiptPoint[Distance Rank to Delivery Location],0),) -> 1483 | E74: =INDEX(Table_ReceiptPoint[Receipt Point Name2],MATCH(Table_CloseReceipt[[#This Row],[Rank]],Table_ReceiptPoint[Distance Rank to Delivery Location],0),) -> KENT* | F74: =INDEX(Table_ReceiptPoint[Distance From Delivery Station],MATCH(Table_CloseReceipt[[#This Row],[Rank]],Table_ReceiptPoint[Distance Rank to Delivery Location],0),) -> 121.9939 | G74: =INDEX(Table_ReceiptPoint[Legal Location Name],MATCH(Table_CloseReceipt[[#This Row],[Rank]],Table_ReceiptPoint[Distance Rank to Delivery Location],0),) -> 15-13-062-03-W4 | H74: =INDEX(Table_Attach1[FT-R Demand Rate Price Point "B" ($/103m3/mo)],MATCH(Table_CloseReceipt[[#This Row],[Station Number]],Table_Attach1[Receipt Point Number],0),)*INDEX(Conversions!$C$7:$C$8,MATCH('Toll Calculator'!$O$8,Conversions!$B$7:$B$8,0)) -> 141.89 | I74: =INDEX(Table_Attach3[FT-P Demand Rate Price Point "B"],MATCH(IF(CEILING(Table_CloseReceipt[[#This Row],[Distance (km)]],25)>500,999999,CEILING(Table_CloseReceipt[[#This Row],[Distance (km)]],25)),Table_Attach3[Maximum Distance Between Receipt Point and Delivery Point (km)],0),)*INDEX(Conversions!$C$7:$C$8,MATCH('Toll Calculator'!$O$8,Conversions!$B$7:$B$8,0)) -> 454.79 | J74: =INDEX(Table_Attach1[IT-R Rate ($/103m3/d)],MATCH(Table_CloseReceipt[[#This Row],[Station Number]],Table_Attach1[Receipt Point Number],0),)*INDEX(Conversions!$C$7:$C$8,MATCH('Toll Calculator'!$O$8,Conversions!$B$7:$B$8,0))*(365/12) -> 162.73
C75: =Table_ReceiptPointAlphabetical[[#This Row],[Alphabetical Order Rank]] -> 69 | D75: =INDEX(Table_ReceiptPoint[Receipt Point Number],MATCH(Table_CloseReceipt[[#This Row],[Rank]],Table_ReceiptPoint[Distance Rank to Delivery Location],0),) -> 1519 | E75: =INDEX(Table_ReceiptPoint[Receipt Point Name2],MATCH(Table_CloseReceipt[[#This Row],[Rank]],Table_ReceiptPoint[Distance Rank to Delivery Location],0),) -> ST. BRIDES* | F75: =INDEX(Table_ReceiptPoint[Distance From Delivery Station],MATCH(Table_CloseReceipt[[#This Row],[Rank]],Table_ReceiptPoint[Distance Rank to Delivery Location],0),) -> 122.0775 | G75: =INDEX(Table_ReceiptPoint[Legal Location Name],MATCH(Table_CloseReceipt[[#This Row],[Rank]],Table_ReceiptPoint[Distance Rank to Delivery Location],0),) -> SW-16-058-10-W4 | H75: =INDEX(Table_Attach1[FT-R Demand Rate Price Point "B" ($/103m3/mo)],MATCH(Table_CloseReceipt[[#This Row],[Station Number]],Table_Attach1[Receipt Point Number],0),)*INDEX(Conversions!$C$7:$C$8,MATCH('Toll Calculator'!$O$8,Conversions!$B$7:$B$8,0)) -> 203.22 | I75: =INDEX(Table_Attach3[FT-P Demand Rate Price Point "B"],MATCH(IF(CEILING(Table_CloseReceipt[[#This Row],[Distance (km)]],25)>500,999999,CEILING(Table_CloseReceipt[[#This Row],[Distance (km)]],25)),Table_Attach3[Maximum Distance Between Receipt Point and Delivery Point (km)],0),)*INDEX(Conversions!$C$7:$C$8,MATCH('Toll Calculator'!$O$8,Conversions!$B$7:$B$8,0)) -> 454.79 | J75: =INDEX(Table_Attach1[IT-R Rate ($/103m3/d)],MATCH(Table_CloseReceipt[[#This Row],[Station Number]],Table_Attach1[Receipt Point Number],0),)*INDEX(Conversions!$C$7:$C$8,MATCH('Toll Calculator'!$O$8,Conversions!$B$7:$B$8,0))*(365/12) -> 232.99
C76: =Table_ReceiptPointAlphabetical[[#This Row],[Alphabetical Order Rank]] -> 70 | D76: =INDEX(Table_ReceiptPoint[Receipt Point Number],MATCH(Table_CloseReceipt[[#This Row],[Rank]],Table_ReceiptPoint[Distance Rank to Delivery Location],0),) -> 1189 | E76: =INDEX(Table_ReceiptPoint[Receipt Point Name2],MATCH(Table_CloseReceipt[[#This Row],[Rank]],Table_ReceiptPoint[Distance Rank to Delivery Location],0),) -> RANFURLY NORTH* | F76: =INDEX(Table_ReceiptPoint[Distance From Delivery Station],MATCH(Table_CloseReceipt[[#This Row],[Rank]],Table_ReceiptPoint[Distance Rank to Delivery Location],0),) -> 122.1189 | G76: =INDEX(Table_ReceiptPoint[Legal Location Name],MATCH(Table_CloseReceipt[[#This Row],[Rank]],Table_ReceiptPoint[Distance Rank to Delivery Location],0),) -> 14-32-050-13-W4 | H76: =INDEX(Table_Attach1[FT-R Demand Rate Price Point "B" ($/103m3/mo)],MATCH(Table_CloseReceipt[[#This Row],[Station Number]],Table_Attach1[Receipt Point Number],0),)*INDEX(Conversions!$C$7:$C$8,MATCH('Toll Calculator'!$O$8,Conversions!$B$7:$B$8,0)) -> 264.09 | I76: =INDEX(Table_Attach3[FT-P Demand Rate Price Point "B"],MATCH(IF(CEILING(Table_CloseReceipt[[#This Row],[Distance (km)]],25)>500,999999,CEILING(Table_CloseReceipt[[#This Row],[Distance (km)]],25)),Table_Attach3[Maximum Distance Between Receipt Point and Delivery Point (km)],0),)*INDEX(Conversions!$C$7:$C$8,MATCH('Toll Calculator'!$O$8,Conversions!$B$7:$B$8,0)) -> 454.79 | J76: =INDEX(Table_Attach1[IT-R Rate ($/103m3/d)],MATCH(Table_CloseReceipt[[#This Row],[Station Number]],Table_Attach1[Receipt Point Number],0),)*INDEX(Conversions!$C$7:$C$8,MATCH('Toll Calculator'!$O$8,Conversions!$B$7:$B$8,0))*(365/12) -> 302.95
C77: =Table_ReceiptPointAlphabetical[[#This Row],[Alphabetical Order Rank]] -> 71 | D77: =INDEX(Table_ReceiptPoint[Receipt Point Number],MATCH(Table_CloseReceipt[[#This Row],[Rank]],Table_ReceiptPoint[Distance Rank to Delivery Location],0),) -> 1602 | E77: =INDEX(Table_ReceiptPoint[Receipt Point Name2],MATCH(Table_CloseReceipt[[#This Row],[Rank]],Table_ReceiptPoint[Distance Rank to Delivery Location],0),) -> FORT KENT* | F77: =INDEX(Table_ReceiptPoint[Distance From Delivery Station],MATCH(Table_CloseReceipt[[#This Row],[Rank]],Table_ReceiptPoint[Distance Rank to Delivery Location],0),) -> 122.7935 | G77: =INDEX(Table_ReceiptPoint[Legal Location Name],MATCH(Table_CloseReceipt[[#This Row],[Rank]],Table_ReceiptPoint[Distance Rank to Delivery Location],0),) -> 14-11-062-04-W4 | H77: =INDEX(Table_Attach1[FT-R Demand Rate Price Point "B" ($/103m3/mo)],MATCH(Table_CloseReceipt[[#This Row],[Station Number]],Table_Attach1[Receipt Point Number],0),)*INDEX(Conversions!$C$7:$C$8,MATCH('Toll Calculator'!$O$8,Conversions!$B$7:$B$8,0)) -> 141.89 | I77: =INDEX(Table_Attach3[FT-P Demand Rate Price Point "B"],MATCH(IF(CEILING(Table_CloseReceipt[[#This Row],[Distance (km)]],25)>500,999999,CEILING(Table_CloseReceipt[[#This Row],[Distance (km)]],25)),Table_Attach3[Maximum Distance Between Receipt Point and Delivery Point (km)],0),)*INDEX(Conversions!$C$7:$C$8,MATCH('Toll Calculator'!$O$8,Conversions!$B$7:$B$8,0)) -> 454.79 | J77: =INDEX(Table_Attach1[IT-R Rate ($/103m3/d)],MATCH(Table_CloseReceipt[[#This Row],[Station Number]],Table_Attach1[Receipt Point Number],0),)*INDEX(Conversions!$C$7:$C$8,MATCH('Toll Calculator'!$O$8,Conversions!$B$7:$B$8,0))*(365/12) -> 162.73
C78: =Table_ReceiptPointAlphabetical[[#This Row],[Alphabetical Order Rank]] -> 72 | D78: =INDEX(Table_ReceiptPoint[Receipt Point Number],MATCH(Table_CloseReceipt[[#This Row],[Rank]],Table_ReceiptPoint[Distance Rank to Delivery Location],0),) -> 1632 | E78: =INDEX(Table_ReceiptPoint[Receipt Point Name2],MATCH(Table_CloseReceipt[[#This Row],[Rank]],Table_ReceiptPoint[Distance Rank to Delivery Location],0),) -> FOISY* | F78: =INDEX(Table_ReceiptPoint[Distance From Delivery Station],MATCH(Table_CloseReceipt[[#This Row],[Rank]],Table_ReceiptPoint[Distance Rank to Delivery Location],0),) -> 123.4264 | G78: =INDEX(Table_ReceiptPoint[Legal Location Name],MATCH(Table_CloseReceipt[[#This Row],[Rank]],Table_ReceiptPoint[Distance Rank to Delivery Location],0),) -> 04-30-056-11-W4 | H78: =INDEX(Table_Attach1[FT-R Demand Rate Price Point "B" ($/103m3/mo)],MATCH(Table_CloseReceipt[[#This Row],[Station Number]],Table_Attach1[Receipt Point Number],0),)*INDEX(Conversions!$C$7:$C$8,MATCH('Toll Calculator'!$O$8,Conversions!$B$7:$B$8,0)) -> 184.05 | I78: =INDEX(Table_Attach3[FT-P Demand Rate Price Point "B"],MATCH(IF(CEILING(Table_CloseReceipt[[#This Row],[Distance (km)]],25)>500,999999,CEILING(Table_CloseReceipt[[#This Row],[Distance (km)]],25)),Table_Attach3[Maximum Distance Between Receipt Point and Delivery Point (km)],0),)*INDEX(Conversions!$C$7:$C$8,MATCH('Toll Calculator'!$O$8,Conversions!$B$7:$B$8,0)) -> 454.79 | J78: =INDEX(Table_Attach1[IT-R Rate ($/103m3/d)],MATCH(Table_CloseReceipt[[#This Row],[Station Number]],Table_Attach1[Receipt Point Number],0),)*INDEX(Conversions!$C$7:$C$8,MATCH('Toll Calculator'!$O$8,Conversions!$B$7:$B$8,0))*(365/12) -> 211.09
C79: =Table_ReceiptPointAlphabetical[[#This Row],[Alphabetical Order Rank]] -> 73 | D79: =INDEX(Table_ReceiptPoint[Receipt Point Number],MATCH(Table_CloseReceipt[[#This Row],[Rank]],Table_ReceiptPoint[Distance Rank to Delivery Location],0),) -> 1257 | E79: =INDEX(Table_ReceiptPoint[Receipt Point Name2],MATCH(Table_CloseReceipt[[#This Row],[Rank]],Table_ReceiptPoint[Distance Rank to Delivery Location],0),) -> VIKING NORTH* | F79: =INDEX(Table_ReceiptPoint[Distance From Delivery Station],MATCH(Table_CloseReceipt[[#This Row],[Rank]],Table_ReceiptPoint[Distance Rank to Delivery Location],0),) -> 124.096 | G79: =INDEX(Table_ReceiptPoint[Legal Location Name],MATCH(Table_CloseReceipt[[#This Row],[Rank]],Table_ReceiptPoint[Distance Rank to Delivery Location],0),) -> NW-31-049-13-W4 | H79: =INDEX(Table_Attach1[FT-R Demand Rate Price Point "B" ($/103m3/mo)],MATCH(Table_CloseReceipt[[#This Row],[Station Number]],Table_Attach1[Receipt Point Number],0),)*INDEX(Conversions!$C$7:$C$8,MATCH('Toll Calculator'!$O$8,Conversions!$B$7:$B$8,0)) -> 353.27 | I79: =INDEX(Table_Attach3[FT-P Demand Rate Price Point "B"],MATCH(IF(CEILING(Table_CloseReceipt[[#This Row],[Distance (km)]],25)>500,999999,CEILING(Table_CloseReceipt[[#This Row],[Distance (km)]],25)),Table_Attach3[Maximum Distance Between Receipt Point and Delivery Point (km)],0),)*INDEX(Conversions!$C$7:$C$8,MATCH('Toll Calculator'!$O$8,Conversions!$B$7:$B$8,0)) -> 454.79 | J79: =INDEX(Table_Attach1[IT-R Rate ($/103m3/d)],MATCH(Table_CloseReceipt[[#This Row],[Station Number]],Table_Attach1[Receipt Point Number],0),)*INDEX(Conversions!$C$7:$C$8,MATCH('Toll Calculator'!$O$8,Conversions!$B$7:$B$8,0))*(365/12) -> 405.15
C80: =Table_ReceiptPointAlphabetical[[#This Row],[Alphabetical Order Rank]] -> 74 | D80: =INDEX(Table_ReceiptPoint[Receipt Point Number],MATCH(Table_CloseReceipt[[#This Row],[Rank]],Table_ReceiptPoint[Distance Rank to Delivery Location],0),) -> 1323 | E80: =INDEX(Table_ReceiptPoint[Receipt Point Name2],MATCH(Table_CloseReceipt[[#This Row],[Rank]],Table_ReceiptPoint[Distance Rank to Delivery Location],0),) -> CHOICE B* | F80: =INDEX(Table_ReceiptPoint[Distance From Delivery Station],MATCH(Table_CloseReceipt[[#This Row],[Rank]],Table_ReceiptPoint[Distance Rank to Delivery Location],0),) -> 124.7796 | G80: =INDEX(Table_ReceiptPoint[Legal Location Name],MATCH(Table_CloseReceipt[[#This Row],[Rank]],Table_ReceiptPoint[Distance Rank to Delivery Location],0),) -> SE-17-040-09-W4 | H80: =INDEX(Table_Attach1[FT-R Demand Rate Price Point "B" ($/103m3/mo)],MATCH(Table_CloseReceipt[[#This Row],[Station Number]],Table_Attach1[Receipt Point Number],0),)*INDEX(Conversions!$C$7:$C$8,MATCH('Toll Calculator'!$O$8,Conversions!$B$7:$B$8,0)) -> 489.42 | I80: =INDEX(Table_Attach3[FT-P Demand Rate Price Point "B"],MATCH(IF(CEILING(Table_CloseReceipt[[#This Row],[Distance (km)]],25)>500,999999,CEILING(Table_CloseReceipt[[#This Row],[Distance (km)]],25)),Table_Attach3[Maximum Distance Between Receipt Point and Delivery Point (km)],0),)*INDEX(Conversions!$C$7:$C$8,MATCH('Toll Calculator'!$O$8,Conversions!$B$7:$B$8,0)) -> 454.79 | J80: =INDEX(Table_Attach1[IT-R Rate ($/103m3/d)],MATCH(Table_CloseReceipt[[#This Row],[Station Number]],Table_Attach1[Receipt Point Number],0),)*INDEX(Conversions!$C$7:$C$8,MATCH('Toll Calculator'!$O$8,Conversions!$B$7:$B$8,0))*(365/12) -> 561.19
C81: =Table_ReceiptPointAlphabetical[[#This Row],[Alphabetical Order Rank]] -> 75 | D81: =INDEX(Table_ReceiptPoint[Receipt Point Number],MATCH(Table_CloseReceipt[[#This Row],[Rank]],Table_ReceiptPoint[Distance Rank to Delivery Location],0),) -> 1322 | E81: =INDEX(Table_ReceiptPoint[Receipt Point Name2],MATCH(Table_CloseReceipt[[#This Row],[Rank]],Table_ReceiptPoint[Distance Rank to Delivery Location],0),) -> CHOICE* | F81: =INDEX(Table_ReceiptPoint[Distance From Delivery Station],MATCH(Table_CloseReceipt[[#This Row],[Rank]],Table_ReceiptPoint[Distance Rank to Delivery Location],0),) -> 124.8083 | G81: =INDEX(Table_ReceiptPoint[Legal Location Name],MATCH(Table_CloseReceipt[[#This Row],[Rank]],Table_ReceiptPoint[Distance Rank to Delivery Location],0),) -> NW-17-040-09-W4 | H81: =INDEX(Table_Attach1[FT-R Demand Rate Price Point "B" ($/103m3/mo)],MATCH(Table_CloseReceipt[[#This Row],[Station Number]],Table_Attach1[Receipt Point Number],0),)*INDEX(Conversions!$C$7:$C$8,MATCH('Toll Calculator'!$O$8,Conversions!$B$7:$B$8,0)) -> 489.29 | I81: =INDEX(Table_Attach3[FT-P Demand Rate Price Point "B"],MATCH(IF(CEILING(Table_CloseReceipt[[#This Row],[Distance (km)]],25)>500,999999,CEILING(Table_CloseReceipt[[#This Row],[Distance (km)]],25)),Table_Attach3[Maximum Distance Between Receipt Point and Delivery Point (km)],0),)*INDEX(Conversions!$C$7:$C$8,MATCH('Toll Calculator'!$O$8,Conversions!$B$7:$B$8,0)) -> 454.79 | J81: =INDEX(Table_Attach1[IT-R Rate ($/103m3/d)],MATCH(Table_CloseReceipt[[#This Row],[Station Number]],Table_Attach1[Receipt Point Number],0),)*INDEX(Conversions!$C$7:$C$8,MATCH('Toll Calculator'!$O$8,Conversions!$B$7:$B$8,0))*(365/12) -> 561.19
C82: =Table_ReceiptPointAlphabetical[[#This Row],[Alphabetical Order Rank]] -> 76 | D82: =INDEX(Table_ReceiptPoint[Receipt Point Number],MATCH(Table_CloseReceipt[[#This Row],[Rank]],Table_ReceiptPoint[Distance Rank to Delivery Location],0),) -> 1852 | E82: =INDEX(Table_ReceiptPoint[Receipt Point Name2],MATCH(Table_CloseReceipt[[#This Row],[Rank]],Table_ReceiptPoint[Distance Rank to Delivery Location],0),) -> PAKAN LAKE* | F82: =INDEX(Table_ReceiptPoint[Distance From Delivery Station],MATCH(Table_CloseReceipt[[#This Row],[Rank]],Table_ReceiptPoint[Distance Rank to Delivery Location],0),) -> 126.0003 | G82: =INDEX(Table_ReceiptPoint[Legal Location Name],MATCH(Table_CloseReceipt[[#This Row],[Rank]],Table_ReceiptPoint[Distance Rank to Delivery Location],0),) -> 01-18-057-11-W4 | H82: =INDEX(Table_Attach1[FT-R Demand Rate Price Point "B" ($/103m3/mo)],MATCH(Table_CloseReceipt[[#This Row],[Station Number]],Table_Attach1[Receipt Point Number],0),)*INDEX(Conversions!$C$7:$C$8,MATCH('Toll Calculator'!$O$8,Conversions!$B$7:$B$8,0)) -> 156.15 | I82: =INDEX(Table_Attach3[FT-P Demand Rate Price Point "B"],MATCH(IF(CEILING(Table_CloseReceipt[[#This Row],[Distance (km)]],25)>500,999999,CEILING(Table_CloseReceipt[[#This Row],[Distance (km)]],25)),Table_Attach3[Maximum Distance Between Receipt Point and Delivery Point (km)],0),)*INDEX(Conversions!$C$7:$C$8,MATCH('Toll Calculator'!$O$8,Conversions!$B$7:$B$8,0)) -> 478.17 | J82: =INDEX(Table_Attach1[IT-R Rate ($/103m3/d)],MATCH(Table_CloseReceipt[[#This Row],[Station Number]],Table_Attach1[Receipt Point Number],0),)*INDEX(Conversions!$C$7:$C$8,MATCH('Toll Calculator'!$O$8,Conversions!$B$7:$B$8,0))*(365/12) -> 179.15
C83: =Table_ReceiptPointAlphabetical[[#This Row],[Alphabetical Order Rank]] -> 77 | D83: =INDEX(Table_ReceiptPoint[Receipt Point Number],MATCH(Table_CloseReceipt[[#This Row],[Rank]],Table_ReceiptPoint[Distance Rank to Delivery Location],0),) -> 1132 | E83: =INDEX(Table_ReceiptPoint[Receipt Point Name2],MATCH(Table_CloseReceipt[[#This Row],[Rank]],Table_ReceiptPoint[Distance Rank to Delivery Location],0),) -> LAVOY | F83: =INDEX(Table_ReceiptPoint[Distance From Delivery Station],MATCH(Table_CloseReceipt[[#This Row],[Rank]],Table_ReceiptPoint[Distance Rank to Delivery Location],0),) -> 127.6827 | G83: =INDEX(Table_ReceiptPoint[Legal Location Name],MATCH(Table_CloseReceipt[[#This Row],[Rank]],Table_ReceiptPoint[Distance Rank to Delivery Location],0),) -> NW-12-052-14-W4 | H83: =INDEX(Table_Attach1[FT-R Demand Rate Price Point "B" ($/103m3/mo)],MATCH(Table_CloseReceipt[[#This Row],[Station Number]],Table_Attach1[Receipt Point Number],0),)*INDEX(Conversions!$C$7:$C$8,MATCH('Toll Calculator'!$O$8,Conversions!$B$7:$B$8,0)) -> 246.41 | I83: =INDEX(Table_Attach3[FT-P Demand Rate Price Point "B"],MATCH(IF(CEILING(Table_CloseReceipt[[#This Row],[Distance (km)]],25)>500,999999,CEILING(Table_CloseReceipt[[#This Row],[Distance (km)]],25)),Table_Attach3[Maximum Distance Between Receipt Point and Delivery Point (km)],0),)*INDEX(Conversions!$C$7:$C$8,MATCH('Toll Calculator'!$O$8,Conversions!$B$7:$B$8,0)) -> 478.17 | J83: =INDEX(Table_Attach1[IT-R Rate ($/103m3/d)],MATCH(Table_CloseReceipt[[#This Row],[Station Number]],Table_Attach1[Receipt Point Number],0),)*INDEX(Conversions!$C$7:$C$8,MATCH('Toll Calculator'!$O$8,Conversions!$B$7:$B$8,0))*(365/12) -> 282.57
C84: =Table_ReceiptPointAlphabetical[[#This Row],[Alphabetical Order Rank]] -> 78 | D84: =INDEX(Table_ReceiptPoint[Receipt Point Number],MATCH(Table_CloseReceipt[[#This Row],[Rank]],Table_ReceiptPoint[Distance Rank to Delivery Location],0),) -> 1660 | E84: =INDEX(Table_ReceiptPoint[Receipt Point Name2],MATCH(Table_CloseReceipt[[#This Row],[Rank]],Table_ReceiptPoint[Distance Rank to Delivery Location],0),) -> BONNYVILLE* | F84: =INDEX(Table_ReceiptPoint[Distance From Delivery Station],MATCH(Table_CloseReceipt[[#This Row],[Rank]],Table_ReceiptPoint[Distance Rank to Delivery Location],0),) -> 128.0468 | G84: =INDEX(Table_ReceiptPoint[Legal Location Name],MATCH(Table_CloseReceipt[[#This Row],[Rank]],Table_ReceiptPoint[Distance Rank to Delivery Location],0),) -> 16-12-062-06-W4 | H84: =INDEX(Table_Attach1[FT-R Demand Rate Price Point "B" ($/103m3/mo)],MATCH(Table_CloseReceipt[[#This Row],[Station Number]],Table_Attach1[Receipt Point Number],0),)*INDEX(Conversions!$C$7:$C$8,MATCH('Toll Calculator'!$O$8,Conversions!$B$7:$B$8,0)) -> 141.89 | I84: =INDEX(Table_Attach3[FT-P Demand Rate Price Point "B"],MATCH(IF(CEILING(Table_CloseReceipt[[#This Row],[Distance (km)]],25)>500,999999,CEILING(Table_CloseReceipt[[#This Row],[Distance (km)]],25)),Table_Attach3[Maximum Distance Between Receipt Point and Delivery Point (km)],0),)*INDEX(Conversions!$C$7:$C$8,MATCH('Toll Calculator'!$O$8,Conversions!$B$7:$B$8,0)) -> 478.17 | J84: =INDEX(Table_Attach1[IT-R Rate ($/103m3/d)],MATCH(Table_CloseReceipt[[#This Row],[Station Number]],Table_Attach1[Receipt Point Number],0),)*INDEX(Conversions!$C$7:$C$8,MATCH('Toll Calculator'!$O$8,Conversions!$B$7:$B$8,0))*(365/12) -> 162.73
C85: =Table_ReceiptPointAlphabetical[[#This Row],[Alphabetical Order Rank]] -> 79 | D85: =INDEX(Table_ReceiptPoint[Receipt Point Number],MATCH(Table_CloseReceipt[[#This Row],[Rank]],Table_ReceiptPoint[Distance Rank to Delivery Location],0),) -> 1038 | E85: =INDEX(Table_ReceiptPoint[Receipt Point Name2],MATCH(Table_CloseReceipt[[#This Row],[Rank]],Table_ReceiptPoint[Distance Rank to Delivery Location],0),) -> PROVOST-KESSLER | F85: =INDEX(Table_ReceiptPoint[Distance From Delivery Station],MATCH(Table_CloseReceipt[[#This Row],[Rank]],Table_ReceiptPoint[Distance Rank to Delivery Location],0),) -> 128.3403 | G85: =INDEX(Table_ReceiptPoint[Legal Location Name],MATCH(Table_CloseReceipt[[#This Row],[Rank]],Table_ReceiptPoint[Distance Rank to Delivery Location],0),) -> NE-05-039-08-W4 | H85: =INDEX(Table_Attach1[FT-R Demand Rate Price Point "B" ($/103m3/mo)],MATCH(Table_CloseReceipt[[#This Row],[Station Number]],Table_Attach1[Receipt Point Number],0),)*INDEX(Conversions!$C$7:$C$8,MATCH('Toll Calculator'!$O$8,Conversions!$B$7:$B$8,0)) -> 501.97 | I85: =INDEX(Table_Attach3[FT-P Demand Rate Price Point "B"],MATCH(IF(CEILING(Table_CloseReceipt[[#This Row],[Distance (km)]],25)>500,999999,CEILING(Table_CloseReceipt[[#This Row],[Distance (km)]],25)),Table_Attach3[Maximum Distance Between Receipt Point and Delivery Point (km)],0),)*INDEX(Conversions!$C$7:$C$8,MATCH('Toll Calculator'!$O$8,Conversions!$B$7:$B$8,0)) -> 478.17 | J85: =INDEX(Table_Attach1[IT-R Rate ($/103m3/d)],MATCH(Table_CloseReceipt[[#This Row],[Station Number]],Table_Attach1[Receipt Point Number],0),)*INDEX(Conversions!$C$7:$C$8,MATCH('Toll Calculator'!$O$8,Conversions!$B$7:$B$8,0))*(365/12) -> 575.79
C86: =Table_ReceiptPointAlphabetical[[#This Row],[Alphabetical Order Rank]] -> 80 | D86: =INDEX(Table_ReceiptPoint[Receipt Point Number],MATCH(Table_CloseReceipt[[#This Row],[Rank]],Table_ReceiptPoint[Distance Rank to Delivery Location],0),) -> 1311 | E86: =INDEX(Table_ReceiptPoint[Receipt Point Name2],MATCH(Table_CloseReceipt[[#This Row],[Rank]],Table_ReceiptPoint[Distance Rank to Delivery Location],0),) -> SADDLE LAKE NORTH | F86: =INDEX(Table_ReceiptPoint[Distance From Delivery Station],MATCH(Table_CloseReceipt[[#This Row],[Rank]],Table_ReceiptPoint[Distance Rank to Delivery Location],0),) -> 128.3704 | G86: =INDEX(Table_ReceiptPoint[Legal Location Name],MATCH(Table_CloseReceipt[[#This Row],[Rank]],Table_ReceiptPoint[Distance Rank to Delivery Location],0),) -> 09-09-058-11-W4 | H86: =INDEX(Table_Attach1[FT-R Demand Rate Price Point "B" ($/103m3/mo)],MATCH(Table_CloseReceipt[[#This Row],[Station Number]],Table_Attach1[Receipt Point Number],0),)*INDEX(Conversions!$C$7:$C$8,MATCH('Toll Calculator'!$O$8,Conversions!$B$7:$B$8,0)) -> 151.07 | I86: =INDEX(Table_Attach3[FT-P Demand Rate Price Point "B"],MATCH(IF(CEILING(Table_CloseReceipt[[#This Row],[Distance (km)]],25)>500,999999,CEILING(Table_CloseReceipt[[#This Row],[Distance (km)]],25)),Table_Attach3[Maximum Distance Between Receipt Point and Delivery Point (km)],0),)*INDEX(Conversions!$C$7:$C$8,MATCH('Toll Calculator'!$O$8,Conversions!$B$7:$B$8,0)) -> 478.17 | J86: =INDEX(Table_Attach1[IT-R Rate ($/103m3/d)],MATCH(Table_CloseReceipt[[#This Row],[Station Number]],Table_Attach1[Receipt Point Number],0),)*INDEX(Conversions!$C$7:$C$8,MATCH('Toll Calculator'!$O$8,Conversions!$B$7:$B$8,0))*(365/12) -> 173.38
C87: =Table_ReceiptPointAlphabetical[[#This Row],[Alphabetical Order Rank]] -> 81 | D87: =INDEX(Table_ReceiptPoint[Receipt Point Number],MATCH(Table_CloseReceipt[[#This Row],[Rank]],Table_ReceiptPoint[Distance Rank to Delivery Location],0),) -> 1456 | E87: =INDEX(Table_ReceiptPoint[Receipt Point Name2],MATCH(Table_CloseReceipt[[#This Row],[Rank]],Table_ReceiptPoint[Distance Rank to Delivery Location],0),) -> GLENDON | F87: =INDEX(Table_ReceiptPoint[Distance From Delivery Station],MATCH(Table_CloseReceipt[[#This Row],[Rank]],Table_ReceiptPoint[Distance Rank to Delivery Location],0),) -> 131.391 | G87: =INDEX(Table_ReceiptPoint[Legal Location Name],MATCH(Table_CloseReceipt[[#This Row],[Rank]],Table_ReceiptPoint[Distance Rank to Delivery Location],0),) -> 03-16-061-08-W4 | H87: =INDEX(Table_Attach1[FT-R Demand Rate Price Point "B" ($/103m3/mo)],MATCH(Table_CloseReceipt[[#This Row],[Station Number]],Table_Attach1[Receipt Point Number],0),)*INDEX(Conversions!$C$7:$C$8,MATCH('Toll Calculator'!$O$8,Conversions!$B$7:$B$8,0)) -> 141.89 | I87: =INDEX(Table_Attach3[FT-P Demand Rate Price Point "B"],MATCH(IF(CEILING(Table_CloseReceipt[[#This Row],[Distance (km)]],25)>500,999999,CEILING(Table_CloseReceipt[[#This Row],[Distance (km)]],25)),Table_Attach3[Maximum Distance Between Receipt Point and Delivery Point (km)],0),)*INDEX(Conversions!$C$7:$C$8,MATCH('Toll Calculator'!$O$8,Conversions!$B$7:$B$8,0)) -> 478.17 | J87: =INDEX(Table_Attach1[IT-R Rate ($/103m3/d)],MATCH(Table_CloseReceipt[[#This Row],[Station Number]],Table_Attach1[Receipt Point Number],0),)*INDEX(Conversions!$C$7:$C$8,MATCH('Toll Calculator'!$O$8,Conversions!$B$7:$B$8,0))*(365/12) -> 162.73
C88: =Table_ReceiptPointAlphabetical[[#This Row],[Alphabetical Order Rank]] -> 82 | D88: =INDEX(Table_ReceiptPoint[Receipt Point Number],MATCH(Table_CloseReceipt[[#This Row],[Rank]],Table_ReceiptPoint[Distance Rank to Delivery Location],0),) -> 1114 | E88: =INDEX(Table_ReceiptPoint[Receipt Point Name2],MATCH(Table_CloseReceipt[[#This Row],[Rank]],Table_ReceiptPoint[Distance Rank to Delivery Location],0),) -> SEDGEWICK | F88: =INDEX(Table_ReceiptPoint[Distance From Delivery Station],MATCH(Table_CloseReceipt[[#This Row],[Rank]],Table_ReceiptPoint[Distance Rank to Delivery Location],0),) -> 132.5214 | G88: =INDEX(Table_ReceiptPoint[Legal Location Name],MATCH(Table_CloseReceipt[[#This Row],[Rank]],Table_ReceiptPoint[Distance Rank to Delivery Location],0),) -> SE-16-042-12-W4 | H88: =INDEX(Table_Attach1[FT-R Demand Rate Price Point "B" ($/103m3/mo)],MATCH(Table_CloseReceipt[[#This Row],[Station Number]],Table_Attach1[Receipt Point Number],0),)*INDEX(Conversions!$C$7:$C$8,MATCH('Toll Calculator'!$O$8,Conversions!$B$7:$B$8,0)) -> 441.06 | I88: =INDEX(Table_Attach3[FT-P Demand Rate Price Point "B"],MATCH(IF(CEILING(Table_CloseReceipt[[#This Row],[Distance (km)]],25)>500,999999,CEILING(Table_CloseReceipt[[#This Row],[Distance (km)]],25)),Table_Attach3[Maximum Distance Between Receipt Point and Delivery Point (km)],0),)*INDEX(Conversions!$C$7:$C$8,MATCH('Toll Calculator'!$O$8,Conversions!$B$7:$B$8,0)) -> 478.17 | J88: =INDEX(Table_Attach1[IT-R Rate ($/103m3/d)],MATCH(Table_CloseReceipt[[#This Row],[Station Number]],Table_Attach1[Receipt Point Number],0),)*INDEX(Conversions!$C$7:$C$8,MATCH('Toll Calculator'!$O$8,Conversions!$B$7:$B$8,0))*(365/12) -> 505.83
C89: =Table_ReceiptPointAlphabetical[[#This Row],[Alphabetical Order Rank]] -> 83 | D89: =INDEX(Table_ReceiptPoint[Receipt Point Number],MATCH(Table_CloseReceipt[[#This Row],[Rank]],Table_ReceiptPoint[Distance Rank to Delivery Location],0),) -> 1718 | E89: =INDEX(Table_ReceiptPoint[Receipt Point Name2],MATCH(Table_CloseReceipt[[#This Row],[Rank]],Table_ReceiptPoint[Distance Rank to Delivery Location],0),) -> LACOREY* | F89: =INDEX(Table_ReceiptPoint[Distance From Delivery Station],MATCH(Table_CloseReceipt[[#This Row],[Rank]],Table_ReceiptPoint[Distance Rank to Delivery Location],0),) -> 134.4538 | G89: =INDEX(Table_ReceiptPoint[Legal Location Name],MATCH(Table_CloseReceipt[[#This Row],[Rank]],Table_ReceiptPoint[Distance Rank to Delivery Location],0),) -> 11-05-063-05-W4 | H89: =INDEX(Table_Attach1[FT-R Demand Rate Price Point "B" ($/103m3/mo)],MATCH(Table_CloseReceipt[[#This Row],[Station Number]],Table_Attach1[Receipt Point Number],0),)*INDEX(Conversions!$C$7:$C$8,MATCH('Toll Calculator'!$O$8,Conversions!$B$7:$B$8,0)) -> 141.89 | I89: =INDEX(Table_Attach3[FT-P Demand Rate Price Point "B"],MATCH(IF(CEILING(Table_CloseReceipt[[#This Row],[Distance (km)]],25)>500,999999,CEILING(Table_CloseReceipt[[#This Row],[Distance (km)]],25)),Table_Attach3[Maximum Distance Between Receipt Point and Delivery Point (km)],0),)*INDEX(Conversions!$C$7:$C$8,MATCH('Toll Calculator'!$O$8,Conversions!$B$7:$B$8,0)) -> 478.17 | J89: =INDEX(Table_Attach1[IT-R Rate ($/103m3/d)],MATCH(Table_CloseReceipt[[#This Row],[Station Number]],Table_Attach1[Receipt Point Number],0),)*INDEX(Conversions!$C$7:$C$8,MATCH('Toll Calculator'!$O$8,Conversions!$B$7:$B$8,0))*(365/12) -> 162.73
C90: =Table_ReceiptPointAlphabetical[[#This Row],[Alphabetical Order Rank]] -> 84 | D90: =INDEX(Table_ReceiptPoint[Receipt Point Number],MATCH(Table_CloseReceipt[[#This Row],[Rank]],Table_ReceiptPoint[Distance Rank to Delivery Location],0),) -> 1484 | E90: =INDEX(Table_ReceiptPoint[Receipt Point Name2],MATCH(Table_CloseReceipt[[#This Row],[Rank]],Table_ReceiptPoint[Distance Rank to Delivery Location],0),) -> MOOSELAKE RIVER | F90: =INDEX(Table_ReceiptPoint[Distance From Delivery Station],MATCH(Table_CloseReceipt[[#This Row],[Rank]],Table_ReceiptPoint[Distance Rank to Delivery Location],0),) -> 135.2308 | G90: =INDEX(Table_ReceiptPoint[Legal Location Name],MATCH(Table_CloseReceipt[[#This Row],[Rank]],Table_ReceiptPoint[Distance Rank to Delivery Location],0),) -> 16-08-062-07-W4 | H90: =INDEX(Table_Attach1[FT-R Demand Rate Price Point "B" ($/103m3/mo)],MATCH(Table_CloseReceipt[[#This Row],[Station Number]],Table_Attach1[Receipt Point Number],0),)*INDEX(Conversions!$C$7:$C$8,MATCH('Toll Calculator'!$O$8,Conversions!$B$7:$B$8,0)) -> 141.89 | I90: =INDEX(Table_Attach3[FT-P Demand Rate Price Point "B"],MATCH(IF(CEILING(Table_CloseReceipt[[#This Row],[Distance (km)]],25)>500,999999,CEILING(Table_CloseReceipt[[#This Row],[Distance (km)]],25)),Table_Attach3[Maximum Distance Between Receipt Point and Delivery Point (km)],0),)*INDEX(Conversions!$C$7:$C$8,MATCH('Toll Calculator'!$O$8,Conversions!$B$7:$B$8,0)) -> 478.17 | J90: =INDEX(Table_Attach1[IT-R Rate ($/103m3/d)],MATCH(Table_CloseReceipt[[#This Row],[Station Number]],Table_Attach1[Receipt Point Number],0),)*INDEX(Conversions!$C$7:$C$8,MATCH('Toll Calculator'!$O$8,Conversions!$B$7:$B$8,0))*(365/12) -> 162.73
C91: =Table_ReceiptPointAlphabetical[[#This Row],[Alphabetical Order Rank]] -> 85 | D91: =INDEX(Table_ReceiptPoint[Receipt Point Number],MATCH(Table_CloseReceipt[[#This Row],[Rank]],Table_ReceiptPoint[Distance Rank to Delivery Location],0),) -> 1118 | E91: =INDEX(Table_ReceiptPoint[Receipt Point Name2],MATCH(Table_CloseReceipt[[#This Row],[Rank]],Table_ReceiptPoint[Distance Rank to Delivery Location],0),) -> WARWICK | F91: =INDEX(Table_ReceiptPoint[Distance From Delivery Station],MATCH(Table_CloseReceipt[[#This Row],[Rank]],Table_ReceiptPoint[Distance Rank to Delivery Location],0),) -> 136.745 | G91: =INDEX(Table_ReceiptPoint[Legal Location Name],MATCH(Table_CloseReceipt[[#This Row],[Rank]],Table_ReceiptPoint[Distance Rank to Delivery Location],0),) -> NW-04-054-14-W4 | H91: =INDEX(Table_Attach1[FT-R Demand Rate Price Point "B" ($/103m3/mo)],MATCH(Table_CloseReceipt[[#This Row],[Station Number]],Table_Attach1[Receipt Point Number],0),)*INDEX(Conversions!$C$7:$C$8,MATCH('Toll Calculator'!$O$8,Conversions!$B$7:$B$8,0)) -> 215.27 | I91: =INDEX(Table_Attach3[FT-P Demand Rate Price Point "B"],MATCH(IF(CEILING(Table_CloseReceipt[[#This Row],[Distance (km)]],25)>500,999999,CEILING(Table_CloseReceipt[[#This Row],[Distance (km)]],25)),Table_Attach3[Maximum Distance Between Receipt Point and Delivery Point (km)],0),)*INDEX(Conversions!$C$7:$C$8,MATCH('Toll Calculator'!$O$8,Conversions!$B$7:$B$8,0)) -> 478.17 | J91: =INDEX(Table_Attach1[IT-R Rate ($/103m3/d)],MATCH(Table_CloseReceipt[[#This Row],[Station Number]],Table_Attach1[Receipt Point Number],0),)*INDEX(Conversions!$C$7:$C$8,MATCH('Toll Calculator'!$O$8,Conversions!$B$7:$B$8,0))*(365/12) -> 246.98
C92: =Table_ReceiptPointAlphabetical[[#This Row],[Alphabetical Order Rank]] -> 86 | D92: =INDEX(Table_ReceiptPoint[Receipt Point Number],MATCH(Table_CloseReceipt[[#This Row],[Rank]],Table_ReceiptPoint[Distance Rank to Delivery Location],0),) -> 3948 | E92: =INDEX(Table_ReceiptPoint[Receipt Point Name2],MATCH(Table_CloseReceipt[[#This Row],[Rank]],Table_ReceiptPoint[Distance Rank to Delivery Location],0),) -> WARWICK SOUTHEAST INTERCONNECTION | F92: =INDEX(Table_ReceiptPoint[Distance From Delivery Station],MATCH(Table_CloseReceipt[[#This Row],[Rank]],Table_ReceiptPoint[Distance Rank to Delivery Location],0),) -> 136.8527 | G92: =INDEX(Table_ReceiptPoint[Legal Location Name],MATCH(Table_CloseReceipt[[#This Row],[Rank]],Table_ReceiptPoint[Distance Rank to Delivery Location],0),) -> 10-07-053-14-W4 | H92: =INDEX(Table_Attach1[FT-R Demand Rate Price Point "B" ($/103m3/mo)],MATCH(Table_CloseReceipt[[#This Row],[Station Number]],Table_Attach1[Receipt Point Number],0),)*INDEX(Conversions!$C$7:$C$8,MATCH('Toll Calculator'!$O$8,Conversions!$B$7:$B$8,0)) -> 240.06 | I92: =INDEX(Table_Attach3[FT-P Demand Rate Price Point "B"],MATCH(IF(CEILING(Table_CloseReceipt[[#This Row],[Distance (km)]],25)>500,999999,CEILING(Table_CloseReceipt[[#This Row],[Distance (km)]],25)),Table_Attach3[Maximum Distance Between Receipt Point and Delivery Point (km)],0),)*INDEX(Conversions!$C$7:$C$8,MATCH('Toll Calculator'!$O$8,Conversions!$B$7:$B$8,0)) -> 478.17 | J92: =INDEX(Table_Attach1[IT-R Rate ($/103m3/d)],MATCH(Table_CloseReceipt[[#This Row],[Station Number]],Table_Attach1[Receipt Point Number],0),)*INDEX(Conversions!$C$7:$C$8,MATCH('Toll Calculator'!$O$8,Conversions!$B$7:$B$8,0))*(365/12) -> 275.27
C93: =Table_ReceiptPointAlphabetical[[#This Row],[Alphabetical Order Rank]] -> 87 | D93: =INDEX(Table_ReceiptPoint[Receipt Point Number],MATCH(Table_CloseReceipt[[#This Row],[Rank]],Table_ReceiptPoint[Distance Rank to Delivery Location],0),) -> 1215 | E93: =INDEX(Table_ReceiptPoint[Receipt Point Name2],MATCH(Table_CloseReceipt[[#This Row],[Rank]],Table_ReceiptPoint[Distance Rank to Delivery Location],0),) -> BRUCE NORTH* | F93: =INDEX(Table_ReceiptPoint[Distance From Delivery Station],MATCH(Table_CloseReceipt[[#This Row],[Rank]],Table_ReceiptPoint[Distance Rank to Delivery Location],0),) -> 136.931 | G93: =INDEX(Table_ReceiptPoint[Legal Location Name],MATCH(Table_CloseReceipt[[#This Row],[Rank]],Table_ReceiptPoint[Distance Rank to Delivery Location],0),) -> SW-01-048-15-W4 | H93: =INDEX(Table_Attach1[FT-R Demand Rate Price Point "B" ($/103m3/mo)],MATCH(Table_CloseReceipt[[#This Row],[Station Number]],Table_Attach1[Receipt Point Number],0),)*INDEX(Conversions!$C$7:$C$8,MATCH('Toll Calculator'!$O$8,Conversions!$B$7:$B$8,0)) -> 320.76 | I93: =INDEX(Table_Attach3[FT-P Demand Rate Price Point "B"],MATCH(IF(CEILING(Table_CloseReceipt[[#This Row],[Distance (km)]],25)>500,999999,CEILING(Table_CloseReceipt[[#This Row],[Distance (km)]],25)),Table_Attach3[Maximum Distance Between Receipt Point and Delivery Point (km)],0),)*INDEX(Conversions!$C$7:$C$8,MATCH('Toll Calculator'!$O$8,Conversions!$B$7:$B$8,0)) -> 478.17 | J93: =INDEX(Table_Attach1[IT-R Rate ($/103m3/d)],MATCH(Table_CloseReceipt[[#This Row],[Station Number]],Table_Attach1[Receipt Point Number],0),)*INDEX(Conversions!$C$7:$C$8,MATCH('Toll Calculator'!$O$8,Conversions!$B$7:$B$8,0))*(365/12) -> 367.74
C94: =Table_ReceiptPointAlphabetical[[#This Row],[Alphabetical Order Rank]] -> 88 | D94: =INDEX(Table_ReceiptPoint[Receipt Point Number],MATCH(Table_CloseReceipt[[#This Row],[Rank]],Table_ReceiptPoint[Distance Rank to Delivery Location],0),) -> 1299 | E94: =INDEX(Table_ReceiptPoint[Receipt Point Name2],MATCH(Table_CloseReceipt[[#This Row],[Rank]],Table_ReceiptPoint[Distance Rank to Delivery Location],0),) -> ROYAL PARK* | F94: =INDEX(Table_ReceiptPoint[Distance From Delivery Station],MATCH(Table_CloseReceipt[[#This Row],[Rank]],Table_ReceiptPoint[Distance Rank to Delivery Location],0),) -> 137.5221 | G94: =INDEX(Table_ReceiptPoint[Legal Location Name],MATCH(Table_CloseReceipt[[#This Row],[Rank]],Table_ReceiptPoint[Distance Rank to Delivery Location],0),) -> 16-23-051-15-W4 | H94: =INDEX(Table_Attach1[FT-R Demand Rate Price Point "B" ($/103m3/mo)],MATCH(Table_CloseReceipt[[#This Row],[Station Number]],Table_Attach1[Receipt Point Number],0),)*INDEX(Conversions!$C$7:$C$8,MATCH('Toll Calculator'!$O$8,Conversions!$B$7:$B$8,0)) -> 241.03 | I94: =INDEX(Table_Attach3[FT-P Demand Rate Price Point "B"],MATCH(IF(CEILING(Table_CloseReceipt[[#This Row],[Distance (km)]],25)>500,999999,CEILING(Table_CloseReceipt[[#This Row],[Distance (km)]],25)),Table_Attach3[Maximum Distance Between Receipt Point and Delivery Point (km)],0),)*INDEX(Conversions!$C$7:$C$8,MATCH('Toll Calculator'!$O$8,Conversions!$B$7:$B$8,0)) -> 478.17 | J94: =INDEX(Table_Attach1[IT-R Rate ($/103m3/d)],MATCH(Table_CloseReceipt[[#This Row],[Station Number]],Table_Attach1[Receipt Point Number],0),)*INDEX(Conversions!$C$7:$C$8,MATCH('Toll Calculator'!$O$8,Conversions!$B$7:$B$8,0))*(365/12) -> 276.49
C95: =Table_ReceiptPointAlphabetical[[#This Row],[Alphabetical Order Rank]] -> 89 | D95: =INDEX(Table_ReceiptPoint[Receipt Point Number],MATCH(Table_CloseReceipt[[#This Row],[Rank]],Table_ReceiptPoint[Distance Rank to Delivery Location],0),) -> 1230 | E95: =INDEX(Table_ReceiptPoint[Receipt Point Name2],MATCH(Table_CloseReceipt[[#This Row],[Rank]],Table_ReceiptPoint[Distance Rank to Delivery Location],0),) -> HAIRY HILL* | F95: =INDEX(Table_ReceiptPoint[Distance From Delivery Station],MATCH(Table_CloseReceipt[[#This Row],[Rank]],Table_ReceiptPoint[Distance Rank to Delivery Location],0),) -> 137.632 | G95: =INDEX(Table_ReceiptPoint[Legal Location Name],MATCH(Table_CloseReceipt[[#This Row],[Rank]],Table_ReceiptPoint[Distance Rank to Delivery Location],0),) -> SE-36-055-14-W4 | H95: =INDEX(Table_Attach1[FT-R Demand Rate Price Point "B" ($/103m3/mo)],MATCH(Table_CloseReceipt[[#This Row],[Station Number]],Table_Attach1[Receipt Point Number],0),)*INDEX(Conversions!$C$7:$C$8,MATCH('Toll Calculator'!$O$8,Conversions!$B$7:$B$8,0)) -> 253.88 | I95: =INDEX(Table_Attach3[FT-P Demand Rate Price Point "B"],MATCH(IF(CEILING(Table_CloseReceipt[[#This Row],[Distance (km)]],25)>500,999999,CEILING(Table_CloseReceipt[[#This Row],[Distance (km)]],25)),Table_Attach3[Maximum Distance Between Receipt Point and Delivery Point (km)],0),)*INDEX(Conversions!$C$7:$C$8,MATCH('Toll Calculator'!$O$8,Conversions!$B$7:$B$8,0)) -> 478.17 | J95: =INDEX(Table_Attach1[IT-R Rate ($/103m3/d)],MATCH(Table_CloseReceipt[[#This Row],[Station Number]],Table_Attach1[Receipt Point Number],0),)*INDEX(Conversions!$C$7:$C$8,MATCH('Toll Calculator'!$O$8,Conversions!$B$7:$B$8,0))*(365/12) -> 291.09
C96: =Table_ReceiptPointAlphabetical[[#This Row],[Alphabetical Order Rank]] -> 90 | D96: =INDEX(Table_ReceiptPoint[Receipt Point Number],MATCH(Table_CloseReceipt[[#This Row],[Rank]],Table_ReceiptPoint[Distance Rank to Delivery Location],0),) -> 1003 | E96: =INDEX(Table_ReceiptPoint[Receipt Point Name2],MATCH(Table_CloseReceipt[[#This Row],[Rank]],Table_ReceiptPoint[Distance Rank to Delivery Location],0),) -> PROVOST NORTH | F96: =INDEX(Table_ReceiptPoint[Distance From Delivery Station],MATCH(Table_CloseReceipt[[#This Row],[Rank]],Table_ReceiptPoint[Distance Rank to Delivery Location],0),) -> 139.094 | G96: =INDEX(Table_ReceiptPoint[Legal Location Name],MATCH(Table_CloseReceipt[[#This Row],[Rank]],Table_ReceiptPoint[Distance Rank to Delivery Location],0),) -> 16-18-036-05-W4 | H96: =INDEX(Table_Attach1[FT-R Demand Rate Price Point "B" ($/103m3/mo)],MATCH(Table_CloseReceipt[[#This Row],[Station Number]],Table_Attach1[Receipt Point Number],0),)*INDEX(Conversions!$C$7:$C$8,MATCH('Toll Calculator'!$O$8,Conversions!$B$7:$B$8,0)) -> 449.29 | I96: =INDEX(Table_Attach3[FT-P Demand Rate Price Point "B"],MATCH(IF(CEILING(Table_CloseReceipt[[#This Row],[Distance (km)]],25)>500,999999,CEILING(Table_CloseReceipt[[#This Row],[Distance (km)]],25)),Table_Attach3[Maximum Distance Between Receipt Point and Delivery Point (km)],0),)*INDEX(Conversions!$C$7:$C$8,MATCH('Toll Calculator'!$O$8,Conversions!$B$7:$B$8,0)) -> 478.17 | J96: =INDEX(Table_Attach1[IT-R Rate ($/103m3/d)],MATCH(Table_CloseReceipt[[#This Row],[Station Number]],Table_Attach1[Receipt Point Number],0),)*INDEX(Conversions!$C$7:$C$8,MATCH('Toll Calculator'!$O$8,Conversions!$B$7:$B$8,0))*(365/12) -> 515.26
C97: =Table_ReceiptPointAlphabetical[[#This Row],[Alphabetical Order Rank]] -> 91 | D97: =INDEX(Table_ReceiptPoint[Receipt Point Number],MATCH(Table_CloseReceipt[[#This Row],[Rank]],Table_ReceiptPoint[Distance Rank to Delivery Location],0),) -> 1858 | E97: =INDEX(Table_ReceiptPoint[Receipt Point Name2],MATCH(Table_CloseReceipt[[#This Row],[Rank]],Table_ReceiptPoint[Distance Rank to Delivery Location],0),) -> POE* | F97: =INDEX(Table_ReceiptPoint[Distance From Delivery Station],MATCH(Table_CloseReceipt[[#This Row],[Rank]],Table_ReceiptPoint[Distance Rank to Delivery Location],0),) -> 139.2032 | G97: =INDEX(Table_ReceiptPoint[Legal Location Name],MATCH(Table_CloseReceipt[[#This Row],[Rank]],Table_ReceiptPoint[Distance Rank to Delivery Location],0),) -> SE-04-049-15-W4 | H97: =INDEX(Table_Attach1[FT-R Demand Rate Price Point "B" ($/103m3/mo)],MATCH(Table_CloseReceipt[[#This Row],[Station Number]],Table_Attach1[Receipt Point Number],0),)*INDEX(Conversions!$C$7:$C$8,MATCH('Toll Calculator'!$O$8,Conversions!$B$7:$B$8,0)) -> 257.93 | I97: =INDEX(Table_Attach3[FT-P Demand Rate Price Point "B"],MATCH(IF(CEILING(Table_CloseReceipt[[#This Row],[Distance (km)]],25)>500,999999,CEILING(Table_CloseReceipt[[#This Row],[Distance (km)]],25)),Table_Attach3[Maximum Distance Between Receipt Point and Delivery Point (km)],0),)*INDEX(Conversions!$C$7:$C$8,MATCH('Toll Calculator'!$O$8,Conversions!$B$7:$B$8,0)) -> 478.17 | J97: =INDEX(Table_Attach1[IT-R Rate ($/103m3/d)],MATCH(Table_CloseReceipt[[#This Row],[Station Number]],Table_Attach1[Receipt Point Number],0),)*INDEX(Conversions!$C$7:$C$8,MATCH('Toll Calculator'!$O$8,Conversions!$B$7:$B$8,0))*(365/12) -> 295.95
C98: =Table_ReceiptPointAlphabetical[[#This Row],[Alphabetical Order Rank]] -> 92 | D98: =INDEX(Table_ReceiptPoint[Receipt Point Number],MATCH(Table_CloseReceipt[[#This Row],[Rank]],Table_ReceiptPoint[Distance Rank to Delivery Location],0),) -> 1414 | E98: =INDEX(Table_ReceiptPoint[Receipt Point Name2],MATCH(Table_CloseReceipt[[#This Row],[Rank]],Table_ReceiptPoint[Distance Rank to Delivery Location],0),) -> ST. LINA | F98: =INDEX(Table_ReceiptPoint[Distance From Delivery Station],MATCH(Table_CloseReceipt[[#This Row],[Rank]],Table_ReceiptPoint[Distance Rank to Delivery Location],0),) -> 139.7374 | G98: =INDEX(Table_ReceiptPoint[Legal Location Name],MATCH(Table_CloseReceipt[[#This Row],[Rank]],Table_ReceiptPoint[Distance Rank to Delivery Location],0),) -> 13-09-062-08-W4 | H98: =INDEX(Table_Attach1[FT-R Demand Rate Price Point "B" ($/103m3/mo)],MATCH(Table_CloseReceipt[[#This Row],[Station Number]],Table_Attach1[Receipt Point Number],0),)*INDEX(Conversions!$C$7:$C$8,MATCH('Toll Calculator'!$O$8,Conversions!$B$7:$B$8,0)) -> 141.89 | I98: =INDEX(Table_Attach3[FT-P Demand Rate Price Point "B"],MATCH(IF(CEILING(Table_CloseReceipt[[#This Row],[Distance (km)]],25)>500,999999,CEILING(Table_CloseReceipt[[#This Row],[Distance (km)]],25)),Table_Attach3[Maximum Distance Between Receipt Point and Delivery Point (km)],0),)*INDEX(Conversions!$C$7:$C$8,MATCH('Toll Calculator'!$O$8,Conversions!$B$7:$B$8,0)) -> 478.17 | J98: =INDEX(Table_Attach1[IT-R Rate ($/103m3/d)],MATCH(Table_CloseReceipt[[#This Row],[Station Number]],Table_Attach1[Receipt Point Number],0),)*INDEX(Conversions!$C$7:$C$8,MATCH('Toll Calculator'!$O$8,Conversions!$B$7:$B$8,0))*(365/12) -> 162.73
C99: =Table_ReceiptPointAlphabetical[[#This Row],[Alphabetical Order Rank]] -> 93 | D99: =INDEX(Table_ReceiptPoint[Receipt Point Number],MATCH(Table_CloseReceipt[[#This Row],[Rank]],Table_ReceiptPoint[Distance Rank to Delivery Location],0),) -> 1416 | E99: =INDEX(Table_ReceiptPoint[Receipt Point Name2],MATCH(Table_CloseReceipt[[#This Row],[Rank]],Table_ReceiptPoint[Distance Rank to Delivery Location],0),) -> ST. LINA WEST | F99: =INDEX(Table_ReceiptPoint[Distance From Delivery Station],MATCH(Table_CloseReceipt[[#This Row],[Rank]],Table_ReceiptPoint[Distance Rank to Delivery Location],0),) -> 140.0562 | G99: =INDEX(Table_ReceiptPoint[Legal Location Name],MATCH(Table_CloseReceipt[[#This Row],[Rank]],Table_ReceiptPoint[Distance Rank to Delivery Location],0),) -> NE-20-061-09-W4 | H99: =INDEX(Table_Attach1[FT-R Demand Rate Price Point "B" ($/103m3/mo)],MATCH(Table_CloseReceipt[[#This Row],[Station Number]],Table_Attach1[Receipt Point Number],0),)*INDEX(Conversions!$C$7:$C$8,MATCH('Toll Calculator'!$O$8,Conversions!$B$7:$B$8,0)) -> 141.89 | I99: =INDEX(Table_Attach3[FT-P Demand Rate Price Point "B"],MATCH(IF(CEILING(Table_CloseReceipt[[#This Row],[Distance (km)]],25)>500,999999,CEILING(Table_CloseReceipt[[#This Row],[Distance (km)]],25)),Table_Attach3[Maximum Distance Between Receipt Point and Delivery Point (km)],0),)*INDEX(Conversions!$C$7:$C$8,MATCH('Toll Calculator'!$O$8,Conversions!$B$7:$B$8,0)) -> 478.17 | J99: =INDEX(Table_Attach1[IT-R Rate ($/103m3/d)],MATCH(Table_CloseReceipt[[#This Row],[Station Number]],Table_Attach1[Receipt Point Number],0),)*INDEX(Conversions!$C$7:$C$8,MATCH('Toll Calculator'!$O$8,Conversions!$B$7:$B$8,0))*(365/12) -> 162.73
C100: =Table_ReceiptPointAlphabetical[[#This Row],[Alphabetical Order Rank]] -> 94 | D100: =INDEX(Table_ReceiptPoint[Receipt Point Number],MATCH(Table_CloseReceipt[[#This Row],[Rank]],Table_ReceiptPoint[Distance Rank to Delivery Location],0),) -> 1504 | E100: =INDEX(Table_ReceiptPoint[Receipt Point Name2],MATCH(Table_CloseReceipt[[#This Row],[Rank]],Table_ReceiptPoint[Distance Rank to Delivery Location],0),) -> GOODRIDGE* | F100: =INDEX(Table_ReceiptPoint[Distance From Delivery Station],MATCH(Table_CloseReceipt[[#This Row],[Rank]],Table_ReceiptPoint[Distance Rank to Delivery Location],0),) -> 140.3853 | G100: =INDEX(Table_ReceiptPoint[Legal Location Name],MATCH(Table_CloseReceipt[[#This Row],[Rank]],Table_ReceiptPoint[Distance Rank to Delivery Location],0),) -> 07-34-061-09-W4 | H100: =INDEX(Table_Attach1[FT-R Demand Rate Price Point "B" ($/103m3/mo)],MATCH(Table_CloseReceipt[[#This Row],[Station Number]],Table_Attach1[Receipt Point Number],0),)*INDEX(Conversions!$C$7:$C$8,MATCH('Toll Calculator'!$O$8,Conversions!$B$7:$B$8,0)) -> 141.89 | I100: =INDEX(Table_Attach3[FT-P Demand Rate Price Point "B"],MATCH(IF(CEILING(Table_CloseReceipt[[#This Row],[Distance (km)]],25)>500,999999,CEILING(Table_CloseReceipt[[#This Row],[Distance (km)]],25)),Table_Attach3[Maximum Distance Between Receipt Point and Delivery Point (km)],0),)*INDEX(Conversions!$C$7:$C$8,MATCH('Toll Calculator'!$O$8,Conversions!$B$7:$B$8,0)) -> 478.17 | J100: =INDEX(Table_Attach1[IT-R Rate ($/103m3/d)],MATCH(Table_CloseReceipt[[#This Row],[Station Number]],Table_Attach1[Receipt Point Number],0),)*INDEX(Conversions!$C$7:$C$8,MATCH('Toll Calculator'!$O$8,Conversions!$B$7:$B$8,0))*(365/12) -> 162.73
C101: =Table_ReceiptPointAlphabetical[[#This Row],[Alphabetical Order Rank]] -> 95 | D101: =INDEX(Table_ReceiptPoint[Receipt Point Number],MATCH(Table_CloseReceipt[[#This Row],[Rank]],Table_ReceiptPoint[Distance Rank to Delivery Location],0),) -> 1045 | E101: =INDEX(Table_ReceiptPoint[Receipt Point Name2],MATCH(Table_CloseReceipt[[#This Row],[Rank]],Table_ReceiptPoint[Distance Rank to Delivery Location],0),) -> PROVOST WEST* | F101: =INDEX(Table_ReceiptPoint[Distance From Delivery Station],MATCH(Table_CloseReceipt[[#This Row],[Rank]],Table_ReceiptPoint[Distance Rank to Delivery Location],0),) -> 144.597 | G101: =INDEX(Table_ReceiptPoint[Legal Location Name],MATCH(Table_CloseReceipt[[#This Row],[Rank]],Table_ReceiptPoint[Distance Rank to Delivery Location],0),) -> NW-21-036-07-W4 | H101: =INDEX(Table_Attach1[FT-R Demand Rate Price Point "B" ($/103m3/mo)],MATCH(Table_CloseReceipt[[#This Row],[Station Number]],Table_Attach1[Receipt Point Number],0),)*INDEX(Conversions!$C$7:$C$8,MATCH('Toll Calculator'!$O$8,Conversions!$B$7:$B$8,0)) -> 501.97 | I101: =INDEX(Table_Attach3[FT-P Demand Rate Price Point "B"],MATCH(IF(CEILING(Table_CloseReceipt[[#This Row],[Distance (km)]],25)>500,999999,CEILING(Table_CloseReceipt[[#This Row],[Distance (km)]],25)),Table_Attach3[Maximum Distance Between Receipt Point and Delivery Point (km)],0),)*INDEX(Conversions!$C$7:$C$8,MATCH('Toll Calculator'!$O$8,Conversions!$B$7:$B$8,0)) -> 478.17 | J101: =INDEX(Table_Attach1[IT-R Rate ($/103m3/d)],MATCH(Table_CloseReceipt[[#This Row],[Station Number]],Table_Attach1[Receipt Point Number],0),)*INDEX(Conversions!$C$7:$C$8,MATCH('Toll Calculator'!$O$8,Conversions!$B$7:$B$8,0))*(365/12) -> 575.79
C102: =Table_ReceiptPointAlphabetical[[#This Row],[Alphabetical Order Rank]] -> 96 | D102: =INDEX(Table_ReceiptPoint[Receipt Point Number],MATCH(Table_CloseReceipt[[#This Row],[Rank]],Table_ReceiptPoint[Distance Rank to Delivery Location],0),) -> 1783 | E102: =INDEX(Table_ReceiptPoint[Receipt Point Name2],MATCH(Table_CloseReceipt[[#This Row],[Rank]],Table_ReceiptPoint[Distance Rank to Delivery Location],0),) -> GOODRIDGE NORTH* | F102: =INDEX(Table_ReceiptPoint[Distance From Delivery Station],MATCH(Table_CloseReceipt[[#This Row],[Rank]],Table_ReceiptPoint[Distance Rank to Delivery Location],0),) -> 145.1905 | G102: =INDEX(Table_ReceiptPoint[Legal Location Name],MATCH(Table_CloseReceipt[[#This Row],[Rank]],Table_ReceiptPoint[Distance Rank to Delivery Location],0),) -> 04-16-062-09-W4 | H102: =INDEX(Table_Attach1[FT-R Demand Rate Price Point "B" ($/103m3/mo)],MATCH(Table_CloseReceipt[[#This Row],[Station Number]],Table_Attach1[Receipt Point Number],0),)*INDEX(Conversions!$C$7:$C$8,MATCH('Toll Calculator'!$O$8,Conversions!$B$7:$B$8,0)) -> 164.56 | I102: =INDEX(Table_Attach3[FT-P Demand Rate Price Point "B"],MATCH(IF(CEILING(Table_CloseReceipt[[#This Row],[Distance (km)]],25)>500,999999,CEILING(Table_CloseReceipt[[#This Row],[Distance (km)]],25)),Table_Attach3[Maximum Distance Between Receipt Point and Delivery Point (km)],0),)*INDEX(Conversions!$C$7:$C$8,MATCH('Toll Calculator'!$O$8,Conversions!$B$7:$B$8,0)) -> 478.17 | J102: =INDEX(Table_Attach1[IT-R Rate ($/103m3/d)],MATCH(Table_CloseReceipt[[#This Row],[Station Number]],Table_Attach1[Receipt Point Number],0),)*INDEX(Conversions!$C$7:$C$8,MATCH('Toll Calculator'!$O$8,Conversions!$B$7:$B$8,0))*(365/12) -> 188.58
C103: =Table_ReceiptPointAlphabetical[[#This Row],[Alphabetical Order Rank]] -> 97 | D103: =INDEX(Table_ReceiptPoint[Receipt Point Number],MATCH(Table_CloseReceipt[[#This Row],[Rank]],Table_ReceiptPoint[Distance Rank to Delivery Location],0),) -> 1168 | E103: =INDEX(Table_ReceiptPoint[Receipt Point Name2],MATCH(Table_CloseReceipt[[#This Row],[Rank]],Table_ReceiptPoint[Distance Rank to Delivery Location],0),) -> BRUCE* | F103: =INDEX(Table_ReceiptPoint[Distance From Delivery Station],MATCH(Table_CloseReceipt[[#This Row],[Rank]],Table_ReceiptPoint[Distance Rank to Delivery Location],0),) -> 146.1965 | G103: =INDEX(Table_ReceiptPoint[Legal Location Name],MATCH(Table_CloseReceipt[[#This Row],[Rank]],Table_ReceiptPoint[Distance Rank to Delivery Location],0),) -> SW-06-047-15-W4 | H103: =INDEX(Table_Attach1[FT-R Demand Rate Price Point "B" ($/103m3/mo)],MATCH(Table_CloseReceipt[[#This Row],[Station Number]],Table_Attach1[Receipt Point Number],0),)*INDEX(Conversions!$C$7:$C$8,MATCH('Toll Calculator'!$O$8,Conversions!$B$7:$B$8,0)) -> 261.64 | I103: =INDEX(Table_Attach3[FT-P Demand Rate Price Point "B"],MATCH(IF(CEILING(Table_CloseReceipt[[#This Row],[Distance (km)]],25)>500,999999,CEILING(Table_CloseReceipt[[#This Row],[Distance (km)]],25)),Table_Attach3[Maximum Distance Between Receipt Point and Delivery Point (km)],0),)*INDEX(Conversions!$C$7:$C$8,MATCH('Toll Calculator'!$O$8,Conversions!$B$7:$B$8,0)) -> 478.17 | J103: =INDEX(Table_Attach1[IT-R Rate ($/103m3/d)],MATCH(Table_CloseReceipt[[#This Row],[Station Number]],Table_Attach1[Receipt Point Number],0),)*INDEX(Conversions!$C$7:$C$8,MATCH('Toll Calculator'!$O$8,Conversions!$B$7:$B$8,0))*(365/12) -> 300.21
C104: =Table_ReceiptPointAlphabetical[[#This Row],[Alphabetical Order Rank]] -> 98 | D104: =INDEX(Table_ReceiptPoint[Receipt Point Number],MATCH(Table_CloseReceipt[[#This Row],[Rank]],Table_ReceiptPoint[Distance Rank to Delivery Location],0),) -> 1428 | E104: =INDEX(Table_ReceiptPoint[Receipt Point Name2],MATCH(Table_CloseReceipt[[#This Row],[Rank]],Table_ReceiptPoint[Distance Rank to Delivery Location],0),) -> WILLINGDON* | F104: =INDEX(Table_ReceiptPoint[Distance From Delivery Station],MATCH(Table_CloseReceipt[[#This Row],[Rank]],Table_ReceiptPoint[Distance Rank to Delivery Location],0),) -> 146.9248 | G104: =INDEX(Table_ReceiptPoint[Legal Location Name],MATCH(Table_CloseReceipt[[#This Row],[Rank]],Table_ReceiptPoint[Distance Rank to Delivery Location],0),) -> 12-24-055-15-W4 | H104: =INDEX(Table_Attach1[FT-R Demand Rate Price Point "B" ($/103m3/mo)],MATCH(Table_CloseReceipt[[#This Row],[Station Number]],Table_Attach1[Receipt Point Number],0),)*INDEX(Conversions!$C$7:$C$8,MATCH('Toll Calculator'!$O$8,Conversions!$B$7:$B$8,0)) -> 238.31 | I104: =INDEX(Table_Attach3[FT-P Demand Rate Price Point "B"],MATCH(IF(CEILING(Table_CloseReceipt[[#This Row],[Distance (km)]],25)>500,999999,CEILING(Table_CloseReceipt[[#This Row],[Distance (km)]],25)),Table_Attach3[Maximum Distance Between Receipt Point and Delivery Point (km)],0),)*INDEX(Conversions!$C$7:$C$8,MATCH('Toll Calculator'!$O$8,Conversions!$B$7:$B$8,0)) -> 478.17 | J104: =INDEX(Table_Attach1[IT-R Rate ($/103m3/d)],MATCH(Table_CloseReceipt[[#This Row],[Station Number]],Table_Attach1[Receipt Point Number],0),)*INDEX(Conversions!$C$7:$C$8,MATCH('Toll Calculator'!$O$8,Conversions!$B$7:$B$8,0))*(365/12) -> 273.45
C105: =Table_ReceiptPointAlphabetical[[#This Row],[Alphabetical Order Rank]] -> 99 | D105: =INDEX(Table_ReceiptPoint[Receipt Point Number],MATCH(Table_CloseReceipt[[#This Row],[Rank]],Table_ReceiptPoint[Distance Rank to Delivery Location],0),) -> 1716 | E105: =INDEX(Table_ReceiptPoint[Receipt Point Name2],MATCH(Table_CloseReceipt[[#This Row],[Rank]],Table_ReceiptPoint[Distance Rank to Delivery Location],0),) -> OSBORNE LAKE* | F105: =INDEX(Table_ReceiptPoint[Distance From Delivery Station],MATCH(Table_CloseReceipt[[#This Row],[Rank]],Table_ReceiptPoint[Distance Rank to Delivery Location],0),) -> 147.7425 | G105: =INDEX(Table_ReceiptPoint[Legal Location Name],MATCH(Table_CloseReceipt[[#This Row],[Rank]],Table_ReceiptPoint[Distance Rank to Delivery Location],0),) -> 09-01-064-07-W4 | H105: =INDEX(Table_Attach1[FT-R Demand Rate Price Point "B" ($/103m3/mo)],MATCH(Table_CloseReceipt[[#This Row],[Station Number]],Table_Attach1[Receipt Point Number],0),)*INDEX(Conversions!$C$7:$C$8,MATCH('Toll Calculator'!$O$8,Conversions!$B$7:$B$8,0)) -> 141.89 | I105: =INDEX(Table_Attach3[FT-P Demand Rate Price Point "B"],MATCH(IF(CEILING(Table_CloseReceipt[[#This Row],[Distance (km)]],25)>500,999999,CEILING(Table_CloseReceipt[[#This Row],[Distance (km)]],25)),Table_Attach3[Maximum Distance Between Receipt Point and Delivery Point (km)],0),)*INDEX(Conversions!$C$7:$C$8,MATCH('Toll Calculator'!$O$8,Conversions!$B$7:$B$8,0)) -> 478.17 | J105: =INDEX(Table_Attach1[IT-R Rate ($/103m3/d)],MATCH(Table_CloseReceipt[[#This Row],[Station Number]],Table_Attach1[Receipt Point Number],0),)*INDEX(Conversions!$C$7:$C$8,MATCH('Toll Calculator'!$O$8,Conversions!$B$7:$B$8,0))*(365/12) -> 162.73
C106: =Table_ReceiptPointAlphabetical[[#This Row],[Alphabetical Order Rank]] -> 100 | D106: =INDEX(Table_ReceiptPoint[Receipt Point Number],MATCH(Table_CloseReceipt[[#This Row],[Rank]],Table_ReceiptPoint[Distance Rank to Delivery Location],0),) -> 1719 | E106: =INDEX(Table_ReceiptPoint[Receipt Point Name2],MATCH(Table_CloseReceipt[[#This Row],[Rank]],Table_ReceiptPoint[Distance Rank to Delivery Location],0),) -> MANATOKEN LAKE | F106: =INDEX(Table_ReceiptPoint[Distance From Delivery Station],MATCH(Table_CloseReceipt[[#This Row],[Rank]],Table_ReceiptPoint[Distance Rank to Delivery Location],0),) -> 147.8547 | G106: =INDEX(Table_ReceiptPoint[Legal Location Name],MATCH(Table_CloseReceipt[[#This Row],[Rank]],Table_ReceiptPoint[Distance Rank to Delivery Location],0),) -> 10-29-063-07-W4 | H106: =INDEX(Table_Attach1[FT-R Demand Rate Price Point "B" ($/103m3/mo)],MATCH(Table_CloseReceipt[[#This Row],[Station Number]],Table_Attach1[Receipt Point Number],0),)*INDEX(Conversions!$C$7:$C$8,MATCH('Toll Calculator'!$O$8,Conversions!$B$7:$B$8,0)) -> 141.89 | I106: =INDEX(Table_Attach3[FT-P Demand Rate Price Point "B"],MATCH(IF(CEILING(Table_CloseReceipt[[#This Row],[Distance (km)]],25)>500,999999,CEILING(Table_CloseReceipt[[#This Row],[Distance (km)]],25)),Table_Attach3[Maximum Distance Between Receipt Point and Delivery Point (km)],0),)*INDEX(Conversions!$C$7:$C$8,MATCH('Toll Calculator'!$O$8,Conversions!$B$7:$B$8,0)) -> 478.17 | J106: =INDEX(Table_Attach1[IT-R Rate ($/103m3/d)],MATCH(Table_CloseReceipt[[#This Row],[Station Number]],Table_Attach1[Receipt Point Number],0),)*INDEX(Conversions!$C$7:$C$8,MATCH('Toll Calculator'!$O$8,Conversions!$B$7:$B$8,0))*(365/12) -> 162.73
C107: =Table_ReceiptPointAlphabetical[[#This Row],[Alphabetical Order Rank]] -> 101 | D107: =INDEX(Table_ReceiptPoint[Receipt Point Number],MATCH(Table_CloseReceipt[[#This Row],[Rank]],Table_ReceiptPoint[Distance Rank to Delivery Location],0),) -> 1415 | E107: =INDEX(Table_ReceiptPoint[Receipt Point Name2],MATCH(Table_CloseReceipt[[#This Row],[Rank]],Table_ReceiptPoint[Distance Rank to Delivery Location],0),) -> ST. LINA NORTH | F107: =INDEX(Table_ReceiptPoint[Distance From Delivery Station],MATCH(Table_CloseReceipt[[#This Row],[Rank]],Table_ReceiptPoint[Distance Rank to Delivery Location],0),) -> 149.1675 | G107: =INDEX(Table_ReceiptPoint[Legal Location Name],MATCH(Table_CloseReceipt[[#This Row],[Rank]],Table_ReceiptPoint[Distance Rank to Delivery Location],0),) -> NW-07-063-08-W4 | H107: =INDEX(Table_Attach1[FT-R Demand Rate Price Point "B" ($/103m3/mo)],MATCH(Table_CloseReceipt[[#This Row],[Station Number]],Table_Attach1[Receipt Point Number],0),)*INDEX(Conversions!$C$7:$C$8,MATCH('Toll Calculator'!$O$8,Conversions!$B$7:$B$8,0)) -> 190.08 | I107: =INDEX(Table_Attach3[FT-P Demand Rate Price Point "B"],MATCH(IF(CEILING(Table_CloseReceipt[[#This Row],[Distance (km)]],25)>500,999999,CEILING(Table_CloseReceipt[[#This Row],[Distance (km)]],25)),Table_Attach3[Maximum Distance Between Receipt Point and Delivery Point (km)],0),)*INDEX(Conversions!$C$7:$C$8,MATCH('Toll Calculator'!$O$8,Conversions!$B$7:$B$8,0)) -> 478.17 | J107: =INDEX(Table_Attach1[IT-R Rate ($/103m3/d)],MATCH(Table_CloseReceipt[[#This Row],[Station Number]],Table_Attach1[Receipt Point Number],0),)*INDEX(Conversions!$C$7:$C$8,MATCH('Toll Calculator'!$O$8,Conversions!$B$7:$B$8,0))*(365/12) -> 218.09
C108: =Table_ReceiptPointAlphabetical[[#This Row],[Alphabetical Order Rank]] -> 102 | D108: =INDEX(Table_ReceiptPoint[Receipt Point Number],MATCH(Table_CloseReceipt[[#This Row],[Rank]],Table_ReceiptPoint[Distance Rank to Delivery Location],0),) -> 1713 | E108: =INDEX(Table_ReceiptPoint[Receipt Point Name2],MATCH(Table_CloseReceipt[[#This Row],[Rank]],Table_ReceiptPoint[Distance Rank to Delivery Location],0),) -> CONN LAKE* | F108: =INDEX(Table_ReceiptPoint[Distance From Delivery Station],MATCH(Table_CloseReceipt[[#This Row],[Rank]],Table_ReceiptPoint[Distance Rank to Delivery Location],0),) -> 149.911 | G108: =INDEX(Table_ReceiptPoint[Legal Location Name],MATCH(Table_CloseReceipt[[#This Row],[Rank]],Table_ReceiptPoint[Distance Rank to Delivery Location],0),) -> 07-31-063-07-W4 | H108: =INDEX(Table_Attach1[FT-R Demand Rate Price Point "B" ($/103m3/mo)],MATCH(Table_CloseReceipt[[#This Row],[Station Number]],Table_Attach1[Receipt Point Number],0),)*INDEX(Conversions!$C$7:$C$8,MATCH('Toll Calculator'!$O$8,Conversions!$B$7:$B$8,0)) -> 141.89 | I108: =INDEX(Table_Attach3[FT-P Demand Rate Price Point "B"],MATCH(IF(CEILING(Table_CloseReceipt[[#This Row],[Distance (km)]],25)>500,999999,CEILING(Table_CloseReceipt[[#This Row],[Distance (km)]],25)),Table_Attach3[Maximum Distance Between Receipt Point and Delivery Point (km)],0),)*INDEX(Conversions!$C$7:$C$8,MATCH('Toll Calculator'!$O$8,Conversions!$B$7:$B$8,0)) -> 478.17 | J108: =INDEX(Table_Attach1[IT-R Rate ($/103m3/d)],MATCH(Table_CloseReceipt[[#This Row],[Station Number]],Table_Attach1[Receipt Point Number],0),)*INDEX(Conversions!$C$7:$C$8,MATCH('Toll Calculator'!$O$8,Conversions!$B$7:$B$8,0))*(365/12) -> 162.73
C109: =Table_ReceiptPointAlphabetical[[#This Row],[Alphabetical Order Rank]] -> 103 | D109: =INDEX(Table_ReceiptPoint[Receipt Point Number],MATCH(Table_CloseReceipt[[#This Row],[Rank]],Table_ReceiptPoint[Distance Rank to Delivery Location],0),) -> 1468 | E109: =INDEX(Table_ReceiptPoint[Receipt Point Name2],MATCH(Table_CloseReceipt[[#This Row],[Rank]],Table_ReceiptPoint[Distance Rank to Delivery Location],0),) -> ROSALIND* | F109: =INDEX(Table_ReceiptPoint[Distance From Delivery Station],MATCH(Table_CloseReceipt[[#This Row],[Rank]],Table_ReceiptPoint[Distance Rank to Delivery Location],0),) -> 150.5188 | G109: =INDEX(Table_ReceiptPoint[Legal Location Name],MATCH(Table_CloseReceipt[[#This Row],[Rank]],Table_ReceiptPoint[Distance Rank to Delivery Location],0),) -> 09-26-045-16-W4 | H109: =INDEX(Table_Attach1[FT-R Demand Rate Price Point "B" ($/103m3/mo)],MATCH(Table_CloseReceipt[[#This Row],[Station Number]],Table_Attach1[Receipt Point Number],0),)*INDEX(Conversions!$C$7:$C$8,MATCH('Toll Calculator'!$O$8,Conversions!$B$7:$B$8,0)) -> 274.28 | I109: =INDEX(Table_Attach3[FT-P Demand Rate Price Point "B"],MATCH(IF(CEILING(Table_CloseReceipt[[#This Row],[Distance (km)]],25)>500,999999,CEILING(Table_CloseReceipt[[#This Row],[Distance (km)]],25)),Table_Attach3[Maximum Distance Between Receipt Point and Delivery Point (km)],0),)*INDEX(Conversions!$C$7:$C$8,MATCH('Toll Calculator'!$O$8,Conversions!$B$7:$B$8,0)) -> 501.56 | J109: =INDEX(Table_Attach1[IT-R Rate ($/103m3/d)],MATCH(Table_CloseReceipt[[#This Row],[Station Number]],Table_Attach1[Receipt Point Number],0),)*INDEX(Conversions!$C$7:$C$8,MATCH('Toll Calculator'!$O$8,Conversions!$B$7:$B$8,0))*(365/12) -> 314.51
C110: =Table_ReceiptPointAlphabetical[[#This Row],[Alphabetical Order Rank]] -> 104 | D110: =INDEX(Table_ReceiptPoint[Receipt Point Number],MATCH(Table_CloseReceipt[[#This Row],[Rank]],Table_ReceiptPoint[Distance Rank to Delivery Location],0),) -> 1222 | E110: =INDEX(Table_ReceiptPoint[Receipt Point Name2],MATCH(Table_CloseReceipt[[#This Row],[Rank]],Table_ReceiptPoint[Distance Rank to Delivery Location],0),) -> MONITOR SOUTH | F110: =INDEX(Table_ReceiptPoint[Distance From Delivery Station],MATCH(Table_CloseReceipt[[#This Row],[Rank]],Table_ReceiptPoint[Distance Rank to Delivery Location],0),) -> 151.6719 | G110: =INDEX(Table_ReceiptPoint[Legal Location Name],MATCH(Table_CloseReceipt[[#This Row],[Rank]],Table_ReceiptPoint[Distance Rank to Delivery Location],0),) -> NW-34-034-05-W4 | H110: =INDEX(Table_Attach1[FT-R Demand Rate Price Point "B" ($/103m3/mo)],MATCH(Table_CloseReceipt[[#This Row],[Station Number]],Table_Attach1[Receipt Point Number],0),)*INDEX(Conversions!$C$7:$C$8,MATCH('Toll Calculator'!$O$8,Conversions!$B$7:$B$8,0)) -> 465.13 | I110: =INDEX(Table_Attach3[FT-P Demand Rate Price Point "B"],MATCH(IF(CEILING(Table_CloseReceipt[[#This Row],[Distance (km)]],25)>500,999999,CEILING(Table_CloseReceipt[[#This Row],[Distance (km)]],25)),Table_Attach3[Maximum Distance Between Receipt Point and Delivery Point (km)],0),)*INDEX(Conversions!$C$7:$C$8,MATCH('Toll Calculator'!$O$8,Conversions!$B$7:$B$8,0)) -> 501.56 | J110: =INDEX(Table_Attach1[IT-R Rate ($/103m3/d)],MATCH(Table_CloseReceipt[[#This Row],[Station Number]],Table_Attach1[Receipt Point Number],0),)*INDEX(Conversions!$C$7:$C$8,MATCH('Toll Calculator'!$O$8,Conversions!$B$7:$B$8,0))*(365/12) -> 533.51
C111: =Table_ReceiptPointAlphabetical[[#This Row],[Alphabetical Order Rank]] -> 105 | D111: =INDEX(Table_ReceiptPoint[Receipt Point Number],MATCH(Table_CloseReceipt[[#This Row],[Rank]],Table_ReceiptPoint[Distance Rank to Delivery Location],0),) -> 1161 | E111: =INDEX(Table_ReceiptPoint[Receipt Point Name2],MATCH(Table_CloseReceipt[[#This Row],[Rank]],Table_ReceiptPoint[Distance Rank to Delivery Location],0),) -> HOLDEN | F111: =INDEX(Table_ReceiptPoint[Distance From Delivery Station],MATCH(Table_CloseReceipt[[#This Row],[Rank]],Table_ReceiptPoint[Distance Rank to Delivery Location],0),) -> 152.3507 | G111: =INDEX(Table_ReceiptPoint[Legal Location Name],MATCH(Table_CloseReceipt[[#This Row],[Rank]],Table_ReceiptPoint[Distance Rank to Delivery Location],0),) -> NW-20-048-16-W4 | H111: =INDEX(Table_Attach1[FT-R Demand Rate Price Point "B" ($/103m3/mo)],MATCH(Table_CloseReceipt[[#This Row],[Station Number]],Table_Attach1[Receipt Point Number],0),)*INDEX(Conversions!$C$7:$C$8,MATCH('Toll Calculator'!$O$8,Conversions!$B$7:$B$8,0)) -> 314.47 | I111: =INDEX(Table_Attach3[FT-P Demand Rate Price Point "B"],MATCH(IF(CEILING(Table_CloseReceipt[[#This Row],[Distance (km)]],25)>500,999999,CEILING(Table_CloseReceipt[[#This Row],[Distance (km)]],25)),Table_Attach3[Maximum Distance Between Receipt Point and Delivery Point (km)],0),)*INDEX(Conversions!$C$7:$C$8,MATCH('Toll Calculator'!$O$8,Conversions!$B$7:$B$8,0)) -> 501.56 | J111: =INDEX(Table_Attach1[IT-R Rate ($/103m3/d)],MATCH(Table_CloseReceipt[[#This Row],[Station Number]],Table_Attach1[Receipt Point Number],0),)*INDEX(Conversions!$C$7:$C$8,MATCH('Toll Calculator'!$O$8,Conversions!$B$7:$B$8,0))*(365/12) -> 360.74
C112: =Table_ReceiptPointAlphabetical[[#This Row],[Alphabetical Order Rank]] -> 106 | D112: =INDEX(Table_ReceiptPoint[Receipt Point Number],MATCH(Table_CloseReceipt[[#This Row],[Rank]],Table_ReceiptPoint[Distance Rank to Delivery Location],0),) -> 1345 | E112: =INDEX(Table_ReceiptPoint[Receipt Point Name2],MATCH(Table_CloseReceipt[[#This Row],[Rank]],Table_ReceiptPoint[Distance Rank to Delivery Location],0),) -> WHITFORD* | F112: =INDEX(Table_ReceiptPoint[Distance From Delivery Station],MATCH(Table_CloseReceipt[[#This Row],[Rank]],Table_ReceiptPoint[Distance Rank to Delivery Location],0),) -> 155.0638 | G112: =INDEX(Table_ReceiptPoint[Legal Location Name],MATCH(Table_CloseReceipt[[#This Row],[Rank]],Table_ReceiptPoint[Distance Rank to Delivery Location],0),) -> 08-20-056-15-W4 | H112: =INDEX(Table_Attach1[FT-R Demand Rate Price Point "B" ($/103m3/mo)],MATCH(Table_CloseReceipt[[#This Row],[Station Number]],Table_Attach1[Receipt Point Number],0),)*INDEX(Conversions!$C$7:$C$8,MATCH('Toll Calculator'!$O$8,Conversions!$B$7:$B$8,0)) -> 291.63 | I112: =INDEX(Table_Attach3[FT-P Demand Rate Price Point "B"],MATCH(IF(CEILING(Table_CloseReceipt[[#This Row],[Distance (km)]],25)>500,999999,CEILING(Table_CloseReceipt[[#This Row],[Distance (km)]],25)),Table_Attach3[Maximum Distance Between Receipt Point and Delivery Point (km)],0),)*INDEX(Conversions!$C$7:$C$8,MATCH('Toll Calculator'!$O$8,Conversions!$B$7:$B$8,0)) -> 501.56 | J112: =INDEX(Table_Attach1[IT-R Rate ($/103m3/d)],MATCH(Table_CloseReceipt[[#This Row],[Station Number]],Table_Attach1[Receipt Point Number],0),)*INDEX(Conversions!$C$7:$C$8,MATCH('Toll Calculator'!$O$8,Conversions!$B$7:$B$8,0))*(365/12) -> 334.58
C113: =Table_ReceiptPointAlphabetical[[#This Row],[Alphabetical Order Rank]] -> 107 | D113: =INDEX(Table_ReceiptPoint[Receipt Point Number],MATCH(Table_CloseReceipt[[#This Row],[Rank]],Table_ReceiptPoint[Distance Rank to Delivery Location],0),) -> 1013 | E113: =INDEX(Table_ReceiptPoint[Receipt Point Name2],MATCH(Table_CloseReceipt[[#This Row],[Rank]],Table_ReceiptPoint[Distance Rank to Delivery Location],0),) -> PROVOST SOUTH | F113: =INDEX(Table_ReceiptPoint[Distance From Delivery Station],MATCH(Table_CloseReceipt[[#This Row],[Rank]],Table_ReceiptPoint[Distance Rank to Delivery Location],0),) -> 155.0993 | G113: =INDEX(Table_ReceiptPoint[Legal Location Name],MATCH(Table_CloseReceipt[[#This Row],[Rank]],Table_ReceiptPoint[Distance Rank to Delivery Location],0),) -> 08-34-034-06-W4 | H113: =INDEX(Table_Attach1[FT-R Demand Rate Price Point "B" ($/103m3/mo)],MATCH(Table_CloseReceipt[[#This Row],[Station Number]],Table_Attach1[Receipt Point Number],0),)*INDEX(Conversions!$C$7:$C$8,MATCH('Toll Calculator'!$O$8,Conversions!$B$7:$B$8,0)) -> 490.8 | I113: =INDEX(Table_Attach3[FT-P Demand Rate Price Point "B"],MATCH(IF(CEILING(Table_CloseReceipt[[#This Row],[Distance (km)]],25)>500,999999,CEILING(Table_CloseReceipt[[#This Row],[Distance (km)]],25)),Table_Attach3[Maximum Distance Between Receipt Point and Delivery Point (km)],0),)*INDEX(Conversions!$C$7:$C$8,MATCH('Toll Calculator'!$O$8,Conversions!$B$7:$B$8,0)) -> 501.56 | J113: =INDEX(Table_Attach1[IT-R Rate ($/103m3/d)],MATCH(Table_CloseReceipt[[#This Row],[Station Number]],Table_Attach1[Receipt Point Number],0),)*INDEX(Conversions!$C$7:$C$8,MATCH('Toll Calculator'!$O$8,Conversions!$B$7:$B$8,0))*(365/12) -> 563.01
C114: =Table_ReceiptPointAlphabetical[[#This Row],[Alphabetical Order Rank]] -> 108 | D114: =INDEX(Table_ReceiptPoint[Receipt Point Number],MATCH(Table_CloseReceipt[[#This Row],[Rank]],Table_ReceiptPoint[Distance Rank to Delivery Location],0),) -> 1464 | E114: =INDEX(Table_ReceiptPoint[Receipt Point Name2],MATCH(Table_CloseReceipt[[#This Row],[Rank]],Table_ReceiptPoint[Distance Rank to Delivery Location],0),) -> VILNA | F114: =INDEX(Table_ReceiptPoint[Distance From Delivery Station],MATCH(Table_CloseReceipt[[#This Row],[Rank]],Table_ReceiptPoint[Distance Rank to Delivery Location],0),) -> 155.1084 | G114: =INDEX(Table_ReceiptPoint[Legal Location Name],MATCH(Table_CloseReceipt[[#This Row],[Rank]],Table_ReceiptPoint[Distance Rank to Delivery Location],0),) -> SE-32-059-13-W4 | H114: =INDEX(Table_Attach1[FT-R Demand Rate Price Point "B" ($/103m3/mo)],MATCH(Table_CloseReceipt[[#This Row],[Station Number]],Table_Attach1[Receipt Point Number],0),)*INDEX(Conversions!$C$7:$C$8,MATCH('Toll Calculator'!$O$8,Conversions!$B$7:$B$8,0)) -> 449.21 | I114: =INDEX(Table_Attach3[FT-P Demand Rate Price Point "B"],MATCH(IF(CEILING(Table_CloseReceipt[[#This Row],[Distance (km)]],25)>500,999999,CEILING(Table_CloseReceipt[[#This Row],[Distance (km)]],25)),Table_Attach3[Maximum Distance Between Receipt Point and Delivery Point (km)],0),)*INDEX(Conversions!$C$7:$C$8,MATCH('Toll Calculator'!$O$8,Conversions!$B$7:$B$8,0)) -> 501.56 | J114: =INDEX(Table_Attach1[IT-R Rate ($/103m3/d)],MATCH(Table_CloseReceipt[[#This Row],[Station Number]],Table_Attach1[Receipt Point Number],0),)*INDEX(Conversions!$C$7:$C$8,MATCH('Toll Calculator'!$O$8,Conversions!$B$7:$B$8,0))*(365/12) -> 515.26
C115: =Table_ReceiptPointAlphabetical[[#This Row],[Alphabetical Order Rank]] -> 109 | D115: =INDEX(Table_ReceiptPoint[Receipt Point Number],MATCH(Table_CloseReceipt[[#This Row],[Rank]],Table_ReceiptPoint[Distance Rank to Delivery Location],0),) -> 30273 | E115: =INDEX(Table_ReceiptPoint[Receipt Point Name2],MATCH(Table_CloseReceipt[[#This Row],[Rank]],Table_ReceiptPoint[Distance Rank to Delivery Location],0),) -> HAIGHT APN* | F115: =INDEX(Table_ReceiptPoint[Distance From Delivery Station],MATCH(Table_CloseReceipt[[#This Row],[Rank]],Table_ReceiptPoint[Distance Rank to Delivery Location],0),) -> 156.1978 | G115: =INDEX(Table_ReceiptPoint[Legal Location Name],MATCH(Table_CloseReceipt[[#This Row],[Rank]],Table_ReceiptPoint[Distance Rank to Delivery Location],0),) -> 16-24-052-17-W4 | H115: =INDEX(Table_Attach1[FT-R Demand Rate Price Point "B" ($/103m3/mo)],MATCH(Table_CloseReceipt[[#This Row],[Station Number]],Table_Attach1[Receipt Point Number],0),)*INDEX(Conversions!$C$7:$C$8,MATCH('Toll Calculator'!$O$8,Conversions!$B$7:$B$8,0)) -> 141.89 | I115: =INDEX(Table_Attach3[FT-P Demand Rate Price Point "B"],MATCH(IF(CEILING(Table_CloseReceipt[[#This Row],[Distance (km)]],25)>500,999999,CEILING(Table_CloseReceipt[[#This Row],[Distance (km)]],25)),Table_Attach3[Maximum Distance Between Receipt Point and Delivery Point (km)],0),)*INDEX(Conversions!$C$7:$C$8,MATCH('Toll Calculator'!$O$8,Conversions!$B$7:$B$8,0)) -> 501.56 | J115: =INDEX(Table_Attach1[IT-R Rate ($/103m3/d)],MATCH(Table_CloseReceipt[[#This Row],[Station Number]],Table_Attach1[Receipt Point Number],0),)*INDEX(Conversions!$C$7:$C$8,MATCH('Toll Calculator'!$O$8,Conversions!$B$7:$B$8,0))*(365/12) -> 162.73
C116: =Table_ReceiptPointAlphabetical[[#This Row],[Alphabetical Order Rank]] -> 110 | D116: =INDEX(Table_ReceiptPoint[Receipt Point Number],MATCH(Table_CloseReceipt[[#This Row],[Rank]],Table_ReceiptPoint[Distance Rank to Delivery Location],0),) -> 1694 | E116: =INDEX(Table_ReceiptPoint[Receipt Point Name2],MATCH(Table_CloseReceipt[[#This Row],[Rank]],Table_ReceiptPoint[Distance Rank to Delivery Location],0),) -> JACKFISH CREEK* | F116: =INDEX(Table_ReceiptPoint[Distance From Delivery Station],MATCH(Table_CloseReceipt[[#This Row],[Rank]],Table_ReceiptPoint[Distance Rank to Delivery Location],0),) -> 157.5942 | G116: =INDEX(Table_ReceiptPoint[Legal Location Name],MATCH(Table_CloseReceipt[[#This Row],[Rank]],Table_ReceiptPoint[Distance Rank to Delivery Location],0),) -> SE-32-065-04-W4 | H116: =INDEX(Table_Attach1[FT-R Demand Rate Price Point "B" ($/103m3/mo)],MATCH(Table_CloseReceipt[[#This Row],[Station Number]],Table_Attach1[Receipt Point Number],0),)*INDEX(Conversions!$C$7:$C$8,MATCH('Toll Calculator'!$O$8,Conversions!$B$7:$B$8,0)) -> 141.89 | I116: =INDEX(Table_Attach3[FT-P Demand Rate Price Point "B"],MATCH(IF(CEILING(Table_CloseReceipt[[#This Row],[Distance (km)]],25)>500,999999,CEILING(Table_CloseReceipt[[#This Row],[Distance (km)]],25)),Table_Attach3[Maximum Distance Between Receipt Point and Delivery Point (km)],0),)*INDEX(Conversions!$C$7:$C$8,MATCH('Toll Calculator'!$O$8,Conversions!$B$7:$B$8,0)) -> 501.56 | J116: =INDEX(Table_Attach1[IT-R Rate ($/103m3/d)],MATCH(Table_CloseReceipt[[#This Row],[Station Number]],Table_Attach1[Receipt Point Number],0),)*INDEX(Conversions!$C$7:$C$8,MATCH('Toll Calculator'!$O$8,Conversions!$B$7:$B$8,0))*(365/12) -> 162.73
C117: =Table_ReceiptPointAlphabetical[[#This Row],[Alphabetical Order Rank]] -> 111 | D117: =INDEX(Table_ReceiptPoint[Receipt Point Number],MATCH(Table_CloseReceipt[[#This Row],[Rank]],Table_ReceiptPoint[Distance Rank to Delivery Location],0),) -> 1709 | E117: =INDEX(Table_ReceiptPoint[Receipt Point Name2],MATCH(Table_CloseReceipt[[#This Row],[Rank]],Table_ReceiptPoint[Distance Rank to Delivery Location],0),) -> HASTINGS COULEE | F117: =INDEX(Table_ReceiptPoint[Distance From Delivery Station],MATCH(Table_CloseReceipt[[#This Row],[Rank]],Table_ReceiptPoint[Distance Rank to Delivery Location],0),) -> 159.0189 | G117: =INDEX(Table_ReceiptPoint[Legal Location Name],MATCH(Table_CloseReceipt[[#This Row],[Rank]],Table_ReceiptPoint[Distance Rank to Delivery Location],0),) -> 01-14-041-15-W4 | H117: =INDEX(Table_Attach1[FT-R Demand Rate Price Point "B" ($/103m3/mo)],MATCH(Table_CloseReceipt[[#This Row],[Station Number]],Table_Attach1[Receipt Point Number],0),)*INDEX(Conversions!$C$7:$C$8,MATCH('Toll Calculator'!$O$8,Conversions!$B$7:$B$8,0)) -> 372.71 | I117: =INDEX(Table_Attach3[FT-P Demand Rate Price Point "B"],MATCH(IF(CEILING(Table_CloseReceipt[[#This Row],[Distance (km)]],25)>500,999999,CEILING(Table_CloseReceipt[[#This Row],[Distance (km)]],25)),Table_Attach3[Maximum Distance Between Receipt Point and Delivery Point (km)],0),)*INDEX(Conversions!$C$7:$C$8,MATCH('Toll Calculator'!$O$8,Conversions!$B$7:$B$8,0)) -> 501.56 | J117: =INDEX(Table_Attach1[IT-R Rate ($/103m3/d)],MATCH(Table_CloseReceipt[[#This Row],[Station Number]],Table_Attach1[Receipt Point Number],0),)*INDEX(Conversions!$C$7:$C$8,MATCH('Toll Calculator'!$O$8,Conversions!$B$7:$B$8,0))*(365/12) -> 427.35
C118: =Table_ReceiptPointAlphabetical[[#This Row],[Alphabetical Order Rank]] -> 112 | D118: =INDEX(Table_ReceiptPoint[Receipt Point Number],MATCH(Table_CloseReceipt[[#This Row],[Rank]],Table_ReceiptPoint[Distance Rank to Delivery Location],0),) -> 30350 | E118: =INDEX(Table_ReceiptPoint[Receipt Point Name2],MATCH(Table_CloseReceipt[[#This Row],[Rank]],Table_ReceiptPoint[Distance Rank to Delivery Location],0),) -> RYLEY APN* | F118: =INDEX(Table_ReceiptPoint[Distance From Delivery Station],MATCH(Table_CloseReceipt[[#This Row],[Rank]],Table_ReceiptPoint[Distance Rank to Delivery Location],0),) -> 160.7183 | G118: =INDEX(Table_ReceiptPoint[Legal Location Name],MATCH(Table_CloseReceipt[[#This Row],[Rank]],Table_ReceiptPoint[Distance Rank to Delivery Location],0),) -> 11-29-049-17-W4 | H118: =INDEX(Table_Attach1[FT-R Demand Rate Price Point "B" ($/103m3/mo)],MATCH(Table_CloseReceipt[[#This Row],[Station Number]],Table_Attach1[Receipt Point Number],0),)*INDEX(Conversions!$C$7:$C$8,MATCH('Toll Calculator'!$O$8,Conversions!$B$7:$B$8,0)) -> 167.42 | I118: =INDEX(Table_Attach3[FT-P Demand Rate Price Point "B"],MATCH(IF(CEILING(Table_CloseReceipt[[#This Row],[Distance (km)]],25)>500,999999,CEILING(Table_CloseReceipt[[#This Row],[Distance (km)]],25)),Table_Attach3[Maximum Distance Between Receipt Point and Delivery Point (km)],0),)*INDEX(Conversions!$C$7:$C$8,MATCH('Toll Calculator'!$O$8,Conversions!$B$7:$B$8,0)) -> 501.56 | J118: =INDEX(Table_Attach1[IT-R Rate ($/103m3/d)],MATCH(Table_CloseReceipt[[#This Row],[Station Number]],Table_Attach1[Receipt Point Number],0),)*INDEX(Conversions!$C$7:$C$8,MATCH('Toll Calculator'!$O$8,Conversions!$B$7:$B$8,0))*(365/12) -> 191.93
C119: =Table_ReceiptPointAlphabetical[[#This Row],[Alphabetical Order Rank]] -> 113 | D119: =INDEX(Table_ReceiptPoint[Receipt Point Number],MATCH(Table_CloseReceipt[[#This Row],[Rank]],Table_ReceiptPoint[Distance Rank to Delivery Location],0),) -> 1605 | E119: =INDEX(Table_ReceiptPoint[Receipt Point Name2],MATCH(Table_CloseReceipt[[#This Row],[Rank]],Table_ReceiptPoint[Distance Rank to Delivery Location],0),) -> MONITOR CREEK* | F119: =INDEX(Table_ReceiptPoint[Distance From Delivery Station],MATCH(Table_CloseReceipt[[#This Row],[Rank]],Table_ReceiptPoint[Distance Rank to Delivery Location],0),) -> 161.7933 | G119: =INDEX(Table_ReceiptPoint[Legal Location Name],MATCH(Table_CloseReceipt[[#This Row],[Rank]],Table_ReceiptPoint[Distance Rank to Delivery Location],0),) -> NW-25-033-05-W4 | H119: =INDEX(Table_Attach1[FT-R Demand Rate Price Point "B" ($/103m3/mo)],MATCH(Table_CloseReceipt[[#This Row],[Station Number]],Table_Attach1[Receipt Point Number],0),)*INDEX(Conversions!$C$7:$C$8,MATCH('Toll Calculator'!$O$8,Conversions!$B$7:$B$8,0)) -> 480.39 | I119: =INDEX(Table_Attach3[FT-P Demand Rate Price Point "B"],MATCH(IF(CEILING(Table_CloseReceipt[[#This Row],[Distance (km)]],25)>500,999999,CEILING(Table_CloseReceipt[[#This Row],[Distance (km)]],25)),Table_Attach3[Maximum Distance Between Receipt Point and Delivery Point (km)],0),)*INDEX(Conversions!$C$7:$C$8,MATCH('Toll Calculator'!$O$8,Conversions!$B$7:$B$8,0)) -> 501.56 | J119: =INDEX(Table_Attach1[IT-R Rate ($/103m3/d)],MATCH(Table_CloseReceipt[[#This Row],[Station Number]],Table_Attach1[Receipt Point Number],0),)*INDEX(Conversions!$C$7:$C$8,MATCH('Toll Calculator'!$O$8,Conversions!$B$7:$B$8,0))*(365/12) -> 550.85
C120: =Table_ReceiptPointAlphabetical[[#This Row],[Alphabetical Order Rank]] -> 114 | D120: =INDEX(Table_ReceiptPoint[Receipt Point Number],MATCH(Table_CloseReceipt[[#This Row],[Rank]],Table_ReceiptPoint[Distance Rank to Delivery Location],0),) -> 1763 | E120: =INDEX(Table_ReceiptPoint[Receipt Point Name2],MATCH(Table_CloseReceipt[[#This Row],[Rank]],Table_ReceiptPoint[Distance Rank to Delivery Location],0),) -> CORNER LAKE NO 2* | F120: =INDEX(Table_ReceiptPoint[Distance From Delivery Station],MATCH(Table_CloseReceipt[[#This Row],[Rank]],Table_ReceiptPoint[Distance Rank to Delivery Location],0),) -> 162.8885 | G120: =INDEX(Table_ReceiptPoint[Legal Location Name],MATCH(Table_CloseReceipt[[#This Row],[Rank]],Table_ReceiptPoint[Distance Rank to Delivery Location],0),) -> 09-22-065-07-W4 | H120: =INDEX(Table_Attach1[FT-R Demand Rate Price Point "B" ($/103m3/mo)],MATCH(Table_CloseReceipt[[#This Row],[Station Number]],Table_Attach1[Receipt Point Number],0),)*INDEX(Conversions!$C$7:$C$8,MATCH('Toll Calculator'!$O$8,Conversions!$B$7:$B$8,0)) -> 141.89 | I120: =INDEX(Table_Attach3[FT-P Demand Rate Price Point "B"],MATCH(IF(CEILING(Table_CloseReceipt[[#This Row],[Distance (km)]],25)>500,999999,CEILING(Table_CloseReceipt[[#This Row],[Distance (km)]],25)),Table_Attach3[Maximum Distance Between Receipt Point and Delivery Point (km)],0),)*INDEX(Conversions!$C$7:$C$8,MATCH('Toll Calculator'!$O$8,Conversions!$B$7:$B$8,0)) -> 501.56 | J120: =INDEX(Table_Attach1[IT-R Rate ($/103m3/d)],MATCH(Table_CloseReceipt[[#This Row],[Station Number]],Table_Attach1[Receipt Point Number],0),)*INDEX(Conversions!$C$7:$C$8,MATCH('Toll Calculator'!$O$8,Conversions!$B$7:$B$8,0))*(365/12) -> 162.73
C121: =Table_ReceiptPointAlphabetical[[#This Row],[Alphabetical Order Rank]] -> 115 | D121: =INDEX(Table_ReceiptPoint[Receipt Point Number],MATCH(Table_CloseReceipt[[#This Row],[Rank]],Table_ReceiptPoint[Distance Rank to Delivery Location],0),) -> 1523 | E121: =INDEX(Table_ReceiptPoint[Receipt Point Name2],MATCH(Table_CloseReceipt[[#This Row],[Rank]],Table_ReceiptPoint[Distance Rank to Delivery Location],0),) -> HELINA* | F121: =INDEX(Table_ReceiptPoint[Distance From Delivery Station],MATCH(Table_CloseReceipt[[#This Row],[Rank]],Table_ReceiptPoint[Distance Rank to Delivery Location],0),) -> 163.6094 | G121: =INDEX(Table_ReceiptPoint[Legal Location Name],MATCH(Table_CloseReceipt[[#This Row],[Rank]],Table_ReceiptPoint[Distance Rank to Delivery Location],0),) -> SW-21-064-09-W4 | H121: =INDEX(Table_Attach1[FT-R Demand Rate Price Point "B" ($/103m3/mo)],MATCH(Table_CloseReceipt[[#This Row],[Station Number]],Table_Attach1[Receipt Point Number],0),)*INDEX(Conversions!$C$7:$C$8,MATCH('Toll Calculator'!$O$8,Conversions!$B$7:$B$8,0)) -> 501.97 | I121: =INDEX(Table_Attach3[FT-P Demand Rate Price Point "B"],MATCH(IF(CEILING(Table_CloseReceipt[[#This Row],[Distance (km)]],25)>500,999999,CEILING(Table_CloseReceipt[[#This Row],[Distance (km)]],25)),Table_Attach3[Maximum Distance Between Receipt Point and Delivery Point (km)],0),)*INDEX(Conversions!$C$7:$C$8,MATCH('Toll Calculator'!$O$8,Conversions!$B$7:$B$8,0)) -> 501.56 | J121: =INDEX(Table_Attach1[IT-R Rate ($/103m3/d)],MATCH(Table_CloseReceipt[[#This Row],[Station Number]],Table_Attach1[Receipt Point Number],0),)*INDEX(Conversions!$C$7:$C$8,MATCH('Toll Calculator'!$O$8,Conversions!$B$7:$B$8,0))*(365/12) -> 575.79
C122: =Table_ReceiptPointAlphabetical[[#This Row],[Alphabetical Order Rank]] -> 116 | D122: =INDEX(Table_ReceiptPoint[Receipt Point Number],MATCH(Table_CloseReceipt[[#This Row],[Rank]],Table_ReceiptPoint[Distance Rank to Delivery Location],0),) -> 3915 | E122: =INDEX(Table_ReceiptPoint[Receipt Point Name2],MATCH(Table_CloseReceipt[[#This Row],[Rank]],Table_ReceiptPoint[Distance Rank to Delivery Location],0),) -> HAMILTON LAKE SUMMARY* | F122: =INDEX(Table_ReceiptPoint[Distance From Delivery Station],MATCH(Table_CloseReceipt[[#This Row],[Rank]],Table_ReceiptPoint[Distance Rank to Delivery Location],0),) -> 163.7877 | G122: =INDEX(Table_ReceiptPoint[Legal Location Name],MATCH(Table_CloseReceipt[[#This Row],[Rank]],Table_ReceiptPoint[Distance Rank to Delivery Location],0),) -> 16-02-035-09-W4 | H122: =INDEX(Table_Attach1[FT-R Demand Rate Price Point "B" ($/103m3/mo)],MATCH(Table_CloseReceipt[[#This Row],[Station Number]],Table_Attach1[Receipt Point Number],0),)*INDEX(Conversions!$C$7:$C$8,MATCH('Toll Calculator'!$O$8,Conversions!$B$7:$B$8,0)) -> 501.97 | I122: =INDEX(Table_Attach3[FT-P Demand Rate Price Point "B"],MATCH(IF(CEILING(Table_CloseReceipt[[#This Row],[Distance (km)]],25)>500,999999,CEILING(Table_CloseReceipt[[#This Row],[Distance (km)]],25)),Table_Attach3[Maximum Distance Between Receipt Point and Delivery Point (km)],0),)*INDEX(Conversions!$C$7:$C$8,MATCH('Toll Calculator'!$O$8,Conversions!$B$7:$B$8,0)) -> 501.56 | J122: =INDEX(Table_Attach1[IT-R Rate ($/103m3/d)],MATCH(Table_CloseReceipt[[#This Row],[Station Number]],Table_Attach1[Receipt Point Number],0),)*INDEX(Conversions!$C$7:$C$8,MATCH('Toll Calculator'!$O$8,Conversions!$B$7:$B$8,0))*(365/12) -> 575.79
C123: =Table_ReceiptPointAlphabetical[[#This Row],[Alphabetical Order Rank]] -> 117 | D123: =INDEX(Table_ReceiptPoint[Receipt Point Number],MATCH(Table_CloseReceipt[[#This Row],[Rank]],Table_ReceiptPoint[Distance Rank to Delivery Location],0),) -> 1179 | E123: =INDEX(Table_ReceiptPoint[Receipt Point Name2],MATCH(Table_CloseReceipt[[#This Row],[Rank]],Table_ReceiptPoint[Distance Rank to Delivery Location],0),) -> STROME-HOLMBERG | F123: =INDEX(Table_ReceiptPoint[Distance From Delivery Station],MATCH(Table_CloseReceipt[[#This Row],[Rank]],Table_ReceiptPoint[Distance Rank to Delivery Location],0),) -> 163.8317 | G123: =INDEX(Table_ReceiptPoint[Legal Location Name],MATCH(Table_CloseReceipt[[#This Row],[Rank]],Table_ReceiptPoint[Distance Rank to Delivery Location],0),) -> NW-13-044-17-W4 | H123: =INDEX(Table_Attach1[FT-R Demand Rate Price Point "B" ($/103m3/mo)],MATCH(Table_CloseReceipt[[#This Row],[Station Number]],Table_Attach1[Receipt Point Number],0),)*INDEX(Conversions!$C$7:$C$8,MATCH('Toll Calculator'!$O$8,Conversions!$B$7:$B$8,0)) -> 304.72 | I123: =INDEX(Table_Attach3[FT-P Demand Rate Price Point "B"],MATCH(IF(CEILING(Table_CloseReceipt[[#This Row],[Distance (km)]],25)>500,999999,CEILING(Table_CloseReceipt[[#This Row],[Distance (km)]],25)),Table_Attach3[Maximum Distance Between Receipt Point and Delivery Point (km)],0),)*INDEX(Conversions!$C$7:$C$8,MATCH('Toll Calculator'!$O$8,Conversions!$B$7:$B$8,0)) -> 501.56 | J123: =INDEX(Table_Attach1[IT-R Rate ($/103m3/d)],MATCH(Table_CloseReceipt[[#This Row],[Station Number]],Table_Attach1[Receipt Point Number],0),)*INDEX(Conversions!$C$7:$C$8,MATCH('Toll Calculator'!$O$8,Conversions!$B$7:$B$8,0))*(365/12) -> 349.49
C124: =Table_ReceiptPointAlphabetical[[#This Row],[Alphabetical Order Rank]] -> 118 | D124: =INDEX(Table_ReceiptPoint[Receipt Point Number],MATCH(Table_CloseReceipt[[#This Row],[Rank]],Table_ReceiptPoint[Distance Rank to Delivery Location],0),) -> 1439 | E124: =INDEX(Table_ReceiptPoint[Receipt Point Name2],MATCH(Table_CloseReceipt[[#This Row],[Rank]],Table_ReceiptPoint[Distance Rank to Delivery Location],0),) -> HEISLER* | F124: =INDEX(Table_ReceiptPoint[Distance From Delivery Station],MATCH(Table_CloseReceipt[[#This Row],[Rank]],Table_ReceiptPoint[Distance Rank to Delivery Location],0),) -> 164.9259 | G124: =INDEX(Table_ReceiptPoint[Legal Location Name],MATCH(Table_CloseReceipt[[#This Row],[Rank]],Table_ReceiptPoint[Distance Rank to Delivery Location],0),) -> SW-15-042-16-W4 | H124: =INDEX(Table_Attach1[FT-R Demand Rate Price Point "B" ($/103m3/mo)],MATCH(Table_CloseReceipt[[#This Row],[Station Number]],Table_Attach1[Receipt Point Number],0),)*INDEX(Conversions!$C$7:$C$8,MATCH('Toll Calculator'!$O$8,Conversions!$B$7:$B$8,0)) -> 288.9 | I124: =INDEX(Table_Attach3[FT-P Demand Rate Price Point "B"],MATCH(IF(CEILING(Table_CloseReceipt[[#This Row],[Distance (km)]],25)>500,999999,CEILING(Table_CloseReceipt[[#This Row],[Distance (km)]],25)),Table_Attach3[Maximum Distance Between Receipt Point and Delivery Point (km)],0),)*INDEX(Conversions!$C$7:$C$8,MATCH('Toll Calculator'!$O$8,Conversions!$B$7:$B$8,0)) -> 501.56 | J124: =INDEX(Table_Attach1[IT-R Rate ($/103m3/d)],MATCH(Table_CloseReceipt[[#This Row],[Station Number]],Table_Attach1[Receipt Point Number],0),)*INDEX(Conversions!$C$7:$C$8,MATCH('Toll Calculator'!$O$8,Conversions!$B$7:$B$8,0))*(365/12) -> 331.24
C125: =Table_ReceiptPointAlphabetical[[#This Row],[Alphabetical Order Rank]] -> 119 | D125: =INDEX(Table_ReceiptPoint[Receipt Point Number],MATCH(Table_CloseReceipt[[#This Row],[Rank]],Table_ReceiptPoint[Distance Rank to Delivery Location],0),) -> 3916 | E125: =INDEX(Table_ReceiptPoint[Receipt Point Name2],MATCH(Table_CloseReceipt[[#This Row],[Rank]],Table_ReceiptPoint[Distance Rank to Delivery Location],0),) -> VETERAN SUMMARY | F125: =INDEX(Table_ReceiptPoint[Distance From Delivery Station],MATCH(Table_CloseReceipt[[#This Row],[Rank]],Table_ReceiptPoint[Distance Rank to Delivery Location],0),) -> 165.5793 | G125: =INDEX(Table_ReceiptPoint[Legal Location Name],MATCH(Table_CloseReceipt[[#This Row],[Rank]],Table_ReceiptPoint[Distance Rank to Delivery Location],0),) -> SE-29-034-08-W4 | H125: =INDEX(Table_Attach1[FT-R Demand Rate Price Point "B" ($/103m3/mo)],MATCH(Table_CloseReceipt[[#This Row],[Station Number]],Table_Attach1[Receipt Point Number],0),)*INDEX(Conversions!$C$7:$C$8,MATCH('Toll Calculator'!$O$8,Conversions!$B$7:$B$8,0)) -> 501.97 | I125: =INDEX(Table_Attach3[FT-P Demand Rate Price Point "B"],MATCH(IF(CEILING(Table_CloseReceipt[[#This Row],[Distance (km)]],25)>500,999999,CEILING(Table_CloseReceipt[[#This Row],[Distance (km)]],25)),Table_Attach3[Maximum Distance Between Receipt Point and Delivery Point (km)],0),)*INDEX(Conversions!$C$7:$C$8,MATCH('Toll Calculator'!$O$8,Conversions!$B$7:$B$8,0)) -> 501.56 | J125: =INDEX(Table_Attach1[IT-R Rate ($/103m3/d)],MATCH(Table_CloseReceipt[[#This Row],[Station Number]],Table_Attach1[Receipt Point Number],0),)*INDEX(Conversions!$C$7:$C$8,MATCH('Toll Calculator'!$O$8,Conversions!$B$7:$B$8,0))*(365/12) -> 575.79
C126: =Table_ReceiptPointAlphabetical[[#This Row],[Alphabetical Order Rank]] -> 120 | D126: =INDEX(Table_ReceiptPoint[Receipt Point Number],MATCH(Table_CloseReceipt[[#This Row],[Rank]],Table_ReceiptPoint[Distance Rank to Delivery Location],0),) -> 1317 | E126: =INDEX(Table_ReceiptPoint[Receipt Point Name2],MATCH(Table_CloseReceipt[[#This Row],[Rank]],Table_ReceiptPoint[Distance Rank to Delivery Location],0),) -> UKALTA EAST* | F126: =INDEX(Table_ReceiptPoint[Distance From Delivery Station],MATCH(Table_CloseReceipt[[#This Row],[Rank]],Table_ReceiptPoint[Distance Rank to Delivery Location],0),) -> 165.6735 | G126: =INDEX(Table_ReceiptPoint[Legal Location Name],MATCH(Table_CloseReceipt[[#This Row],[Rank]],Table_ReceiptPoint[Distance Rank to Delivery Location],0),) -> NE-35-057-16-W4 | H126: =INDEX(Table_Attach1[FT-R Demand Rate Price Point "B" ($/103m3/mo)],MATCH(Table_CloseReceipt[[#This Row],[Station Number]],Table_Attach1[Receipt Point Number],0),)*INDEX(Conversions!$C$7:$C$8,MATCH('Toll Calculator'!$O$8,Conversions!$B$7:$B$8,0)) -> 326.79 | I126: =INDEX(Table_Attach3[FT-P Demand Rate Price Point "B"],MATCH(IF(CEILING(Table_CloseReceipt[[#This Row],[Distance (km)]],25)>500,999999,CEILING(Table_CloseReceipt[[#This Row],[Distance (km)]],25)),Table_Attach3[Maximum Distance Between Receipt Point and Delivery Point (km)],0),)*INDEX(Conversions!$C$7:$C$8,MATCH('Toll Calculator'!$O$8,Conversions!$B$7:$B$8,0)) -> 501.56 | J126: =INDEX(Table_Attach1[IT-R Rate ($/103m3/d)],MATCH(Table_CloseReceipt[[#This Row],[Station Number]],Table_Attach1[Receipt Point Number],0),)*INDEX(Conversions!$C$7:$C$8,MATCH('Toll Calculator'!$O$8,Conversions!$B$7:$B$8,0))*(365/12) -> 374.73
C127: =Table_ReceiptPointAlphabetical[[#This Row],[Alphabetical Order Rank]] -> 121 | D127: =INDEX(Table_ReceiptPoint[Receipt Point Number],MATCH(Table_CloseReceipt[[#This Row],[Rank]],Table_ReceiptPoint[Distance Rank to Delivery Location],0),) -> 1397 | E127: =INDEX(Table_ReceiptPoint[Receipt Point Name2],MATCH(Table_CloseReceipt[[#This Row],[Rank]],Table_ReceiptPoint[Distance Rank to Delivery Location],0),) -> CASTOR | F127: =INDEX(Table_ReceiptPoint[Distance From Delivery Station],MATCH(Table_CloseReceipt[[#This Row],[Rank]],Table_ReceiptPoint[Distance Rank to Delivery Location],0),) -> 165.931 | G127: =INDEX(Table_ReceiptPoint[Legal Location Name],MATCH(Table_CloseReceipt[[#This Row],[Rank]],Table_ReceiptPoint[Distance Rank to Delivery Location],0),) -> SW-03-038-13-W4 | H127: =INDEX(Table_Attach1[FT-R Demand Rate Price Point "B" ($/103m3/mo)],MATCH(Table_CloseReceipt[[#This Row],[Station Number]],Table_Attach1[Receipt Point Number],0),)*INDEX(Conversions!$C$7:$C$8,MATCH('Toll Calculator'!$O$8,Conversions!$B$7:$B$8,0)) -> 403.97 | I127: =INDEX(Table_Attach3[FT-P Demand Rate Price Point "B"],MATCH(IF(CEILING(Table_CloseReceipt[[#This Row],[Distance (km)]],25)>500,999999,CEILING(Table_CloseReceipt[[#This Row],[Distance (km)]],25)),Table_Attach3[Maximum Distance Between Receipt Point and Delivery Point (km)],0),)*INDEX(Conversions!$C$7:$C$8,MATCH('Toll Calculator'!$O$8,Conversions!$B$7:$B$8,0)) -> 501.56 | J127: =INDEX(Table_Attach1[IT-R Rate ($/103m3/d)],MATCH(Table_CloseReceipt[[#This Row],[Station Number]],Table_Attach1[Receipt Point Number],0),)*INDEX(Conversions!$C$7:$C$8,MATCH('Toll Calculator'!$O$8,Conversions!$B$7:$B$8,0))*(365/12) -> 463.25
C128: =Table_ReceiptPointAlphabetical[[#This Row],[Alphabetical Order Rank]] -> 122 | D128: =INDEX(Table_ReceiptPoint[Receipt Point Number],MATCH(Table_CloseReceipt[[#This Row],[Rank]],Table_ReceiptPoint[Distance Rank to Delivery Location],0),) -> 1612 | E128: =INDEX(Table_ReceiptPoint[Receipt Point Name2],MATCH(Table_CloseReceipt[[#This Row],[Rank]],Table_ReceiptPoint[Distance Rank to Delivery Location],0),) -> COATES LAKE | F128: =INDEX(Table_ReceiptPoint[Distance From Delivery Station],MATCH(Table_CloseReceipt[[#This Row],[Rank]],Table_ReceiptPoint[Distance Rank to Delivery Location],0),) -> 169.1912 | G128: =INDEX(Table_ReceiptPoint[Legal Location Name],MATCH(Table_CloseReceipt[[#This Row],[Rank]],Table_ReceiptPoint[Distance Rank to Delivery Location],0),) -> 13-19-032-01-W4 | H128: =INDEX(Table_Attach1[FT-R Demand Rate Price Point "B" ($/103m3/mo)],MATCH(Table_CloseReceipt[[#This Row],[Station Number]],Table_Attach1[Receipt Point Number],0),)*INDEX(Conversions!$C$7:$C$8,MATCH('Toll Calculator'!$O$8,Conversions!$B$7:$B$8,0)) -> 228.69 | I128: =INDEX(Table_Attach3[FT-P Demand Rate Price Point "B"],MATCH(IF(CEILING(Table_CloseReceipt[[#This Row],[Distance (km)]],25)>500,999999,CEILING(Table_CloseReceipt[[#This Row],[Distance (km)]],25)),Table_Attach3[Maximum Distance Between Receipt Point and Delivery Point (km)],0),)*INDEX(Conversions!$C$7:$C$8,MATCH('Toll Calculator'!$O$8,Conversions!$B$7:$B$8,0)) -> 501.56 | J128: =INDEX(Table_Attach1[IT-R Rate ($/103m3/d)],MATCH(Table_CloseReceipt[[#This Row],[Station Number]],Table_Attach1[Receipt Point Number],0),)*INDEX(Conversions!$C$7:$C$8,MATCH('Toll Calculator'!$O$8,Conversions!$B$7:$B$8,0))*(365/12) -> 262.19
C129: =Table_ReceiptPointAlphabetical[[#This Row],[Alphabetical Order Rank]] -> 123 | D129: =INDEX(Table_ReceiptPoint[Receipt Point Number],MATCH(Table_CloseReceipt[[#This Row],[Rank]],Table_ReceiptPoint[Distance Rank to Delivery Location],0),) -> 1565 | E129: =INDEX(Table_ReceiptPoint[Receipt Point Name2],MATCH(Table_CloseReceipt[[#This Row],[Rank]],Table_ReceiptPoint[Distance Rank to Delivery Location],0),) -> STONEY CREEK | F129: =INDEX(Table_ReceiptPoint[Distance From Delivery Station],MATCH(Table_CloseReceipt[[#This Row],[Rank]],Table_ReceiptPoint[Distance Rank to Delivery Location],0),) -> 169.2618 | G129: =INDEX(Table_ReceiptPoint[Legal Location Name],MATCH(Table_CloseReceipt[[#This Row],[Rank]],Table_ReceiptPoint[Distance Rank to Delivery Location],0),) -> NE-13-060-15-W4 | H129: =INDEX(Table_Attach1[FT-R Demand Rate Price Point "B" ($/103m3/mo)],MATCH(Table_CloseReceipt[[#This Row],[Station Number]],Table_Attach1[Receipt Point Number],0),)*INDEX(Conversions!$C$7:$C$8,MATCH('Toll Calculator'!$O$8,Conversions!$B$7:$B$8,0)) -> 426.04 | I129: =INDEX(Table_Attach3[FT-P Demand Rate Price Point "B"],MATCH(IF(CEILING(Table_CloseReceipt[[#This Row],[Distance (km)]],25)>500,999999,CEILING(Table_CloseReceipt[[#This Row],[Distance (km)]],25)),Table_Attach3[Maximum Distance Between Receipt Point and Delivery Point (km)],0),)*INDEX(Conversions!$C$7:$C$8,MATCH('Toll Calculator'!$O$8,Conversions!$B$7:$B$8,0)) -> 501.56 | J129: =INDEX(Table_Attach1[IT-R Rate ($/103m3/d)],MATCH(Table_CloseReceipt[[#This Row],[Station Number]],Table_Attach1[Receipt Point Number],0),)*INDEX(Conversions!$C$7:$C$8,MATCH('Toll Calculator'!$O$8,Conversions!$B$7:$B$8,0))*(365/12) -> 488.49
C130: =Table_ReceiptPointAlphabetical[[#This Row],[Alphabetical Order Rank]] -> 124 | D130: =INDEX(Table_ReceiptPoint[Receipt Point Number],MATCH(Table_CloseReceipt[[#This Row],[Rank]],Table_ReceiptPoint[Distance Rank to Delivery Location],0),) -> 1374 | E130: =INDEX(Table_ReceiptPoint[Receipt Point Name2],MATCH(Table_CloseReceipt[[#This Row],[Rank]],Table_ReceiptPoint[Distance Rank to Delivery Location],0),) -> RICH LAKE* | F130: =INDEX(Table_ReceiptPoint[Distance From Delivery Station],MATCH(Table_CloseReceipt[[#This Row],[Rank]],Table_ReceiptPoint[Distance Rank to Delivery Location],0),) -> 171.2641 | G130: =INDEX(Table_ReceiptPoint[Legal Location Name],MATCH(Table_CloseReceipt[[#This Row],[Rank]],Table_ReceiptPoint[Distance Rank to Delivery Location],0),) -> SE-36-063-12-W4 | H130: =INDEX(Table_Attach1[FT-R Demand Rate Price Point "B" ($/103m3/mo)],MATCH(Table_CloseReceipt[[#This Row],[Station Number]],Table_Attach1[Receipt Point Number],0),)*INDEX(Conversions!$C$7:$C$8,MATCH('Toll Calculator'!$O$8,Conversions!$B$7:$B$8,0)) -> 501.97 | I130: =INDEX(Table_Attach3[FT-P Demand Rate Price Point "B"],MATCH(IF(CEILING(Table_CloseReceipt[[#This Row],[Distance (km)]],25)>500,999999,CEILING(Table_CloseReceipt[[#This Row],[Distance (km)]],25)),Table_Attach3[Maximum Distance Between Receipt Point and Delivery Point (km)],0),)*INDEX(Conversions!$C$7:$C$8,MATCH('Toll Calculator'!$O$8,Conversions!$B$7:$B$8,0)) -> 501.56 | J130: =INDEX(Table_Attach1[IT-R Rate ($/103m3/d)],MATCH(Table_CloseReceipt[[#This Row],[Station Number]],Table_Attach1[Receipt Point Number],0),)*INDEX(Conversions!$C$7:$C$8,MATCH('Toll Calculator'!$O$8,Conversions!$B$7:$B$8,0))*(365/12) -> 575.79
C131: =Table_ReceiptPointAlphabetical[[#This Row],[Alphabetical Order Rank]] -> 125 | D131: =INDEX(Table_ReceiptPoint[Receipt Point Number],MATCH(Table_CloseReceipt[[#This Row],[Rank]],Table_ReceiptPoint[Distance Rank to Delivery Location],0),) -> 1120 | E131: =INDEX(Table_ReceiptPoint[Receipt Point Name2],MATCH(Table_CloseReceipt[[#This Row],[Rank]],Table_ReceiptPoint[Distance Rank to Delivery Location],0),) -> UKALTA* | F131: =INDEX(Table_ReceiptPoint[Distance From Delivery Station],MATCH(Table_CloseReceipt[[#This Row],[Rank]],Table_ReceiptPoint[Distance Rank to Delivery Location],0),) -> 171.5912 | G131: =INDEX(Table_ReceiptPoint[Legal Location Name],MATCH(Table_CloseReceipt[[#This Row],[Rank]],Table_ReceiptPoint[Distance Rank to Delivery Location],0),) -> SE-25-057-17-W4 | H131: =INDEX(Table_Attach1[FT-R Demand Rate Price Point "B" ($/103m3/mo)],MATCH(Table_CloseReceipt[[#This Row],[Station Number]],Table_Attach1[Receipt Point Number],0),)*INDEX(Conversions!$C$7:$C$8,MATCH('Toll Calculator'!$O$8,Conversions!$B$7:$B$8,0)) -> 367.52 | I131: =INDEX(Table_Attach3[FT-P Demand Rate Price Point "B"],MATCH(IF(CEILING(Table_CloseReceipt[[#This Row],[Distance (km)]],25)>500,999999,CEILING(Table_CloseReceipt[[#This Row],[Distance (km)]],25)),Table_Attach3[Maximum Distance Between Receipt Point and Delivery Point (km)],0),)*INDEX(Conversions!$C$7:$C$8,MATCH('Toll Calculator'!$O$8,Conversions!$B$7:$B$8,0)) -> 501.56 | J131: =INDEX(Table_Attach1[IT-R Rate ($/103m3/d)],MATCH(Table_CloseReceipt[[#This Row],[Station Number]],Table_Attach1[Receipt Point Number],0),)*INDEX(Conversions!$C$7:$C$8,MATCH('Toll Calculator'!$O$8,Conversions!$B$7:$B$8,0))*(365/12) -> 421.58
C132: =Table_ReceiptPointAlphabetical[[#This Row],[Alphabetical Order Rank]] -> 126 | D132: =INDEX(Table_ReceiptPoint[Receipt Point Number],MATCH(Table_CloseReceipt[[#This Row],[Rank]],Table_ReceiptPoint[Distance Rank to Delivery Location],0),) -> 1675 | E132: =INDEX(Table_ReceiptPoint[Receipt Point Name2],MATCH(Table_CloseReceipt[[#This Row],[Rank]],Table_ReceiptPoint[Distance Rank to Delivery Location],0),) -> BELLIS SOUTH* | F132: =INDEX(Table_ReceiptPoint[Distance From Delivery Station],MATCH(Table_CloseReceipt[[#This Row],[Rank]],Table_ReceiptPoint[Distance Rank to Delivery Location],0),) -> 171.7444 | G132: =INDEX(Table_ReceiptPoint[Legal Location Name],MATCH(Table_CloseReceipt[[#This Row],[Rank]],Table_ReceiptPoint[Distance Rank to Delivery Location],0),) -> 15-34-058-16-W4 | H132: =INDEX(Table_Attach1[FT-R Demand Rate Price Point "B" ($/103m3/mo)],MATCH(Table_CloseReceipt[[#This Row],[Station Number]],Table_Attach1[Receipt Point Number],0),)*INDEX(Conversions!$C$7:$C$8,MATCH('Toll Calculator'!$O$8,Conversions!$B$7:$B$8,0)) -> 292.04 | I132: =INDEX(Table_Attach3[FT-P Demand Rate Price Point "B"],MATCH(IF(CEILING(Table_CloseReceipt[[#This Row],[Distance (km)]],25)>500,999999,CEILING(Table_CloseReceipt[[#This Row],[Distance (km)]],25)),Table_Attach3[Maximum Distance Between Receipt Point and Delivery Point (km)],0),)*INDEX(Conversions!$C$7:$C$8,MATCH('Toll Calculator'!$O$8,Conversions!$B$7:$B$8,0)) -> 501.56 | J132: =INDEX(Table_Attach1[IT-R Rate ($/103m3/d)],MATCH(Table_CloseReceipt[[#This Row],[Station Number]],Table_Attach1[Receipt Point Number],0),)*INDEX(Conversions!$C$7:$C$8,MATCH('Toll Calculator'!$O$8,Conversions!$B$7:$B$8,0))*(365/12) -> 334.89
C133: =Table_ReceiptPointAlphabetical[[#This Row],[Alphabetical Order Rank]] -> 127 | D133: =INDEX(Table_ReceiptPoint[Receipt Point Number],MATCH(Table_CloseReceipt[[#This Row],[Rank]],Table_ReceiptPoint[Distance Rank to Delivery Location],0),) -> 1566 | E133: =INDEX(Table_ReceiptPoint[Receipt Point Name2],MATCH(Table_CloseReceipt[[#This Row],[Rank]],Table_ReceiptPoint[Distance Rank to Delivery Location],0),) -> STONEY CREEK WEST* | F133: =INDEX(Table_ReceiptPoint[Distance From Delivery Station],MATCH(Table_CloseReceipt[[#This Row],[Rank]],Table_ReceiptPoint[Distance Rank to Delivery Location],0),) -> 171.8839 | G133: =INDEX(Table_ReceiptPoint[Legal Location Name],MATCH(Table_CloseReceipt[[#This Row],[Rank]],Table_ReceiptPoint[Distance Rank to Delivery Location],0),) -> SW-04-060-15-W4 | H133: =INDEX(Table_Attach1[FT-R Demand Rate Price Point "B" ($/103m3/mo)],MATCH(Table_CloseReceipt[[#This Row],[Station Number]],Table_Attach1[Receipt Point Number],0),)*INDEX(Conversions!$C$7:$C$8,MATCH('Toll Calculator'!$O$8,Conversions!$B$7:$B$8,0)) -> 388.96 | I133: =INDEX(Table_Attach3[FT-P Demand Rate Price Point "B"],MATCH(IF(CEILING(Table_CloseReceipt[[#This Row],[Distance (km)]],25)>500,999999,CEILING(Table_CloseReceipt[[#This Row],[Distance (km)]],25)),Table_Attach3[Maximum Distance Between Receipt Point and Delivery Point (km)],0),)*INDEX(Conversions!$C$7:$C$8,MATCH('Toll Calculator'!$O$8,Conversions!$B$7:$B$8,0)) -> 501.56 | J133: =INDEX(Table_Attach1[IT-R Rate ($/103m3/d)],MATCH(Table_CloseReceipt[[#This Row],[Station Number]],Table_Attach1[Receipt Point Number],0),)*INDEX(Conversions!$C$7:$C$8,MATCH('Toll Calculator'!$O$8,Conversions!$B$7:$B$8,0))*(365/12) -> 446.21
C134: =Table_ReceiptPointAlphabetical[[#This Row],[Alphabetical Order Rank]] -> 128 | D134: =INDEX(Table_ReceiptPoint[Receipt Point Number],MATCH(Table_CloseReceipt[[#This Row],[Rank]],Table_ReceiptPoint[Distance Rank to Delivery Location],0),) -> 30320 | E134: =INDEX(Table_ReceiptPoint[Receipt Point Name2],MATCH(Table_CloseReceipt[[#This Row],[Rank]],Table_ReceiptPoint[Distance Rank to Delivery Location],0),) -> MUNDARE B APN | F134: =INDEX(Table_ReceiptPoint[Distance From Delivery Station],MATCH(Table_CloseReceipt[[#This Row],[Rank]],Table_ReceiptPoint[Distance Rank to Delivery Location],0),) -> 172.1997 | G134: =INDEX(Table_ReceiptPoint[Legal Location Name],MATCH(Table_CloseReceipt[[#This Row],[Rank]],Table_ReceiptPoint[Distance Rank to Delivery Location],0),) -> 04-34-053-18-W4 | H134: =INDEX(Table_Attach1[FT-R Demand Rate Price Point "B" ($/103m3/mo)],MATCH(Table_CloseReceipt[[#This Row],[Station Number]],Table_Attach1[Receipt Point Number],0),)*INDEX(Conversions!$C$7:$C$8,MATCH('Toll Calculator'!$O$8,Conversions!$B$7:$B$8,0)) -> 141.89 | I134: =INDEX(Table_Attach3[FT-P Demand Rate Price Point "B"],MATCH(IF(CEILING(Table_CloseReceipt[[#This Row],[Distance (km)]],25)>500,999999,CEILING(Table_CloseReceipt[[#This Row],[Distance (km)]],25)),Table_Attach3[Maximum Distance Between Receipt Point and Delivery Point (km)],0),)*INDEX(Conversions!$C$7:$C$8,MATCH('Toll Calculator'!$O$8,Conversions!$B$7:$B$8,0)) -> 501.56 | J134: =INDEX(Table_Attach1[IT-R Rate ($/103m3/d)],MATCH(Table_CloseReceipt[[#This Row],[Station Number]],Table_Attach1[Receipt Point Number],0),)*INDEX(Conversions!$C$7:$C$8,MATCH('Toll Calculator'!$O$8,Conversions!$B$7:$B$8,0))*(365/12) -> 162.73
C135: =Table_ReceiptPointAlphabetical[[#This Row],[Alphabetical Order Rank]] -> 129 | D135: =INDEX(Table_ReceiptPoint[Receipt Point Number],MATCH(Table_CloseReceipt[[#This Row],[Rank]],Table_ReceiptPoint[Distance Rank to Delivery Location],0),) -> 1211 | E135: =INDEX(Table_ReceiptPoint[Receipt Point Name2],MATCH(Table_CloseReceipt[[#This Row],[Rank]],Table_ReceiptPoint[Distance Rank to Delivery Location],0),) -> PROVOST MONITOR* | F135: =INDEX(Table_ReceiptPoint[Distance From Delivery Station],MATCH(Table_CloseReceipt[[#This Row],[Rank]],Table_ReceiptPoint[Distance Rank to Delivery Location],0),) -> 173.462 | G135: =INDEX(Table_ReceiptPoint[Legal Location Name],MATCH(Table_CloseReceipt[[#This Row],[Rank]],Table_ReceiptPoint[Distance Rank to Delivery Location],0),) -> SW-16-033-07-W4 | H135: =INDEX(Table_Attach1[FT-R Demand Rate Price Point "B" ($/103m3/mo)],MATCH(Table_CloseReceipt[[#This Row],[Station Number]],Table_Attach1[Receipt Point Number],0),)*INDEX(Conversions!$C$7:$C$8,MATCH('Toll Calculator'!$O$8,Conversions!$B$7:$B$8,0)) -> 501.97 | I135: =INDEX(Table_Attach3[FT-P Demand Rate Price Point "B"],MATCH(IF(CEILING(Table_CloseReceipt[[#This Row],[Distance (km)]],25)>500,999999,CEILING(Table_CloseReceipt[[#This Row],[Distance (km)]],25)),Table_Attach3[Maximum Distance Between Receipt Point and Delivery Point (km)],0),)*INDEX(Conversions!$C$7:$C$8,MATCH('Toll Calculator'!$O$8,Conversions!$B$7:$B$8,0)) -> 501.56 | J135: =INDEX(Table_Attach1[IT-R Rate ($/103m3/d)],MATCH(Table_CloseReceipt[[#This Row],[Station Number]],Table_Attach1[Receipt Point Number],0),)*INDEX(Conversions!$C$7:$C$8,MATCH('Toll Calculator'!$O$8,Conversions!$B$7:$B$8,0))*(365/12) -> 575.79
C136: =Table_ReceiptPointAlphabetical[[#This Row],[Alphabetical Order Rank]] -> 130 | D136: =INDEX(Table_ReceiptPoint[Receipt Point Number],MATCH(Table_CloseReceipt[[#This Row],[Rank]],Table_ReceiptPoint[Distance Rank to Delivery Location],0),) -> 1771 | E136: =INDEX(Table_ReceiptPoint[Receipt Point Name2],MATCH(Table_CloseReceipt[[#This Row],[Rank]],Table_ReceiptPoint[Distance Rank to Delivery Location],0),) -> MONITOR CREEK WEST* | F136: =INDEX(Table_ReceiptPoint[Distance From Delivery Station],MATCH(Table_CloseReceipt[[#This Row],[Rank]],Table_ReceiptPoint[Distance Rank to Delivery Location],0),) -> 173.5972 | G136: =INDEX(Table_ReceiptPoint[Legal Location Name],MATCH(Table_CloseReceipt[[#This Row],[Rank]],Table_ReceiptPoint[Distance Rank to Delivery Location],0),) -> 16-32-032-06-W4 | H136: =INDEX(Table_Attach1[FT-R Demand Rate Price Point "B" ($/103m3/mo)],MATCH(Table_CloseReceipt[[#This Row],[Station Number]],Table_Attach1[Receipt Point Number],0),)*INDEX(Conversions!$C$7:$C$8,MATCH('Toll Calculator'!$O$8,Conversions!$B$7:$B$8,0)) -> 406.48 | I136: =INDEX(Table_Attach3[FT-P Demand Rate Price Point "B"],MATCH(IF(CEILING(Table_CloseReceipt[[#This Row],[Distance (km)]],25)>500,999999,CEILING(Table_CloseReceipt[[#This Row],[Distance (km)]],25)),Table_Attach3[Maximum Distance Between Receipt Point and Delivery Point (km)],0),)*INDEX(Conversions!$C$7:$C$8,MATCH('Toll Calculator'!$O$8,Conversions!$B$7:$B$8,0)) -> 501.56 | J136: =INDEX(Table_Attach1[IT-R Rate ($/103m3/d)],MATCH(Table_CloseReceipt[[#This Row],[Station Number]],Table_Attach1[Receipt Point Number],0),)*INDEX(Conversions!$C$7:$C$8,MATCH('Toll Calculator'!$O$8,Conversions!$B$7:$B$8,0))*(365/12) -> 466.29
C137: =Table_ReceiptPointAlphabetical[[#This Row],[Alphabetical Order Rank]] -> 131 | D137: =INDEX(Table_ReceiptPoint[Receipt Point Number],MATCH(Table_CloseReceipt[[#This Row],[Rank]],Table_ReceiptPoint[Distance Rank to Delivery Location],0),) -> 1148 | E137: =INDEX(Table_ReceiptPoint[Receipt Point Name2],MATCH(Table_CloseReceipt[[#This Row],[Rank]],Table_ReceiptPoint[Distance Rank to Delivery Location],0),) -> CRAIGEND SOUTH | F137: =INDEX(Table_ReceiptPoint[Distance From Delivery Station],MATCH(Table_CloseReceipt[[#This Row],[Rank]],Table_ReceiptPoint[Distance Rank to Delivery Location],0),) -> 173.9732 | G137: =INDEX(Table_ReceiptPoint[Legal Location Name],MATCH(Table_CloseReceipt[[#This Row],[Rank]],Table_ReceiptPoint[Distance Rank to Delivery Location],0),) -> SW-20-063-12-W4 | H137: =INDEX(Table_Attach1[FT-R Demand Rate Price Point "B" ($/103m3/mo)],MATCH(Table_CloseReceipt[[#This Row],[Station Number]],Table_Attach1[Receipt Point Number],0),)*INDEX(Conversions!$C$7:$C$8,MATCH('Toll Calculator'!$O$8,Conversions!$B$7:$B$8,0)) -> 457.18 | I137: =INDEX(Table_Attach3[FT-P Demand Rate Price Point "B"],MATCH(IF(CEILING(Table_CloseReceipt[[#This Row],[Distance (km)]],25)>500,999999,CEILING(Table_CloseReceipt[[#This Row],[Distance (km)]],25)),Table_Attach3[Maximum Distance Between Receipt Point and Delivery Point (km)],0),)*INDEX(Conversions!$C$7:$C$8,MATCH('Toll Calculator'!$O$8,Conversions!$B$7:$B$8,0)) -> 501.56 | J137: =INDEX(Table_Attach1[IT-R Rate ($/103m3/d)],MATCH(Table_CloseReceipt[[#This Row],[Station Number]],Table_Attach1[Receipt Point Number],0),)*INDEX(Conversions!$C$7:$C$8,MATCH('Toll Calculator'!$O$8,Conversions!$B$7:$B$8,0))*(365/12) -> 524.38
C138: =Table_ReceiptPointAlphabetical[[#This Row],[Alphabetical Order Rank]] -> 132 | D138: =INDEX(Table_ReceiptPoint[Receipt Point Number],MATCH(Table_CloseReceipt[[#This Row],[Rank]],Table_ReceiptPoint[Distance Rank to Delivery Location],0),) -> 1089 | E138: =INDEX(Table_ReceiptPoint[Receipt Point Name2],MATCH(Table_CloseReceipt[[#This Row],[Rank]],Table_ReceiptPoint[Distance Rank to Delivery Location],0),) -> BELLIS | F138: =INDEX(Table_ReceiptPoint[Distance From Delivery Station],MATCH(Table_CloseReceipt[[#This Row],[Rank]],Table_ReceiptPoint[Distance Rank to Delivery Location],0),) -> 175.0931 | G138: =INDEX(Table_ReceiptPoint[Legal Location Name],MATCH(Table_CloseReceipt[[#This Row],[Rank]],Table_ReceiptPoint[Distance Rank to Delivery Location],0),) -> 10-15-059-16-W4 | H138: =INDEX(Table_Attach1[FT-R Demand Rate Price Point "B" ($/103m3/mo)],MATCH(Table_CloseReceipt[[#This Row],[Station Number]],Table_Attach1[Receipt Point Number],0),)*INDEX(Conversions!$C$7:$C$8,MATCH('Toll Calculator'!$O$8,Conversions!$B$7:$B$8,0)) -> 333.01 | I138: =INDEX(Table_Attach3[FT-P Demand Rate Price Point "B"],MATCH(IF(CEILING(Table_CloseReceipt[[#This Row],[Distance (km)]],25)>500,999999,CEILING(Table_CloseReceipt[[#This Row],[Distance (km)]],25)),Table_Attach3[Maximum Distance Between Receipt Point and Delivery Point (km)],0),)*INDEX(Conversions!$C$7:$C$8,MATCH('Toll Calculator'!$O$8,Conversions!$B$7:$B$8,0)) -> 524.95 | J138: =INDEX(Table_Attach1[IT-R Rate ($/103m3/d)],MATCH(Table_CloseReceipt[[#This Row],[Station Number]],Table_Attach1[Receipt Point Number],0),)*INDEX(Conversions!$C$7:$C$8,MATCH('Toll Calculator'!$O$8,Conversions!$B$7:$B$8,0))*(365/12) -> 382.03
C139: =Table_ReceiptPointAlphabetical[[#This Row],[Alphabetical Order Rank]] -> 133 | D139: =INDEX(Table_ReceiptPoint[Receipt Point Number],MATCH(Table_CloseReceipt[[#This Row],[Rank]],Table_ReceiptPoint[Distance Rank to Delivery Location],0),) -> 1532 | E139: =INDEX(Table_ReceiptPoint[Receipt Point Name2],MATCH(Table_CloseReceipt[[#This Row],[Rank]],Table_ReceiptPoint[Distance Rank to Delivery Location],0),) -> OHATON* | F139: =INDEX(Table_ReceiptPoint[Distance From Delivery Station],MATCH(Table_CloseReceipt[[#This Row],[Rank]],Table_ReceiptPoint[Distance Rank to Delivery Location],0),) -> 175.1247 | G139: =INDEX(Table_ReceiptPoint[Legal Location Name],MATCH(Table_CloseReceipt[[#This Row],[Rank]],Table_ReceiptPoint[Distance Rank to Delivery Location],0),) -> SE-25-046-19-W4 | H139: =INDEX(Table_Attach1[FT-R Demand Rate Price Point "B" ($/103m3/mo)],MATCH(Table_CloseReceipt[[#This Row],[Station Number]],Table_Attach1[Receipt Point Number],0),)*INDEX(Conversions!$C$7:$C$8,MATCH('Toll Calculator'!$O$8,Conversions!$B$7:$B$8,0)) -> 501.97 | I139: =INDEX(Table_Attach3[FT-P Demand Rate Price Point "B"],MATCH(IF(CEILING(Table_CloseReceipt[[#This Row],[Distance (km)]],25)>500,999999,CEILING(Table_CloseReceipt[[#This Row],[Distance (km)]],25)),Table_Attach3[Maximum Distance Between Receipt Point and Delivery Point (km)],0),)*INDEX(Conversions!$C$7:$C$8,MATCH('Toll Calculator'!$O$8,Conversions!$B$7:$B$8,0)) -> 524.95 | J139: =INDEX(Table_Attach1[IT-R Rate ($/103m3/d)],MATCH(Table_CloseReceipt[[#This Row],[Station Number]],Table_Attach1[Receipt Point Number],0),)*INDEX(Conversions!$C$7:$C$8,MATCH('Toll Calculator'!$O$8,Conversions!$B$7:$B$8,0))*(365/12) -> 575.79
C140: =Table_ReceiptPointAlphabetical[[#This Row],[Alphabetical Order Rank]] -> 134 | D140: =INDEX(Table_ReceiptPoint[Receipt Point Number],MATCH(Table_CloseReceipt[[#This Row],[Rank]],Table_ReceiptPoint[Distance Rank to Delivery Location],0),) -> 1834 | E140: =INDEX(Table_ReceiptPoint[Receipt Point Name2],MATCH(Table_CloseReceipt[[#This Row],[Rank]],Table_ReceiptPoint[Distance Rank to Delivery Location],0),) -> HALKIRK NORTH NO 2* | F140: =INDEX(Table_ReceiptPoint[Distance From Delivery Station],MATCH(Table_CloseReceipt[[#This Row],[Rank]],Table_ReceiptPoint[Distance Rank to Delivery Location],0),) -> 179.0891 | G140: =INDEX(Table_ReceiptPoint[Legal Location Name],MATCH(Table_CloseReceipt[[#This Row],[Rank]],Table_ReceiptPoint[Distance Rank to Delivery Location],0),) -> NW-11-039-16-W4 | H140: =INDEX(Table_Attach1[FT-R Demand Rate Price Point "B" ($/103m3/mo)],MATCH(Table_CloseReceipt[[#This Row],[Station Number]],Table_Attach1[Receipt Point Number],0),)*INDEX(Conversions!$C$7:$C$8,MATCH('Toll Calculator'!$O$8,Conversions!$B$7:$B$8,0)) -> 315.2 | I140: =INDEX(Table_Attach3[FT-P Demand Rate Price Point "B"],MATCH(IF(CEILING(Table_CloseReceipt[[#This Row],[Distance (km)]],25)>500,999999,CEILING(Table_CloseReceipt[[#This Row],[Distance (km)]],25)),Table_Attach3[Maximum Distance Between Receipt Point and Delivery Point (km)],0),)*INDEX(Conversions!$C$7:$C$8,MATCH('Toll Calculator'!$O$8,Conversions!$B$7:$B$8,0)) -> 524.95 | J140: =INDEX(Table_Attach1[IT-R Rate ($/103m3/d)],MATCH(Table_CloseReceipt[[#This Row],[Station Number]],Table_Attach1[Receipt Point Number],0),)*INDEX(Conversions!$C$7:$C$8,MATCH('Toll Calculator'!$O$8,Conversions!$B$7:$B$8,0))*(365/12) -> 361.35
C141: =Table_ReceiptPointAlphabetical[[#This Row],[Alphabetical Order Rank]] -> 135 | D141: =INDEX(Table_ReceiptPoint[Receipt Point Number],MATCH(Table_CloseReceipt[[#This Row],[Rank]],Table_ReceiptPoint[Distance Rank to Delivery Location],0),) -> 1781 | E141: =INDEX(Table_ReceiptPoint[Receipt Point Name2],MATCH(Table_CloseReceipt[[#This Row],[Rank]],Table_ReceiptPoint[Distance Rank to Delivery Location],0),) -> MOSS LAKE* | F141: =INDEX(Table_ReceiptPoint[Distance From Delivery Station],MATCH(Table_CloseReceipt[[#This Row],[Rank]],Table_ReceiptPoint[Distance Rank to Delivery Location],0),) -> 179.2786 | G141: =INDEX(Table_ReceiptPoint[Legal Location Name],MATCH(Table_CloseReceipt[[#This Row],[Rank]],Table_ReceiptPoint[Distance Rank to Delivery Location],0),) -> 07-01-063-14-W4 | H141: =INDEX(Table_Attach1[FT-R Demand Rate Price Point "B" ($/103m3/mo)],MATCH(Table_CloseReceipt[[#This Row],[Station Number]],Table_Attach1[Receipt Point Number],0),)*INDEX(Conversions!$C$7:$C$8,MATCH('Toll Calculator'!$O$8,Conversions!$B$7:$B$8,0)) -> 338.09 | I141: =INDEX(Table_Attach3[FT-P Demand Rate Price Point "B"],MATCH(IF(CEILING(Table_CloseReceipt[[#This Row],[Distance (km)]],25)>500,999999,CEILING(Table_CloseReceipt[[#This Row],[Distance (km)]],25)),Table_Attach3[Maximum Distance Between Receipt Point and Delivery Point (km)],0),)*INDEX(Conversions!$C$7:$C$8,MATCH('Toll Calculator'!$O$8,Conversions!$B$7:$B$8,0)) -> 524.95 | J141: =INDEX(Table_Attach1[IT-R Rate ($/103m3/d)],MATCH(Table_CloseReceipt[[#This Row],[Station Number]],Table_Attach1[Receipt Point Number],0),)*INDEX(Conversions!$C$7:$C$8,MATCH('Toll Calculator'!$O$8,Conversions!$B$7:$B$8,0))*(365/12) -> 387.81
C142: =Table_ReceiptPointAlphabetical[[#This Row],[Alphabetical Order Rank]] -> 136 | D142: =INDEX(Table_ReceiptPoint[Receipt Point Number],MATCH(Table_CloseReceipt[[#This Row],[Rank]],Table_ReceiptPoint[Distance Rank to Delivery Location],0),) -> 30299 | E142: =INDEX(Table_ReceiptPoint[Receipt Point Name2],MATCH(Table_CloseReceipt[[#This Row],[Rank]],Table_ReceiptPoint[Distance Rank to Delivery Location],0),) -> LINDBROOK APN | F142: =INDEX(Table_ReceiptPoint[Distance From Delivery Station],MATCH(Table_CloseReceipt[[#This Row],[Rank]],Table_ReceiptPoint[Distance Rank to Delivery Location],0),) -> 180.0983 | G142: =INDEX(Table_ReceiptPoint[Legal Location Name],MATCH(Table_CloseReceipt[[#This Row],[Rank]],Table_ReceiptPoint[Distance Rank to Delivery Location],0),) -> 03-16-051-19-W4 | H142: =INDEX(Table_Attach1[FT-R Demand Rate Price Point "B" ($/103m3/mo)],MATCH(Table_CloseReceipt[[#This Row],[Station Number]],Table_Attach1[Receipt Point Number],0),)*INDEX(Conversions!$C$7:$C$8,MATCH('Toll Calculator'!$O$8,Conversions!$B$7:$B$8,0)) -> 141.89 | I142: =INDEX(Table_Attach3[FT-P Demand Rate Price Point "B"],MATCH(IF(CEILING(Table_CloseReceipt[[#This Row],[Distance (km)]],25)>500,999999,CEILING(Table_CloseReceipt[[#This Row],[Distance (km)]],25)),Table_Attach3[Maximum Distance Between Receipt Point and Delivery Point (km)],0),)*INDEX(Conversions!$C$7:$C$8,MATCH('Toll Calculator'!$O$8,Conversions!$B$7:$B$8,0)) -> 524.95 | J142: =INDEX(Table_Attach1[IT-R Rate ($/103m3/d)],MATCH(Table_CloseReceipt[[#This Row],[Station Number]],Table_Attach1[Receipt Point Number],0),)*INDEX(Conversions!$C$7:$C$8,MATCH('Toll Calculator'!$O$8,Conversions!$B$7:$B$8,0))*(365/12) -> 162.73
C143: =Table_ReceiptPointAlphabetical[[#This Row],[Alphabetical Order Rank]] -> 137 | D143: =INDEX(Table_ReceiptPoint[Receipt Point Number],MATCH(Table_CloseReceipt[[#This Row],[Rank]],Table_ReceiptPoint[Distance Rank to Delivery Location],0),) -> 1391 | E143: =INDEX(Table_ReceiptPoint[Receipt Point Name2],MATCH(Table_CloseReceipt[[#This Row],[Rank]],Table_ReceiptPoint[Distance Rank to Delivery Location],0),) -> HALKIRK | F143: =INDEX(Table_ReceiptPoint[Distance From Delivery Station],MATCH(Table_CloseReceipt[[#This Row],[Rank]],Table_ReceiptPoint[Distance Rank to Delivery Location],0),) -> 181.7598 | G143: =INDEX(Table_ReceiptPoint[Legal Location Name],MATCH(Table_CloseReceipt[[#This Row],[Rank]],Table_ReceiptPoint[Distance Rank to Delivery Location],0),) -> 02-34-038-16-W4 | H143: =INDEX(Table_Attach1[FT-R Demand Rate Price Point "B" ($/103m3/mo)],MATCH(Table_CloseReceipt[[#This Row],[Station Number]],Table_Attach1[Receipt Point Number],0),)*INDEX(Conversions!$C$7:$C$8,MATCH('Toll Calculator'!$O$8,Conversions!$B$7:$B$8,0)) -> 318.48 | I143: =INDEX(Table_Attach3[FT-P Demand Rate Price Point "B"],MATCH(IF(CEILING(Table_CloseReceipt[[#This Row],[Distance (km)]],25)>500,999999,CEILING(Table_CloseReceipt[[#This Row],[Distance (km)]],25)),Table_Attach3[Maximum Distance Between Receipt Point and Delivery Point (km)],0),)*INDEX(Conversions!$C$7:$C$8,MATCH('Toll Calculator'!$O$8,Conversions!$B$7:$B$8,0)) -> 524.95 | J143: =INDEX(Table_Attach1[IT-R Rate ($/103m3/d)],MATCH(Table_CloseReceipt[[#This Row],[Station Number]],Table_Attach1[Receipt Point Number],0),)*INDEX(Conversions!$C$7:$C$8,MATCH('Toll Calculator'!$O$8,Conversions!$B$7:$B$8,0))*(365/12) -> 365.3
C144: =Table_ReceiptPointAlphabetical[[#This Row],[Alphabetical Order Rank]] -> 138 | D144: =INDEX(Table_ReceiptPoint[Receipt Point Number],MATCH(Table_CloseReceipt[[#This Row],[Rank]],Table_ReceiptPoint[Distance Rank to Delivery Location],0),) -> 1036 | E144: =INDEX(Table_ReceiptPoint[Receipt Point Name2],MATCH(Table_CloseReceipt[[#This Row],[Rank]],Table_ReceiptPoint[Distance Rank to Delivery Location],0),) -> SEDALIA NORTH* | F144: =INDEX(Table_ReceiptPoint[Distance From Delivery Station],MATCH(Table_CloseReceipt[[#This Row],[Rank]],Table_ReceiptPoint[Distance Rank to Delivery Location],0),) -> 181.9094 | G144: =INDEX(Table_ReceiptPoint[Legal Location Name],MATCH(Table_CloseReceipt[[#This Row],[Rank]],Table_ReceiptPoint[Distance Rank to Delivery Location],0),) -> 01-32-031-05-W4 | H144: =INDEX(Table_Attach1[FT-R Demand Rate Price Point "B" ($/103m3/mo)],MATCH(Table_CloseReceipt[[#This Row],[Station Number]],Table_Attach1[Receipt Point Number],0),)*INDEX(Conversions!$C$7:$C$8,MATCH('Toll Calculator'!$O$8,Conversions!$B$7:$B$8,0)) -> 231.2 | I144: =INDEX(Table_Attach3[FT-P Demand Rate Price Point "B"],MATCH(IF(CEILING(Table_CloseReceipt[[#This Row],[Distance (km)]],25)>500,999999,CEILING(Table_CloseReceipt[[#This Row],[Distance (km)]],25)),Table_Attach3[Maximum Distance Between Receipt Point and Delivery Point (km)],0),)*INDEX(Conversions!$C$7:$C$8,MATCH('Toll Calculator'!$O$8,Conversions!$B$7:$B$8,0)) -> 524.95 | J144: =INDEX(Table_Attach1[IT-R Rate ($/103m3/d)],MATCH(Table_CloseReceipt[[#This Row],[Station Number]],Table_Attach1[Receipt Point Number],0),)*INDEX(Conversions!$C$7:$C$8,MATCH('Toll Calculator'!$O$8,Conversions!$B$7:$B$8,0))*(365/12) -> 265.23
C145: =Table_ReceiptPointAlphabetical[[#This Row],[Alphabetical Order Rank]] -> 139 | D145: =INDEX(Table_ReceiptPoint[Receipt Point Number],MATCH(Table_CloseReceipt[[#This Row],[Rank]],Table_ReceiptPoint[Distance Rank to Delivery Location],0),) -> 1715 | E145: =INDEX(Table_ReceiptPoint[Receipt Point Name2],MATCH(Table_CloseReceipt[[#This Row],[Rank]],Table_ReceiptPoint[Distance Rank to Delivery Location],0),) -> ELINOR LAKE* | F145: =INDEX(Table_ReceiptPoint[Distance From Delivery Station],MATCH(Table_CloseReceipt[[#This Row],[Rank]],Table_ReceiptPoint[Distance Rank to Delivery Location],0),) -> 184.6692 | G145: =INDEX(Table_ReceiptPoint[Legal Location Name],MATCH(Table_CloseReceipt[[#This Row],[Rank]],Table_ReceiptPoint[Distance Rank to Delivery Location],0),) -> 16-29-065-11-W4 | H145: =INDEX(Table_Attach1[FT-R Demand Rate Price Point "B" ($/103m3/mo)],MATCH(Table_CloseReceipt[[#This Row],[Station Number]],Table_Attach1[Receipt Point Number],0),)*INDEX(Conversions!$C$7:$C$8,MATCH('Toll Calculator'!$O$8,Conversions!$B$7:$B$8,0)) -> 141.89 | I145: =INDEX(Table_Attach3[FT-P Demand Rate Price Point "B"],MATCH(IF(CEILING(Table_CloseReceipt[[#This Row],[Distance (km)]],25)>500,999999,CEILING(Table_CloseReceipt[[#This Row],[Distance (km)]],25)),Table_Attach3[Maximum Distance Between Receipt Point and Delivery Point (km)],0),)*INDEX(Conversions!$C$7:$C$8,MATCH('Toll Calculator'!$O$8,Conversions!$B$7:$B$8,0)) -> 524.95 | J145: =INDEX(Table_Attach1[IT-R Rate ($/103m3/d)],MATCH(Table_CloseReceipt[[#This Row],[Station Number]],Table_Attach1[Receipt Point Number],0),)*INDEX(Conversions!$C$7:$C$8,MATCH('Toll Calculator'!$O$8,Conversions!$B$7:$B$8,0))*(365/12) -> 162.73
C146: =Table_ReceiptPointAlphabetical[[#This Row],[Alphabetical Order Rank]] -> 140 | D146: =INDEX(Table_ReceiptPoint[Receipt Point Number],MATCH(Table_CloseReceipt[[#This Row],[Rank]],Table_ReceiptPoint[Distance Rank to Delivery Location],0),) -> 1207 | E146: =INDEX(Table_ReceiptPoint[Receipt Point Name2],MATCH(Table_CloseReceipt[[#This Row],[Rank]],Table_ReceiptPoint[Distance Rank to Delivery Location],0),) -> HUDSON* | F146: =INDEX(Table_ReceiptPoint[Distance From Delivery Station],MATCH(Table_CloseReceipt[[#This Row],[Rank]],Table_ReceiptPoint[Distance Rank to Delivery Location],0),) -> 186.6764 | G146: =INDEX(Table_ReceiptPoint[Legal Location Name],MATCH(Table_CloseReceipt[[#This Row],[Rank]],Table_ReceiptPoint[Distance Rank to Delivery Location],0),) -> SW-31-030-02-W4 | H146: =INDEX(Table_Attach1[FT-R Demand Rate Price Point "B" ($/103m3/mo)],MATCH(Table_CloseReceipt[[#This Row],[Station Number]],Table_Attach1[Receipt Point Number],0),)*INDEX(Conversions!$C$7:$C$8,MATCH('Toll Calculator'!$O$8,Conversions!$B$7:$B$8,0)) -> 171.04 | I146: =INDEX(Table_Attach3[FT-P Demand Rate Price Point "B"],MATCH(IF(CEILING(Table_CloseReceipt[[#This Row],[Distance (km)]],25)>500,999999,CEILING(Table_CloseReceipt[[#This Row],[Distance (km)]],25)),Table_Attach3[Maximum Distance Between Receipt Point and Delivery Point (km)],0),)*INDEX(Conversions!$C$7:$C$8,MATCH('Toll Calculator'!$O$8,Conversions!$B$7:$B$8,0)) -> 524.95 | J146: =INDEX(Table_Attach1[IT-R Rate ($/103m3/d)],MATCH(Table_CloseReceipt[[#This Row],[Station Number]],Table_Attach1[Receipt Point Number],0),)*INDEX(Conversions!$C$7:$C$8,MATCH('Toll Calculator'!$O$8,Conversions!$B$7:$B$8,0))*(365/12) -> 196.19
C147: =Table_ReceiptPointAlphabetical[[#This Row],[Alphabetical Order Rank]] -> 141 | D147: =INDEX(Table_ReceiptPoint[Receipt Point Number],MATCH(Table_CloseReceipt[[#This Row],[Rank]],Table_ReceiptPoint[Distance Rank to Delivery Location],0),) -> 1802 | E147: =INDEX(Table_ReceiptPoint[Receipt Point Name2],MATCH(Table_CloseReceipt[[#This Row],[Rank]],Table_ReceiptPoint[Distance Rank to Delivery Location],0),) -> MOSS LAKE NORTH | F147: =INDEX(Table_ReceiptPoint[Distance From Delivery Station],MATCH(Table_CloseReceipt[[#This Row],[Rank]],Table_ReceiptPoint[Distance Rank to Delivery Location],0),) -> 187.4072 | G147: =INDEX(Table_ReceiptPoint[Legal Location Name],MATCH(Table_CloseReceipt[[#This Row],[Rank]],Table_ReceiptPoint[Distance Rank to Delivery Location],0),) -> 07-02-064-14-W4 | H147: =INDEX(Table_Attach1[FT-R Demand Rate Price Point "B" ($/103m3/mo)],MATCH(Table_CloseReceipt[[#This Row],[Station Number]],Table_Attach1[Receipt Point Number],0),)*INDEX(Conversions!$C$7:$C$8,MATCH('Toll Calculator'!$O$8,Conversions!$B$7:$B$8,0)) -> 281.48 | I147: =INDEX(Table_Attach3[FT-P Demand Rate Price Point "B"],MATCH(IF(CEILING(Table_CloseReceipt[[#This Row],[Distance (km)]],25)>500,999999,CEILING(Table_CloseReceipt[[#This Row],[Distance (km)]],25)),Table_Attach3[Maximum Distance Between Receipt Point and Delivery Point (km)],0),)*INDEX(Conversions!$C$7:$C$8,MATCH('Toll Calculator'!$O$8,Conversions!$B$7:$B$8,0)) -> 524.95 | J147: =INDEX(Table_Attach1[IT-R Rate ($/103m3/d)],MATCH(Table_CloseReceipt[[#This Row],[Station Number]],Table_Attach1[Receipt Point Number],0),)*INDEX(Conversions!$C$7:$C$8,MATCH('Toll Calculator'!$O$8,Conversions!$B$7:$B$8,0))*(365/12) -> 322.72
